Workbook

Sheet Dati Generali CER 1 Sem. 2022
A1: Scheda n. 1 - Produzione di Rifiuti Urbani e Raccolta Differenziata 1° Semestre 2022.
A2: =COUNTA(E3:E110) -> 108 | B2: ID COMUNE | C2: COMUNE | D2: ABITANTI al 30/06/2022 | E2: R.S.U. + R.S.A. (Kg/1°Sem.) 200301 | F2: R.S.U. COVID (A+A1) 200301* | G2: Altri oli per motori, ingranaggi e lubrificazione 130208* | H2: Legno da demolizione 170201 | I2: Miscele bituminose (diverse da quelle 170301*) 170302 | J2: Alluminio 170402 | K2: Ferro e acciaio 170405 | L2: Materiali da costruzione contenenti amianto 170605* | M2: Percolato di discarica,(diverso dalla voce 190702) 190703 | N2: Residui di vagliatura 190801 | O2: FANGHI DI DEPURAZIONE (Kg/anno) prodotti dal trattamento delle acque reflue urbane 190805 | P2: altri rifiuti (compresi materiali misti) prodotti dal trattamento meccanico dei rifiuti,(diversi dalla voce 191211) 191212 | Q2: Rifiuti della pulizia delle fognature 200306 | R2: Residui della pulizia stradale 200303 Smaltimento | S2: Ingombranti - 200307 Smaltimento | T2: Rifiuti urbani non specificati altrimenti 200399 | U2: RACCOL. DIFFEREN. (Kg/1°Sem.) | V2: R.S.U. + R.S.A. + RACC. DIFF. (Kg/1°Sem.) | W2: % RACC. DIFF. (1°Sem.) | X2: Compostaggio Domestico | Y2: Toner per stampa esauriti,(diversi dalla voce 080317) 080318 | Z2: Imballaggi Carta e Cartone (Raccolta Selettiva) 150101 | AA2: Imballaggi in Plastica 150102 | AB2: Imballaggi in Legno 150103 | AC2: Imballaaggi in metallo 150104 | AD2: Imballaggi Materiali compositi 150105 | AE2: Imball. in materiali misti 150106 | AF2: Imballaggi in Vetro 150107 | AG2: Imballaggi in Materiale tessile 150109 | AH2: Imballaggi contenenti residui di sostanze pericolose o contaminati da tali sostanze 150110* | AI2: Imballaggi metallici contenenti matrici solide porose pericolose (ad esempio amianto) 150111* | AJ2: Pneumatici usati 160103 | AK2: Filtri dell'olio 160107* | AL2: Apparecchiature fuori uso contenenti PCB o da essi contaminate(diverse dalla voce 160209) 160210* | AM2: Apparecchiature fuori uso, contenenti clorofluorocarburi, HCFC, HFC 160211* | AN2: Apparecchiature fuori uso contenenti amianto in fibre libere 160212* | AO2: App.fuori uso contenete comp.pericolosi(diversi dalle voci da 160209 a 160212) 160213* | AP2: Apparecchiature fuori uso(diverse dalle voci da 160209 a 160213*) 160214* | AQ2: Componenti pericolosi rimossi da apparecchiature fuori uso 160215* | AR2: Componenti rimossi da apparecchiature fuori uso,(diversi dalla voce 160215) 160216 | AS2: Gas in contenitori a pressione limitatamente ad estintori ed aerosol ad uso domenstico 160504* | AT2: Gas in contenitori a pressione (diversi dalla voce 160504*) limitatamente ad estintori ed aerosol ad uso domenstico 160505 | AU2: Miscugli o frazioni separate di cemento, mattoni, mattonelle e ceramiche(diverse dalla voce 170106) 170107 | AV2: Rifiuti misti dell'attività di costruzione e demolizione, (diversi dalle voci 170901, 170902 e 170903) 170904 | AW2: Carta e Cartone (Raccolta Congiunta) 200101 | AX2: Vetro 200102 | AY2: Rifiuti biodegradabili di cucine e mense 200108 | AZ2: Abbigliamento 200110 | BA2: Prodotti tessili 200111 | BB2: Solventi 200113* | BC2: Acidi 200114* | BD2: Sostanze Alcaline 200115* | BE2: Prodotti Fotochimici 200117* | BF2: Pesticidi 200119* | BG2: Tubi fluorescenti ed altri rifiuti contenenti Mercurio 200121* | BH2: Apparec. Fuori uso conten. CFC e mat. peric. 200123* | BI2: Oli e Grassi commestibili 200125 | BJ2: Oli e grassi (diversi dalla voce 200125) 200126* | BK2: Vernici,Inchiostri,Adesivi e Resine contenenti sostanze pericolose 200127* | BL2: Vernici,Inchiostri,Adesivi e Resine (diversi dalla voce 200127*) 200128 | BM2: Detergento contenente sostanze pericolose 200129* | BN2: Detergenti (diversi della voce 200129*) 200130 | BO2: Medicinali citotossici e citostatici 200131* | BP2: Medicinali (diversi dlla voce 200131*) 200132 | BQ2: Batterie ed Accumulatori (diversi dalle voci 160601, 160602 e 160603) 200133* | BR2: Batterie ed accumulatori (diversi dlla voce 200133*) 200134 | BS2: Apparecc. elettr. ed elettroniche fuori uso contenenti Mat. Peric. 200135* | BT2: Apparecc. eletr. ed elettroniche fuori uso(diverse da 200121, 200123 e 200135 200136 | BU2: Legno contenente sostanze pericolose 200137* | BV2: Legno 200138 | BW2: Plastica 200139 | BX2: Metallo 200140 | BY2: Rifiuti prodotti dalla pulizia dei camini provenienti da utenze domestiche 200141 | BZ2: Rifiuti biodegradabili 200201 | CA2: Altri rifiuti non biodegradabili 200203 | CB2: Rifiuti dei Mercati 200302 | CC2: Residui della pulizia stradale - 200303 Recupero | CD2: Ingombranti - 200307 Recupero | CE2: TOTALE RD (Kg/1°Sem.) | CF2: R.S.U. + R.S.A.+ R.D. - (R.T. Kg. pro capite/g) | CG2: R.S.U. + R.S.A. 200301 - (R.I. Kg. pro capite/g) | CH2: R.D. - (Kg. pro capite/g)
A3: 1 | B3: M211 | C3: ACQUEDOLCI | D3: 5462 | E3: 172180 | U3: =IF(CE3=0,"",CE3) -> 713925 | V3: =IF(E3=0,"",SUM(U3,E3,R3,S3,T3)) -> 886105 | W3: =IFERROR(IF(E3<>0,IF(U3=0,0,(U3/V3*100)/100),IF(U3=0,"","")),0) -> 0.8056889421 | Z3: 25580 | AA3: 94870 | AB3: 240 | AF3: 113900 | AW3: 90060 | AY3: 343840 | AZ3: 4145 | BH3: 2100 | BI3: 1260 | BS3: 1800 | BT3: 800 | BZ3: 9290 | CD3: 26040 | CE3: =IF(SUM(X3:CD3)=0,"",SUM(X3:CD3)) -> 713925 | CF3: =IF(SUM(E3)=0,"",V3/D3/181) -> 0.8963031371 | CG3: =IF(E3=0,"",E3/D3/181) -> 0.1741616108 | CH3: =IF(SUM(Y3:CD3)=0,"",CE3/D3/181) -> 0.7221415263
A4: 2 | B4: A177 | C4: ALCARA LI FUSI | D4: 1713 | E4: 43920 | M4: 4320 | O4: 1140 | U4: =IF(CE4=0,"",CE4) -> 150619 | V4: 194539 | W4: 0.7742355003 | AA4: 19860 | AF4: 33200 | AW4: 21290 | AY4: 68340 | AZ4: 2749 | BH4: 410 | BS4: 860 | BT4: 1900 | CD4: 2010 | CE4: =IF(SUM(X4:CD4)=0,"",SUM(X4:CD4)) -> 150619 | CF4: 0.6274378897 | CG4: =IF(E4=0,"",E4/D4/181) -> 0.1416532012 | CH4: 0.4857846884
A5: 3 | B5: A194 | C5: ALI' | D5: 676 | E5: 20650 | U5: 47780 | V5: 68430 | W5: 0.6982317697 | AE5: 6850 | AF5: 6320 | AW5: 6490 | AY5: 23900 | BZ5: 1560 | CD5: 2660 | CE5: 47780 | CF5: 0.5592696721 | CG5: 0.1687698192 | CH5: 0.3904998529
A6: 4 | B6: A201 | C6: ALI' TERME | D6: 2321 | E6: 129780 | U6: 338950 | V6: 468730 | W6: 0.7231241866 | AE6: 45400 | AF6: 32430 | AW6: 49390 | AY6: 148430 | BP6: 300 | BZ6: 30510 | CD6: 32490 | CE6: 338950 | CF6: 1.115755497 | CG6: 0.3089257107 | CH6: 0.8068297862
A7: 5 | B7: A313 | C7: ANTILLO | D7: 824 | E7: 23140 | U7: 68184 | V7: 91324 | W7: 0.7466164426 | X7: 3353 | AE7: 9700 | AF7: 6890 | AW7: 9240 | AY7: 29420 | BA7: 2561 | CD7: 7020 | CE7: 68184 | CF7: 0.6123209784 | CG7: 0.1551520678 | CH7: 0.4571689106
A8: 6 | B8: A638 | C8: BARCELLONA P.G. | D8: 39667 | E8: 4331880 | U8: 3964347 | V8: 8296227 | W8: 0.4778493886 | X8: 145347 | Z8: 351660 | AA8: 382610 | AC8: 9620 | AF8: 391340 | AI8: 700 | AJ8: 10140 | AR8: 1440 | AW8: 480420 | AY8: 1097980 | AZ8: 19030 | BG8: 440 | BH8: 18280 | BI8: 940 | BP8: 1460 | BQ8: 5420 | BR8: 540 | BS8: 24340 | BT8: 49900 | BV8: 204320 | BW8: 12400 | BX8: 47540 | BZ8: 261000 | CC8: 336220 | CD8: 111260 | CE8: 3964347 | CF8: 1.155507306 | CG8: 0.603348846 | CH8: 0.5521584595
A9: 7 | B9: A698 | C9: BASICO' | D9: 568 | E9: 52200 | U9: 57610 | V9: 109810 | W9: 0.5246334578 | X9: 12090 | AA9: 4380 | AE9: 9500 | AF9: 13580 | AW9: 12180 | AY9: 5880 | CE9: 57610 | CF9: 1.06810754 | CG9: 0.5077425881 | CH9: 0.5603649521
A10: 8 | B10: B198 | C10: BROLO | D10: 5711 | E10: 339920 | U10: 928250 | V10: 1268170 | W10: 0.7319602262 | X10: 45570 | Z10: 106060 | AA10: 3150 | AE10: 95360 | AF10: 94690 | AR10: 520 | AW10: 72260 | AY10: 343880 | AZ10: 5290 | BH10: 6360 | BI10: 1010 | BP10: 200 | BS10: 8400 | BT10: 15480 | BV10: 32550 | BX10: 11970 | BZ10: 47800 | CC10: 16280 | CD10: 21420 | CE10: 928250 | CF10: 1.226836647 | CG10: 0.3288410173 | CH10: 0.8979956293
A11: 9 | B11: B660 | C11: CAPIZZI | D11: 2843 | E11: 133390 | U11: 211545 | V11: 344935 | W11: 0.6132894603 | AA11: 22600 | AF11: 31420 | AW11: 26942 | AY11: 111840 | BH11: 2223 | BS11: 1800 | BT11: 400 | BV11: 8960 | BW11: 2700 | CD11: 2660 | CE11: 211545 | CF11: 0.6703194626 | CG11: 0.2592196011 | CH11: 0.4110998614
A12: 10 | B12: B666 | C12: CAPO D'ORLANDO | D12: 12989 | E12: 689480 | F12: 8880 | U12: 2288317 | V12: 2977797 | W12: 0.7684597036 | Z12: 170740 | AA12: 265120 | AB12: 9040 | AF12: 302200 | AW12: 427740 | AY12: 871740 | AZ12: 14127 | BG12: 200 | BH12: 10340 | BI12: 3830 | BS12: 21920 | BT12: 3180 | BX12: 36240 | BZ12: 29380 | CD12: 122520 | CE12: 2288317 | CF12: 1.266603828 | CG12: 0.2932698258 | CH12: 0.9733340025
A13: 11 | B13: B695 | C13: CAPRILEONE | D13: 4310 | E13: 95650 | U13: 581760 | V13: 677410 | W13: 0.8588004311 | Z13: 17100 | AA13: 77440 | AF13: 92870 | AW13: 85490 | AY13: 272520 | CD13: 36340 | CE13: 581760 | CF13: 0.8683518991 | CG13: 0.1226109138 | CH13: 0.7457409852
A14: 12 | B14: B804 | C14: CARONIA | D14: 3037 | E14: 149760 | U14: 397880 | V14: 547640 | W14: 0.7265356804 | Z14: 33110 | AA14: 17730 | AE14: 71740 | AF14: 54140 | AY14: 200200 | AZ14: 3850 | BI14: 410 | BP14: 60 | BR14: 40 | CD14: 16600 | CE14: 397880 | CF14: 0.9962579385 | CG14: 0.2724409993 | CH14: 0.7238169392
A15: 13 | B15: B918 | C15: CASALVECCHIO SICULO | D15: 729 | E15: 27020 | F15: 923 | U15: 56670 | V15: 83690 | W15: 0.677141833 | AE15: 7800 | AF15: 9030 | AW15: 6920 | AY15: 28200 | BX15: 740 | CD15: 3980 | CE15: 56670 | CF15: 0.6342602066 | CG15: 0.2047760877 | CH15: 0.4294841189
A16: 14 | B16: C094 | C16: CASTEL DI LUCIO | D16: 1193 | E16: 13600 | K16: 1420 | U16: 103330 | V16: 116930 | W16: 0.8836910972 | Y16: 60 | Z16: 3950 | AE16: 17070 | AF16: 17290 | AW16: 6940 | AY16: 48660 | AZ16: 4420 | BI16: 200 | BP16: 100 | BR16: 80 | BW16: 1810 | CD16: 2750 | CE16: 103330 | CF16: 0.5415105611 | CG16: 0.0629824992 | CH16: 0.4785280619
A17: 15 | B17: C051 | C17: CASTELL'UMBERTO | D17: 2823 | E17: 95940 | U17: 240480 | V17: 336420 | W17: 0.7148207598 | AA17: 31590 | AF17: 52420 | AW17: 28410 | AY17: 118550 | BS17: 1470 | CD17: 8040 | CE17: 240480 | CF17: 0.6584038375 | CG17: 0.1877631061 | CH17: 0.4706407313
A18: 16 | B18: C210 | C18: CASTELMOLA | D18: 1048 | E18: 64670 | U18: 96360 | V18: 161030 | W18: 0.5983978141 | AE18: 15790 | AF18: 19550 | AW18: 12980 | AY18: 43280 | CD18: 4760 | CE18: 96360 | CF18: 0.8489203323 | CG18: 0.3409282611 | CH18: 0.5079920712
A19: 17 | B19: C347 | C19: CASTROREALE | D19: 2251 | E19: 100770 | F19: 2721 | U19: 146950 | V19: 247720 | W19: 0.5932100759 | Z19: 9830 | AE19: 23580 | AF19: 23740 | AW19: 12900 | AY19: 71380 | BH19: 580 | BP19: 110 | BS19: 740 | BT19: 1650 | CD19: 2440 | CE19: 146950 | CF19: 0.608004791 | CG19: 0.2473302228 | CH19: 0.3606745682
A20: 18 | B20: C568 | C20: CESARO' | D20: 2169 | E20: 182530 | U20: 125740 | V20: 308270 | W20: 0.407889188 | AA20: 15530 | AF20: 26580 | AW20: 22150 | AY20: 52020 | BH20: 320 | CD20: 9140 | CE20: 125740 | CF20: 0.7852232233 | CG20: 0.4649391603 | CH20: 0.320284063
A21: 19 | B21: C956 | C21: CONDRO' | D21: 466 | E21: 31180 | U21: 38020 | V21: 69200 | W21: 0.5494219653 | AA21: 200 | AE21: 4480 | AF21: 6780 | AW21: 4320 | AY21: 20110 | BH21: 160 | BP21: 20 | BS21: 180 | BT21: 590 | CD21: 1180 | CE21: 38020 | CF21: 0.820430133 | CG21: 0.3696677969 | CH21: 0.4507623361
A22: 20 | B22: D474 | C22: FALCONE | D22: 2738 | E22: 228860 | F22: 4490 | U22: 353640 | V22: 582500 | W22: 0.6071072961 | Z22: 4080 | AA22: 12100 | AE22: 25740 | AF22: 43640 | AW22: 54500 | AY22: 175520 | BI22: 1480 | BV22: 9140 | CD22: 27440 | CE22: 353640 | CF22: 1.175395195 | CG22: 0.4618041963 | CH22: 0.7135909988
A23: 21 | B23: D569 | C23: FICARRA | D23: 1300 | E23: 45380 | F23: 970 | U23: 139940 | V23: 185320 | W23: 0.7551262681 | X23: 14400 | Z23: 1480 | AA23: 11370 | AF23: 23220 | AW23: 14100 | AY23: 55360 | AZ23: 2130 | BH23: 1350 | BS23: 1000 | CD23: 15530 | CE23: 139940 | CF23: 0.7875903102 | CG23: 0.1928601785 | CH23: 0.5947301317
A24: 22 | B24: D622 | C24: FIUMEDINISI | D24: 1242 | E24: 38260 | U24: 114070 | V24: 152330 | W24: 0.7488347666 | AE24: 18050 | AF24: 12650 | AW24: 18000 | AY24: 60110 | BP24: 490 | CD24: 4770 | CE24: 114070 | CF24: 0.6776185265 | CG24: 0.1701942154 | CH24: 0.5074243112
A25: 23 | B25: D635 | C25: FLORESTA | D25: 463 | E25: 87860 | U25: 25020 | V25: 112880 | W25: 0.2216513111 | AA25: 8000 | AF25: 8420 | AW25: 5420 | BV25: 340 | BX25: 120 | CD25: 2720 | CE25: 25020 | CF25: 1.346968486 | CG25: 1.048411155 | CH25: 0.2985573309
A26: 24 | B26: D661 | C26: FONDACHELLI FANTINA | D26: 1029 | E26: 52089 | U26: 43790 | V26: 95879 | W26: 0.4567214927 | AC26: 2060 | AE26: 8060 | AF26: 10590 | AW26: 7680 | AY26: 15400 | CE26: 43790 | CF26: 0.5147893412 | CG26: 0.2796739848 | CH26: 0.2351153563
A27: 25 | B27: D733 | C27: FORZA D'AGRO' | D27: 833 | E27: 46660 | U27: 299300 | V27: 345960 | W27: 0.8651289166 | AE27: 15920 | AF27: 17690 | AW27: 174880 | AY27: 85170 | CD27: 5640 | CE27: 299300 | CF27: 2.294575289 | CG27: 0.309471855 | CH27: 1.985103434
A28: 26 | B28: D765 | C28: FRANCAVILLA DI SICILIA | D28: 3545 | E28: 165160 | U28: 536210 | V28: 701370 | W28: 0.7645180147 | X28: 114000 | AC28: 28620 | AE28: 82940 | AF28: 42850 | AJ28: 920 | AW28: 69440 | AY28: 169800 | AZ28: 9580 | BH28: 1700 | BI28: 980 | BS28: 1760 | BV28: 6340 | BW28: 480 | CD28: 6800 | CE28: 536210 | CF28: 1.093081065 | CG28: 0.2574008993 | CH28: 0.8356801658
A29: 27 | B29: D793 | C29: FRAZZANO' | D29: 584 | E29: 27240 | U29: 39990 | V29: 67230 | W29: 0.5948237394 | AA29: 4480 | AF29: 11870 | AW29: 4590 | AY29: 17240 | CD29: 1810 | CE29: 39990 | CF29: 0.6360213426 | CG29: 0.2577007493 | CH29: 0.3783205934
A30: 28 | B30: D824 | C30: FURCI SICULO | D30: 3195 | E30: 160470 | F30: 6195 | U30: 379660 | V30: 540130 | W30: 0.7029048562 | Y30: 80 | AE30: 57380 | AF30: 41220 | AJ30: 300 | AW30: 57330 | AY30: 154520 | BP30: 300 | BR30: 40 | BV30: 7140 | BX30: 140 | BZ30: 8040 | CD30: 53170 | CE30: 379660 | CF30: 0.9340042712 | CG30: 0.2774881332 | CH30: 0.656516138
A31: 29 | B31: D825 | C31: FURNARI | D31: 3890 | E31: 181887 | U31: 670920 | V31: 852807 | W31: 0.7867196212 | Z31: 31540 | AE31: 86270 | AF31: 42820 | AW31: 53460 | AY31: 225730 | BI31: 260 | BV31: 41710 | BZ31: 128050 | CD31: 61080 | CE31: 670920 | CF31: 1.211218736 | CG31: 0.2583291909 | CH31: 0.9528895454
A32: 30 | B32: D844 | C32: GAGGI | D32: 3045 | E32: 250590 | U32: 239360 | V32: 489950 | W32: 0.4885396469 | AA32: 1060 | AE32: 25380 | AF32: 36320 | AW32: 39240 | AY32: 134520 | BI32: 400 | BJ32: 200 | CD32: 2240 | CE32: 239360 | CF32: 0.8889675131 | CG32: 0.4546716381 | CH32: 0.434295875
A33: 31 | B33: D861 | C33: GALATI MAMERTINO | D33: 2271 | E33: 65472 | U33: 227330 | V33: 292802 | W33: 0.77639497 | AA33: 30800 | AF33: 48100 | AW33: 31980 | AY33: 104610 | BT33: 4220 | CD33: 7620 | CE33: 227330 | CF33: 0.7123252346 | CG33: 0.1592795055 | CH33: 0.5530457291
A34: 32 | B34: D885 | C34: GALLODORO | D34: 345 | E34: 21970 | U34: 29780 | V34: 51750 | W34: 0.5754589372 | AE34: 4580 | AF34: 4470 | AW34: 3880 | AY34: 12970 | BV34: 1420 | CD34: 2460 | CE34: 29780 | CF34: 0.8287292818 | CG34: 0.3518296101 | CH34: 0.4768996717
A35: 33 | B35: E014 | C35: GIARDINI NAXOS | D35: 9089 | E35: 1673200 | S35: 51140 | U35: 1100490 | V35: =IF(E35=0,"",SUM(U35,E35,R35,S35,T35)) -> 2824830 | W35: =IFERROR(IF(E35<>0,IF(U35=0,0,(U35/V35*100)/100),IF(U35=0,"","")),0) -> 0.3895774259 | Z35: 43940 | AA35: 183820 | AF35: 188030 | AW35: 133320 | AY35: 494540 | CC35: 18480 | CD35: 38360 | CE35: 1100490 | CF35: =IF(SUM(E35)=0,"",V35/D35/181) -> 1.717108107 | CG35: =IF(E35=0,"",E35/D35/181) -> 1.017075464 | CH35: =IF(SUM(Y35:CD35)=0,"",CE35/D35/181) -> 0.6689465561
A36: 34 | B36: E043 | C36: GIOIOSA MAREA | D36: 6686 | E36: 395152 | U36: 704990 | V36: 1100142 | W36: 0.6408172763 | Z36: 32040 | AE36: 81040 | AF36: 96780 | AW36: 57260 | AY36: 303170 | AZ36: 8000 | BI36: 1160 | BV36: 5440 | BZ36: 79540 | CD36: 40560 | CE36: 704990 | CF36: 0.9090835472 | CG36: 0.3265271045 | CH36: 0.5825564427
A37: 35 | B37: E142 | C37: GRANITI | D37: 1434 | E37: 195920 | U37: 44700 | V37: 240620 | W37: 0.1857700939 | AE37: 13740 | AF37: 15640 | AW37: 10460 | BH37: 680 | BT37: 140 | CD37: 4040 | CE37: 44700 | CF37: 0.9270517888 | CG37: 0.754833291 | CH37: 0.1722184979
A38: 36 | B38: E233 | C38: GUALTIERI SICAMINO | D38: 1580 | E38: 56580 | F38: 3530 | U38: 185155 | V38: 241735 | W38: 0.765942044 | X38: 11202 | AE38: 22120 | AF38: 25760 | AW38: 21800 | AY38: 83410 | BP38: 120 | BS38: 1100 | BT38: 4120 | BV38: 7200 | BW38: 874 | BX38: 89 | CD38: 7360 | CE38: 185155 | CF38: 0.8452863837 | CG38: 0.1978460032 | CH38: 0.6474403804
A39: 37 | B39: E374 | C39: ITALA | D39: 1492 | E39: 102080 | U39: 163260 | V39: 265340 | W39: 0.6152860481 | AE39: 21710 | AF39: 22630 | AJ39: 40 | AW39: 29500 | AY39: 78860 | BH39: 800 | BS39: 340 | BT39: 740 | CD39: 8640 | CE39: 163260 | CF39: 0.9825515086 | CG39: 0.3780012738 | CH39: 0.6045502348
A40: 38 | B40: E523 | C40: LENI | D40: 682 | E40: 79520 | U40: 31580 | V40: 111100 | W40: 0.2842484248 | Z40: 7340 | AA40: 3580 | AF40: 15240 | BH40: 1920 | BS40: 1300 | CD40: 2200 | CE40: 31580 | CF40: 0.9000178221 | CG40: 0.6441891739 | CH40: 0.2558286483
A41: 39 | B41: E555 | C41: LETOJANNI | D41: 2853 | E41: 383040 | U41: 370820 | V41: 753860 | W41: 0.4918950468 | AE41: 42380 | AF41: 56960 | AW41: 55000 | AY41: 200380 | BV41: 3200 | BZ41: 4480 | CD41: 8420 | CE41: 370820 | CF41: 1.459857124 | CG41: 0.7417606358 | CH41: 0.7180964885
A42: 40 | B42: E571 | C42: LIBRIZZI | D42: 1571 | E42: 67160 | U42: 191010 | V42: 258170 | W42: 0.7398613317 | X42: 56550 | Z42: 13360 | AA42: 3340 | AE42: 18580 | AF42: 26480 | AW42: 9540 | AY42: 54200 | BP42: 60 | BT42: 860 | BV42: 1940 | CD42: 6100 | CE42: 191010 | CF42: 0.9079271745 | CG42: 0.2361869661 | CH42: 0.6717402084
A43: 41 | B43: E594 | C43: LIMINA | D43: 731 | E43: 61440 | F43: 120 | U43: 30450 | V43: 91890 | W43: 0.3313744695 | AA43: 8220 | AW43: 8290 | AX43: 9540 | CD43: 4400 | CE43: 30450 | CF43: 0.6945000794 | CG43: 0.464360484 | CH43: 0.2301395953
A44: 42 | B44: E606 | C44: LIPARI | D44: 12471 | E44: 1967070 | U44: 1556160 | V44: 3523230 | W44: 0.4416856124 | Z44: 241780 | AA44: 199540 | AF44: 300700 | AJ44: 8120 | AW44: 87180 | AY44: 405300 | BH44: 26300 | BS44: 16140 | BT44: 42220 | BV44: 85920 | BW44: 13070 | BX44: 46550 | BZ44: 53940 | CD44: 29400 | CE44: 1556160 | CF44: 1.560849901 | CG44: 0.8714449567 | CH44: 0.6894049443
A45: 43 | B45: E674 | C45: LONGI | D45: 1331 | E45: 11860 | F45: 781 | U45: 156431 | V45: 168291 | W45: 0.9295268315 | Z45: 1060 | AA45: 18840 | AF45: 36080 | AJ45: 240 | AR45: 20 | AW45: 20780 | AY45: 68730 | AZ45: 3881 | BP45: 200 | BT45: 3210 | CD45: 3390 | CE45: 156431 | CF45: 0.6985608793 | CG45: 0.04922979856 | CH45: 0.6493310808
A46: 44 | B46: E855 | C46: MALFA | D46: 969 | E46: 96320 | U46: 83140 | V46: 179460 | W46: 0.4632787251 | Z46: 24940 | AA46: 14460 | AC46: 1480 | AF46: 21960 | AY46: 18220 | BW46: 2080 | CE46: 83140 | CF46: 1.023211262 | CG46: 0.549179253 | CH46: 0.4740320088
A47: 45 | B47: E869 | C47: MALVAGNA | D47: 631 | E47: 74540 | U47: 14440 | V47: 88980 | W47: 0.1622836592 | AA47: 5220 | AF47: 2860 | AW47: 3160 | CD47: 3200 | CE47: 14440 | CF47: 0.7790843264 | CG47: 0.652651671 | CH47: 0.1264326553
A48: 46 | B48: E876 | C48: MANDANICI | D48: 513 | E48: 20410 | U48: 66510 | V48: 86920 | W48: 0.7651863783 | AE48: 9630 | AF48: 7170 | AW48: 8960 | AY48: 35440 | BH48: 480 | BT48: 260 | CD48: 4570 | CE48: 66510 | CF48: 0.9361033031 | CG48: 0.2198098069 | CH48: 0.7162934962
A49: 47 | B49: F066 | C49: MAZZARRA' S. ANDREA | D49: 1383 | E49: 44720 | U49: 159200 | V49: 203920 | W49: 0.7806983131 | X49: 27900 | AA49: 19920 | AF49: 19520 | AW49: 18540 | AY49: 64200 | AZ49: 700 | CD49: 8420 | CE49: 159200 | CF49: 0.8146275013 | CG49: 0.1786491853 | CH49: 0.635978316
A50: 48 | B50: F147 | C50: MERI' | D50: 2285 | E50: 186000 | U50: 163820 | V50: 349820 | W50: 0.4682979818 | AE50: 15120 | AF50: 24680 | AW50: 28780 | AY50: 92630 | BH50: 830 | BS50: 380 | BT50: 1400 | CE50: 163820 | CF50: 0.8458237122 | CG50: 0.4497261748 | CH50: 0.3960975374
A51: 49 | B51: F158 | C51: MESSINA | D51: 218747 | E51: 23768580 | U51: 26343802 | V51: 50112382 | W51: 0.5256944681 | X51: 283018 | Y51: 1295 | Z51: 2732910 | AA51: 171520 | AC51: 10020 | AE51: 3069710 | AF51: 3178685 | AJ51: 3340 | AV51: 171240 | AW51: 3043300 | AX51: 11660 | AY51: 10196740 | AZ51: 173205 | BG51: 590 | BH51: 71480 | BI51: 8375 | BJ51: 2000 | BP51: 13130 | BQ51: 18622 | BR51: 2380 | BS51: 77840 | BT51: 172240 | BV51: 968546 | BX51: 123190 | BZ51: 694565 | CD51: 1144201 | CE51: 26343802 | CF51: 1.265681307 | CG51: 0.6003196457 | CH51: 0.6653616617
A52: 50 | B52: F206 | C52: MILAZZO | D52: 30129 | E52: 2321260 | F52: 32440 | U52: 4405687 | V52: 6726947 | W52: 0.65493113 | Y52: 107 | Z52: 355980 | AA52: 434770 | AF52: 500220 | AW52: 429600 | AY52: 2108040 | AZ52: 12380 | BH52: 6380 | BI52: 2600 | BP52: 1280 | BS52: 5840 | BT52: 12040 | BV52: 14250 | BW52: 12490 | BZ52: 277830 | CC52: 143480 | CD52: 88400 | CE52: 4405687 | CF52: 1.233544195 | CG52: 0.4256577014 | CH52: 0.8078864932
A53: 51 | B53: F210 | C53: MILITELLO ROSMARINO | D53: 1165 | E53: 38680 | U53: 97713 | V53: 136393 | W53: 0.7164077335 | AA53: 19850 | AF53: 19470 | AW53: 11250 | AY53: 42460 | AZ53: 1063 | BH53: 340 | BS53: 630 | BT53: 300 | CD53: 2350 | CE53: 97713 | CF53: 0.6468261684 | CG53: 0.1834348991 | CH53: 0.4633912693
A54: 52 | B54: F242 | C54: MIRTO | D54: 903 | E54: 12886 | U54: 129212 | V54: 142098 | W54: 0.9093161058 | AA54: 17220 | AF54: 26010 | AW54: 18410 | AY54: 57870 | AZ54: 3202 | BH54: 470 | BS54: 690 | BT54: 880 | CD54: 4460 | CE54: 129212 | CF54: 0.8694040124 | CG54: 0.07884094149 | CH54: 0.7905630709
A55: 53 | B55: F251 | C55: MISTRETTA | D55: 4363 | E55: 194640 | U55: 496260 | V55: 690900 | W55: 0.7182805037 | Z55: 27960 | AA55: 49720 | AF55: 85200 | AW55: 50310 | AY55: 228800 | BH55: 4300 | BI55: 200 | BS55: 7620 | BT55: 3020 | CD55: 39130 | CE55: 496260 | CF55: 0.8748858748 | CG55: 0.246472408 | CH55: 0.6284134668
A56: 54 | B56: F277 | C56: MOJO ALCANTARA | D56: 659 | E56: 84300 | U56: 25840 | V56: 110140 | W56: 0.2346104957 | AA56: 5580 | AF56: 9840 | AW56: 5600 | CD56: 4820 | CE56: 25840 | CF56: 0.9233813161 | CG56: 0.7067463678 | CH56: 0.2166349483
A57: 55 | B57: F359 | C57: MONFORTE S. GIORGIO | D57: 2522 | E57: 432400 | U57: 169470 | V57: 601870 | W57: 0.2815724326 | AE57: 19200 | AF57: 26800 | AW57: 25560 | AY57: 90210 | BH57: 1210 | BS57: 550 | BT57: 1880 | CD57: 4060 | CE57: 169470 | CF57: 1.318496677 | CG57: 0.9472443601 | CH57: 0.3712523166
A58: 56 | B58: F368 | C58: MONGIUFFI MELIA | D58: 524 | E58: 28450 | U58: 41800 | V58: 70250 | W58: 0.5950177936 | AE58: 4830 | AF58: 4970 | AW58: 7190 | AY58: 22250 | CD58: 2560 | CE58: 41800 | CF58: 0.7406899751 | CG58: 0.2999662604 | CH58: 0.4407237147
A59: 57 | B59: F395 | C59: MONTAGNAREALE | D59: 1393 | E59: 91110 | U59: 62940 | V59: 154050 | W59: 0.4085686465 | Z59: 700 | AA59: 1540 | AE59: 18060 | AF59: 21720 | AW59: 17880 | CD59: 3040 | CE59: 62940 | CF59: 0.6109870584 | CG59: 0.3613569029 | CH59: 0.2496301555
A60: 58 | B60: F400 | C60: MONTALBANO ELICONA | D60: 1996 | E60: 71120 | U60: 184931 | V60: 256051 | W60: 0.7222428344 | X60: 25518 | AE60: 30290 | AF60: 35660 | AW60: 21210 | AY60: 69910 | AZ60: 2343 | CE60: 184931 | CF60: 0.7087406858 | CG60: 0.196857804 | CH60: 0.5118828818
A61: 59 | B61: F772 | C61: MOTTA CAMASTRA | D61: 795 | E61: 91720 | U61: 25580 | V61: 117300 | W61: 0.2180733163 | Z61: 580 | AE61: 7260 | AF61: 10040 | AW61: 4740 | BH61: 320 | CD61: 2640 | CE61: 25580 | CF61: 0.8151777338 | CG61: 0.637409222 | CH61: 0.1777685118
A62: 60 | B62: F773 | C62: MOTTA D'AFFERMO | D62: 664 | E62: 13120 | U62: 57050 | V62: 70170 | W62: 0.8130255095 | Y62: 30 | Z62: 1060 | AE62: 8630 | AF62: 10500 | AW62: 6880 | AY62: 29400 | BP62: 40 | BR62: 10 | BW62: 500 | CE62: 57050 | CF62: 0.583854756 | CG62: 0.1091659456 | CH62: 0.4746888105
A63: 61 | B63: F848 | C63: NASO | D63: 3435 | E63: 31539 | F63: 4850 | H63: 560 | N63: 340 | O63: 28840 | U63: 418970 | V63: 450509 | W63: 0.9299925196 | X63: 32040 | AA63: 94990 | AF63: 74010 | AJ63: 240 | AV63: 1300 | AW63: 63720 | AY63: 141790 | AZ63: 10480 | BH63: 400 | CE63: 418970 | CF63: 0.7245997089 | CG63: 0.05072739994 | CH63: 0.6738723089
A64: 62 | B64: F901 | C64: NIZZA DI SICILIA | D64: 3525 | E64: 220610 | U64: 375490 | V64: 596100 | W64: 0.6299110887 | Y64: 140 | AE64: 43520 | AF64: 47040 | AW64: 67380 | AY64: 162020 | BP64: 340 | BZ64: 29110 | CD64: 25940 | CE64: 375490 | CF64: 0.9342894087 | CG64: 0.3457701501 | CH64: 0.5885192586
A65: 63 | B65: F951 | C65: NOVARA DI SICILIA | D65: 1154 | E65: 62180 | F65: 2120 | U65: 168078 | V65: 230258 | W65: 0.7299550939 | X65: 6798 | AE65: 19900 | AF65: 18320 | AW65: 22180 | AY65: 77700 | CD65: 23180 | CE65: 168078 | CF65: 1.10237751 | CG65: 0.2976914312 | CH65: 0.8046860787
A66: 64 | B66: G036 | C66: OLIVERI | D66: 2041 | E66: 149880 | U66: 365940 | V66: 515820 | W66: 0.7094335233 | X66: 12780 | Z66: 11160 | AB66: 2040 | AE66: 38600 | AF66: 46960 | AW66: 30460 | AY66: 160180 | AZ66: 2640 | BA66: 400 | BI66: 1300 | BT66: 3960 | BV66: 9720 | CD66: 45740 | CE66: 365940 | CF66: 1.396293118 | CG66: 0.4057159718 | CH66: 0.9905771464
A67: 65 | B67: G209 | C67: PACE DEL MELA | D67: 5956 | E67: 401940 | F67: 13570 | U67: 742387 | V67: =IF(E67=0,"",SUM(U67,E67,R67,S67,T67)) -> 1144327 | W67: =IFERROR(IF(E67<>0,IF(U67=0,0,(U67/V67*100)/100),IF(U67=0,"","")),0) -> 0.6487542459 | X67: 37780 | Y67: 140 | AE67: 102180 | AF67: 75600 | AW67: 142310 | AY67: 331260 | AZ67: 5040 | BH67: 2040 | BP67: 220 | BS67: 4900 | BT67: 4640 | BV67: 10340 | BW67: 4026 | BX67: 851 | BZ67: 7820 | CD67: 13240 | CE67: 742387 | CF67: =IF(SUM(E67)=0,"",V67/D67/181) -> 1.061492381 | CG67: 0.3728446916 | CH67: =IF(SUM(Y67:CD67)=0,"",CE67/D67/181) -> 0.6886476889
A68: 66 | B68: G234 | C68: PAGLIARA | D68: 1128 | E68: 22600 | F68: 1320 | U68: =IF(CE68=0,"",CE68) -> 99540 | V68: 122140 | W68: 0.814966432 | AE68: 15600 | AF68: 12480 | AW68: 12170 | AY68: 52170 | BH68: 380 | BT68: 500 | CD68: 6240 | CE68: =IF(SUM(X68:CD68)=0,"",SUM(X68:CD68)) -> 99540 | CF68: 0.5982328279 | CG68: =IF(E68=0,"",E68/D68/181) -> 0.1106931547 | CH68: 0.4875396732
A69: 67 | B69: G377 | C69: PATTI | D69: 12649 | E69: 691140 | U69: 1690120 | V69: 2381260 | W69: 0.7097586992 | Z69: 109460 | AB69: 880 | AE69: 231160 | AF69: 186200 | AW69: 151760 | AY69: 909720 | BT69: 640 | BV69: 19840 | BZ69: 16220 | CD69: 64240 | CE69: 1690120 | CF69: 1.040092703 | CG69: 0.301877859 | CH69: 0.7382148437
A70: 68 | B70: G522 | C70: PETTINEO | D70: 1247 | E70: 27460 | K70: 1860 | U70: 131390 | V70: 158850 | W70: 0.827132515 | Y70: 30 | Z70: 3990 | AE70: 16170 | AF70: 33290 | AW70: 7030 | AY70: 60720 | BH70: 1200 | BI70: 130 | BP70: 60 | BR70: 40 | BS70: 910 | BW70: 1390 | CD70: 6430 | CE70: 131390 | CF70: 0.70378854 | CG70: 0.1216621549 | CH70: 0.5821263851
A71: 69 | B71: G699 | C71: PIRAINO | D71: 3780 | E71: 189060 | U71: 436460 | V71: 625520 | W71: 0.6977554675 | X71: 30380 | Z71: 19780 | AA71: 36180 | AE71: 29080 | AF71: 65250 | AW71: 58270 | AY71: 186580 | BH71: 1130 | BS71: 970 | BT71: 1550 | CD71: 7290 | CE71: 436460 | CF71: 0.9142623286 | CG71: 0.2763307901 | CH71: 0.6379315385
A72: 70 | B72: H151 | C72: RACCUJA | D72: 871 | E72: 34000 | F72: 795 | U72: 82040 | V72: 116040 | W72: 0.706997587 | Z72: 7840 | AA72: 12100 | AF72: 21080 | AW72: 1160 | AY72: 36180 | BI72: 480 | BT72: 1160 | CD72: 2040 | CE72: 82040 | CF72: 0.7360562255 | CG72: 0.2156662501 | CH72: 0.5203899753
A73: 71 | B73: H228 | C73: REITANO | D73: 713 | E73: 94580 | U73: 178540 | V73: 273120 | W73: 0.653705331 | Z73: 10940 | AA73: 5520 | AE73: 45800 | AF73: 20840 | AY73: 83260 | CD73: 12180 | CE73: 178540 | CF73: 2.116339798 | CG73: 0.73287719 | CH73: 1.383462608
A74: 72 | B74: H405 | C74: ROCCAFIORITA | D74: 183 | E74: 5700 | U74: 17570 | V74: 23270 | W74: 0.7550494199 | AA74: 1920 | AF74: 780 | AH74: 1700 | AW74: 1240 | AY74: 7500 | AZ74: 1980 | BZ74: 2450 | CE74: 17570 | CF74: 0.7025329831 | CG74: 0.1720858618 | CH74: 0.5304471213
A75: 73 | B75: H418 | C75: ROCCALUMERA | D75: 3905 | E75: 235590 | U75: 628050 | V75: 863640 | W75: 0.7272127275 | AE75: 75260 | AF75: 64190 | AJ75: 140 | AV75: 1040 | AW75: 89050 | AY75: 292720 | AZ75: 6660 | BH75: 3640 | BI75: 190 | BP75: 560 | BR75: 20 | BS75: 2700 | BT75: 1590 | BV75: 22020 | BX75: 300 | BZ75: 3600 | CD75: 64370 | CE75: 628050 | CF75: 1.221892884 | CG75: 0.3333168271 | CH75: 0.888576057
A76: 74 | B76: H380 | C76: ROCCAVALDINA | D76: 982 | E76: 149120 | U76: 47030 | V76: 196150 | W76: 0.2397654856 | AE76: 9560 | AF76: 10640 | AW76: 8180 | AY76: 12840 | BH76: 220 | BP76: 10 | BS76: 440 | BT76: 520 | CD76: 4620 | CE76: 47030 | CF76: 1.103565843 | CG76: 0.8389688425 | CH76: 0.2645970001
A77: 75 | B77: H455 | C77: ROCCELLA VALDEMONE | D77: 555 | E77: 73460 | U77: 23260 | V77: 96720 | W77: 0.2404880066 | AA77: 3680 | AF77: 5380 | AW77: 5340 | CD77: 8860 | CE77: 23260 | CF77: 0.9628191728 | CG77: 0.7312727092 | CH77: 0.2315464636
A78: 76 | B78: H479 | C78: RODI' MILICI | D78: 1915 | E78: 110370 | F78: 1160 | U78: 188170 | V78: 298540 | W78: 0.6303007972 | X78: 28020 | Z78: 6270 | AE78: 22680 | AF78: 26330 | AW78: 18630 | AY78: 74060 | BH78: 1280 | BS78: 600 | BT78: 670 | BZ78: 2780 | CD78: 6850 | CE78: 188170 | CF78: 0.861301444 | CG78: 0.3184224572 | CH78: 0.5428789868
A79: 77 | B79: H519 | C79: ROMETTA | D79: 6489 | E79: 155780 | F79: 5050 | U79: 857820 | V79: 1013600 | W79: 0.8463101815 | X79: 91380 | Z79: 6610 | AA79: 90540 | AF79: 86600 | AW79: 107480 | AY79: 343560 | AZ79: 8920 | BH79: 5720 | BI79: 330 | BP79: 60 | BS79: 2020 | BT79: 600 | BV79: 20720 | BZ79: 43400 | CD79: 49880 | CE79: 857820 | CF79: 0.8629989213 | CG79: 0.1326341475 | CH79: 0.7303647737
A80: 78 | B80: I184 | C80: S. DOMENICA VITTORIA | D80: 855 | E80: 105140 | U80: 49100 | V80: 154240 | W80: 0.3183350622 | Z80: 9760 | AA80: 12080 | AF80: 12200 | CD80: 15060 | CE80: 49100 | CF80: 0.9966721592 | CG80: 0.6793964654 | CH80: 0.3172756938
A81: 79 | B81: I370 | C81: S. STEF. DI CAMASTRA | D81: 4341 | E81: 253700 | U81: 658155 | V81: 911855 | W81: 0.7217759403 | Z81: 97850 | AA81: 32950 | AE81: 71780 | AF81: 87920 | AV81: 10920 | AW81: 8280 | AY81: 276700 | AZ81: 10320 | BH81: 4990 | BI81: 640 | BP81: 130 | BR81: 55 | BS81: 3480 | BZ81: 32200 | CD81: 19940 | CE81: 658155 | CF81: 1.16053281 | CG81: 0.3228881499 | CH81: 0.8376446601
A82: 80 | B82: I199 | C82: S. AGATA DI MILITELLO | D82: 11840 | E82: 735840 | F82: 6180 | U82: 1862625 | V82: 2598465 | W82: 0.7168174288 | Z82: 76860 | AA82: 190510 | AB82: 3370 | AF82: 243560 | AW82: 226530 | AY82: 743740 | AZ82: 9170 | BG82: 90 | BH82: 16680 | BI82: 355 | BS82: 18440 | BT82: 9080 | BZ82: 142640 | CD82: 181600 | CE82: 1862625 | CF82: 1.212513532 | CG82: 0.3433626997 | CH82: 0.8691508325
A83: 81 | B83: I220 | C83: SANTA LUCIA DEL MELA | D83: 4387 | E83: 286760 | U83: 449158 | V83: 735918 | W83: 0.6103370212 | X83: 66078 | Z83: 22510 | AE83: 59340 | AF83: 51300 | AW83: 46020 | AY83: 187680 | AZ83: 4220 | BH83: 2350 | BP83: 90 | BS83: 1130 | BT83: 2130 | CD83: 6310 | CE83: 449158 | CF83: 0.9267940059 | CG83: 0.361137313 | CH83: 0.5656566929
A84: 82 | B84: I311 | C84: S. TERESA DI RIVA | D84: 9343 | E84: 464920 | K84: 2400 | U84: 1210768 | V84: 1675688 | W84: 0.7225497825 | X84: 38558 | Y84: 180 | Z84: 46460 | AE84: 187760 | AF84: 116150 | AI84: 180 | AW84: 210580 | AY84: 528140 | AZ84: 5990 | BH84: 7060 | BI84: 170 | BL84: 340 | BP84: 200 | BS84: 2980 | BT84: 4080 | BV84: 10860 | BW84: 3240 | BZ84: 13880 | CD84: 33960 | CE84: 1210768 | CF84: 0.9908963664 | CG84: 0.2749244123 | CH84: 0.7159719541
A85: 83 | B85: H842 | C85: S. FILIPPO DEL MELA | D85: 6675 | E85: 539920 | U85: 710380 | V85: 1250300 | W85: 0.5681676398 | X85: 8000 | Z85: 47580 | AE85: 87530 | AF85: 73290 | AW85: 82760 | AY85: 319800 | BH85: 1140 | BP85: 10 | BS85: 1360 | BT85: 2090 | BX85: 1600 | BZ85: 50850 | CC85: 27260 | CD85: 7110 | CE85: 710380 | CF85: 1.034866638 | CG85: 0.4468889027 | CH85: 0.587977735
A86: 84 | B86: H850 | C86: SAN FRATELLO | D86: 3257 | E86: 103840 | U86: 297500 | V86: 401340 | W86: 0.7412667564 | AE86: 47000 | AF86: 48360 | AW86: 42000 | AY86: 145640 | CD86: 14500 | CE86: 297500 | CF86: 0.6807946166 | CG86: 0.1761441994 | CH86: 0.5046504172
A87: 85 | B87: H982 | C87: SAN MARCO D'ALUNZIO | D87: 1798 | E87: 70820 | K87: 16367 | U87: 173850 | V87: 244670 | W87: 0.7105489026 | Y87: 30 | Z87: 8060 | AA87: 23760 | AE87: 4280 | AF87: 35890 | AJ87: 100 | AM87: 40 | AW87: 22110 | AY87: 72940 | BI87: 70 | CD87: 6570 | CE87: 173850 | CF87: 0.7518175505 | CG87: 0.217614415 | CH87: 0.5342031355
A88: 86 | B88: I084 | C88: SAN PIER NICETO | D88: 2573 | E88: 302500 | F88: 4610 | U88: 267840 | V88: 570340 | W88: 0.4696146158 | X88: 129600 | AE88: 27660 | AF88: 27520 | AW88: 24400 | AY88: 48000 | AZ88: 2130 | BH88: 850 | BI88: 300 | BS88: 870 | BT88: 1180 | BW88: 740 | CD88: 4590 | CE88: 267840 | CF88: 1.224659823 | CG88: 0.6495416705 | CH88: 0.5751181522
A89: 87 | B89: I086 | C89: SAN PIERO PATTI | D89: 2573 | E89: 280960 | U89: 275186 | V89: 556146 | W89: 0.4948089171 | X89: 135646 | Z89: 11660 | AE89: 39760 | AJ89: 480 | AW89: 23480 | AY89: 7980 | BI89: 380 | BT89: 2840 | BV89: 22260 | BX89: 1200 | CD89: 29500 | CE89: 275186 | CF89: 1.194181824 | CG89: 0.6032900091 | CH89: 0.5908918153
A90: 88 | B90: I147 | C90: S. SALVAT. DI FITALIA | D90: 1125 | E90: 16480 | F90: 1600 | U90: 101685 | V90: 118165 | W90: 0.8605339991 | AA90: 13510 | AF90: 16230 | AW90: 11880 | AY90: 53520 | AZ90: 2945 | BZ90: 3600 | CE90: 101685 | CF90: 0.5803069368 | CG90: 0.08093308778 | CH90: 0.499373849
A91: 89 | B91: I328 | C91: SAN TEODORO | D91: 1220 | E91: 41550 | U91: 154710 | V91: 196260 | W91: 0.7882910425 | AA91: 16550 | AC91: 23690 | AF91: 22000 | AW91: 26710 | AY91: 65760 | CE91: 154710 | CF91: 0.8887781904 | CG91: 0.1881623041 | CH91: 0.7006158862
A92: 90 | B92: I283 | C92: S. ANGELO DI BROLO | D92: 2759 | E92: 257320 | U92: 228710 | V92: 486030 | W92: 0.4705676604 | X92: 36000 | Z92: 13200 | AA92: 25650 | AE92: 6300 | AF92: 33100 | AW92: 24310 | AY92: 72800 | BH92: 1000 | BS92: 1120 | CD92: 15230 | CE92: 228710 | CF92: 0.9732687998 | CG92: 0.5152799777 | CH92: 0.4579888221
A93: 91 | B93: I215 | C93: S. ALESSIO SICULO | D93: 1535 | E93: 223708 | Q93: 11000 | U93: 187830 | V93: 411538 | W93: 0.4564098577 | AE93: 25560 | AF93: 29970 | AW93: 28840 | AY93: 91520 | CD93: 11940 | CE93: 187830 | CF93: 1.481231666 | CG93: 0.8051829323 | CH93: 0.676048734
A94: 92 | B94: I254 | C94: SANTA MARINA SALINA | D94: 861 | E94: 144800 | U94: 77340 | V94: 222140 | W94: 0.3481588188 | Z94: 2640 | AA94: 9220 | AF94: 27480 | AW94: 14480 | BH94: 1900 | BS94: 500 | BT94: 1000 | BV94: 7640 | BW94: 1060 | BX94: 4920 | CD94: 6500 | CE94: 77340 | CF94: 1.425427198 | CG94: 0.9291521487 | CH94: 0.4962750496
A95: 93 | B95: I420 | C95: SAPONARA | D95: 3665 | E95: 103240 | F95: 5070 | U95: 542480 | V95: 645720 | W95: 0.8401164591 | AA95: 68530 | AC95: 5990 | AF95: 51020 | AW95: 109800 | AY95: 218600 | AZ95: 4170 | BH95: 1740 | BI95: 480 | BS95: 1880 | BV95: 20620 | BZ95: 43570 | CD95: 16080 | CE95: 542480 | CF95: 0.9734007673 | CG95: 0.1556307613 | CH95: 0.817770006
A96: 94 | B96: I477 | C96: SAVOCA | D96: 1732 | E96: 130900 | U96: 145550 | V96: 276450 | W96: 0.526496654 | Z96: 21320 | AE96: 22060 | AF96: 22280 | AY96: 72030 | CD96: 7860 | CE96: 145550 | CF96: 0.8818406849 | CG96: 0.4175545149 | CH96: 0.46428617
A97: 95 | B97: I492 | C97: SCALETTA ZANCLEA | D97: 1834 | E97: 114360 | U97: 185120 | V97: 299480 | W97: 0.6181381061 | Y97: 40 | AE97: 30570 | AF97: 28710 | AJ97: 40 | AW97: 36950 | AY97: 75920 | AZ97: 1380 | BH97: 1180 | BI97: 70 | BS97: 300 | BT97: 900 | CD97: 9060 | CE97: 185120 | CF97: 0.9021731927 | CG97: 0.344505564 | CH97: 0.5576676286
A98: 96 | B98: I747 | C98: SINAGRA | D98: 2477 | E98: 82900 | U98: 308460 | V98: 391360 | W98: 0.7881745707 | AA98: 32580 | AB98: 6680 | AF98: 55940 | AW98: 43020 | AY98: 126120 | AZ98: 7520 | BI98: 200 | CD98: 36400 | CE98: 308460 | CF98: 0.872914794 | CG98: 0.184905551 | CH98: 0.688009243
A99: 97 | B99: I881 | C99: SPADAFORA | D99: 4630 | E99: 267380 | F99: 4570 | S99: 5140 | U99: 597810 | V99: =IF(E99=0,"",SUM(U99,E99,R99,S99,T99)) -> 870330 | W99: =IFERROR(IF(E99<>0,IF(U99=0,0,(U99/V99*100)/100),IF(U99=0,"","")),0) -> 0.6868773913 | Z99: 11120 | AA99: 80260 | AF99: 71330 | AW99: 89730 | AY99: 288040 | BH99: 1980 | BI99: 380 | BS99: 1440 | BV99: 15040 | BX99: 2000 | BZ99: 9510 | CD99: 26980 | CE99: 597810 | CF99: =IF(SUM(E99)=0,"",V99/D99/181) -> 1.038542773 | CG99: 0.3190577903 | CH99: =IF(SUM(Y99:CD99)=0,"",CE99/D99/181) -> 0.7133515507
A100: 98 | B100: L042 | C100: TAORMINA | D100: 10433 | E100: 1345940 | F100: 5920 | R100: 9320 | U100: 2328140 | V100: 3683400 | W100: 0.6320627681 | Z100: 166560 | AE100: 294180 | AF100: 518650 | AW100: 200930 | AY100: 1018820 | BH100: 1860 | BP100: 260 | BS100: 1140 | BT100: 320 | BX100: 17280 | BZ100: 38100 | CD100: 70040 | CE100: 2328140 | CF100: 1.950568029 | CG100: 0.7127511355 | CH100: 1.232881428
A101: 99 | B101: M210 | C101: TERME VIGLIATORE | D101: 7201 | E101: 415460 | U101: 893100 | V101: 1308560 | W101: 0.6825059608 | X101: 25800 | Z101: 88420 | AE101: 133740 | AF101: 101650 | AW101: 83760 | AX101: 431540 | BH101: 830 | BP101: 70 | BS101: 760 | BT101: 2090 | BZ101: 9760 | CD101: 14680 | CE101: 893100 | CF101: 1.003973512 | CG101: 0.3187556056 | CH101: 0.6852179064
A102: 100 | B102: L271 | C102: TORREGROTTA | D102: 7216 | E102: 517440 | F102: 7570 | S102: 6790 | U102: 922961 | V102: 1447191 | W102: 0.6377603233 | X102: 26101 | Z102: 22500 | AA102: 102840 | AF102: 77860 | AW102: 157760 | AY102: 415360 | AZ102: 11010 | BH102: 3120 | BI102: 1780 | BS102: 4800 | BT102: 7200 | BZ102: 56980 | CD102: 35650 | CE102: 922961 | CF102: 1.108028047 | CG102: 0.3961730225 | CH102: 0.7066563254
A103: 101 | B103: M286 | C103: TORRENOVA | D103: 4468 | E103: 163220 | U103: 689990 | V103: 853210 | W103: 0.8086989135 | Z103: 74360 | AA103: 104270 | AB103: 370 | AF103: 86240 | AW103: 90380 | AY103: 320440 | CD103: 13930 | CE103: 689990 | CF103: 1.055028515 | CG103: 0.2018281011 | CH103: 0.8532004135
A104: 102 | B104: L308 | C104: TORTORICI | D104: 5738 | E104: 333800 | U104: 326897 | V104: 660697 | W104: 0.4947759714 | AA104: 45520 | AF104: 87840 | AJ104: 1780 | AW104: 57910 | AY104: 102470 | AZ104: 6377 | BI104: 100 | BP104: 60 | BR104: 40 | BS104: 5230 | BZ104: 15620 | CD104: 3950 | CE104: 326897 | CF104: 0.6361553971 | CG104: 0.3214009925 | CH104: 0.3147544046
A105: 103 | B105: L431 | C105: TRIPI | D105: 733 | E105: 34100 | U105: 111099 | V105: 145199 | W105: 0.7651498977 | AE105: 12520 | AF105: 11520 | AW105: 10340 | AY105: 72919 | CD105: 3800 | CE105: 111099 | CF105: 1.094412578 | CG105: 0.2570229059 | CH105: 0.8373896724
A106: 104 | B106: L478 | C106: TUSA | D106: 2590 | E106: 126500 | F106: 480 | U106: 463070 | V106: 589570 | W106: 0.7854368438 | AA106: 40610 | AE106: 9000 | AF106: 92430 | AW106: 56900 | AY106: 220480 | BI106: 130 | BZ106: 3140 | CD106: 40380 | CE106: 463070 | CF106: 1.257642015 | CG106: 0.26984364 | CH106: 0.9877983745
A107: 105 | B107: L482 | C107: UCRIA | D107: 907 | E107: 46420 | U107: 104880 | V107: 151300 | W107: 0.6931923331 | X107: 30000 | AA107: 9730 | AF107: 18370 | AW107: 9720 | AY107: 33080 | BI107: 90 | BP107: 30 | BT107: 980 | CD107: 2880 | CE107: 104880 | CF107: 0.9216224942 | CG107: 0.2827608472 | CH107: 0.638861647
A108: 106 | B108: L561 | C108: VALDINA | D108: 1281 | E108: 135066 | U108: 118200 | V108: 253266 | W108: 0.4667029921 | Z108: 13380 | AX108: 17720 | AY108: 81860 | CD108: 5240 | CE108: 118200 | CF108: 1.092318242 | CG108: 0.5825300503 | CH108: 0.5097881921
A109: 107 | B109: L735 | C109: VENETICO | D109: 3899 | E109: 234600 | F109: 3686 | S109: 500 | U109: 447478 | V109: 682578 | W109: 0.6555704989 | X109: 7398 | Z109: 12060 | AE109: 69280 | AF109: 48080 | AW109: 94220 | AY109: 208680 | BI109: 460 | BP109: 60 | BS109: 300 | BT109: 1240 | CD109: 5700 | CE109: 447478 | CF109: 0.9672093284 | CG109: 0.3324269291 | CH109: 0.6340739019
A110: 108 | B110: L950 | C110: VILLAFRANCA TIRRENA | D110: 8061 | E110: 422320 | U110: 1240300 | V110: 1662620 | W110: 0.7459912668 | X110: 9065 | Z110: 131520 | AA110: 136000 | AF110: 135940 | AW110: 114740 | AY110: 475340 | AZ110: 30920 | BH110: 2880 | BI110: 2285 | BP110: 250 | BS110: 4940 | BT110: 3940 | BV110: 52940 | BZ110: 87020 | CD110: 52520 | CE110: 1240300 | CF110: 1.139529321 | CG110: 0.2894503993 | CH110: 0.8500789217
C111: T O T A L I | D111: =SUM(D3:D110) -> 597376 | E111: =SUM(E3:E110) -> 51589749 | F111: 129601 | G111: 0 | H111: 560 | I111: 0 | J111: 0 | K111: 22047 | L111: 0 | M111: =SUM(M3:M110) -> 4320 | N111: 340 | O111: 29980 | P111: =SUM(P3:P110) -> 0 | Q111: =SUM(Q3:Q110) -> 11000 | R111: =SUM(R3:R110) -> 9320 | S111: =SUM(S3:S110) -> 63570 | T111: =SUM(T3:T110) -> 0 | U111: 73299395 | V111: =SUM(U111,E111) -> 124889144 | W111: =IF(CE111=0,"",(U111/V111*100)/100) -> 0.586915665 | X111: =SUM(X3:X110) -> 1490372 | Y111: =SUM(Y3:Y110) -> 2132 | Z111: 5292650 | AA111: 3349530 | AB111: 22620 | AC111: 81480 | AD111: 0 | AE111: 5791720 | AF111: 9489655 | AG111: 0 | AH111: 1700 | AI111: 880 | AJ111: 25880 | AK111: 0 | AL111: 0 | AM111: 40 | AN111: 0 | AO111: 0 | AP111: 0 | AQ111: 0 | AR111: 1980 | AS111: 0 | AT111: 0 | AU111: 0 | AV111: 184500 | AW111: 8780022 | AX111: 470460 | AY111: 29132519 | AZ111: 401967 | BA111: 2961 | BB111: 0 | BC111: 0 | BD111: 0 | BE111: 0 | BF111: 0 | BG111: 1320 | BH111: 224903 | BI111: 33425 | BJ111: 2200 | BK111: 0 | BL111: 340 | BM111: 0 | BN111: 0 | BO111: 0 | BP111: 20280 | BQ111: 24042 | BR111: 3245 | BS111: 239910 | BT111: 376330 | BU111: 0 | BV111: 1610416 | BW111: 56860 | BX111: 294730 | BY111: 0 | BZ111: 2238235 | CA111: 0 | CB111: 0 | CC111: 541720 | CD111: 3108371 | CE111: =SUM(CE3:CE110) -> 73299395

Sheet Riep. Dati RSU e RD 1 Sem. 2022
B3: CITTA' METROPOLITANA DI MESSINA
B4: DATI RIFIUTI SOLIDI URBANI E RACCOLTA DIFFERENZIATA
B5: PRIMO SEMESTRE ANNO 2022
A6: ='Dati Generali CER 1 Sem. 2022'!A2 -> 108 | B6: COMUNE | C6: QUANTITA' (KG) | D6: QUANTITA' (KG) | E6: PERCENTUALE | F6: RSU+RSA+RD | G6: RSU+RSA | H6: R.D. | I6: ='Dati Generali CER 1 Sem. 2022'!D2 -> ABITANTI al 30/06/2022
C7: R.S.U. (Cod.200301) | D7: RACCOLTA | E7: RACCOLTA | F7: R.T. (Kg.) | G7: 200301 (kg.) | H7: (Kg.)
C8: PRODOTTI | D8: DIFFERENZIATA | E8: DIFFERENZIATA | F8: Pro Capite/g | G8: RI Pro Capite/g | H8: Pro Capite/g
B9: CTRL + "x" per ordinare in % | D9: CTRL + "h" per Alfabetico
A10: 1 | B10: ='Dati Generali CER 1 Sem. 2022'!C3 -> ACQUEDOLCI | C10: =IF('Dati Generali CER 1 Sem. 2022'!E3="","",'Dati Generali CER 1 Sem. 2022'!E3) -> 172180 | D10: =IF(C10="","",'Dati Generali CER 1 Sem. 2022'!CE3) -> 713925 | E10: ='Dati Generali CER 1 Sem. 2022'!W3 -> 0.8056889421 | F10: =IF('Dati Generali CER 1 Sem. 2022'!CF3="","",'Dati Generali CER 1 Sem. 2022'!CF3) -> 0.8963031371 | G10: =IF('Dati Generali CER 1 Sem. 2022'!CG3="","",'Dati Generali CER 1 Sem. 2022'!CG3) -> 0.1741616108 | H10: =IF('Dati Generali CER 1 Sem. 2022'!CH3="","",'Dati Generali CER 1 Sem. 2022'!CH3) -> 0.7221415263 | I10: ='Dati Generali CER 1 Sem. 2022'!D3 -> 5462 | J10: =IF('Dati Generali CER 1 Sem. 2022'!CJ3="","",'Dati Generali CER 1 Sem. 2022'!CJ3) -> 
A11: 2 | B11: ='Dati Generali CER 1 Sem. 2022'!C4 -> ALCARA LI FUSI | C11: =IF('Dati Generali CER 1 Sem. 2022'!E4="","",'Dati Generali CER 1 Sem. 2022'!E4) -> 43920 | D11: =IF(C11="","",'Dati Generali CER 1 Sem. 2022'!CE4) -> 150619 | E11: ='Dati Generali CER 1 Sem. 2022'!W4 -> 0.7742355003 | F11: =IF('Dati Generali CER 1 Sem. 2022'!CF4="","",'Dati Generali CER 1 Sem. 2022'!CF4) -> 0.6274378897 | G11: =IF('Dati Generali CER 1 Sem. 2022'!CG4="","",'Dati Generali CER 1 Sem. 2022'!CG4) -> 0.1416532012 | H11: =IF('Dati Generali CER 1 Sem. 2022'!CH4="","",'Dati Generali CER 1 Sem. 2022'!CH4) -> 0.4857846884 | I11: ='Dati Generali CER 1 Sem. 2022'!D4 -> 1713 | J11: =IF('Dati Generali CER 1 Sem. 2022'!CJ4="","",'Dati Generali CER 1 Sem. 2022'!CJ4) -> 
A12: 3 | B12: ='Dati Generali CER 1 Sem. 2022'!C5 -> ALI' | C12: =IF('Dati Generali CER 1 Sem. 2022'!E5="","",'Dati Generali CER 1 Sem. 2022'!E5) -> 20650 | D12: =IF(C12="","",'Dati Generali CER 1 Sem. 2022'!CE5) -> 47780 | E12: ='Dati Generali CER 1 Sem. 2022'!W5 -> 0.6982317697 | F12: =IF('Dati Generali CER 1 Sem. 2022'!CF5="","",'Dati Generali CER 1 Sem. 2022'!CF5) -> 0.5592696721 | G12: =IF('Dati Generali CER 1 Sem. 2022'!CG5="","",'Dati Generali CER 1 Sem. 2022'!CG5) -> 0.1687698192 | H12: =IF('Dati Generali CER 1 Sem. 2022'!CH5="","",'Dati Generali CER 1 Sem. 2022'!CH5) -> 0.3904998529 | I12: ='Dati Generali CER 1 Sem. 2022'!D5 -> 676 | J12: =IF('Dati Generali CER 1 Sem. 2022'!CJ5="","",'Dati Generali CER 1 Sem. 2022'!CJ5) -> 
A13: 4 | B13: ='Dati Generali CER 1 Sem. 2022'!C6 -> ALI' TERME | C13: =IF('Dati Generali CER 1 Sem. 2022'!E6="","",'Dati Generali CER 1 Sem. 2022'!E6) -> 129780 | D13: =IF(C13="","",'Dati Generali CER 1 Sem. 2022'!CE6) -> 338950 | E13: ='Dati Generali CER 1 Sem. 2022'!W6 -> 0.7231241866 | F13: =IF('Dati Generali CER 1 Sem. 2022'!CF6="","",'Dati Generali CER 1 Sem. 2022'!CF6) -> 1.115755497 | G13: =IF('Dati Generali CER 1 Sem. 2022'!CG6="","",'Dati Generali CER 1 Sem. 2022'!CG6) -> 0.3089257107 | H13: =IF('Dati Generali CER 1 Sem. 2022'!CH6="","",'Dati Generali CER 1 Sem. 2022'!CH6) -> 0.8068297862 | I13: ='Dati Generali CER 1 Sem. 2022'!D6 -> 2321 | J13: =IF('Dati Generali CER 1 Sem. 2022'!CJ6="","",'Dati Generali CER 1 Sem. 2022'!CJ6) -> 
A14: 5 | B14: ='Dati Generali CER 1 Sem. 2022'!C7 -> ANTILLO | C14: =IF('Dati Generali CER 1 Sem. 2022'!E7="","",'Dati Generali CER 1 Sem. 2022'!E7) -> 23140 | D14: =IF(C14="","",'Dati Generali CER 1 Sem. 2022'!CE7) -> 68184 | E14: ='Dati Generali CER 1 Sem. 2022'!W7 -> 0.7466164426 | F14: =IF('Dati Generali CER 1 Sem. 2022'!CF7="","",'Dati Generali CER 1 Sem. 2022'!CF7) -> 0.6123209784 | G14: =IF('Dati Generali CER 1 Sem. 2022'!CG7="","",'Dati Generali CER 1 Sem. 2022'!CG7) -> 0.1551520678 | H14: =IF('Dati Generali CER 1 Sem. 2022'!CH7="","",'Dati Generali CER 1 Sem. 2022'!CH7) -> 0.4571689106 | I14: ='Dati Generali CER 1 Sem. 2022'!D7 -> 824 | J14: =IF('Dati Generali CER 1 Sem. 2022'!CJ7="","",'Dati Generali CER 1 Sem. 2022'!CJ7) -> 
A15: 6 | B15: ='Dati Generali CER 1 Sem. 2022'!C8 -> BARCELLONA P.G. | C15: =IF('Dati Generali CER 1 Sem. 2022'!E8="","",'Dati Generali CER 1 Sem. 2022'!E8) -> 4331880 | D15: =IF(C15="","",'Dati Generali CER 1 Sem. 2022'!CE8) -> 3964347 | E15: ='Dati Generali CER 1 Sem. 2022'!W8 -> 0.4778493886 | F15: =IF('Dati Generali CER 1 Sem. 2022'!CF8="","",'Dati Generali CER 1 Sem. 2022'!CF8) -> 1.155507306 | G15: =IF('Dati Generali CER 1 Sem. 2022'!CG8="","",'Dati Generali CER 1 Sem. 2022'!CG8) -> 0.603348846 | H15: =IF('Dati Generali CER 1 Sem. 2022'!CH8="","",'Dati Generali CER 1 Sem. 2022'!CH8) -> 0.5521584595 | I15: ='Dati Generali CER 1 Sem. 2022'!D8 -> 39667 | J15: =IF('Dati Generali CER 1 Sem. 2022'!CJ8="","",'Dati Generali CER 1 Sem. 2022'!CJ8) -> 
A16: 7 | B16: ='Dati Generali CER 1 Sem. 2022'!C9 -> BASICO' | C16: =IF('Dati Generali CER 1 Sem. 2022'!E9="","",'Dati Generali CER 1 Sem. 2022'!E9) -> 52200 | D16: =IF(C16="","",'Dati Generali CER 1 Sem. 2022'!CE9) -> 57610 | E16: ='Dati Generali CER 1 Sem. 2022'!W9 -> 0.5246334578 | F16: =IF('Dati Generali CER 1 Sem. 2022'!CF9="","",'Dati Generali CER 1 Sem. 2022'!CF9) -> 1.06810754 | G16: =IF('Dati Generali CER 1 Sem. 2022'!CG9="","",'Dati Generali CER 1 Sem. 2022'!CG9) -> 0.5077425881 | H16: =IF('Dati Generali CER 1 Sem. 2022'!CH9="","",'Dati Generali CER 1 Sem. 2022'!CH9) -> 0.5603649521 | I16: ='Dati Generali CER 1 Sem. 2022'!D9 -> 568 | J16: =IF('Dati Generali CER 1 Sem. 2022'!CJ9="","",'Dati Generali CER 1 Sem. 2022'!CJ9) -> 
A17: 8 | B17: ='Dati Generali CER 1 Sem. 2022'!C10 -> BROLO | C17: =IF('Dati Generali CER 1 Sem. 2022'!E10="","",'Dati Generali CER 1 Sem. 2022'!E10) -> 339920 | D17: =IF(C17="","",'Dati Generali CER 1 Sem. 2022'!CE10) -> 928250 | E17: ='Dati Generali CER 1 Sem. 2022'!W10 -> 0.7319602262 | F17: =IF('Dati Generali CER 1 Sem. 2022'!CF10="","",'Dati Generali CER 1 Sem. 2022'!CF10) -> 1.226836647 | G17: =IF('Dati Generali CER 1 Sem. 2022'!CG10="","",'Dati Generali CER 1 Sem. 2022'!CG10) -> 0.3288410173 | H17: =IF('Dati Generali CER 1 Sem. 2022'!CH10="","",'Dati Generali CER 1 Sem. 2022'!CH10) -> 0.8979956293 | I17: ='Dati Generali CER 1 Sem. 2022'!D10 -> 5711 | J17: =IF('Dati Generali CER 1 Sem. 2022'!CJ10="","",'Dati Generali CER 1 Sem. 2022'!CJ10) -> 
A18: 9 | B18: ='Dati Generali CER 1 Sem. 2022'!C11 -> CAPIZZI | C18: =IF('Dati Generali CER 1 Sem. 2022'!E11="","",'Dati Generali CER 1 Sem. 2022'!E11) -> 133390 | D18: =IF(C18="","",'Dati Generali CER 1 Sem. 2022'!CE11) -> 211545 | E18: ='Dati Generali CER 1 Sem. 2022'!W11 -> 0.6132894603 | F18: =IF('Dati Generali CER 1 Sem. 2022'!CF11="","",'Dati Generali CER 1 Sem. 2022'!CF11) -> 0.6703194626 | G18: =IF('Dati Generali CER 1 Sem. 2022'!CG11="","",'Dati Generali CER 1 Sem. 2022'!CG11) -> 0.2592196011 | H18: =IF('Dati Generali CER 1 Sem. 2022'!CH11="","",'Dati Generali CER 1 Sem. 2022'!CH11) -> 0.4110998614 | I18: ='Dati Generali CER 1 Sem. 2022'!D11 -> 2843 | J18: =IF('Dati Generali CER 1 Sem. 2022'!CJ11="","",'Dati Generali CER 1 Sem. 2022'!CJ11) -> 
A19: 10 | B19: ='Dati Generali CER 1 Sem. 2022'!C12 -> CAPO D'ORLANDO | C19: =IF('Dati Generali CER 1 Sem. 2022'!E12="","",'Dati Generali CER 1 Sem. 2022'!E12) -> 689480 | D19: =IF(C19="","",'Dati Generali CER 1 Sem. 2022'!CE12) -> 2288317 | E19: ='Dati Generali CER 1 Sem. 2022'!W12 -> 0.7684597036 | F19: =IF('Dati Generali CER 1 Sem. 2022'!CF12="","",'Dati Generali CER 1 Sem. 2022'!CF12) -> 1.266603828 | G19: =IF('Dati Generali CER 1 Sem. 2022'!CG12="","",'Dati Generali CER 1 Sem. 2022'!CG12) -> 0.2932698258 | H19: =IF('Dati Generali CER 1 Sem. 2022'!CH12="","",'Dati Generali CER 1 Sem. 2022'!CH12) -> 0.9733340025 | I19: ='Dati Generali CER 1 Sem. 2022'!D12 -> 12989 | J19: =IF('Dati Generali CER 1 Sem. 2022'!CJ12="","",'Dati Generali CER 1 Sem. 2022'!CJ12) -> 
A20: 11 | B20: ='Dati Generali CER 1 Sem. 2022'!C13 -> CAPRILEONE | C20: =IF('Dati Generali CER 1 Sem. 2022'!E13="","",'Dati Generali CER 1 Sem. 2022'!E13) -> 95650 | D20: =IF(C20="","",'Dati Generali CER 1 Sem. 2022'!CE13) -> 581760 | E20: ='Dati Generali CER 1 Sem. 2022'!W13 -> 0.8588004311 | F20: =IF('Dati Generali CER 1 Sem. 2022'!CF13="","",'Dati Generali CER 1 Sem. 2022'!CF13) -> 0.8683518991 | G20: =IF('Dati Generali CER 1 Sem. 2022'!CG13="","",'Dati Generali CER 1 Sem. 2022'!CG13) -> 0.1226109138 | H20: =IF('Dati Generali CER 1 Sem. 2022'!CH13="","",'Dati Generali CER 1 Sem. 2022'!CH13) -> 0.7457409852 | I20: ='Dati Generali CER 1 Sem. 2022'!D13 -> 4310 | J20: =IF('Dati Generali CER 1 Sem. 2022'!CJ13="","",'Dati Generali CER 1 Sem. 2022'!CJ13) -> 
A21: 12 | B21: ='Dati Generali CER 1 Sem. 2022'!C14 -> CARONIA | C21: =IF('Dati Generali CER 1 Sem. 2022'!E14="","",'Dati Generali CER 1 Sem. 2022'!E14) -> 149760 | D21: =IF(C21="","",'Dati Generali CER 1 Sem. 2022'!CE14) -> 397880 | E21: ='Dati Generali CER 1 Sem. 2022'!W14 -> 0.7265356804 | F21: =IF('Dati Generali CER 1 Sem. 2022'!CF14="","",'Dati Generali CER 1 Sem. 2022'!CF14) -> 0.9962579385 | G21: =IF('Dati Generali CER 1 Sem. 2022'!CG14="","",'Dati Generali CER 1 Sem. 2022'!CG14) -> 0.2724409993 | H21: =IF('Dati Generali CER 1 Sem. 2022'!CH14="","",'Dati Generali CER 1 Sem. 2022'!CH14) -> 0.7238169392 | I21: ='Dati Generali CER 1 Sem. 2022'!D14 -> 3037 | J21: =IF('Dati Generali CER 1 Sem. 2022'!CJ14="","",'Dati Generali CER 1 Sem. 2022'!CJ14) -> 
A22: 13 | B22: ='Dati Generali CER 1 Sem. 2022'!C15 -> CASALVECCHIO SICULO | C22: =IF('Dati Generali CER 1 Sem. 2022'!E15="","",'Dati Generali CER 1 Sem. 2022'!E15) -> 27020 | D22: =IF(C22="","",'Dati Generali CER 1 Sem. 2022'!CE15) -> 56670 | E22: ='Dati Generali CER 1 Sem. 2022'!W15 -> 0.677141833 | F22: =IF('Dati Generali CER 1 Sem. 2022'!CF15="","",'Dati Generali CER 1 Sem. 2022'!CF15) -> 0.6342602066 | G22: =IF('Dati Generali CER 1 Sem. 2022'!CG15="","",'Dati Generali CER 1 Sem. 2022'!CG15) -> 0.2047760877 | H22: =IF('Dati Generali CER 1 Sem. 2022'!CH15="","",'Dati Generali CER 1 Sem. 2022'!CH15) -> 0.4294841189 | I22: ='Dati Generali CER 1 Sem. 2022'!D15 -> 729 | J22: =IF('Dati Generali CER 1 Sem. 2022'!CJ15="","",'Dati Generali CER 1 Sem. 2022'!CJ15) -> 
A23: 14 | B23: ='Dati Generali CER 1 Sem. 2022'!C16 -> CASTEL DI LUCIO | C23: =IF('Dati Generali CER 1 Sem. 2022'!E16="","",'Dati Generali CER 1 Sem. 2022'!E16) -> 13600 | D23: =IF(C23="","",'Dati Generali CER 1 Sem. 2022'!CE16) -> 103330 | E23: ='Dati Generali CER 1 Sem. 2022'!W16 -> 0.8836910972 | F23: =IF('Dati Generali CER 1 Sem. 2022'!CF16="","",'Dati Generali CER 1 Sem. 2022'!CF16) -> 0.5415105611 | G23: =IF('Dati Generali CER 1 Sem. 2022'!CG16="","",'Dati Generali CER 1 Sem. 2022'!CG16) -> 0.0629824992 | H23: =IF('Dati Generali CER 1 Sem. 2022'!CH16="","",'Dati Generali CER 1 Sem. 2022'!CH16) -> 0.4785280619 | I23: ='Dati Generali CER 1 Sem. 2022'!D16 -> 1193 | J23: =IF('Dati Generali CER 1 Sem. 2022'!CJ16="","",'Dati Generali CER 1 Sem. 2022'!CJ16) -> 
A24: 15 | B24: ='Dati Generali CER 1 Sem. 2022'!C17 -> CASTELL'UMBERTO | C24: =IF('Dati Generali CER 1 Sem. 2022'!E17="","",'Dati Generali CER 1 Sem. 2022'!E17) -> 95940 | D24: =IF(C24="","",'Dati Generali CER 1 Sem. 2022'!CE17) -> 240480 | E24: ='Dati Generali CER 1 Sem. 2022'!W17 -> 0.7148207598 | F24: =IF('Dati Generali CER 1 Sem. 2022'!CF17="","",'Dati Generali CER 1 Sem. 2022'!CF17) -> 0.6584038375 | G24: =IF('Dati Generali CER 1 Sem. 2022'!CG17="","",'Dati Generali CER 1 Sem. 2022'!CG17) -> 0.1877631061 | H24: =IF('Dati Generali CER 1 Sem. 2022'!CH17="","",'Dati Generali CER 1 Sem. 2022'!CH17) -> 0.4706407313 | I24: ='Dati Generali CER 1 Sem. 2022'!D17 -> 2823 | J24: =IF('Dati Generali CER 1 Sem. 2022'!CJ17="","",'Dati Generali CER 1 Sem. 2022'!CJ17) -> 
A25: 16 | B25: ='Dati Generali CER 1 Sem. 2022'!C18 -> CASTELMOLA | C25: =IF('Dati Generali CER 1 Sem. 2022'!E18="","",'Dati Generali CER 1 Sem. 2022'!E18) -> 64670 | D25: =IF(C25="","",'Dati Generali CER 1 Sem. 2022'!CE18) -> 96360 | E25: ='Dati Generali CER 1 Sem. 2022'!W18 -> 0.5983978141 | F25: =IF('Dati Generali CER 1 Sem. 2022'!CF18="","",'Dati Generali CER 1 Sem. 2022'!CF18) -> 0.8489203323 | G25: =IF('Dati Generali CER 1 Sem. 2022'!CG18="","",'Dati Generali CER 1 Sem. 2022'!CG18) -> 0.3409282611 | H25: =IF('Dati Generali CER 1 Sem. 2022'!CH18="","",'Dati Generali CER 1 Sem. 2022'!CH18) -> 0.5079920712 | I25: ='Dati Generali CER 1 Sem. 2022'!D18 -> 1048 | J25: =IF('Dati Generali CER 1 Sem. 2022'!CJ18="","",'Dati Generali CER 1 Sem. 2022'!CJ18) -> 
A26: 17 | B26: ='Dati Generali CER 1 Sem. 2022'!C19 -> CASTROREALE | C26: =IF('Dati Generali CER 1 Sem. 2022'!E19="","",'Dati Generali CER 1 Sem. 2022'!E19) -> 100770 | D26: =IF(C26="","",'Dati Generali CER 1 Sem. 2022'!CE19) -> 146950 | E26: ='Dati Generali CER 1 Sem. 2022'!W19 -> 0.5932100759 | F26: =IF('Dati Generali CER 1 Sem. 2022'!CF19="","",'Dati Generali CER 1 Sem. 2022'!CF19) -> 0.608004791 | G26: =IF('Dati Generali CER 1 Sem. 2022'!CG19="","",'Dati Generali CER 1 Sem. 2022'!CG19) -> 0.2473302228 | H26: =IF('Dati Generali CER 1 Sem. 2022'!CH19="","",'Dati Generali CER 1 Sem. 2022'!CH19) -> 0.3606745682 | I26: ='Dati Generali CER 1 Sem. 2022'!D19 -> 2251 | J26: =IF('Dati Generali CER 1 Sem. 2022'!CJ19="","",'Dati Generali CER 1 Sem. 2022'!CJ19) -> 
A27: 18 | B27: ='Dati Generali CER 1 Sem. 2022'!C20 -> CESARO' | C27: =IF('Dati Generali CER 1 Sem. 2022'!E20="","",'Dati Generali CER 1 Sem. 2022'!E20) -> 182530 | D27: =IF(C27="","",'Dati Generali CER 1 Sem. 2022'!CE20) -> 125740 | E27: ='Dati Generali CER 1 Sem. 2022'!W20 -> 0.407889188 | F27: =IF('Dati Generali CER 1 Sem. 2022'!CF20="","",'Dati Generali CER 1 Sem. 2022'!CF20) -> 0.7852232233 | G27: =IF('Dati Generali CER 1 Sem. 2022'!CG20="","",'Dati Generali CER 1 Sem. 2022'!CG20) -> 0.4649391603 | H27: =IF('Dati Generali CER 1 Sem. 2022'!CH20="","",'Dati Generali CER 1 Sem. 2022'!CH20) -> 0.320284063 | I27: ='Dati Generali CER 1 Sem. 2022'!D20 -> 2169 | J27: =IF('Dati Generali CER 1 Sem. 2022'!CJ20="","",'Dati Generali CER 1 Sem. 2022'!CJ20) -> 
A28: 19 | B28: ='Dati Generali CER 1 Sem. 2022'!C21 -> CONDRO' | C28: =IF('Dati Generali CER 1 Sem. 2022'!E21="","",'Dati Generali CER 1 Sem. 2022'!E21) -> 31180 | D28: =IF(C28="","",'Dati Generali CER 1 Sem. 2022'!CE21) -> 38020 | E28: ='Dati Generali CER 1 Sem. 2022'!W21 -> 0.5494219653 | F28: =IF('Dati Generali CER 1 Sem. 2022'!CF21="","",'Dati Generali CER 1 Sem. 2022'!CF21) -> 0.820430133 | G28: =IF('Dati Generali CER 1 Sem. 2022'!CG21="","",'Dati Generali CER 1 Sem. 2022'!CG21) -> 0.3696677969 | H28: =IF('Dati Generali CER 1 Sem. 2022'!CH21="","",'Dati Generali CER 1 Sem. 2022'!CH21) -> 0.4507623361 | I28: ='Dati Generali CER 1 Sem. 2022'!D21 -> 466 | J28: =IF('Dati Generali CER 1 Sem. 2022'!CJ21="","",'Dati Generali CER 1 Sem. 2022'!CJ21) -> 
A29: 20 | B29: ='Dati Generali CER 1 Sem. 2022'!C22 -> FALCONE | C29: =IF('Dati Generali CER 1 Sem. 2022'!E22="","",'Dati Generali CER 1 Sem. 2022'!E22) -> 228860 | D29: =IF(C29="","",'Dati Generali CER 1 Sem. 2022'!CE22) -> 353640 | E29: ='Dati Generali CER 1 Sem. 2022'!W22 -> 0.6071072961 | F29: =IF('Dati Generali CER 1 Sem. 2022'!CF22="","",'Dati Generali CER 1 Sem. 2022'!CF22) -> 1.175395195 | G29: =IF('Dati Generali CER 1 Sem. 2022'!CG22="","",'Dati Generali CER 1 Sem. 2022'!CG22) -> 0.4618041963 | H29: =IF('Dati Generali CER 1 Sem. 2022'!CH22="","",'Dati Generali CER 1 Sem. 2022'!CH22) -> 0.7135909988 | I29: ='Dati Generali CER 1 Sem. 2022'!D22 -> 2738 | J29: =IF('Dati Generali CER 1 Sem. 2022'!CJ22="","",'Dati Generali CER 1 Sem. 2022'!CJ22) -> 
A30: 21 | B30: ='Dati Generali CER 1 Sem. 2022'!C23 -> FICARRA | C30: =IF('Dati Generali CER 1 Sem. 2022'!E23="","",'Dati Generali CER 1 Sem. 2022'!E23) -> 45380 | D30: =IF(C30="","",'Dati Generali CER 1 Sem. 2022'!CE23) -> 139940 | E30: ='Dati Generali CER 1 Sem. 2022'!W23 -> 0.7551262681 | F30: =IF('Dati Generali CER 1 Sem. 2022'!CF23="","",'Dati Generali CER 1 Sem. 2022'!CF23) -> 0.7875903102 | G30: =IF('Dati Generali CER 1 Sem. 2022'!CG23="","",'Dati Generali CER 1 Sem. 2022'!CG23) -> 0.1928601785 | H30: =IF('Dati Generali CER 1 Sem. 2022'!CH23="","",'Dati Generali CER 1 Sem. 2022'!CH23) -> 0.5947301317 | I30: ='Dati Generali CER 1 Sem. 2022'!D23 -> 1300 | J30: =IF('Dati Generali CER 1 Sem. 2022'!CJ23="","",'Dati Generali CER 1 Sem. 2022'!CJ23) -> 
A31: 22 | B31: ='Dati Generali CER 1 Sem. 2022'!C24 -> FIUMEDINISI | C31: =IF('Dati Generali CER 1 Sem. 2022'!E24="","",'Dati Generali CER 1 Sem. 2022'!E24) -> 38260 | D31: =IF(C31="","",'Dati Generali CER 1 Sem. 2022'!CE24) -> 114070 | E31: ='Dati Generali CER 1 Sem. 2022'!W24 -> 0.7488347666 | F31: =IF('Dati Generali CER 1 Sem. 2022'!CF24="","",'Dati Generali CER 1 Sem. 2022'!CF24) -> 0.6776185265 | G31: =IF('Dati Generali CER 1 Sem. 2022'!CG24="","",'Dati Generali CER 1 Sem. 2022'!CG24) -> 0.1701942154 | H31: =IF('Dati Generali CER 1 Sem. 2022'!CH24="","",'Dati Generali CER 1 Sem. 2022'!CH24) -> 0.5074243112 | I31: ='Dati Generali CER 1 Sem. 2022'!D24 -> 1242 | J31: =IF('Dati Generali CER 1 Sem. 2022'!CJ24="","",'Dati Generali CER 1 Sem. 2022'!CJ24) -> 
A32: 23 | B32: ='Dati Generali CER 1 Sem. 2022'!C25 -> FLORESTA | C32: =IF('Dati Generali CER 1 Sem. 2022'!E25="","",'Dati Generali CER 1 Sem. 2022'!E25) -> 87860 | D32: =IF(C32="","",'Dati Generali CER 1 Sem. 2022'!CE25) -> 25020 | E32: ='Dati Generali CER 1 Sem. 2022'!W25 -> 0.2216513111 | F32: =IF('Dati Generali CER 1 Sem. 2022'!CF25="","",'Dati Generali CER 1 Sem. 2022'!CF25) -> 1.346968486 | G32: =IF('Dati Generali CER 1 Sem. 2022'!CG25="","",'Dati Generali CER 1 Sem. 2022'!CG25) -> 1.048411155 | H32: =IF('Dati Generali CER 1 Sem. 2022'!CH25="","",'Dati Generali CER 1 Sem. 2022'!CH25) -> 0.2985573309 | I32: ='Dati Generali CER 1 Sem. 2022'!D25 -> 463 | J32: =IF('Dati Generali CER 1 Sem. 2022'!CJ25="","",'Dati Generali CER 1 Sem. 2022'!CJ25) -> 
A33: 24 | B33: ='Dati Generali CER 1 Sem. 2022'!C26 -> FONDACHELLI FANTINA | C33: =IF('Dati Generali CER 1 Sem. 2022'!E26="","",'Dati Generali CER 1 Sem. 2022'!E26) -> 52089 | D33: =IF(C33="","",'Dati Generali CER 1 Sem. 2022'!CE26) -> 43790 | E33: ='Dati Generali CER 1 Sem. 2022'!W26 -> 0.4567214927 | F33: =IF('Dati Generali CER 1 Sem. 2022'!CF26="","",'Dati Generali CER 1 Sem. 2022'!CF26) -> 0.5147893412 | G33: =IF('Dati Generali CER 1 Sem. 2022'!CG26="","",'Dati Generali CER 1 Sem. 2022'!CG26) -> 0.2796739848 | H33: =IF('Dati Generali CER 1 Sem. 2022'!CH26="","",'Dati Generali CER 1 Sem. 2022'!CH26) -> 0.2351153563 | I33: ='Dati Generali CER 1 Sem. 2022'!D26 -> 1029 | J33: =IF('Dati Generali CER 1 Sem. 2022'!CJ26="","",'Dati Generali CER 1 Sem. 2022'!CJ26) -> 
A34: 25 | B34: ='Dati Generali CER 1 Sem. 2022'!C27 -> FORZA D'AGRO' | C34: =IF('Dati Generali CER 1 Sem. 2022'!E27="","",'Dati Generali CER 1 Sem. 2022'!E27) -> 46660 | D34: =IF(C34="","",'Dati Generali CER 1 Sem. 2022'!CE27) -> 299300 | E34: ='Dati Generali CER 1 Sem. 2022'!W27 -> 0.8651289166 | F34: =IF('Dati Generali CER 1 Sem. 2022'!CF27="","",'Dati Generali CER 1 Sem. 2022'!CF27) -> 2.294575289 | G34: =IF('Dati Generali CER 1 Sem. 2022'!CG27="","",'Dati Generali CER 1 Sem. 2022'!CG27) -> 0.309471855 | H34: =IF('Dati Generali CER 1 Sem. 2022'!CH27="","",'Dati Generali CER 1 Sem. 2022'!CH27) -> 1.985103434 | I34: ='Dati Generali CER 1 Sem. 2022'!D27 -> 833 | J34: =IF('Dati Generali CER 1 Sem. 2022'!CJ27="","",'Dati Generali CER 1 Sem. 2022'!CJ27) -> 
A35: 26 | B35: ='Dati Generali CER 1 Sem. 2022'!C28 -> FRANCAVILLA DI SICILIA | C35: =IF('Dati Generali CER 1 Sem. 2022'!E28="","",'Dati Generali CER 1 Sem. 2022'!E28) -> 165160 | D35: =IF(C35="","",'Dati Generali CER 1 Sem. 2022'!CE28) -> 536210 | E35: ='Dati Generali CER 1 Sem. 2022'!W28 -> 0.7645180147 | F35: =IF('Dati Generali CER 1 Sem. 2022'!CF28="","",'Dati Generali CER 1 Sem. 2022'!CF28) -> 1.093081065 | G35: =IF('Dati Generali CER 1 Sem. 2022'!CG28="","",'Dati Generali CER 1 Sem. 2022'!CG28) -> 0.2574008993 | H35: =IF('Dati Generali CER 1 Sem. 2022'!CH28="","",'Dati Generali CER 1 Sem. 2022'!CH28) -> 0.8356801658 | I35: ='Dati Generali CER 1 Sem. 2022'!D28 -> 3545 | J35: =IF('Dati Generali CER 1 Sem. 2022'!CJ28="","",'Dati Generali CER 1 Sem. 2022'!CJ28) -> 
A36: 27 | B36: ='Dati Generali CER 1 Sem. 2022'!C29 -> FRAZZANO' | C36: =IF('Dati Generali CER 1 Sem. 2022'!E29="","",'Dati Generali CER 1 Sem. 2022'!E29) -> 27240 | D36: =IF(C36="","",'Dati Generali CER 1 Sem. 2022'!CE29) -> 39990 | E36: ='Dati Generali CER 1 Sem. 2022'!W29 -> 0.5948237394 | F36: =IF('Dati Generali CER 1 Sem. 2022'!CF29="","",'Dati Generali CER 1 Sem. 2022'!CF29) -> 0.6360213426 | G36: =IF('Dati Generali CER 1 Sem. 2022'!CG29="","",'Dati Generali CER 1 Sem. 2022'!CG29) -> 0.2577007493 | H36: =IF('Dati Generali CER 1 Sem. 2022'!CH29="","",'Dati Generali CER 1 Sem. 2022'!CH29) -> 0.3783205934 | I36: ='Dati Generali CER 1 Sem. 2022'!D29 -> 584 | J36: =IF('Dati Generali CER 1 Sem. 2022'!CJ29="","",'Dati Generali CER 1 Sem. 2022'!CJ29) -> 
A37: 28 | B37: ='Dati Generali CER 1 Sem. 2022'!C30 -> FURCI SICULO | C37: =IF('Dati Generali CER 1 Sem. 2022'!E30="","",'Dati Generali CER 1 Sem. 2022'!E30) -> 160470 | D37: =IF(C37="","",'Dati Generali CER 1 Sem. 2022'!CE30) -> 379660 | E37: ='Dati Generali CER 1 Sem. 2022'!W30 -> 0.7029048562 | F37: =IF('Dati Generali CER 1 Sem. 2022'!CF30="","",'Dati Generali CER 1 Sem. 2022'!CF30) -> 0.9340042712 | G37: =IF('Dati Generali CER 1 Sem. 2022'!CG30="","",'Dati Generali CER 1 Sem. 2022'!CG30) -> 0.2774881332 | H37: =IF('Dati Generali CER 1 Sem. 2022'!CH30="","",'Dati Generali CER 1 Sem. 2022'!CH30) -> 0.656516138 | I37: ='Dati Generali CER 1 Sem. 2022'!D30 -> 3195 | J37: =IF('Dati Generali CER 1 Sem. 2022'!CJ30="","",'Dati Generali CER 1 Sem. 2022'!CJ30) -> 
A38: 29 | B38: ='Dati Generali CER 1 Sem. 2022'!C31 -> FURNARI | C38: =IF('Dati Generali CER 1 Sem. 2022'!E31="","",'Dati Generali CER 1 Sem. 2022'!E31) -> 181887 | D38: =IF(C38="","",'Dati Generali CER 1 Sem. 2022'!CE31) -> 670920 | E38: ='Dati Generali CER 1 Sem. 2022'!W31 -> 0.7867196212 | F38: =IF('Dati Generali CER 1 Sem. 2022'!CF31="","",'Dati Generali CER 1 Sem. 2022'!CF31) -> 1.211218736 | G38: =IF('Dati Generali CER 1 Sem. 2022'!CG31="","",'Dati Generali CER 1 Sem. 2022'!CG31) -> 0.2583291909 | H38: =IF('Dati Generali CER 1 Sem. 2022'!CH31="","",'Dati Generali CER 1 Sem. 2022'!CH31) -> 0.9528895454 | I38: ='Dati Generali CER 1 Sem. 2022'!D31 -> 3890 | J38: =IF('Dati Generali CER 1 Sem. 2022'!CJ31="","",'Dati Generali CER 1 Sem. 2022'!CJ31) -> 
A39: 30 | B39: ='Dati Generali CER 1 Sem. 2022'!C32 -> GAGGI | C39: =IF('Dati Generali CER 1 Sem. 2022'!E32="","",'Dati Generali CER 1 Sem. 2022'!E32) -> 250590 | D39: =IF(C39="","",'Dati Generali CER 1 Sem. 2022'!CE32) -> 239360 | E39: ='Dati Generali CER 1 Sem. 2022'!W32 -> 0.4885396469 | F39: =IF('Dati Generali CER 1 Sem. 2022'!CF32="","",'Dati Generali CER 1 Sem. 2022'!CF32) -> 0.8889675131 | G39: =IF('Dati Generali CER 1 Sem. 2022'!CG32="","",'Dati Generali CER 1 Sem. 2022'!CG32) -> 0.4546716381 | H39: =IF('Dati Generali CER 1 Sem. 2022'!CH32="","",'Dati Generali CER 1 Sem. 2022'!CH32) -> 0.434295875 | I39: ='Dati Generali CER 1 Sem. 2022'!D32 -> 3045 | J39: =IF('Dati Generali CER 1 Sem. 2022'!CJ32="","",'Dati Generali CER 1 Sem. 2022'!CJ32) -> 
A40: 31 | B40: ='Dati Generali CER 1 Sem. 2022'!C33 -> GALATI MAMERTINO | C40: =IF('Dati Generali CER 1 Sem. 2022'!E33="","",'Dati Generali CER 1 Sem. 2022'!E33) -> 65472 | D40: =IF(C40="","",'Dati Generali CER 1 Sem. 2022'!CE33) -> 227330 | E40: ='Dati Generali CER 1 Sem. 2022'!W33 -> 0.77639497 | F40: =IF('Dati Generali CER 1 Sem. 2022'!CF33="","",'Dati Generali CER 1 Sem. 2022'!CF33) -> 0.7123252346 | G40: =IF('Dati Generali CER 1 Sem. 2022'!CG33="","",'Dati Generali CER 1 Sem. 2022'!CG33) -> 0.1592795055 | H40: =IF('Dati Generali CER 1 Sem. 2022'!CH33="","",'Dati Generali CER 1 Sem. 2022'!CH33) -> 0.5530457291 | I40: ='Dati Generali CER 1 Sem. 2022'!D33 -> 2271 | J40: =IF('Dati Generali CER 1 Sem. 2022'!CJ33="","",'Dati Generali CER 1 Sem. 2022'!CJ33) -> 
A41: 32 | B41: ='Dati Generali CER 1 Sem. 2022'!C34 -> GALLODORO | C41: =IF('Dati Generali CER 1 Sem. 2022'!E34="","",'Dati Generali CER 1 Sem. 2022'!E34) -> 21970 | D41: =IF(C41="","",'Dati Generali CER 1 Sem. 2022'!CE34) -> 29780 | E41: ='Dati Generali CER 1 Sem. 2022'!W34 -> 0.5754589372 | F41: =IF('Dati Generali CER 1 Sem. 2022'!CF34="","",'Dati Generali CER 1 Sem. 2022'!CF34) -> 0.8287292818 | G41: =IF('Dati Generali CER 1 Sem. 2022'!CG34="","",'Dati Generali CER 1 Sem. 2022'!CG34) -> 0.3518296101 | H41: =IF('Dati Generali CER 1 Sem. 2022'!CH34="","",'Dati Generali CER 1 Sem. 2022'!CH34) -> 0.4768996717 | I41: ='Dati Generali CER 1 Sem. 2022'!D34 -> 345 | J41: =IF('Dati Generali CER 1 Sem. 2022'!CJ34="","",'Dati Generali CER 1 Sem. 2022'!CJ34) -> 
A42: 33 | B42: ='Dati Generali CER 1 Sem. 2022'!C35 -> GIARDINI NAXOS | C42: =IF('Dati Generali CER 1 Sem. 2022'!E35="","",'Dati Generali CER 1 Sem. 2022'!E35) -> 1673200 | D42: =IF(C42="","",'Dati Generali CER 1 Sem. 2022'!CE35) -> 1100490 | E42: ='Dati Generali CER 1 Sem. 2022'!W35 -> 0.3895774259 | F42: =IF('Dati Generali CER 1 Sem. 2022'!CF35="","",'Dati Generali CER 1 Sem. 2022'!CF35) -> 1.717108107 | G42: =IF('Dati Generali CER 1 Sem. 2022'!CG35="","",'Dati Generali CER 1 Sem. 2022'!CG35) -> 1.017075464 | H42: =IF('Dati Generali CER 1 Sem. 2022'!CH35="","",'Dati Generali CER 1 Sem. 2022'!CH35) -> 0.6689465561 | I42: ='Dati Generali CER 1 Sem. 2022'!D35 -> 9089 | J42: =IF('Dati Generali CER 1 Sem. 2022'!CJ35="","",'Dati Generali CER 1 Sem. 2022'!CJ35) -> 
A43: 34 | B43: ='Dati Generali CER 1 Sem. 2022'!C36 -> GIOIOSA MAREA | C43: =IF('Dati Generali CER 1 Sem. 2022'!E36="","",'Dati Generali CER 1 Sem. 2022'!E36) -> 395152 | D43: =IF(C43="","",'Dati Generali CER 1 Sem. 2022'!CE36) -> 704990 | E43: ='Dati Generali CER 1 Sem. 2022'!W36 -> 0.6408172763 | F43: =IF('Dati Generali CER 1 Sem. 2022'!CF36="","",'Dati Generali CER 1 Sem. 2022'!CF36) -> 0.9090835472 | G43: =IF('Dati Generali CER 1 Sem. 2022'!CG36="","",'Dati Generali CER 1 Sem. 2022'!CG36) -> 0.3265271045 | H43: =IF('Dati Generali CER 1 Sem. 2022'!CH36="","",'Dati Generali CER 1 Sem. 2022'!CH36) -> 0.5825564427 | I43: ='Dati Generali CER 1 Sem. 2022'!D36 -> 6686 | J43: =IF('Dati Generali CER 1 Sem. 2022'!CJ36="","",'Dati Generali CER 1 Sem. 2022'!CJ36) -> 
A44: 35 | B44: ='Dati Generali CER 1 Sem. 2022'!C37 -> GRANITI | C44: =IF('Dati Generali CER 1 Sem. 2022'!E37="","",'Dati Generali CER 1 Sem. 2022'!E37) -> 195920 | D44: =IF(C44="","",'Dati Generali CER 1 Sem. 2022'!CE37) -> 44700 | E44: ='Dati Generali CER 1 Sem. 2022'!W37 -> 0.1857700939 | F44: =IF('Dati Generali CER 1 Sem. 2022'!CF37="","",'Dati Generali CER 1 Sem. 2022'!CF37) -> 0.9270517888 | G44: =IF('Dati Generali CER 1 Sem. 2022'!CG37="","",'Dati Generali CER 1 Sem. 2022'!CG37) -> 0.754833291 | H44: =IF('Dati Generali CER 1 Sem. 2022'!CH37="","",'Dati Generali CER 1 Sem. 2022'!CH37) -> 0.1722184979 | I44: ='Dati Generali CER 1 Sem. 2022'!D37 -> 1434 | J44: =IF('Dati Generali CER 1 Sem. 2022'!CJ37="","",'Dati Generali CER 1 Sem. 2022'!CJ37) -> 
A45: 36 | B45: ='Dati Generali CER 1 Sem. 2022'!C38 -> GUALTIERI SICAMINO | C45: =IF('Dati Generali CER 1 Sem. 2022'!E38="","",'Dati Generali CER 1 Sem. 2022'!E38) -> 56580 | D45: =IF(C45="","",'Dati Generali CER 1 Sem. 2022'!CE38) -> 185155 | E45: ='Dati Generali CER 1 Sem. 2022'!W38 -> 0.765942044 | F45: =IF('Dati Generali CER 1 Sem. 2022'!CF38="","",'Dati Generali CER 1 Sem. 2022'!CF38) -> 0.8452863837 | G45: =IF('Dati Generali CER 1 Sem. 2022'!CG38="","",'Dati Generali CER 1 Sem. 2022'!CG38) -> 0.1978460032 | H45: =IF('Dati Generali CER 1 Sem. 2022'!CH38="","",'Dati Generali CER 1 Sem. 2022'!CH38) -> 0.6474403804 | I45: ='Dati Generali CER 1 Sem. 2022'!D38 -> 1580 | J45: =IF('Dati Generali CER 1 Sem. 2022'!CJ38="","",'Dati Generali CER 1 Sem. 2022'!CJ38) -> 
A46: 37 | B46: ='Dati Generali CER 1 Sem. 2022'!C39 -> ITALA | C46: =IF('Dati Generali CER 1 Sem. 2022'!E39="","",'Dati Generali CER 1 Sem. 2022'!E39) -> 102080 | D46: =IF(C46="","",'Dati Generali CER 1 Sem. 2022'!CE39) -> 163260 | E46: ='Dati Generali CER 1 Sem. 2022'!W39 -> 0.6152860481 | F46: =IF('Dati Generali CER 1 Sem. 2022'!CF39="","",'Dati Generali CER 1 Sem. 2022'!CF39) -> 0.9825515086 | G46: =IF('Dati Generali CER 1 Sem. 2022'!CG39="","",'Dati Generali CER 1 Sem. 2022'!CG39) -> 0.3780012738 | H46: =IF('Dati Generali CER 1 Sem. 2022'!CH39="","",'Dati Generali CER 1 Sem. 2022'!CH39) -> 0.6045502348 | I46: ='Dati Generali CER 1 Sem. 2022'!D39 -> 1492 | J46: =IF('Dati Generali CER 1 Sem. 2022'!CJ39="","",'Dati Generali CER 1 Sem. 2022'!CJ39) -> 
A47: 38 | B47: ='Dati Generali CER 1 Sem. 2022'!C40 -> LENI | C47: =IF('Dati Generali CER 1 Sem. 2022'!E40="","",'Dati Generali CER 1 Sem. 2022'!E40) -> 79520 | D47: =IF(C47="","",'Dati Generali CER 1 Sem. 2022'!CE40) -> 31580 | E47: ='Dati Generali CER 1 Sem. 2022'!W40 -> 0.2842484248 | F47: =IF('Dati Generali CER 1 Sem. 2022'!CF40="","",'Dati Generali CER 1 Sem. 2022'!CF40) -> 0.9000178221 | G47: =IF('Dati Generali CER 1 Sem. 2022'!CG40="","",'Dati Generali CER 1 Sem. 2022'!CG40) -> 0.6441891739 | H47: =IF('Dati Generali CER 1 Sem. 2022'!CH40="","",'Dati Generali CER 1 Sem. 2022'!CH40) -> 0.2558286483 | I47: ='Dati Generali CER 1 Sem. 2022'!D40 -> 682 | J47: =IF('Dati Generali CER 1 Sem. 2022'!CJ40="","",'Dati Generali CER 1 Sem. 2022'!CJ40) -> 
A48: 39 | B48: ='Dati Generali CER 1 Sem. 2022'!C41 -> LETOJANNI | C48: =IF('Dati Generali CER 1 Sem. 2022'!E41="","",'Dati Generali CER 1 Sem. 2022'!E41) -> 383040 | D48: =IF(C48="","",'Dati Generali CER 1 Sem. 2022'!CE41) -> 370820 | E48: ='Dati Generali CER 1 Sem. 2022'!W41 -> 0.4918950468 | F48: =IF('Dati Generali CER 1 Sem. 2022'!CF41="","",'Dati Generali CER 1 Sem. 2022'!CF41) -> 1.459857124 | G48: =IF('Dati Generali CER 1 Sem. 2022'!CG41="","",'Dati Generali CER 1 Sem. 2022'!CG41) -> 0.7417606358 | H48: =IF('Dati Generali CER 1 Sem. 2022'!CH41="","",'Dati Generali CER 1 Sem. 2022'!CH41) -> 0.7180964885 | I48: ='Dati Generali CER 1 Sem. 2022'!D41 -> 2853 | J48: =IF('Dati Generali CER 1 Sem. 2022'!CJ41="","",'Dati Generali CER 1 Sem. 2022'!CJ41) -> 
A49: 40 | B49: ='Dati Generali CER 1 Sem. 2022'!C42 -> LIBRIZZI | C49: =IF('Dati Generali CER 1 Sem. 2022'!E42="","",'Dati Generali CER 1 Sem. 2022'!E42) -> 67160 | D49: =IF(C49="","",'Dati Generali CER 1 Sem. 2022'!CE42) -> 191010 | E49: ='Dati Generali CER 1 Sem. 2022'!W42 -> 0.7398613317 | F49: =IF('Dati Generali CER 1 Sem. 2022'!CF42="","",'Dati Generali CER 1 Sem. 2022'!CF42) -> 0.9079271745 | G49: =IF('Dati Generali CER 1 Sem. 2022'!CG42="","",'Dati Generali CER 1 Sem. 2022'!CG42) -> 0.2361869661 | H49: =IF('Dati Generali CER 1 Sem. 2022'!CH42="","",'Dati Generali CER 1 Sem. 2022'!CH42) -> 0.6717402084 | I49: ='Dati Generali CER 1 Sem. 2022'!D42 -> 1571 | J49: =IF('Dati Generali CER 1 Sem. 2022'!CJ42="","",'Dati Generali CER 1 Sem. 2022'!CJ42) -> 
A50: 41 | B50: ='Dati Generali CER 1 Sem. 2022'!C43 -> LIMINA | C50: =IF('Dati Generali CER 1 Sem. 2022'!E43="","",'Dati Generali CER 1 Sem. 2022'!E43) -> 61440 | D50: =IF(C50="","",'Dati Generali CER 1 Sem. 2022'!CE43) -> 30450 | E50: ='Dati Generali CER 1 Sem. 2022'!W43 -> 0.3313744695 | F50: =IF('Dati Generali CER 1 Sem. 2022'!CF43="","",'Dati Generali CER 1 Sem. 2022'!CF43) -> 0.6945000794 | G50: =IF('Dati Generali CER 1 Sem. 2022'!CG43="","",'Dati Generali CER 1 Sem. 2022'!CG43) -> 0.464360484 | H50: =IF('Dati Generali CER 1 Sem. 2022'!CH43="","",'Dati Generali CER 1 Sem. 2022'!CH43) -> 0.2301395953 | I50: ='Dati Generali CER 1 Sem. 2022'!D43 -> 731 | J50: =IF('Dati Generali CER 1 Sem. 2022'!CJ43="","",'Dati Generali CER 1 Sem. 2022'!CJ43) -> 
A51: 42 | B51: ='Dati Generali CER 1 Sem. 2022'!C44 -> LIPARI | C51: =IF('Dati Generali CER 1 Sem. 2022'!E44="","",'Dati Generali CER 1 Sem. 2022'!E44) -> 1967070 | D51: =IF(C51="","",'Dati Generali CER 1 Sem. 2022'!CE44) -> 1556160 | E51: ='Dati Generali CER 1 Sem. 2022'!W44 -> 0.4416856124 | F51: =IF('Dati Generali CER 1 Sem. 2022'!CF44="","",'Dati Generali CER 1 Sem. 2022'!CF44) -> 1.560849901 | G51: =IF('Dati Generali CER 1 Sem. 2022'!CG44="","",'Dati Generali CER 1 Sem. 2022'!CG44) -> 0.8714449567 | H51: =IF('Dati Generali CER 1 Sem. 2022'!CH44="","",'Dati Generali CER 1 Sem. 2022'!CH44) -> 0.6894049443 | I51: ='Dati Generali CER 1 Sem. 2022'!D44 -> 12471 | J51: =IF('Dati Generali CER 1 Sem. 2022'!CJ44="","",'Dati Generali CER 1 Sem. 2022'!CJ44) -> 
A52: 43 | B52: ='Dati Generali CER 1 Sem. 2022'!C45 -> LONGI | C52: =IF('Dati Generali CER 1 Sem. 2022'!E45="","",'Dati Generali CER 1 Sem. 2022'!E45) -> 11860 | D52: =IF(C52="","",'Dati Generali CER 1 Sem. 2022'!CE45) -> 156431 | E52: ='Dati Generali CER 1 Sem. 2022'!W45 -> 0.9295268315 | F52: =IF('Dati Generali CER 1 Sem. 2022'!CF45="","",'Dati Generali CER 1 Sem. 2022'!CF45) -> 0.6985608793 | G52: =IF('Dati Generali CER 1 Sem. 2022'!CG45="","",'Dati Generali CER 1 Sem. 2022'!CG45) -> 0.04922979856 | H52: =IF('Dati Generali CER 1 Sem. 2022'!CH45="","",'Dati Generali CER 1 Sem. 2022'!CH45) -> 0.6493310808 | I52: ='Dati Generali CER 1 Sem. 2022'!D45 -> 1331 | J52: =IF('Dati Generali CER 1 Sem. 2022'!CJ45="","",'Dati Generali CER 1 Sem. 2022'!CJ45) -> 
A53: 44 | B53: ='Dati Generali CER 1 Sem. 2022'!C46 -> MALFA | C53: =IF('Dati Generali CER 1 Sem. 2022'!E46="","",'Dati Generali CER 1 Sem. 2022'!E46) -> 96320 | D53: =IF(C53="","",'Dati Generali CER 1 Sem. 2022'!CE46) -> 83140 | E53: ='Dati Generali CER 1 Sem. 2022'!W46 -> 0.4632787251 | F53: =IF('Dati Generali CER 1 Sem. 2022'!CF46="","",'Dati Generali CER 1 Sem. 2022'!CF46) -> 1.023211262 | G53: =IF('Dati Generali CER 1 Sem. 2022'!CG46="","",'Dati Generali CER 1 Sem. 2022'!CG46) -> 0.549179253 | H53: =IF('Dati Generali CER 1 Sem. 2022'!CH46="","",'Dati Generali CER 1 Sem. 2022'!CH46) -> 0.4740320088 | I53: ='Dati Generali CER 1 Sem. 2022'!D46 -> 969 | J53: =IF('Dati Generali CER 1 Sem. 2022'!CJ46="","",'Dati Generali CER 1 Sem. 2022'!CJ46) -> 
A54: 45 | B54: ='Dati Generali CER 1 Sem. 2022'!C47 -> MALVAGNA | C54: =IF('Dati Generali CER 1 Sem. 2022'!E47="","",'Dati Generali CER 1 Sem. 2022'!E47) -> 74540 | D54: =IF(C54="","",'Dati Generali CER 1 Sem. 2022'!CE47) -> 14440 | E54: ='Dati Generali CER 1 Sem. 2022'!W47 -> 0.1622836592 | F54: =IF('Dati Generali CER 1 Sem. 2022'!CF47="","",'Dati Generali CER 1 Sem. 2022'!CF47) -> 0.7790843264 | G54: =IF('Dati Generali CER 1 Sem. 2022'!CG47="","",'Dati Generali CER 1 Sem. 2022'!CG47) -> 0.652651671 | H54: =IF('Dati Generali CER 1 Sem. 2022'!CH47="","",'Dati Generali CER 1 Sem. 2022'!CH47) -> 0.1264326553 | I54: ='Dati Generali CER 1 Sem. 2022'!D47 -> 631 | J54: =IF('Dati Generali CER 1 Sem. 2022'!CJ47="","",'Dati Generali CER 1 Sem. 2022'!CJ47) -> 
A55: 46 | B55: ='Dati Generali CER 1 Sem. 2022'!C48 -> MANDANICI | C55: =IF('Dati Generali CER 1 Sem. 2022'!E48="","",'Dati Generali CER 1 Sem. 2022'!E48) -> 20410 | D55: =IF(C55="","",'Dati Generali CER 1 Sem. 2022'!CE48) -> 66510 | E55: ='Dati Generali CER 1 Sem. 2022'!W48 -> 0.7651863783 | F55: =IF('Dati Generali CER 1 Sem. 2022'!CF48="","",'Dati Generali CER 1 Sem. 2022'!CF48) -> 0.9361033031 | G55: =IF('Dati Generali CER 1 Sem. 2022'!CG48="","",'Dati Generali CER 1 Sem. 2022'!CG48) -> 0.2198098069 | H55: =IF('Dati Generali CER 1 Sem. 2022'!CH48="","",'Dati Generali CER 1 Sem. 2022'!CH48) -> 0.7162934962 | I55: ='Dati Generali CER 1 Sem. 2022'!D48 -> 513 | J55: =IF('Dati Generali CER 1 Sem. 2022'!CJ48="","",'Dati Generali CER 1 Sem. 2022'!CJ48) -> 
A56: 47 | B56: ='Dati Generali CER 1 Sem. 2022'!C49 -> MAZZARRA' S. ANDREA | C56: =IF('Dati Generali CER 1 Sem. 2022'!E49="","",'Dati Generali CER 1 Sem. 2022'!E49) -> 44720 | D56: =IF(C56="","",'Dati Generali CER 1 Sem. 2022'!CE49) -> 159200 | E56: ='Dati Generali CER 1 Sem. 2022'!W49 -> 0.7806983131 | F56: =IF('Dati Generali CER 1 Sem. 2022'!CF49="","",'Dati Generali CER 1 Sem. 2022'!CF49) -> 0.8146275013 | G56: =IF('Dati Generali CER 1 Sem. 2022'!CG49="","",'Dati Generali CER 1 Sem. 2022'!CG49) -> 0.1786491853 | H56: =IF('Dati Generali CER 1 Sem. 2022'!CH49="","",'Dati Generali CER 1 Sem. 2022'!CH49) -> 0.635978316 | I56: ='Dati Generali CER 1 Sem. 2022'!D49 -> 1383 | J56: =IF('Dati Generali CER 1 Sem. 2022'!CJ49="","",'Dati Generali CER 1 Sem. 2022'!CJ49) -> 
A57: 48 | B57: ='Dati Generali CER 1 Sem. 2022'!C50 -> MERI' | C57: =IF('Dati Generali CER 1 Sem. 2022'!E50="","",'Dati Generali CER 1 Sem. 2022'!E50) -> 186000 | D57: =IF(C57="","",'Dati Generali CER 1 Sem. 2022'!CE50) -> 163820 | E57: ='Dati Generali CER 1 Sem. 2022'!W50 -> 0.4682979818 | F57: =IF('Dati Generali CER 1 Sem. 2022'!CF50="","",'Dati Generali CER 1 Sem. 2022'!CF50) -> 0.8458237122 | G57: =IF('Dati Generali CER 1 Sem. 2022'!CG50="","",'Dati Generali CER 1 Sem. 2022'!CG50) -> 0.4497261748 | H57: =IF('Dati Generali CER 1 Sem. 2022'!CH50="","",'Dati Generali CER 1 Sem. 2022'!CH50) -> 0.3960975374 | I57: ='Dati Generali CER 1 Sem. 2022'!D50 -> 2285 | J57: =IF('Dati Generali CER 1 Sem. 2022'!CJ50="","",'Dati Generali CER 1 Sem. 2022'!CJ50) -> 
A58: 49 | B58: ='Dati Generali CER 1 Sem. 2022'!C51 -> MESSINA | C58: =IF('Dati Generali CER 1 Sem. 2022'!E51="","",'Dati Generali CER 1 Sem. 2022'!E51) -> 23768580 | D58: =IF(C58="","",'Dati Generali CER 1 Sem. 2022'!CE51) -> 26343802 | E58: ='Dati Generali CER 1 Sem. 2022'!W51 -> 0.5256944681 | F58: =IF('Dati Generali CER 1 Sem. 2022'!CF51="","",'Dati Generali CER 1 Sem. 2022'!CF51) -> 1.265681307 | G58: =IF('Dati Generali CER 1 Sem. 2022'!CG51="","",'Dati Generali CER 1 Sem. 2022'!CG51) -> 0.6003196457 | H58: =IF('Dati Generali CER 1 Sem. 2022'!CH51="","",'Dati Generali CER 1 Sem. 2022'!CH51) -> 0.6653616617 | I58: ='Dati Generali CER 1 Sem. 2022'!D51 -> 218747 | J58: =IF('Dati Generali CER 1 Sem. 2022'!CJ51="","",'Dati Generali CER 1 Sem. 2022'!CJ51) -> 
A59: 50 | B59: ='Dati Generali CER 1 Sem. 2022'!C52 -> MILAZZO | C59: =IF('Dati Generali CER 1 Sem. 2022'!E52="","",'Dati Generali CER 1 Sem. 2022'!E52) -> 2321260 | D59: =IF(C59="","",'Dati Generali CER 1 Sem. 2022'!CE52) -> 4405687 | E59: ='Dati Generali CER 1 Sem. 2022'!W52 -> 0.65493113 | F59: =IF('Dati Generali CER 1 Sem. 2022'!CF52="","",'Dati Generali CER 1 Sem. 2022'!CF52) -> 1.233544195 | G59: =IF('Dati Generali CER 1 Sem. 2022'!CG52="","",'Dati Generali CER 1 Sem. 2022'!CG52) -> 0.4256577014 | H59: =IF('Dati Generali CER 1 Sem. 2022'!CH52="","",'Dati Generali CER 1 Sem. 2022'!CH52) -> 0.8078864932 | I59: ='Dati Generali CER 1 Sem. 2022'!D52 -> 30129 | J59: =IF('Dati Generali CER 1 Sem. 2022'!CJ52="","",'Dati Generali CER 1 Sem. 2022'!CJ52) -> 
A60: 51 | B60: ='Dati Generali CER 1 Sem. 2022'!C53 -> MILITELLO ROSMARINO | C60: =IF('Dati Generali CER 1 Sem. 2022'!E53="","",'Dati Generali CER 1 Sem. 2022'!E53) -> 38680 | D60: =IF(C60="","",'Dati Generali CER 1 Sem. 2022'!CE53) -> 97713 | E60: ='Dati Generali CER 1 Sem. 2022'!W53 -> 0.7164077335 | F60: =IF('Dati Generali CER 1 Sem. 2022'!CF53="","",'Dati Generali CER 1 Sem. 2022'!CF53) -> 0.6468261684 | G60: =IF('Dati Generali CER 1 Sem. 2022'!CG53="","",'Dati Generali CER 1 Sem. 2022'!CG53) -> 0.1834348991 | H60: =IF('Dati Generali CER 1 Sem. 2022'!CH53="","",'Dati Generali CER 1 Sem. 2022'!CH53) -> 0.4633912693 | I60: ='Dati Generali CER 1 Sem. 2022'!D53 -> 1165 | J60: =IF('Dati Generali CER 1 Sem. 2022'!CJ53="","",'Dati Generali CER 1 Sem. 2022'!CJ53) -> 
A61: 52 | B61: ='Dati Generali CER 1 Sem. 2022'!C54 -> MIRTO | C61: =IF('Dati Generali CER 1 Sem. 2022'!E54="","",'Dati Generali CER 1 Sem. 2022'!E54) -> 12886 | D61: =IF(C61="","",'Dati Generali CER 1 Sem. 2022'!CE54) -> 129212 | E61: ='Dati Generali CER 1 Sem. 2022'!W54 -> 0.9093161058 | F61: =IF('Dati Generali CER 1 Sem. 2022'!CF54="","",'Dati Generali CER 1 Sem. 2022'!CF54) -> 0.8694040124 | G61: =IF('Dati Generali CER 1 Sem. 2022'!CG54="","",'Dati Generali CER 1 Sem. 2022'!CG54) -> 0.07884094149 | H61: =IF('Dati Generali CER 1 Sem. 2022'!CH54="","",'Dati Generali CER 1 Sem. 2022'!CH54) -> 0.7905630709 | I61: ='Dati Generali CER 1 Sem. 2022'!D54 -> 903 | J61: =IF('Dati Generali CER 1 Sem. 2022'!CJ54="","",'Dati Generali CER 1 Sem. 2022'!CJ54) -> 
A62: 53 | B62: ='Dati Generali CER 1 Sem. 2022'!C55 -> MISTRETTA | C62: =IF('Dati Generali CER 1 Sem. 2022'!E55="","",'Dati Generali CER 1 Sem. 2022'!E55) -> 194640 | D62: =IF(C62="","",'Dati Generali CER 1 Sem. 2022'!CE55) -> 496260 | E62: ='Dati Generali CER 1 Sem. 2022'!W55 -> 0.7182805037 | F62: =IF('Dati Generali CER 1 Sem. 2022'!CF55="","",'Dati Generali CER 1 Sem. 2022'!CF55) -> 0.8748858748 | G62: =IF('Dati Generali CER 1 Sem. 2022'!CG55="","",'Dati Generali CER 1 Sem. 2022'!CG55) -> 0.246472408 | H62: =IF('Dati Generali CER 1 Sem. 2022'!CH55="","",'Dati Generali CER 1 Sem. 2022'!CH55) -> 0.6284134668 | I62: ='Dati Generali CER 1 Sem. 2022'!D55 -> 4363 | J62: =IF('Dati Generali CER 1 Sem. 2022'!CJ55="","",'Dati Generali CER 1 Sem. 2022'!CJ55) -> 
A63: 54 | B63: ='Dati Generali CER 1 Sem. 2022'!C56 -> MOJO ALCANTARA | C63: =IF('Dati Generali CER 1 Sem. 2022'!E56="","",'Dati Generali CER 1 Sem. 2022'!E56) -> 84300 | D63: =IF(C63="","",'Dati Generali CER 1 Sem. 2022'!CE56) -> 25840 | E63: ='Dati Generali CER 1 Sem. 2022'!W56 -> 0.2346104957 | F63: =IF('Dati Generali CER 1 Sem. 2022'!CF56="","",'Dati Generali CER 1 Sem. 2022'!CF56) -> 0.9233813161 | G63: =IF('Dati Generali CER 1 Sem. 2022'!CG56="","",'Dati Generali CER 1 Sem. 2022'!CG56) -> 0.7067463678 | H63: =IF('Dati Generali CER 1 Sem. 2022'!CH56="","",'Dati Generali CER 1 Sem. 2022'!CH56) -> 0.2166349483 | I63: ='Dati Generali CER 1 Sem. 2022'!D56 -> 659 | J63: =IF('Dati Generali CER 1 Sem. 2022'!CJ56="","",'Dati Generali CER 1 Sem. 2022'!CJ56) -> 
A64: 55 | B64: ='Dati Generali CER 1 Sem. 2022'!C57 -> MONFORTE S. GIORGIO | C64: =IF('Dati Generali CER 1 Sem. 2022'!E57="","",'Dati Generali CER 1 Sem. 2022'!E57) -> 432400 | D64: =IF(C64="","",'Dati Generali CER 1 Sem. 2022'!CE57) -> 169470 | E64: ='Dati Generali CER 1 Sem. 2022'!W57 -> 0.2815724326 | F64: =IF('Dati Generali CER 1 Sem. 2022'!CF57="","",'Dati Generali CER 1 Sem. 2022'!CF57) -> 1.318496677 | G64: =IF('Dati Generali CER 1 Sem. 2022'!CG57="","",'Dati Generali CER 1 Sem. 2022'!CG57) -> 0.9472443601 | H64: =IF('Dati Generali CER 1 Sem. 2022'!CH57="","",'Dati Generali CER 1 Sem. 2022'!CH57) -> 0.3712523166 | I64: ='Dati Generali CER 1 Sem. 2022'!D57 -> 2522 | J64: =IF('Dati Generali CER 1 Sem. 2022'!CJ57="","",'Dati Generali CER 1 Sem. 2022'!CJ57) -> 
A65: 56 | B65: ='Dati Generali CER 1 Sem. 2022'!C58 -> MONGIUFFI MELIA | C65: =IF('Dati Generali CER 1 Sem. 2022'!E58="","",'Dati Generali CER 1 Sem. 2022'!E58) -> 28450 | D65: =IF(C65="","",'Dati Generali CER 1 Sem. 2022'!CE58) -> 41800 | E65: ='Dati Generali CER 1 Sem. 2022'!W58 -> 0.5950177936 | F65: =IF('Dati Generali CER 1 Sem. 2022'!CF58="","",'Dati Generali CER 1 Sem. 2022'!CF58) -> 0.7406899751 | G65: =IF('Dati Generali CER 1 Sem. 2022'!CG58="","",'Dati Generali CER 1 Sem. 2022'!CG58) -> 0.2999662604 | H65: =IF('Dati Generali CER 1 Sem. 2022'!CH58="","",'Dati Generali CER 1 Sem. 2022'!CH58) -> 0.4407237147 | I65: ='Dati Generali CER 1 Sem. 2022'!D58 -> 524 | J65: =IF('Dati Generali CER 1 Sem. 2022'!CJ58="","",'Dati Generali CER 1 Sem. 2022'!CJ58) -> 
A66: 57 | B66: ='Dati Generali CER 1 Sem. 2022'!C59 -> MONTAGNAREALE | C66: =IF('Dati Generali CER 1 Sem. 2022'!E59="","",'Dati Generali CER 1 Sem. 2022'!E59) -> 91110 | D66: =IF(C66="","",'Dati Generali CER 1 Sem. 2022'!CE59) -> 62940 | E66: ='Dati Generali CER 1 Sem. 2022'!W59 -> 0.4085686465 | F66: =IF('Dati Generali CER 1 Sem. 2022'!CF59="","",'Dati Generali CER 1 Sem. 2022'!CF59) -> 0.6109870584 | G66: =IF('Dati Generali CER 1 Sem. 2022'!CG59="","",'Dati Generali CER 1 Sem. 2022'!CG59) -> 0.3613569029 | H66: =IF('Dati Generali CER 1 Sem. 2022'!CH59="","",'Dati Generali CER 1 Sem. 2022'!CH59) -> 0.2496301555 | I66: ='Dati Generali CER 1 Sem. 2022'!D59 -> 1393 | J66: =IF('Dati Generali CER 1 Sem. 2022'!CJ59="","",'Dati Generali CER 1 Sem. 2022'!CJ59) -> 
A67: 58 | B67: ='Dati Generali CER 1 Sem. 2022'!C60 -> MONTALBANO ELICONA | C67: =IF('Dati Generali CER 1 Sem. 2022'!E60="","",'Dati Generali CER 1 Sem. 2022'!E60) -> 71120 | D67: =IF(C67="","",'Dati Generali CER 1 Sem. 2022'!CE60) -> 184931 | E67: ='Dati Generali CER 1 Sem. 2022'!W60 -> 0.7222428344 | F67: =IF('Dati Generali CER 1 Sem. 2022'!CF60="","",'Dati Generali CER 1 Sem. 2022'!CF60) -> 0.7087406858 | G67: =IF('Dati Generali CER 1 Sem. 2022'!CG60="","",'Dati Generali CER 1 Sem. 2022'!CG60) -> 0.196857804 | H67: =IF('Dati Generali CER 1 Sem. 2022'!CH60="","",'Dati Generali CER 1 Sem. 2022'!CH60) -> 0.5118828818 | I67: ='Dati Generali CER 1 Sem. 2022'!D60 -> 1996 | J67: =IF('Dati Generali CER 1 Sem. 2022'!CJ60="","",'Dati Generali CER 1 Sem. 2022'!CJ60) -> 
A68: 59 | B68: ='Dati Generali CER 1 Sem. 2022'!C61 -> MOTTA CAMASTRA | C68: =IF('Dati Generali CER 1 Sem. 2022'!E61="","",'Dati Generali CER 1 Sem. 2022'!E61) -> 91720 | D68: =IF(C68="","",'Dati Generali CER 1 Sem. 2022'!CE61) -> 25580 | E68: ='Dati Generali CER 1 Sem. 2022'!W61 -> 0.2180733163 | F68: =IF('Dati Generali CER 1 Sem. 2022'!CF61="","",'Dati Generali CER 1 Sem. 2022'!CF61) -> 0.8151777338 | G68: =IF('Dati Generali CER 1 Sem. 2022'!CG61="","",'Dati Generali CER 1 Sem. 2022'!CG61) -> 0.637409222 | H68: =IF('Dati Generali CER 1 Sem. 2022'!CH61="","",'Dati Generali CER 1 Sem. 2022'!CH61) -> 0.1777685118 | I68: ='Dati Generali CER 1 Sem. 2022'!D61 -> 795 | J68: =IF('Dati Generali CER 1 Sem. 2022'!CJ61="","",'Dati Generali CER 1 Sem. 2022'!CJ61) -> 
A69: 60 | B69: ='Dati Generali CER 1 Sem. 2022'!C62 -> MOTTA D'AFFERMO | C69: =IF('Dati Generali CER 1 Sem. 2022'!E62="","",'Dati Generali CER 1 Sem. 2022'!E62) -> 13120 | D69: =IF(C69="","",'Dati Generali CER 1 Sem. 2022'!CE62) -> 57050 | E69: ='Dati Generali CER 1 Sem. 2022'!W62 -> 0.8130255095 | F69: =IF('Dati Generali CER 1 Sem. 2022'!CF62="","",'Dati Generali CER 1 Sem. 2022'!CF62) -> 0.583854756 | G69: =IF('Dati Generali CER 1 Sem. 2022'!CG62="","",'Dati Generali CER 1 Sem. 2022'!CG62) -> 0.1091659456 | H69: =IF('Dati Generali CER 1 Sem. 2022'!CH62="","",'Dati Generali CER 1 Sem. 2022'!CH62) -> 0.4746888105 | I69: ='Dati Generali CER 1 Sem. 2022'!D62 -> 664 | J69: =IF('Dati Generali CER 1 Sem. 2022'!CJ62="","",'Dati Generali CER 1 Sem. 2022'!CJ62) -> 
A70: 61 | B70: ='Dati Generali CER 1 Sem. 2022'!C63 -> NASO | C70: =IF('Dati Generali CER 1 Sem. 2022'!E63="","",'Dati Generali CER 1 Sem. 2022'!E63) -> 31539 | D70: =IF(C70="","",'Dati Generali CER 1 Sem. 2022'!CE63) -> 418970 | E70: ='Dati Generali CER 1 Sem. 2022'!W63 -> 0.9299925196 | F70: =IF('Dati Generali CER 1 Sem. 2022'!CF63="","",'Dati Generali CER 1 Sem. 2022'!CF63) -> 0.7245997089 | G70: =IF('Dati Generali CER 1 Sem. 2022'!CG63="","",'Dati Generali CER 1 Sem. 2022'!CG63) -> 0.05072739994 | H70: =IF('Dati Generali CER 1 Sem. 2022'!CH63="","",'Dati Generali CER 1 Sem. 2022'!CH63) -> 0.6738723089 | I70: ='Dati Generali CER 1 Sem. 2022'!D63 -> 3435 | J70: =IF('Dati Generali CER 1 Sem. 2022'!CJ63="","",'Dati Generali CER 1 Sem. 2022'!CJ63) -> 
A71: 62 | B71: ='Dati Generali CER 1 Sem. 2022'!C64 -> NIZZA DI SICILIA | C71: =IF('Dati Generali CER 1 Sem. 2022'!E64="","",'Dati Generali CER 1 Sem. 2022'!E64) -> 220610 | D71: =IF(C71="","",'Dati Generali CER 1 Sem. 2022'!CE64) -> 375490 | E71: ='Dati Generali CER 1 Sem. 2022'!W64 -> 0.6299110887 | F71: =IF('Dati Generali CER 1 Sem. 2022'!CF64="","",'Dati Generali CER 1 Sem. 2022'!CF64) -> 0.9342894087 | G71: =IF('Dati Generali CER 1 Sem. 2022'!CG64="","",'Dati Generali CER 1 Sem. 2022'!CG64) -> 0.3457701501 | H71: =IF('Dati Generali CER 1 Sem. 2022'!CH64="","",'Dati Generali CER 1 Sem. 2022'!CH64) -> 0.5885192586 | I71: ='Dati Generali CER 1 Sem. 2022'!D64 -> 3525 | J71: =IF('Dati Generali CER 1 Sem. 2022'!CJ64="","",'Dati Generali CER 1 Sem. 2022'!CJ64) -> 
A72: 63 | B72: ='Dati Generali CER 1 Sem. 2022'!C65 -> NOVARA DI SICILIA | C72: =IF('Dati Generali CER 1 Sem. 2022'!E65="","",'Dati Generali CER 1 Sem. 2022'!E65) -> 62180 | D72: =IF(C72="","",'Dati Generali CER 1 Sem. 2022'!CE65) -> 168078 | E72: ='Dati Generali CER 1 Sem. 2022'!W65 -> 0.7299550939 | F72: =IF('Dati Generali CER 1 Sem. 2022'!CF65="","",'Dati Generali CER 1 Sem. 2022'!CF65) -> 1.10237751 | G72: =IF('Dati Generali CER 1 Sem. 2022'!CG65="","",'Dati Generali CER 1 Sem. 2022'!CG65) -> 0.2976914312 | H72: =IF('Dati Generali CER 1 Sem. 2022'!CH65="","",'Dati Generali CER 1 Sem. 2022'!CH65) -> 0.8046860787 | I72: ='Dati Generali CER 1 Sem. 2022'!D65 -> 1154 | J72: =IF('Dati Generali CER 1 Sem. 2022'!CJ65="","",'Dati Generali CER 1 Sem. 2022'!CJ65) -> 
A73: 64 | B73: ='Dati Generali CER 1 Sem. 2022'!C66 -> OLIVERI | C73: =IF('Dati Generali CER 1 Sem. 2022'!E66="","",'Dati Generali CER 1 Sem. 2022'!E66) -> 149880 | D73: =IF(C73="","",'Dati Generali CER 1 Sem. 2022'!CE66) -> 365940 | E73: ='Dati Generali CER 1 Sem. 2022'!W66 -> 0.7094335233 | F73: =IF('Dati Generali CER 1 Sem. 2022'!CF66="","",'Dati Generali CER 1 Sem. 2022'!CF66) -> 1.396293118 | G73: =IF('Dati Generali CER 1 Sem. 2022'!CG66="","",'Dati Generali CER 1 Sem. 2022'!CG66) -> 0.4057159718 | H73: =IF('Dati Generali CER 1 Sem. 2022'!CH66="","",'Dati Generali CER 1 Sem. 2022'!CH66) -> 0.9905771464 | I73: ='Dati Generali CER 1 Sem. 2022'!D66 -> 2041 | J73: =IF('Dati Generali CER 1 Sem. 2022'!CJ66="","",'Dati Generali CER 1 Sem. 2022'!CJ66) -> 
A74: 65 | B74: ='Dati Generali CER 1 Sem. 2022'!C67 -> PACE DEL MELA | C74: =IF('Dati Generali CER 1 Sem. 2022'!E67="","",'Dati Generali CER 1 Sem. 2022'!E67) -> 401940 | D74: =IF(C74="","",'Dati Generali CER 1 Sem. 2022'!CE67) -> 742387 | E74: ='Dati Generali CER 1 Sem. 2022'!W67 -> 0.6487542459 | F74: =IF('Dati Generali CER 1 Sem. 2022'!CF67="","",'Dati Generali CER 1 Sem. 2022'!CF67) -> 1.061492381 | G74: =IF('Dati Generali CER 1 Sem. 2022'!CG67="","",'Dati Generali CER 1 Sem. 2022'!CG67) -> 0.3728446916 | H74: =IF('Dati Generali CER 1 Sem. 2022'!CH67="","",'Dati Generali CER 1 Sem. 2022'!CH67) -> 0.6886476889 | I74: ='Dati Generali CER 1 Sem. 2022'!D67 -> 5956 | J74: =IF('Dati Generali CER 1 Sem. 2022'!CJ67="","",'Dati Generali CER 1 Sem. 2022'!CJ67) -> 
A75: 66 | B75: ='Dati Generali CER 1 Sem. 2022'!C68 -> PAGLIARA | C75: =IF('Dati Generali CER 1 Sem. 2022'!E68="","",'Dati Generali CER 1 Sem. 2022'!E68) -> 22600 | D75: =IF(C75="","",'Dati Generali CER 1 Sem. 2022'!CE68) -> 99540 | E75: ='Dati Generali CER 1 Sem. 2022'!W68 -> 0.814966432 | F75: =IF('Dati Generali CER 1 Sem. 2022'!CF68="","",'Dati Generali CER 1 Sem. 2022'!CF68) -> 0.5982328279 | G75: =IF('Dati Generali CER 1 Sem. 2022'!CG68="","",'Dati Generali CER 1 Sem. 2022'!CG68) -> 0.1106931547 | H75: =IF('Dati Generali CER 1 Sem. 2022'!CH68="","",'Dati Generali CER 1 Sem. 2022'!CH68) -> 0.4875396732 | I75: ='Dati Generali CER 1 Sem. 2022'!D68 -> 1128 | J75: =IF('Dati Generali CER 1 Sem. 2022'!CJ68="","",'Dati Generali CER 1 Sem. 2022'!CJ68) -> 
A76: 67 | B76: ='Dati Generali CER 1 Sem. 2022'!C69 -> PATTI | C76: =IF('Dati Generali CER 1 Sem. 2022'!E69="","",'Dati Generali CER 1 Sem. 2022'!E69) -> 691140 | D76: =IF(C76="","",'Dati Generali CER 1 Sem. 2022'!CE69) -> 1690120 | E76: ='Dati Generali CER 1 Sem. 2022'!W69 -> 0.7097586992 | F76: =IF('Dati Generali CER 1 Sem. 2022'!CF69="","",'Dati Generali CER 1 Sem. 2022'!CF69) -> 1.040092703 | G76: =IF('Dati Generali CER 1 Sem. 2022'!CG69="","",'Dati Generali CER 1 Sem. 2022'!CG69) -> 0.301877859 | H76: =IF('Dati Generali CER 1 Sem. 2022'!CH69="","",'Dati Generali CER 1 Sem. 2022'!CH69) -> 0.7382148437 | I76: ='Dati Generali CER 1 Sem. 2022'!D69 -> 12649 | J76: =IF('Dati Generali CER 1 Sem. 2022'!CJ69="","",'Dati Generali CER 1 Sem. 2022'!CJ69) -> 
A77: 68 | B77: ='Dati Generali CER 1 Sem. 2022'!C70 -> PETTINEO | C77: =IF('Dati Generali CER 1 Sem. 2022'!E70="","",'Dati Generali CER 1 Sem. 2022'!E70) -> 27460 | D77: =IF(C77="","",'Dati Generali CER 1 Sem. 2022'!CE70) -> 131390 | E77: ='Dati Generali CER 1 Sem. 2022'!W70 -> 0.827132515 | F77: =IF('Dati Generali CER 1 Sem. 2022'!CF70="","",'Dati Generali CER 1 Sem. 2022'!CF70) -> 0.70378854 | G77: =IF('Dati Generali CER 1 Sem. 2022'!CG70="","",'Dati Generali CER 1 Sem. 2022'!CG70) -> 0.1216621549 | H77: =IF('Dati Generali CER 1 Sem. 2022'!CH70="","",'Dati Generali CER 1 Sem. 2022'!CH70) -> 0.5821263851 | I77: ='Dati Generali CER 1 Sem. 2022'!D70 -> 1247 | J77: =IF('Dati Generali CER 1 Sem. 2022'!CJ70="","",'Dati Generali CER 1 Sem. 2022'!CJ70) -> 
A78: 69 | B78: ='Dati Generali CER 1 Sem. 2022'!C71 -> PIRAINO | C78: =IF('Dati Generali CER 1 Sem. 2022'!E71="","",'Dati Generali CER 1 Sem. 2022'!E71) -> 189060 | D78: =IF(C78="","",'Dati Generali CER 1 Sem. 2022'!CE71) -> 436460 | E78: ='Dati Generali CER 1 Sem. 2022'!W71 -> 0.6977554675 | F78: =IF('Dati Generali CER 1 Sem. 2022'!CF71="","",'Dati Generali CER 1 Sem. 2022'!CF71) -> 0.9142623286 | G78: =IF('Dati Generali CER 1 Sem. 2022'!CG71="","",'Dati Generali CER 1 Sem. 2022'!CG71) -> 0.2763307901 | H78: =IF('Dati Generali CER 1 Sem. 2022'!CH71="","",'Dati Generali CER 1 Sem. 2022'!CH71) -> 0.6379315385 | I78: ='Dati Generali CER 1 Sem. 2022'!D71 -> 3780 | J78: =IF('Dati Generali CER 1 Sem. 2022'!CJ71="","",'Dati Generali CER 1 Sem. 2022'!CJ71) -> 
A79: 70 | B79: ='Dati Generali CER 1 Sem. 2022'!C72 -> RACCUJA | C79: =IF('Dati Generali CER 1 Sem. 2022'!E72="","",'Dati Generali CER 1 Sem. 2022'!E72) -> 34000 | D79: =IF(C79="","",'Dati Generali CER 1 Sem. 2022'!CE72) -> 82040 | E79: ='Dati Generali CER 1 Sem. 2022'!W72 -> 0.706997587 | F79: =IF('Dati Generali CER 1 Sem. 2022'!CF72="","",'Dati Generali CER 1 Sem. 2022'!CF72) -> 0.7360562255 | G79: =IF('Dati Generali CER 1 Sem. 2022'!CG72="","",'Dati Generali CER 1 Sem. 2022'!CG72) -> 0.2156662501 | H79: =IF('Dati Generali CER 1 Sem. 2022'!CH72="","",'Dati Generali CER 1 Sem. 2022'!CH72) -> 0.5203899753 | I79: ='Dati Generali CER 1 Sem. 2022'!D72 -> 871 | J79: =IF('Dati Generali CER 1 Sem. 2022'!CJ72="","",'Dati Generali CER 1 Sem. 2022'!CJ72) -> 
A80: 71 | B80: ='Dati Generali CER 1 Sem. 2022'!C73 -> REITANO | C80: =IF('Dati Generali CER 1 Sem. 2022'!E73="","",'Dati Generali CER 1 Sem. 2022'!E73) -> 94580 | D80: =IF(C80="","",'Dati Generali CER 1 Sem. 2022'!CE73) -> 178540 | E80: ='Dati Generali CER 1 Sem. 2022'!W73 -> 0.653705331 | F80: =IF('Dati Generali CER 1 Sem. 2022'!CF73="","",'Dati Generali CER 1 Sem. 2022'!CF73) -> 2.116339798 | G80: =IF('Dati Generali CER 1 Sem. 2022'!CG73="","",'Dati Generali CER 1 Sem. 2022'!CG73) -> 0.73287719 | H80: =IF('Dati Generali CER 1 Sem. 2022'!CH73="","",'Dati Generali CER 1 Sem. 2022'!CH73) -> 1.383462608 | I80: ='Dati Generali CER 1 Sem. 2022'!D73 -> 713 | J80: =IF('Dati Generali CER 1 Sem. 2022'!CJ73="","",'Dati Generali CER 1 Sem. 2022'!CJ73) -> 
A81: 72 | B81: ='Dati Generali CER 1 Sem. 2022'!C74 -> ROCCAFIORITA | C81: =IF('Dati Generali CER 1 Sem. 2022'!E74="","",'Dati Generali CER 1 Sem. 2022'!E74) -> 5700 | D81: =IF(C81="","",'Dati Generali CER 1 Sem. 2022'!CE74) -> 17570 | E81: ='Dati Generali CER 1 Sem. 2022'!W74 -> 0.7550494199 | F81: =IF('Dati Generali CER 1 Sem. 2022'!CF74="","",'Dati Generali CER 1 Sem. 2022'!CF74) -> 0.7025329831 | G81: =IF('Dati Generali CER 1 Sem. 2022'!CG74="","",'Dati Generali CER 1 Sem. 2022'!CG74) -> 0.1720858618 | H81: =IF('Dati Generali CER 1 Sem. 2022'!CH74="","",'Dati Generali CER 1 Sem. 2022'!CH74) -> 0.5304471213 | I81: ='Dati Generali CER 1 Sem. 2022'!D74 -> 183 | J81: =IF('Dati Generali CER 1 Sem. 2022'!CJ74="","",'Dati Generali CER 1 Sem. 2022'!CJ74) -> 
A82: 73 | B82: ='Dati Generali CER 1 Sem. 2022'!C75 -> ROCCALUMERA | C82: =IF('Dati Generali CER 1 Sem. 2022'!E75="","",'Dati Generali CER 1 Sem. 2022'!E75) -> 235590 | D82: =IF(C82="","",'Dati Generali CER 1 Sem. 2022'!CE75) -> 628050 | E82: ='Dati Generali CER 1 Sem. 2022'!W75 -> 0.7272127275 | F82: =IF('Dati Generali CER 1 Sem. 2022'!CF75="","",'Dati Generali CER 1 Sem. 2022'!CF75) -> 1.221892884 | G82: =IF('Dati Generali CER 1 Sem. 2022'!CG75="","",'Dati Generali CER 1 Sem. 2022'!CG75) -> 0.3333168271 | H82: =IF('Dati Generali CER 1 Sem. 2022'!CH75="","",'Dati Generali CER 1 Sem. 2022'!CH75) -> 0.888576057 | I82: ='Dati Generali CER 1 Sem. 2022'!D75 -> 3905 | J82: =IF('Dati Generali CER 1 Sem. 2022'!CJ75="","",'Dati Generali CER 1 Sem. 2022'!CJ75) -> 
A83: 74 | B83: ='Dati Generali CER 1 Sem. 2022'!C76 -> ROCCAVALDINA | C83: =IF('Dati Generali CER 1 Sem. 2022'!E76="","",'Dati Generali CER 1 Sem. 2022'!E76) -> 149120 | D83: =IF(C83="","",'Dati Generali CER 1 Sem. 2022'!CE76) -> 47030 | E83: ='Dati Generali CER 1 Sem. 2022'!W76 -> 0.2397654856 | F83: =IF('Dati Generali CER 1 Sem. 2022'!CF76="","",'Dati Generali CER 1 Sem. 2022'!CF76) -> 1.103565843 | G83: =IF('Dati Generali CER 1 Sem. 2022'!CG76="","",'Dati Generali CER 1 Sem. 2022'!CG76) -> 0.8389688425 | H83: =IF('Dati Generali CER 1 Sem. 2022'!CH76="","",'Dati Generali CER 1 Sem. 2022'!CH76) -> 0.2645970001 | I83: ='Dati Generali CER 1 Sem. 2022'!D76 -> 982 | J83: =IF('Dati Generali CER 1 Sem. 2022'!CJ76="","",'Dati Generali CER 1 Sem. 2022'!CJ76) -> 
A84: 75 | B84: ='Dati Generali CER 1 Sem. 2022'!C77 -> ROCCELLA VALDEMONE | C84: =IF('Dati Generali CER 1 Sem. 2022'!E77="","",'Dati Generali CER 1 Sem. 2022'!E77) -> 73460 | D84: =IF(C84="","",'Dati Generali CER 1 Sem. 2022'!CE77) -> 23260 | E84: ='Dati Generali CER 1 Sem. 2022'!W77 -> 0.2404880066 | F84: =IF('Dati Generali CER 1 Sem. 2022'!CF77="","",'Dati Generali CER 1 Sem. 2022'!CF77) -> 0.9628191728 | G84: =IF('Dati Generali CER 1 Sem. 2022'!CG77="","",'Dati Generali CER 1 Sem. 2022'!CG77) -> 0.7312727092 | H84: =IF('Dati Generali CER 1 Sem. 2022'!CH77="","",'Dati Generali CER 1 Sem. 2022'!CH77) -> 0.2315464636 | I84: ='Dati Generali CER 1 Sem. 2022'!D77 -> 555 | J84: =IF('Dati Generali CER 1 Sem. 2022'!CJ77="","",'Dati Generali CER 1 Sem. 2022'!CJ77) -> 
A85: 76 | B85: ='Dati Generali CER 1 Sem. 2022'!C78 -> RODI' MILICI | C85: =IF('Dati Generali CER 1 Sem. 2022'!E78="","",'Dati Generali CER 1 Sem. 2022'!E78) -> 110370 | D85: =IF(C85="","",'Dati Generali CER 1 Sem. 2022'!CE78) -> 188170 | E85: ='Dati Generali CER 1 Sem. 2022'!W78 -> 0.6303007972 | F85: =IF('Dati Generali CER 1 Sem. 2022'!CF78="","",'Dati Generali CER 1 Sem. 2022'!CF78) -> 0.861301444 | G85: =IF('Dati Generali CER 1 Sem. 2022'!CG78="","",'Dati Generali CER 1 Sem. 2022'!CG78) -> 0.3184224572 | H85: =IF('Dati Generali CER 1 Sem. 2022'!CH78="","",'Dati Generali CER 1 Sem. 2022'!CH78) -> 0.5428789868 | I85: ='Dati Generali CER 1 Sem. 2022'!D78 -> 1915 | J85: =IF('Dati Generali CER 1 Sem. 2022'!CJ78="","",'Dati Generali CER 1 Sem. 2022'!CJ78) -> 
A86: 77 | B86: ='Dati Generali CER 1 Sem. 2022'!C79 -> ROMETTA | C86: =IF('Dati Generali CER 1 Sem. 2022'!E79="","",'Dati Generali CER 1 Sem. 2022'!E79) -> 155780 | D86: =IF(C86="","",'Dati Generali CER 1 Sem. 2022'!CE79) -> 857820 | E86: ='Dati Generali CER 1 Sem. 2022'!W79 -> 0.8463101815 | F86: =IF('Dati Generali CER 1 Sem. 2022'!CF79="","",'Dati Generali CER 1 Sem. 2022'!CF79) -> 0.8629989213 | G86: =IF('Dati Generali CER 1 Sem. 2022'!CG79="","",'Dati Generali CER 1 Sem. 2022'!CG79) -> 0.1326341475 | H86: =IF('Dati Generali CER 1 Sem. 2022'!CH79="","",'Dati Generali CER 1 Sem. 2022'!CH79) -> 0.7303647737 | I86: ='Dati Generali CER 1 Sem. 2022'!D79 -> 6489 | J86: =IF('Dati Generali CER 1 Sem. 2022'!CJ79="","",'Dati Generali CER 1 Sem. 2022'!CJ79) -> 
A87: 78 | B87: ='Dati Generali CER 1 Sem. 2022'!C82 -> S. AGATA DI MILITELLO | C87: =IF('Dati Generali CER 1 Sem. 2022'!E82="","",'Dati Generali CER 1 Sem. 2022'!E82) -> 735840 | D87: =IF(C87="","",'Dati Generali CER 1 Sem. 2022'!CE82) -> 1862625 | E87: ='Dati Generali CER 1 Sem. 2022'!W82 -> 0.7168174288 | F87: =IF('Dati Generali CER 1 Sem. 2022'!CF82="","",'Dati Generali CER 1 Sem. 2022'!CF82) -> 1.212513532 | G87: =IF('Dati Generali CER 1 Sem. 2022'!CG82="","",'Dati Generali CER 1 Sem. 2022'!CG82) -> 0.3433626997 | H87: =IF('Dati Generali CER 1 Sem. 2022'!CH82="","",'Dati Generali CER 1 Sem. 2022'!CH82) -> 0.8691508325 | I87: ='Dati Generali CER 1 Sem. 2022'!D82 -> 11840 | J87: =IF('Dati Generali CER 1 Sem. 2022'!CJ82="","",'Dati Generali CER 1 Sem. 2022'!CJ82) -> 
A88: 79 | B88: ='Dati Generali CER 1 Sem. 2022'!C93 -> S. ALESSIO SICULO | C88: =IF('Dati Generali CER 1 Sem. 2022'!E93="","",'Dati Generali CER 1 Sem. 2022'!E93) -> 223708 | D88: =IF(C88="","",'Dati Generali CER 1 Sem. 2022'!CE93) -> 187830 | E88: ='Dati Generali CER 1 Sem. 2022'!W93 -> 0.4564098577 | F88: =IF('Dati Generali CER 1 Sem. 2022'!CF93="","",'Dati Generali CER 1 Sem. 2022'!CF93) -> 1.481231666 | G88: =IF('Dati Generali CER 1 Sem. 2022'!CG93="","",'Dati Generali CER 1 Sem. 2022'!CG93) -> 0.8051829323 | H88: =IF('Dati Generali CER 1 Sem. 2022'!CH93="","",'Dati Generali CER 1 Sem. 2022'!CH93) -> 0.676048734 | I88: ='Dati Generali CER 1 Sem. 2022'!D93 -> 1535 | J88: =IF('Dati Generali CER 1 Sem. 2022'!CJ93="","",'Dati Generali CER 1 Sem. 2022'!CJ93) -> 
A89: 80 | B89: ='Dati Generali CER 1 Sem. 2022'!C92 -> S. ANGELO DI BROLO | C89: =IF('Dati Generali CER 1 Sem. 2022'!E92="","",'Dati Generali CER 1 Sem. 2022'!E92) -> 257320 | D89: =IF(C89="","",'Dati Generali CER 1 Sem. 2022'!CE92) -> 228710 | E89: ='Dati Generali CER 1 Sem. 2022'!W92 -> 0.4705676604 | F89: =IF('Dati Generali CER 1 Sem. 2022'!CF92="","",'Dati Generali CER 1 Sem. 2022'!CF92) -> 0.9732687998 | G89: =IF('Dati Generali CER 1 Sem. 2022'!CG92="","",'Dati Generali CER 1 Sem. 2022'!CG92) -> 0.5152799777 | H89: =IF('Dati Generali CER 1 Sem. 2022'!CH92="","",'Dati Generali CER 1 Sem. 2022'!CH92) -> 0.4579888221 | I89: ='Dati Generali CER 1 Sem. 2022'!D92 -> 2759 | J89: =IF('Dati Generali CER 1 Sem. 2022'!CJ92="","",'Dati Generali CER 1 Sem. 2022'!CJ92) -> 
A90: 81 | B90: ='Dati Generali CER 1 Sem. 2022'!C80 -> S. DOMENICA VITTORIA | C90: =IF('Dati Generali CER 1 Sem. 2022'!E80="","",'Dati Generali CER 1 Sem. 2022'!E80) -> 105140 | D90: =IF(C90="","",'Dati Generali CER 1 Sem. 2022'!CE80) -> 49100 | E90: ='Dati Generali CER 1 Sem. 2022'!W80 -> 0.3183350622 | F90: =IF('Dati Generali CER 1 Sem. 2022'!CF80="","",'Dati Generali CER 1 Sem. 2022'!CF80) -> 0.9966721592 | G90: =IF('Dati Generali CER 1 Sem. 2022'!CG80="","",'Dati Generali CER 1 Sem. 2022'!CG80) -> 0.6793964654 | H90: =IF('Dati Generali CER 1 Sem. 2022'!CH80="","",'Dati Generali CER 1 Sem. 2022'!CH80) -> 0.3172756938 | I90: ='Dati Generali CER 1 Sem. 2022'!D80 -> 855 | J90: =IF('Dati Generali CER 1 Sem. 2022'!CJ80="","",'Dati Generali CER 1 Sem. 2022'!CJ80) -> 
A91: 82 | B91: ='Dati Generali CER 1 Sem. 2022'!C85 -> S. FILIPPO DEL MELA | C91: =IF('Dati Generali CER 1 Sem. 2022'!E85="","",'Dati Generali CER 1 Sem. 2022'!E85) -> 539920 | D91: =IF(C91="","",'Dati Generali CER 1 Sem. 2022'!CE85) -> 710380 | E91: ='Dati Generali CER 1 Sem. 2022'!W85 -> 0.5681676398 | F91: =IF('Dati Generali CER 1 Sem. 2022'!CF85="","",'Dati Generali CER 1 Sem. 2022'!CF85) -> 1.034866638 | G91: =IF('Dati Generali CER 1 Sem. 2022'!CG85="","",'Dati Generali CER 1 Sem. 2022'!CG85) -> 0.4468889027 | H91: =IF('Dati Generali CER 1 Sem. 2022'!CH85="","",'Dati Generali CER 1 Sem. 2022'!CH85) -> 0.587977735 | I91: ='Dati Generali CER 1 Sem. 2022'!D85 -> 6675 | J91: =IF('Dati Generali CER 1 Sem. 2022'!CJ85="","",'Dati Generali CER 1 Sem. 2022'!CJ85) -> 
A92: 83 | B92: ='Dati Generali CER 1 Sem. 2022'!C90 -> S. SALVAT. DI FITALIA | C92: =IF('Dati Generali CER 1 Sem. 2022'!E90="","",'Dati Generali CER 1 Sem. 2022'!E90) -> 16480 | D92: =IF(C92="","",'Dati Generali CER 1 Sem. 2022'!CE90) -> 101685 | E92: ='Dati Generali CER 1 Sem. 2022'!W90 -> 0.8605339991 | F92: =IF('Dati Generali CER 1 Sem. 2022'!CF90="","",'Dati Generali CER 1 Sem. 2022'!CF90) -> 0.5803069368 | G92: =IF('Dati Generali CER 1 Sem. 2022'!CG90="","",'Dati Generali CER 1 Sem. 2022'!CG90) -> 0.08093308778 | H92: =IF('Dati Generali CER 1 Sem. 2022'!CH90="","",'Dati Generali CER 1 Sem. 2022'!CH90) -> 0.499373849 | I92: ='Dati Generali CER 1 Sem. 2022'!D90 -> 1125 | J92: =IF('Dati Generali CER 1 Sem. 2022'!CJ90="","",'Dati Generali CER 1 Sem. 2022'!CJ90) -> 
A93: 84 | B93: ='Dati Generali CER 1 Sem. 2022'!C81 -> S. STEF. DI CAMASTRA | C93: =IF('Dati Generali CER 1 Sem. 2022'!E81="","",'Dati Generali CER 1 Sem. 2022'!E81) -> 253700 | D93: =IF(C93="","",'Dati Generali CER 1 Sem. 2022'!CE81) -> 658155 | E93: ='Dati Generali CER 1 Sem. 2022'!W81 -> 0.7217759403 | F93: =IF('Dati Generali CER 1 Sem. 2022'!CF81="","",'Dati Generali CER 1 Sem. 2022'!CF81) -> 1.16053281 | G93: =IF('Dati Generali CER 1 Sem. 2022'!CG81="","",'Dati Generali CER 1 Sem. 2022'!CG81) -> 0.3228881499 | H93: =IF('Dati Generali CER 1 Sem. 2022'!CH81="","",'Dati Generali CER 1 Sem. 2022'!CH81) -> 0.8376446601 | I93: ='Dati Generali CER 1 Sem. 2022'!D81 -> 4341 | J93: =IF('Dati Generali CER 1 Sem. 2022'!CJ81="","",'Dati Generali CER 1 Sem. 2022'!CJ81) -> 
A94: 85 | B94: ='Dati Generali CER 1 Sem. 2022'!C84 -> S. TERESA DI RIVA | C94: =IF('Dati Generali CER 1 Sem. 2022'!E84="","",'Dati Generali CER 1 Sem. 2022'!E84) -> 464920 | D94: =IF(C94="","",'Dati Generali CER 1 Sem. 2022'!CE84) -> 1210768 | E94: ='Dati Generali CER 1 Sem. 2022'!W84 -> 0.7225497825 | F94: =IF('Dati Generali CER 1 Sem. 2022'!CF84="","",'Dati Generali CER 1 Sem. 2022'!CF84) -> 0.9908963664 | G94: =IF('Dati Generali CER 1 Sem. 2022'!CG84="","",'Dati Generali CER 1 Sem. 2022'!CG84) -> 0.2749244123 | H94: =IF('Dati Generali CER 1 Sem. 2022'!CH84="","",'Dati Generali CER 1 Sem. 2022'!CH84) -> 0.7159719541 | I94: ='Dati Generali CER 1 Sem. 2022'!D84 -> 9343 | J94: =IF('Dati Generali CER 1 Sem. 2022'!CJ84="","",'Dati Generali CER 1 Sem. 2022'!CJ84) -> 
A95: 86 | B95: ='Dati Generali CER 1 Sem. 2022'!C86 -> SAN FRATELLO | C95: =IF('Dati Generali CER 1 Sem. 2022'!E86="","",'Dati Generali CER 1 Sem. 2022'!E86) -> 103840 | D95: =IF(C95="","",'Dati Generali CER 1 Sem. 2022'!CE86) -> 297500 | E95: ='Dati Generali CER 1 Sem. 2022'!W86 -> 0.7412667564 | F95: =IF('Dati Generali CER 1 Sem. 2022'!CF86="","",'Dati Generali CER 1 Sem. 2022'!CF86) -> 0.6807946166 | G95: =IF('Dati Generali CER 1 Sem. 2022'!CG86="","",'Dati Generali CER 1 Sem. 2022'!CG86) -> 0.1761441994 | H95: =IF('Dati Generali CER 1 Sem. 2022'!CH86="","",'Dati Generali CER 1 Sem. 2022'!CH86) -> 0.5046504172 | I95: ='Dati Generali CER 1 Sem. 2022'!D86 -> 3257 | J95: =IF('Dati Generali CER 1 Sem. 2022'!CJ86="","",'Dati Generali CER 1 Sem. 2022'!CJ86) -> 
A96: 87 | B96: ='Dati Generali CER 1 Sem. 2022'!C87 -> SAN MARCO D'ALUNZIO | C96: =IF('Dati Generali CER 1 Sem. 2022'!E87="","",'Dati Generali CER 1 Sem. 2022'!E87) -> 70820 | D96: =IF(C96="","",'Dati Generali CER 1 Sem. 2022'!CE87) -> 173850 | E96: ='Dati Generali CER 1 Sem. 2022'!W87 -> 0.7105489026 | F96: =IF('Dati Generali CER 1 Sem. 2022'!CF87="","",'Dati Generali CER 1 Sem. 2022'!CF87) -> 0.7518175505 | G96: =IF('Dati Generali CER 1 Sem. 2022'!CG87="","",'Dati Generali CER 1 Sem. 2022'!CG87) -> 0.217614415 | H96: =IF('Dati Generali CER 1 Sem. 2022'!CH87="","",'Dati Generali CER 1 Sem. 2022'!CH87) -> 0.5342031355 | I96: ='Dati Generali CER 1 Sem. 2022'!D87 -> 1798 | J96: =IF('Dati Generali CER 1 Sem. 2022'!CJ87="","",'Dati Generali CER 1 Sem. 2022'!CJ87) -> 
A97: 88 | B97: ='Dati Generali CER 1 Sem. 2022'!C88 -> SAN PIER NICETO | C97: =IF('Dati Generali CER 1 Sem. 2022'!E88="","",'Dati Generali CER 1 Sem. 2022'!E88) -> 302500 | D97: =IF(C97="","",'Dati Generali CER 1 Sem. 2022'!CE88) -> 267840 | E97: ='Dati Generali CER 1 Sem. 2022'!W88 -> 0.4696146158 | F97: =IF('Dati Generali CER 1 Sem. 2022'!CF88="","",'Dati Generali CER 1 Sem. 2022'!CF88) -> 1.224659823 | G97: =IF('Dati Generali CER 1 Sem. 2022'!CG88="","",'Dati Generali CER 1 Sem. 2022'!CG88) -> 0.6495416705 | H97: =IF('Dati Generali CER 1 Sem. 2022'!CH88="","",'Dati Generali CER 1 Sem. 2022'!CH88) -> 0.5751181522 | I97: ='Dati Generali CER 1 Sem. 2022'!D88 -> 2573 | J97: =IF('Dati Generali CER 1 Sem. 2022'!CJ88="","",'Dati Generali CER 1 Sem. 2022'!CJ88) -> 
A98: 89 | B98: ='Dati Generali CER 1 Sem. 2022'!C89 -> SAN PIERO PATTI | C98: =IF('Dati Generali CER 1 Sem. 2022'!E89="","",'Dati Generali CER 1 Sem. 2022'!E89) -> 280960 | D98: =IF(C98="","",'Dati Generali CER 1 Sem. 2022'!CE89) -> 275186 | E98: ='Dati Generali CER 1 Sem. 2022'!W89 -> 0.4948089171 | F98: =IF('Dati Generali CER 1 Sem. 2022'!CF89="","",'Dati Generali CER 1 Sem. 2022'!CF89) -> 1.194181824 | G98: =IF('Dati Generali CER 1 Sem. 2022'!CG89="","",'Dati Generali CER 1 Sem. 2022'!CG89) -> 0.6032900091 | H98: =IF('Dati Generali CER 1 Sem. 2022'!CH89="","",'Dati Generali CER 1 Sem. 2022'!CH89) -> 0.5908918153 | I98: ='Dati Generali CER 1 Sem. 2022'!D89 -> 2573 | J98: =IF('Dati Generali CER 1 Sem. 2022'!CJ89="","",'Dati Generali CER 1 Sem. 2022'!CJ89) -> 
A99: 90 | B99: ='Dati Generali CER 1 Sem. 2022'!C91 -> SAN TEODORO | C99: =IF('Dati Generali CER 1 Sem. 2022'!E91="","",'Dati Generali CER 1 Sem. 2022'!E91) -> 41550 | D99: =IF(C99="","",'Dati Generali CER 1 Sem. 2022'!CE91) -> 154710 | E99: ='Dati Generali CER 1 Sem. 2022'!W91 -> 0.7882910425 | F99: =IF('Dati Generali CER 1 Sem. 2022'!CF91="","",'Dati Generali CER 1 Sem. 2022'!CF91) -> 0.8887781904 | G99: =IF('Dati Generali CER 1 Sem. 2022'!CG91="","",'Dati Generali CER 1 Sem. 2022'!CG91) -> 0.1881623041 | H99: =IF('Dati Generali CER 1 Sem. 2022'!CH91="","",'Dati Generali CER 1 Sem. 2022'!CH91) -> 0.7006158862 | I99: ='Dati Generali CER 1 Sem. 2022'!D91 -> 1220 | J99: =IF('Dati Generali CER 1 Sem. 2022'!CJ91="","",'Dati Generali CER 1 Sem. 2022'!CJ91) -> 
A100: 91 | B100: ='Dati Generali CER 1 Sem. 2022'!C83 -> SANTA LUCIA DEL MELA | C100: =IF('Dati Generali CER 1 Sem. 2022'!E83="","",'Dati Generali CER 1 Sem. 2022'!E83) -> 286760 | D100: =IF(C100="","",'Dati Generali CER 1 Sem. 2022'!CE83) -> 449158 | E100: ='Dati Generali CER 1 Sem. 2022'!W83 -> 0.6103370212 | F100: =IF('Dati Generali CER 1 Sem. 2022'!CF83="","",'Dati Generali CER 1 Sem. 2022'!CF83) -> 0.9267940059 | G100: =IF('Dati Generali CER 1 Sem. 2022'!CG83="","",'Dati Generali CER 1 Sem. 2022'!CG83) -> 0.361137313 | H100: =IF('Dati Generali CER 1 Sem. 2022'!CH83="","",'Dati Generali CER 1 Sem. 2022'!CH83) -> 0.5656566929 | I100: ='Dati Generali CER 1 Sem. 2022'!D83 -> 4387 | J100: =IF('Dati Generali CER 1 Sem. 2022'!CJ83="","",'Dati Generali CER 1 Sem. 2022'!CJ83) -> 
A101: 92 | B101: ='Dati Generali CER 1 Sem. 2022'!C94 -> SANTA MARINA SALINA | C101: =IF('Dati Generali CER 1 Sem. 2022'!E94="","",'Dati Generali CER 1 Sem. 2022'!E94) -> 144800 | D101: =IF(C101="","",'Dati Generali CER 1 Sem. 2022'!CE94) -> 77340 | E101: ='Dati Generali CER 1 Sem. 2022'!W94 -> 0.3481588188 | F101: =IF('Dati Generali CER 1 Sem. 2022'!CF94="","",'Dati Generali CER 1 Sem. 2022'!CF94) -> 1.425427198 | G101: =IF('Dati Generali CER 1 Sem. 2022'!CG94="","",'Dati Generali CER 1 Sem. 2022'!CG94) -> 0.9291521487 | H101: =IF('Dati Generali CER 1 Sem. 2022'!CH94="","",'Dati Generali CER 1 Sem. 2022'!CH94) -> 0.4962750496 | I101: ='Dati Generali CER 1 Sem. 2022'!D94 -> 861 | J101: =IF('Dati Generali CER 1 Sem. 2022'!CJ94="","",'Dati Generali CER 1 Sem. 2022'!CJ94) -> 
A102: 93 | B102: ='Dati Generali CER 1 Sem. 2022'!C95 -> SAPONARA | C102: =IF('Dati Generali CER 1 Sem. 2022'!E95="","",'Dati Generali CER 1 Sem. 2022'!E95) -> 103240 | D102: =IF(C102="","",'Dati Generali CER 1 Sem. 2022'!CE95) -> 542480 | E102: ='Dati Generali CER 1 Sem. 2022'!W95 -> 0.8401164591 | F102: =IF('Dati Generali CER 1 Sem. 2022'!CF95="","",'Dati Generali CER 1 Sem. 2022'!CF95) -> 0.9734007673 | G102: =IF('Dati Generali CER 1 Sem. 2022'!CG95="","",'Dati Generali CER 1 Sem. 2022'!CG95) -> 0.1556307613 | H102: =IF('Dati Generali CER 1 Sem. 2022'!CH95="","",'Dati Generali CER 1 Sem. 2022'!CH95) -> 0.817770006 | I102: ='Dati Generali CER 1 Sem. 2022'!D95 -> 3665 | J102: =IF('Dati Generali CER 1 Sem. 2022'!CJ95="","",'Dati Generali CER 1 Sem. 2022'!CJ95) -> 
A103: 94 | B103: ='Dati Generali CER 1 Sem. 2022'!C96 -> SAVOCA | C103: =IF('Dati Generali CER 1 Sem. 2022'!E96="","",'Dati Generali CER 1 Sem. 2022'!E96) -> 130900 | D103: =IF(C103="","",'Dati Generali CER 1 Sem. 2022'!CE96) -> 145550 | E103: ='Dati Generali CER 1 Sem. 2022'!W96 -> 0.526496654 | F103: =IF('Dati Generali CER 1 Sem. 2022'!CF96="","",'Dati Generali CER 1 Sem. 2022'!CF96) -> 0.8818406849 | G103: =IF('Dati Generali CER 1 Sem. 2022'!CG96="","",'Dati Generali CER 1 Sem. 2022'!CG96) -> 0.4175545149 | H103: =IF('Dati Generali CER 1 Sem. 2022'!CH96="","",'Dati Generali CER 1 Sem. 2022'!CH96) -> 0.46428617 | I103: ='Dati Generali CER 1 Sem. 2022'!D96 -> 1732 | J103: =IF('Dati Generali CER 1 Sem. 2022'!CJ96="","",'Dati Generali CER 1 Sem. 2022'!CJ96) -> 
A104: 95 | B104: ='Dati Generali CER 1 Sem. 2022'!C97 -> SCALETTA ZANCLEA | C104: =IF('Dati Generali CER 1 Sem. 2022'!E97="","",'Dati Generali CER 1 Sem. 2022'!E97) -> 114360 | D104: =IF(C104="","",'Dati Generali CER 1 Sem. 2022'!CE97) -> 185120 | E104: ='Dati Generali CER 1 Sem. 2022'!W97 -> 0.6181381061 | F104: =IF('Dati Generali CER 1 Sem. 2022'!CF97="","",'Dati Generali CER 1 Sem. 2022'!CF97) -> 0.9021731927 | G104: =IF('Dati Generali CER 1 Sem. 2022'!CG97="","",'Dati Generali CER 1 Sem. 2022'!CG97) -> 0.344505564 | H104: =IF('Dati Generali CER 1 Sem. 2022'!CH97="","",'Dati Generali CER 1 Sem. 2022'!CH97) -> 0.5576676286 | I104: ='Dati Generali CER 1 Sem. 2022'!D97 -> 1834 | J104: =IF('Dati Generali CER 1 Sem. 2022'!CJ97="","",'Dati Generali CER 1 Sem. 2022'!CJ97) -> 
A105: 96 | B105: ='Dati Generali CER 1 Sem. 2022'!C98 -> SINAGRA | C105: =IF('Dati Generali CER 1 Sem. 2022'!E98="","",'Dati Generali CER 1 Sem. 2022'!E98) -> 82900 | D105: =IF(C105="","",'Dati Generali CER 1 Sem. 2022'!CE98) -> 308460 | E105: ='Dati Generali CER 1 Sem. 2022'!W98 -> 0.7881745707 | F105: =IF('Dati Generali CER 1 Sem. 2022'!CF98="","",'Dati Generali CER 1 Sem. 2022'!CF98) -> 0.872914794 | G105: =IF('Dati Generali CER 1 Sem. 2022'!CG98="","",'Dati Generali CER 1 Sem. 2022'!CG98) -> 0.184905551 | H105: =IF('Dati Generali CER 1 Sem. 2022'!CH98="","",'Dati Generali CER 1 Sem. 2022'!CH98) -> 0.688009243 | I105: ='Dati Generali CER 1 Sem. 2022'!D98 -> 2477 | J105: =IF('Dati Generali CER 1 Sem. 2022'!CJ98="","",'Dati Generali CER 1 Sem. 2022'!CJ98) -> 
A106: 97 | B106: ='Dati Generali CER 1 Sem. 2022'!C99 -> SPADAFORA | C106: =IF('Dati Generali CER 1 Sem. 2022'!E99="","",'Dati Generali CER 1 Sem. 2022'!E99) -> 267380 | D106: =IF(C106="","",'Dati Generali CER 1 Sem. 2022'!CE99) -> 597810 | E106: ='Dati Generali CER 1 Sem. 2022'!W99 -> 0.6868773913 | F106: =IF('Dati Generali CER 1 Sem. 2022'!CF99="","",'Dati Generali CER 1 Sem. 2022'!CF99) -> 1.038542773 | G106: =IF('Dati Generali CER 1 Sem. 2022'!CG99="","",'Dati Generali CER 1 Sem. 2022'!CG99) -> 0.3190577903 | H106: =IF('Dati Generali CER 1 Sem. 2022'!CH99="","",'Dati Generali CER 1 Sem. 2022'!CH99) -> 0.7133515507 | I106: ='Dati Generali CER 1 Sem. 2022'!D99 -> 4630 | J106: =IF('Dati Generali CER 1 Sem. 2022'!CJ99="","",'Dati Generali CER 1 Sem. 2022'!CJ99) -> 
A107: 98 | B107: ='Dati Generali CER 1 Sem. 2022'!C100 -> TAORMINA | C107: =IF('Dati Generali CER 1 Sem. 2022'!E100="","",'Dati Generali CER 1 Sem. 2022'!E100) -> 1345940 | D107: =IF(C107="","",'Dati Generali CER 1 Sem. 2022'!CE100) -> 2328140 | E107: ='Dati Generali CER 1 Sem. 2022'!W100 -> 0.6320627681 | F107: =IF('Dati Generali CER 1 Sem. 2022'!CF100="","",'Dati Generali CER 1 Sem. 2022'!CF100) -> 1.950568029 | G107: =IF('Dati Generali CER 1 Sem. 2022'!CG100="","",'Dati Generali CER 1 Sem. 2022'!CG100) -> 0.7127511355 | H107: =IF('Dati Generali CER 1 Sem. 2022'!CH100="","",'Dati Generali CER 1 Sem. 2022'!CH100) -> 1.232881428 | I107: ='Dati Generali CER 1 Sem. 2022'!D100 -> 10433 | J107: =IF('Dati Generali CER 1 Sem. 2022'!CJ100="","",'Dati Generali CER 1 Sem. 2022'!CJ100) -> 
A108: 99 | B108: ='Dati Generali CER 1 Sem. 2022'!C101 -> TERME VIGLIATORE | C108: =IF('Dati Generali CER 1 Sem. 2022'!E101="","",'Dati Generali CER 1 Sem. 2022'!E101) -> 415460 | D108: =IF(C108="","",'Dati Generali CER 1 Sem. 2022'!CE101) -> 893100 | E108: ='Dati Generali CER 1 Sem. 2022'!W101 -> 0.6825059608 | F108: =IF('Dati Generali CER 1 Sem. 2022'!CF101="","",'Dati Generali CER 1 Sem. 2022'!CF101) -> 1.003973512 | G108: =IF('Dati Generali CER 1 Sem. 2022'!CG101="","",'Dati Generali CER 1 Sem. 2022'!CG101) -> 0.3187556056 | H108: =IF('Dati Generali CER 1 Sem. 2022'!CH101="","",'Dati Generali CER 1 Sem. 2022'!CH101) -> 0.6852179064 | I108: ='Dati Generali CER 1 Sem. 2022'!D101 -> 7201 | J108: =IF('Dati Generali CER 1 Sem. 2022'!CJ101="","",'Dati Generali CER 1 Sem. 2022'!CJ101) -> 
A109: 100 | B109: ='Dati Generali CER 1 Sem. 2022'!C102 -> TORREGROTTA | C109: =IF('Dati Generali CER 1 Sem. 2022'!E102="","",'Dati Generali CER 1 Sem. 2022'!E102) -> 517440 | D109: =IF(C109="","",'Dati Generali CER 1 Sem. 2022'!CE102) -> 922961 | E109: ='Dati Generali CER 1 Sem. 2022'!W102 -> 0.6377603233 | F109: =IF('Dati Generali CER 1 Sem. 2022'!CF102="","",'Dati Generali CER 1 Sem. 2022'!CF102) -> 1.108028047 | G109: =IF('Dati Generali CER 1 Sem. 2022'!CG102="","",'Dati Generali CER 1 Sem. 2022'!CG102) -> 0.3961730225 | H109: =IF('Dati Generali CER 1 Sem. 2022'!CH102="","",'Dati Generali CER 1 Sem. 2022'!CH102) -> 0.7066563254 | I109: ='Dati Generali CER 1 Sem. 2022'!D102 -> 7216 | J109: =IF('Dati Generali CER 1 Sem. 2022'!CJ102="","",'Dati Generali CER 1 Sem. 2022'!CJ102) -> 
A110: 101 | B110: ='Dati Generali CER 1 Sem. 2022'!C103 -> TORRENOVA | C110: =IF('Dati Generali CER 1 Sem. 2022'!E103="","",'Dati Generali CER 1 Sem. 2022'!E103) -> 163220 | D110: =IF(C110="","",'Dati Generali CER 1 Sem. 2022'!CE103) -> 689990 | E110: ='Dati Generali CER 1 Sem. 2022'!W103 -> 0.8086989135 | F110: =IF('Dati Generali CER 1 Sem. 2022'!CF103="","",'Dati Generali CER 1 Sem. 2022'!CF103) -> 1.055028515 | G110: =IF('Dati Generali CER 1 Sem. 2022'!CG103="","",'Dati Generali CER 1 Sem. 2022'!CG103) -> 0.2018281011 | H110: =IF('Dati Generali CER 1 Sem. 2022'!CH103="","",'Dati Generali CER 1 Sem. 2022'!CH103) -> 0.8532004135 | I110: ='Dati Generali CER 1 Sem. 2022'!D103 -> 4468 | J110: =IF('Dati Generali CER 1 Sem. 2022'!CJ103="","",'Dati Generali CER 1 Sem. 2022'!CJ103) -> 
A111: 102 | B111: ='Dati Generali CER 1 Sem. 2022'!C104 -> TORTORICI | C111: =IF('Dati Generali CER 1 Sem. 2022'!E104="","",'Dati Generali CER 1 Sem. 2022'!E104) -> 333800 | D111: =IF(C111="","",'Dati Generali CER 1 Sem. 2022'!CE104) -> 326897 | E111: ='Dati Generali CER 1 Sem. 2022'!W104 -> 0.4947759714 | F111: =IF('Dati Generali CER 1 Sem. 2022'!CF104="","",'Dati Generali CER 1 Sem. 2022'!CF104) -> 0.6361553971 | G111: =IF('Dati Generali CER 1 Sem. 2022'!CG104="","",'Dati Generali CER 1 Sem. 2022'!CG104) -> 0.3214009925 | H111: =IF('Dati Generali CER 1 Sem. 2022'!CH104="","",'Dati Generali CER 1 Sem. 2022'!CH104) -> 0.3147544046 | I111: ='Dati Generali CER 1 Sem. 2022'!D104 -> 5738 | J111: =IF('Dati Generali CER 1 Sem. 2022'!CJ104="","",'Dati Generali CER 1 Sem. 2022'!CJ104) -> 
A112: 103 | B112: ='Dati Generali CER 1 Sem. 2022'!C105 -> TRIPI | C112: =IF('Dati Generali CER 1 Sem. 2022'!E105="","",'Dati Generali CER 1 Sem. 2022'!E105) -> 34100 | D112: =IF(C112="","",'Dati Generali CER 1 Sem. 2022'!CE105) -> 111099 | E112: ='Dati Generali CER 1 Sem. 2022'!W105 -> 0.7651498977 | F112: =IF('Dati Generali CER 1 Sem. 2022'!CF105="","",'Dati Generali CER 1 Sem. 2022'!CF105) -> 1.094412578 | G112: =IF('Dati Generali CER 1 Sem. 2022'!CG105="","",'Dati Generali CER 1 Sem. 2022'!CG105) -> 0.2570229059 | H112: =IF('Dati Generali CER 1 Sem. 2022'!CH105="","",'Dati Generali CER 1 Sem. 2022'!CH105) -> 0.8373896724 | I112: ='Dati Generali CER 1 Sem. 2022'!D105 -> 733 | J112: =IF('Dati Generali CER 1 Sem. 2022'!CJ105="","",'Dati Generali CER 1 Sem. 2022'!CJ105) -> 
A113: 104 | B113: ='Dati Generali CER 1 Sem. 2022'!C106 -> TUSA | C113: =IF('Dati Generali CER 1 Sem. 2022'!E106="","",'Dati Generali CER 1 Sem. 2022'!E106) -> 126500 | D113: =IF(C113="","",'Dati Generali CER 1 Sem. 2022'!CE106) -> 463070 | E113: ='Dati Generali CER 1 Sem. 2022'!W106 -> 0.7854368438 | F113: =IF('Dati Generali CER 1 Sem. 2022'!CF106="","",'Dati Generali CER 1 Sem. 2022'!CF106) -> 1.257642015 | G113: =IF('Dati Generali CER 1 Sem. 2022'!CG106="","",'Dati Generali CER 1 Sem. 2022'!CG106) -> 0.26984364 | H113: =IF('Dati Generali CER 1 Sem. 2022'!CH106="","",'Dati Generali CER 1 Sem. 2022'!CH106) -> 0.9877983745 | I113: ='Dati Generali CER 1 Sem. 2022'!D106 -> 2590 | J113: =IF('Dati Generali CER 1 Sem. 2022'!CJ106="","",'Dati Generali CER 1 Sem. 2022'!CJ106) -> 
A114: 105 | B114: ='Dati Generali CER 1 Sem. 2022'!C107 -> UCRIA | C114: =IF('Dati Generali CER 1 Sem. 2022'!E107="","",'Dati Generali CER 1 Sem. 2022'!E107) -> 46420 | D114: =IF(C114="","",'Dati Generali CER 1 Sem. 2022'!CE107) -> 104880 | E114: ='Dati Generali CER 1 Sem. 2022'!W107 -> 0.6931923331 | F114: =IF('Dati Generali CER 1 Sem. 2022'!CF107="","",'Dati Generali CER 1 Sem. 2022'!CF107) -> 0.9216224942 | G114: =IF('Dati Generali CER 1 Sem. 2022'!CG107="","",'Dati Generali CER 1 Sem. 2022'!CG107) -> 0.2827608472 | H114: =IF('Dati Generali CER 1 Sem. 2022'!CH107="","",'Dati Generali CER 1 Sem. 2022'!CH107) -> 0.638861647 | I114: ='Dati Generali CER 1 Sem. 2022'!D107 -> 907 | J114: =IF('Dati Generali CER 1 Sem. 2022'!CJ107="","",'Dati Generali CER 1 Sem. 2022'!CJ107) -> 
A115: 106 | B115: ='Dati Generali CER 1 Sem. 2022'!C108 -> VALDINA | C115: =IF('Dati Generali CER 1 Sem. 2022'!E108="","",'Dati Generali CER 1 Sem. 2022'!E108) -> 135066 | D115: =IF(C115="","",'Dati Generali CER 1 Sem. 2022'!CE108) -> 118200 | E115: ='Dati Generali CER 1 Sem. 2022'!W108 -> 0.4667029921 | F115: =IF('Dati Generali CER 1 Sem. 2022'!CF108="","",'Dati Generali CER 1 Sem. 2022'!CF108) -> 1.092318242 | G115: =IF('Dati Generali CER 1 Sem. 2022'!CG108="","",'Dati Generali CER 1 Sem. 2022'!CG108) -> 0.5825300503 | H115: =IF('Dati Generali CER 1 Sem. 2022'!CH108="","",'Dati Generali CER 1 Sem. 2022'!CH108) -> 0.5097881921 | I115: ='Dati Generali CER 1 Sem. 2022'!D108 -> 1281 | J115: =IF('Dati Generali CER 1 Sem. 2022'!CJ108="","",'Dati Generali CER 1 Sem. 2022'!CJ108) -> 
A116: 107 | B116: ='Dati Generali CER 1 Sem. 2022'!C109 -> VENETICO | C116: =IF('Dati Generali CER 1 Sem. 2022'!E109="","",'Dati Generali CER 1 Sem. 2022'!E109) -> 234600 | D116: =IF(C116="","",'Dati Generali CER 1 Sem. 2022'!CE109) -> 447478 | E116: ='Dati Generali CER 1 Sem. 2022'!W109 -> 0.6555704989 | F116: =IF('Dati Generali CER 1 Sem. 2022'!CF109="","",'Dati Generali CER 1 Sem. 2022'!CF109) -> 0.9672093284 | G116: =IF('Dati Generali CER 1 Sem. 2022'!CG109="","",'Dati Generali CER 1 Sem. 2022'!CG109) -> 0.3324269291 | H116: =IF('Dati Generali CER 1 Sem. 2022'!CH109="","",'Dati Generali CER 1 Sem. 2022'!CH109) -> 0.6340739019 | I116: ='Dati Generali CER 1 Sem. 2022'!D109 -> 3899 | J116: =IF('Dati Generali CER 1 Sem. 2022'!CJ109="","",'Dati Generali CER 1 Sem. 2022'!CJ109) -> 
A117: 108 | B117: ='Dati Generali CER 1 Sem. 2022'!C110 -> VILLAFRANCA TIRRENA | C117: =IF('Dati Generali CER 1 Sem. 2022'!E110="","",'Dati Generali CER 1 Sem. 2022'!E110) -> 422320 | D117: =IF(C117="","",'Dati Generali CER 1 Sem. 2022'!CE110) -> 1240300 | E117: ='Dati Generali CER 1 Sem. 2022'!W110 -> 0.7459912668 | F117: =IF('Dati Generali CER 1 Sem. 2022'!CF110="","",'Dati Generali CER 1 Sem. 2022'!CF110) -> 1.139529321 | G117: =IF('Dati Generali CER 1 Sem. 2022'!CG110="","",'Dati Generali CER 1 Sem. 2022'!CG110) -> 0.2894503993 | H117: =IF('Dati Generali CER 1 Sem. 2022'!CH110="","",'Dati Generali CER 1 Sem. 2022'!CH110) -> 0.8500789217 | I117: ='Dati Generali CER 1 Sem. 2022'!D110 -> 8061 | J117: =IF('Dati Generali CER 1 Sem. 2022'!CJ110="","",'Dati Generali CER 1 Sem. 2022'!CJ110) -> 
B118: Percentuale media dei 108 Comuni: | F118: ='Dati Generali CER 1 Sem. 2022'!W111 -> 0.586915665

Sheet Grafico 1 Semestre 2022

Sheet Dati Generali CER 2 Sem. 2022
A1: Produzione di Rifiuti Urbani e Raccolta Differenziata 2° Semestre 2022.
A2: =COUNTA(E3:E110) -> 108 | B2: ID COMUNE | C2: COMUNE | D2: ABITANTI AL 31/12/2022 | E2: R.S.U. + R.S.A. (Kg/2°Sem.) 200301 | F2: R.S.U. COVID (A+A1) 200301* | G2: Altri oli per motori, ingranaggi e lubrificazione 130208* | H2: Legno da demolizione 170201 | I2: Miscele bituminose (diverse da quelle 170301*) 170302 | J2: Alluminio 170402 | K2: Ferro e acciaio 170405 | L2: Materiali da costruzione contenenti amianto 170605* | M2: percolato di discarica,(diverso dalla voce 190702) 190703 | N2: Residui di vagliatura 190801 | O2: FANGHI DI DEPURAZIONE (Kg/anno) prodotti dal trattamento delle acque reflue urbane 190805 | P2: Altri rifiuti (compresi materiali misti) prodotti dal trattamento meccanico dei rifiuti,(diversi dalla voce 191211) 191212 | Q2: Rifiuti della pulizia delle fognature 200306 | R2: Residui della pulizia stradale 200303 Smaltimento | S2: Ingombranti - 200307 Smaltimento | T2: Rifiuti urbani non specificati altrimenti 200399 | U2: RACCOL. DIFFEREN. (Kg/2°Sem.) | V2: R.S.U. + R.S.A. + RACC. DIFF. (Kg/2°Sem.) | W2: % RACC. DIFF. (2°Sem.) | X2: Compostaggio Domestico | Y2: Toner per stampa esauriti,(diversi dalla voce 080317) 080318 | Z2: Imballaggi Carta e Cartone (Raccolta Selettiva) 150101 | AA2: Imballaggi in Plastica 150102 | AB2: Imballaggi in Legno 150103 | AC2: Imballaaggi in metallo 150104 | AD2: Imballaggi Materiali compositi 150105 | AE2: Imball. in materiali misti 150106 | AF2: Imballaggi in Vetro 150107 | AG2: Imballaggi in Materiale tessile 150109 | AH2: Imballaggi contenenti residui di sostanze pericolose o contaminati da tali sostanze 150110* | AI2: Imballaggi metallici contenenti matrici solide porose pericolose (ad esempio amianto) 150111* | AJ2: Pneumatici usati 160103 | AK2: Filtri dell'olio 160107* | AL2: Apparecchiature fuori uso contenenti PCB o da essi contaminate(diverse dalla voce 160209) 160210* | AM2: Apparecchiature fuori uso, contenenti clorofluorocarburi, HCFC, HFC 160211* | AN2: Apparecchiature fuori uso contenenti amianto in fibre libere 160212* | AO2: App.fuori uso contenete comp.pericolosi(diversi dalle voci da 160209 a 160212) 160213* | AP2: Apparecchiature fuori uso(diverse dalle voci da 160209 a 160213*) 160214* | AQ2: Componenti pericolosi rimossi da apparecchiature fuori uso 160215* | AR2: Componenti rimossi da apparecchiature fuori uso,(diversi dalla voce 160215) 160216 | AS2: Gas in contenitori a pressione limitatamente ad estintori ed aerosol ad uso domenstico 160504* | AT2: Gas in contenitori a pressione(diversi dalla voce 160504*) limitatamente ad estintori ed aerosol ad uso domenstico 160505 | AU2: Miscugli o frazioni separate di cemento, mattoni, mattonelle e ceramiche(diverse dalla voce 170106) 170107 | AV2: Rifiuti misti dell'attività di costruzione e demolizione, (diversi dalle voci 170901, 170902 e 170903) 170904 | AW2: Carta e Cartone (Raccolta Congiunta) 200101 | AX2: Vetro 200102 | AY2: Rifiuti biodegradabili di cucine e mense 200108 | AZ2: Abbigliamento 200110 | BA2: Prodotti tessili 200111 | BB2: Solventi 200113* | BC2: Acidi 200114* | BD2: Sostanze Alcaline 200115* | BE2: Prodotti Fotochimici 200117* | BF2: Pesticidi 200119* | BG2: Tubi fluorescenti ed altri rifiuti contenenti Mercurio 200121* | BH2: Apparec. Fuori uso conten. CFC e mat. peric. 200123* | BI2: Oli e Grassi commestibili 200125 | BJ2: Oli e grassi (diversi dalla voce 200125) 200126* | BK2: Vernici,Inchiostri,Adesivi e Resine contenenti sostanze pericolose 200127* | BL2: Vernici,Inchiostri,Adesivi e Resine (diversi dalla voce 200127*) 200128 | BM2: Detergento contenente sostanze pericolose 200129* | BN2: Detergenti (diversi della voce 200129*) 200130 | BO2: Medicinali citotossici e citostatici 200131* | BP2: Medicinali (diversi dlla voce 200131*) 200132 | BQ2: Batterie ed Accumulatori (diversi dalle voci 160601, 160602 e 160603) 200133* | BR2: Batterie ed accumulatori (diversi dlla voce 200133*) 200134 | BS2: Apparecc. elettr. ed elettroniche fuori uso contenenti Mat. Peric. 200135* | BT2: Apparecc. eletr. ed elettroniche fuori uso(diverse da 200121, 200123 e 200135 200136 | BU2: Legno contenente sostanze pericolose 200137* | BV2: Legno 200138 | BW2: Plastica 200139 | BX2: Metallo 200140 | BY2: Rifiuti prodotti dalla pulizia dei camini provenienti da utenze domestiche 200141 | BZ2: Rifiuti biodegradabili 200201 | CA2: Altri rifiuti non biodegradabili 200203 | CB2: Rifiuti dei Mercati 200302 | CC2: Residui della pulizia stradale - 200303 Recupero | CD2: Ingombranti - 200307 Recupero | CE2: TOTALE RD (Kg/1°Sem.) | CF2: R.S.U. + R.S.A.+ R.D. - (R.T. Kg. pro capite/g) | CG2: R.S.U. + R.S.A. 200301 - (R.I. Kg. pro capite/g) | CH2: R.D. - (Kg. pro capite/g)
A3: 1 | B3: M211 | C3: ='Dati Generali CER 1 Sem. 2022'!C3 -> ACQUEDOLCI | D3: 5483 | E3: 150260 | U3: =IF(CE3=0,"",CE3) -> 762515 | V3: =IF(E3=0,"",SUM(U3,E3,R3,S3,T3)) -> 912775 | W3: =IFERROR(IF(E3<>0,IF(U3=0,0,(U3/V3*100)/100),IF(U3=0,"","")),0) -> 0.835381118 | Z3: 47450 | AA3: 108650 | AB3: 730 | AF3: 149860 | AW3: 86760 | AY3: 328800 | AZ3: 5835 | BH3: 1700 | BI3: 840 | BS3: 1900 | BT3: 500 | CD3: 29490 | CE3: =IF(SUM(X3:CD3)=0,"",SUM(X3:CD3)) -> 762515 | CF3: =IF(SUM(E3)=0,"",V3/D3/184) -> 0.9047480751 | CG3: =IF(E3=0,"",E3/D3/184) -> 0.1489386166 | CH3: =IF(SUM(Y3:CD3)=0,"",CE3/D3/184) -> 0.7558094585
A4: 2 | B4: A177 | C4: ='Dati Generali CER 1 Sem. 2022'!C4 -> ALCARA LI FUSI | D4: 1702 | E4: 40600 | U4: =IF(CE4=0,"",CE4) -> 172779 | V4: 213379 | W4: 0.8097282301 | AA4: 21060 | AF4: 43360 | AW4: 25020 | AY4: 72210 | AZ4: 4509 | BH4: 820 | BS4: 1230 | BT4: 570 | CD4: 4000 | CE4: 172779 | CF4: 0.6813563327 | CG4: =IF(E4=0,"",E4/D4/184) -> 0.1296428754 | CH4: 0.5517134573
A5: 3 | B5: A194 | C5: ='Dati Generali CER 1 Sem. 2022'!C5 -> ALI' | D5: 657 | E5: 16660 | U5: =IF(CE5=0,"",CE5) -> 38885 | V5: 55545 | W5: 0.700063012 | AE5: 5380 | AF5: 8620 | AW5: 5530 | AY5: 16000 | BP5: 15 | BZ5: 1860 | CD5: 1480 | CE5: 38885 | CF5: 0.4594748858 | CG5: 0.1378135133 | CH5: 0.3216613725
A6: 4 | B6: A201 | C6: ='Dati Generali CER 1 Sem. 2022'!C6 -> ALI' TERME | D6: 2315 | E6: 127010 | U6: =IF(CE6=0,"",CE6) -> 344320 | V6: 471330 | W6: 0.7305285044 | AE6: 51190 | AF6: 50080 | AJ6: 3740 | AW6: 61330 | AY6: 149420 | AZ6: 4790 | BI6: 100 | BP6: 50 | BZ6: 7430 | CD6: 16190 | CE6: 344320 | CF6: 1.106512349 | CG6: 0.2981735374 | CH6: 0.8083388112
A7: 5 | B7: A313 | C7: ='Dati Generali CER 1 Sem. 2022'!C7 -> ANTILLO | D7: 808 | E7: 23980 | U7: 81920 | V7: 105900 | W7: 0.7735599622 | X7: 3495 | AE7: 14380 | AF7: 11700 | AW7: 9820 | AY7: 34700 | BA7: 4945 | CD7: 2880 | CE7: 81920 | CF7: 0.712306285 | CG7: 0.1612946621 | CH7: 0.5510116229
A8: 6 | B8: A638 | C8: ='Dati Generali CER 1 Sem. 2022'!C8 -> BARCELLONA P.G. | D8: 39885 | E8: 4440140 | U8: 4126274 | V8: 8566414 | W8: 0.4816804324 | X8: 148894 | Z8: 453110 | AA8: 446540 | AC8: 9300 | AF8: 451240 | AI8: 880 | AJ8: 10800 | AR8: 1160 | AW8: 481630 | AY8: 1067300 | AZ8: 44680 | BG8: 230 | BH8: 32140 | BI8: 1340 | BP8: 1600 | BQ8: 3900 | BR8: 440 | BS8: 27900 | BT8: 64360 | BV8: 154920 | BW8: 19110 | BX8: 62960 | BZ8: 181620 | CC8: 296240 | CD8: 163980 | CE8: 4126274 | CF8: 1.167270849 | CG8: 0.6050193219 | CH8: 0.5622515275
A9: 7 | B9: A698 | C9: ='Dati Generali CER 1 Sem. 2022'!C9 -> BASICO' | D9: 596 | E9: 66120 | U9: 66040 | V9: 132160 | W9: 0.4996973366 | X9: 12090 | AE9: 15000 | AF9: 15140 | AW9: 10560 | AY9: 13220 | BI9: 30 | CE9: 66040 | CF9: 1.205135687 | CG9: 0.6029325941 | CH9: 0.6022030931
A10: 8 | B10: B198 | C10: ='Dati Generali CER 1 Sem. 2022'!C10 -> BROLO | D10: 5736 | E10: 385460 | U10: 1073170 | V10: 1458630 | W10: 0.7357383298 | X10: 46280 | Z10: 122320 | AA10: 4090 | AE10: 126980 | AF10: 131500 | AR10: 550 | AW10: 67130 | AY10: 385260 | AZ10: 10240 | BH10: 6300 | BP10: 130 | BS10: 10540 | BT10: 17400 | BV10: 32580 | BX10: 12010 | BZ10: 45220 | CC10: 35080 | CD10: 19560 | CE10: 1073170 | CF10: 1.382032245 | CG10: 0.3652181493 | CH10: 1.016814096
A11: 9 | B11: B660 | C11: ='Dati Generali CER 1 Sem. 2022'!C11 -> CAPIZZI | D11: 2844 | E11: 163050 | U11: 216240 | V11: 379290 | W11: 0.5701178518 | Z11: 3780 | AA11: 28960 | AF11: 50900 | AW11: 30460 | AY11: 83400 | BH11: 800 | BS11: 1680 | BT11: 460 | BV11: 6640 | BW11: 3660 | CD11: 5500 | CE11: 216240 | CF11: 0.724809668 | CG11: 0.3115827371 | CH11: 0.4132269308
A12: 10 | B12: B666 | C12: ='Dati Generali CER 1 Sem. 2022'!C12 -> CAPO D'ORLANDO | D12: 13031 | E12: 727420 | U12: 2724236 | V12: 3451656 | W12: 0.7892547809 | Y12: 245 | Z12: 207990 | AA12: 321960 | AB12: 16150 | AC12: 22550 | AF12: 404020 | AW12: 434730 | AY12: 1026800 | AZ12: 16571 | BG12: 240 | BH12: 12760 | BI12: 2460 | BP12: 220 | BR12: 140 | BS12: 22940 | BT12: 600 | BX12: 17090 | BZ12: 74440 | CD12: 142330 | CE12: 2724236 | CF12: 1.439567186 | CG12: 0.303381902 | CH12: 1.136185284
A13: 11 | B13: B695 | C13: ='Dati Generali CER 1 Sem. 2022'!C13 -> CAPRILEONE | D13: 4353 | E13: 113910 | U13: 654870 | V13: 768780 | W13: 0.8518301725 | Z13: 39290 | AA13: 87890 | AB13: 2210 | AF13: 122450 | AW13: 78220 | AY13: 291060 | CD13: 33750 | CE13: 654870 | CF13: 0.959832799 | CG13: 0.1422182603 | CH13: 0.8176145387
A14: 12 | B14: B804 | C14: ='Dati Generali CER 1 Sem. 2022'!C14 -> CARONIA | D14: 3042 | E14: 205380 | U14: 466225 | V14: 671605 | W14: 0.6941952487 | X14: 205740 | Z14: 44780 | AA14: 24140 | AE14: 94700 | AF14: 65700 | AZ14: 3550 | BH14: 3150 | BI14: 420 | BP14: 40 | BR14: 25 | BS14: 2740 | CD14: 21240 | CE14: 466225 | CF14: 1.19987744 | CG14: 0.3669282223 | CH14: 0.8329492182
A15: 13 | B15: B918 | C15: ='Dati Generali CER 1 Sem. 2022'!C15 -> CASALVECCHIO SICULO | D15: 726 | E15: 22520 | U15: 68980 | V15: 91500 | W15: 0.7538797814 | AE15: 11800 | AF15: 13440 | AW15: 9180 | AY15: 32940 | CD15: 1620 | CE15: 68980 | CF15: 0.6849622709 | CG15: 0.1685830638 | CH15: 0.5163792071
A16: 14 | B16: C094 | C16: ='Dati Generali CER 1 Sem. 2022'!C16 -> CASTEL DI LUCIO | D16: 1226 | E16: 26500 | U16: 157262 | V16: 183762 | W16: 0.8557917306 | Z16: 6060 | AE16: 33060 | AF16: 26620 | AW16: 11960 | AY16: 68860 | AZ16: 5032 | BH16: 1230 | BI16: 200 | BP16: 100 | BR16: 80 | BS16: 550 | BW16: 1470 | CD16: 2040 | CE16: 157262 | CF16: 0.8146056458 | CG16: 0.1174728704 | CH16: 0.6971327754
A17: 15 | B17: C051 | C17: ='Dati Generali CER 1 Sem. 2022'!C17 -> CASTELL'UMBERTO | D17: 2830 | E17: 105840 | U17: 263940 | V17: 369780 | W17: 0.7137757586 | AA17: 35320 | AF17: 63390 | AW17: 34690 | AY17: 122250 | AZ17: 3150 | CD17: 5140 | CE17: 263940 | CF17: 0.7101321248 | CG17: 0.2032570287 | CH17: 0.506875096
A18: 16 | B18: C210 | C18: ='Dati Generali CER 1 Sem. 2022'!C18 -> CASTELMOLA | D18: 1062 | E18: 86930 | U18: 151200 | V18: 238130 | W18: 0.6349472977 | AE18: 21630 | AF18: 41520 | AW18: 21210 | AY18: 54800 | BH18: 1340 | CD18: 10700 | CE18: 151200 | CF18: 1.218629739 | CG18: 0.4448640793 | CH18: 0.7737656595
A19: 17 | B19: C347 | C19: ='Dati Generali CER 1 Sem. 2022'!C19 -> CASTROREALE | D19: 2246 | E19: 89080 | U19: 194840 | V19: 283920 | W19: 0.6862496478 | Z19: 12260 | AE19: 26770 | AF19: 31030 | AW19: 12210 | AY19: 88340 | BH19: 840 | BR19: 40 | BS19: 640 | BT19: 1170 | BZ19: 18500 | CD19: 3040 | CE19: 194840 | CF19: 0.6870184676 | CG19: 0.2155522862 | CH19: 0.4714661814
A20: 18 | B20: C568 | C20: ='Dati Generali CER 1 Sem. 2022'!C20 -> CESARO' | D20: 2165 | E20: 175805 | U20: 167647 | V20: 343452 | W20: 0.4881235224 | AA20: 21420 | AF20: 26160 | AW20: 36140 | AY20: 78950 | AZ20: 2197 | BH20: 400 | BW20: 2380 | CE20: 167647 | CF20: 0.862164876 | CG20: 0.4413219199 | CH20: 0.4208429561
A21: 19 | B21: C956 | C21: ='Dati Generali CER 1 Sem. 2022'!C21 -> CONDRO' | D21: 471 | E21: 40800 | U21: 40520 | V21: 81320 | W21: 0.4982784063 | AE21: 5840 | AF21: 7000 | AW21: 4900 | AY21: 20220 | BH21: 430 | BS21: 360 | BT21: 440 | CD21: 1330 | CE21: 40520 | CF21: 0.9383365642 | CG21: 0.4707837164 | CH21: 0.4675528478
A22: 20 | B22: D474 | C22: ='Dati Generali CER 1 Sem. 2022'!C22 -> FALCONE | D22: 2793 | E22: 267720 | U22: 456160 | V22: 723880 | W22: 0.630159695 | Z22: 2840 | AE22: 57120 | AF22: 64360 | AW22: 71500 | AY22: 222840 | BI22: 300 | BV22: 12580 | CD22: 24620 | CE22: 456160 | CF22: 1.408568004 | CG22: 0.5209452202 | CH22: 0.8876227837
A23: 21 | B23: D569 | C23: ='Dati Generali CER 1 Sem. 2022'!C23 -> FICARRA | D23: 1286 | E23: 54640 | P23: 13080 | U23: 186670 | V23: 241310 | W23: 0.7735692677 | X23: 12000 | Z23: 3130 | AA23: 35740 | AF23: 35620 | AW23: 10220 | AY23: 64460 | AZ23: 3990 | BH23: 1200 | BI23: 100 | BS23: 900 | CD23: 19310 | CE23: 186670 | CF23: 1.01980357 | CG23: 0.2309148692 | CH23: 0.7888887011
A24: 22 | B24: D622 | C24: ='Dati Generali CER 1 Sem. 2022'!C24 -> FIUMEDINISI | D24: 1275 | E24: 37250 | U24: 87600 | V24: 124850 | W24: 0.7016419704 | AE24: 15430 | AF24: 18390 | AW24: 15530 | AY24: 34640 | BP24: 20 | BZ24: 240 | CD24: 3350 | CE24: 87600 | CF24: 0.5321824382 | CG24: 0.1587809037 | CH24: 0.3734015345
A25: 23 | B25: D635 | C25: ='Dati Generali CER 1 Sem. 2022'!C25 -> FLORESTA | D25: 469 | E25: 33480 | U25: 91220 | V25: 124700 | W25: 0.7315156375 | AA25: 8260 | AE25: 23180 | AF25: 14600 | AW25: 8940 | AY25: 29780 | BT25: 100 | CD25: 6360 | CE25: 91220 | CF25: 1.445026421 | CG25: 0.3879669973 | CH25: 1.057059423
A26: 24 | B26: D661 | C26: ='Dati Generali CER 1 Sem. 2022'!C26 -> FONDACHELLI FANTINA | D26: 989 | E26: 82780 | U26: 51280 | V26: 134060 | W26: 0.3825152917 | AE26: 3440 | AF26: 8240 | AJ26: 340 | AW26: 10460 | AY26: 11000 | BT26: 580 | BV26: 5320 | CD26: 11900 | CE26: 51280 | CF26: 0.7366905526 | CG26: 0.454895151 | CH26: 0.2817954016
A27: 25 | B27: D733 | C27: FORZA D'AGRO' | D27: 835 | E27: 104620 | U27: 165930 | V27: 270550 | W27: 0.6133062281 | AE27: 20860 | AF27: 29130 | AW27: 19460 | AY27: 92880 | CD27: 3600 | CE27: 165930 | CF27: 1.760934652 | CG27: 0.6809424629 | CH27: 1.07999219
A28: 26 | B28: D765 | C28: ='Dati Generali CER 1 Sem. 2022'!C28 -> FRANCAVILLA DI SICILIA | D28: 3543 | E28: 170320 | K28: 3720 | U28: 646088 | V28: 816408 | W28: 0.7913788204 | X28: 147000 | AC28: 17000 | AE28: 90520 | AF28: 60560 | AW28: 93120 | AY28: 195760 | AZ28: 15408 | BH28: 880 | BI28: 580 | BS28: 1640 | BV28: 19220 | BW28: 840 | CD28: 3560 | CE28: 646088 | CF28: 1.252328535 | CG28: 0.2612622563 | CH28: 0.9910662789
A29: 27 | B29: D793 | C29: ='Dati Generali CER 1 Sem. 2022'!C29 -> FRAZZANO' | D29: 587 | E29: 29560 | U29: 51360 | V29: 80920 | W29: 0.6347009392 | AA29: 5550 | AF29: 18130 | AW29: 6800 | AY29: 19140 | CD29: 1740 | CE29: 51360 | CF29: 0.7492037627 | CG29: 0.2736834309 | CH29: 0.4755203318
A30: 28 | B30: D824 | C30: ='Dati Generali CER 1 Sem. 2022'!C30 -> FURCI SICULO | D30: 3211 | E30: 163760 | U30: 471550 | V30: 635310 | W30: 0.7422360737 | Y30: 40 | AE30: 66350 | AF30: 58810 | AW30: 76530 | AY30: 202340 | BP30: 430 | BV30: 22800 | BZ30: 5370 | CD30: 38880 | CE30: 471550 | CF30: 1.075294842 | CG30: 0.2771722205 | CH30: 0.798122622
A31: 29 | B31: D825 | C31: ='Dati Generali CER 1 Sem. 2022'!C31 -> FURNARI | D31: 4003 | E31: 251720 | U31: 1113250 | V31: 1364970 | W31: 0.8155856905 | Z31: 47960 | AE31: 157780 | AF31: 86430 | AW31: 141820 | AY31: 457830 | AZ31: 3610 | BI31: 260 | BT31: 3560 | BV31: 9050 | BZ31: 113530 | CC31: 7040 | CD31: 84380 | CE31: 1113250 | CF31: 1.853188913 | CG31: 0.3417545536 | CH31: 1.511434359
A32: 30 | B32: D844 | C32: ='Dati Generali CER 1 Sem. 2022'!C32 -> GAGGI | D32: 3091 | E32: 221170 | U32: 278374 | V32: 499544 | W32: 0.5572562177 | AE32: 38640 | AF32: 50420 | AW32: 44544 | AY32: 143090 | BH32: 1580 | BI32: 100 | CE32: 278374 | CF32: 0.8783283868 | CG32: 0.3888744321 | CH32: 0.4894539547
A33: 31 | B33: D861 | C33: ='Dati Generali CER 1 Sem. 2022'!C33 -> GALATI MAMERTINO | D33: 2261 | E33: 61340 | U33: 279430 | V33: 340770 | W33: 0.8199958917 | AA33: 38080 | AF33: 66540 | AW33: 44020 | AY33: 121870 | BT33: 2460 | CD33: 6460 | CE33: 279430 | CF33: 0.8191113974 | CG33: 0.1474434167 | CH33: 0.6716679807
A34: 32 | B34: D885 | C34: ='Dati Generali CER 1 Sem. 2022'!C34 -> GALLODORO | D34: 336 | E34: 51850 | S34: 5703 | U34: 76097 | V34: 133650 | W34: 0.5693752338 | AE34: 11600 | AF34: 12680 | AW34: 11610 | AY34: 30350 | CD34: 9857 | CE34: 76097 | CF34: 2.161781832 | CG34: 0.8386710663 | CH34: 1.230865036
A35: 33 | B35: E014 | C35: ='Dati Generali CER 1 Sem. 2022'!C35 -> GIARDINI NAXOS | D35: 9231 | E35: 2065508 | U35: 1318760 | V35: =IF(E35=0,"",SUM(U35,E35,R35,S35,T35)) -> 3384268 | W35: =IFERROR(IF(E35<>0,IF(U35=0,0,(U35/V35*100)/100),IF(U35=0,"","")),0) -> 0.389673631 | Z35: 15640 | AA35: 140780 | AF35: 266600 | AW35: 209700 | AY35: 653520 | BH35: 460 | CD35: 32060 | CE35: =IF(SUM(X35:CD35)=0,"",SUM(X35:CD35)) -> 1318760 | CF35: 1.992499282 | CG35: 1.216074852 | CH35: =IF(SUM(Y35:CD35)=0,"",CE35/D35/184) -> 0.77642443
A36: 34 | B36: E043 | C36: ='Dati Generali CER 1 Sem. 2022'!C36 -> GIOIOSA MAREA | D36: 6733 | E36: 584840 | U36: 1082685 | V36: 1667525 | W36: 0.6492766225 | Z36: 66700 | AE36: 151060 | AF36: 131860 | AW36: 109900 | AY36: 556400 | AZ36: 7915 | BI36: 680 | BZ36: 26950 | CD36: 31220 | CE36: 1082685 | CF36: 1.346002654 | CG36: 0.4720745969 | CH36: 0.8739280571
A37: 35 | B37: E142 | C37: ='Dati Generali CER 1 Sem. 2022'!C37 -> GRANITI | D37: 1460 | E37: 237440 | U37: 32300 | V37: 269740 | W37: 0.1197449396 | AA37: 3020 | AE37: 5400 | AF37: 12220 | AW37: 8360 | BH37: 100 | BT37: 140 | CD37: 3060 | CE37: 32300 | CF37: =IF(E37=0,"",V37/D37/184) -> 1.004094699 | CG37: 0.8838594401 | CH37: 0.1202352591
A38: 36 | B38: E233 | C38: ='Dati Generali CER 1 Sem. 2022'!C38 -> GUALTIERI SICAMINO | D38: 1580 | E38: 59050 | U38: 239566 | V38: 298616 | W38: 0.8022544003 | X38: 11202 | AE38: 20840 | AF38: 31800 | AW38: 22880 | AY38: 107100 | BH38: 6560 | BI38: 200 | BS38: 6400 | BT38: 8180 | BV38: 8980 | BW38: 391 | BX38: 553 | BZ38: 4660 | CD38: 9820 | CE38: 239566 | CF38: =IF(SUM(E38)=0,"",V38/D38/184) -> 1.027160154 | CG38: 0.2031164007 | CH38: 0.8240437534
A39: 37 | B39: E374 | C39: ='Dati Generali CER 1 Sem. 2022'!C39 -> ITALA | D39: 1513 | E39: 129400 | U39: 197560 | V39: 326960 | W39: 0.6042329337 | AE39: 30640 | AF39: 32790 | AJ39: 60 | AW39: 33670 | AY39: 87840 | BH39: 1440 | BS39: 740 | BT39: 1560 | CD39: 8820 | CE39: 197560 | CF39: 1.174459036 | CG39: 0.4648122072 | CH39: 0.7096468289
A40: 38 | B40: E523 | C40: ='Dati Generali CER 1 Sem. 2022'!C40 -> LENI | D40: 682 | E40: 90360 | U40: 56300 | V40: 146660 | W40: 0.3838810855 | Z40: 8140 | AA40: 9580 | AF40: 30380 | BH40: 2460 | BS40: 2560 | BT40: 1900 | CD40: 1280 | CE40: 56300 | CF40: 1.168717328 | CG40: 0.7200688512 | CH40: 0.4486484763
A41: 39 | B41: E555 | C41: ='Dati Generali CER 1 Sem. 2022'!C41 -> LETOJANNI | D41: 2842 | E41: 540290 | U41: 631990 | V41: 1172280 | W41: 0.5391118163 | AE41: 74910 | AF41: 134680 | AW41: 78970 | AY41: 329090 | CD41: 14340 | CE41: 631990 | CF41: 2.241761772 | CG41: 1.033201511 | CH41: 1.208560261
A42: 40 | B42: E571 | C42: ='Dati Generali CER 1 Sem. 2022'!C42 -> LIBRIZZI | D42: 1579 | E42: 85260 | U42: 237370 | V42: 322630 | W42: 0.7357344326 | X42: 50800 | Y42: 100 | Z42: 4280 | AE42: 29760 | AF42: 34100 | AW42: 23340 | AY42: 74840 | BI42: 150 | BP42: 40 | BR42: 20 | BT42: 1740 | BV42: 1700 | BX42: 60 | BZ42: 9600 | CD42: 6840 | CE42: 237370 | CF42: 1.110464796 | CG42: 0.2934576094 | CH42: 0.8170071867
A43: 41 | B43: E594 | C43: ='Dati Generali CER 1 Sem. 2022'!C43 -> LIMINA | D43: 729 | E43: 68146 | U43: 33852 | V43: 101998 | W43: 0.3318888606 | AA43: 10072 | AF43: 9254 | AW43: 8006 | AY43: 3600 | CD43: 2920 | CE43: 33852 | CF43: 0.7604073478 | CG43: 0.5080366196 | CH43: 0.2523707282
A44: 42 | B44: E606 | C44: ='Dati Generali CER 1 Sem. 2022'!C44 -> LIPARI | D44: 12565 | E44: 2747660 | U44: 2443360 | V44: 5191020 | W44: 0.4706897681 | Z44: 360380 | AA44: 325160 | AF44: 596800 | AJ44: 12760 | AV44: 4640 | AW44: 92100 | AY44: 675200 | BH44: 46570 | BP44: 420 | BR44: 860 | BS44: 20940 | BT44: 39500 | BV44: 102260 | BW44: 9080 | BX44: 49480 | BZ44: 44720 | CD44: 62490 | CE44: 2443360 | CF44: 2.245289711 | CG44: 1.188454818 | CH44: 1.056834893
A45: 43 | B45: E674 | C45: ='Dati Generali CER 1 Sem. 2022'!C45 -> LONGI | D45: 1321 | E45: 13480 | U45: 182611 | V45: 196091 | W45: 0.9312564065 | AA45: 27090 | AF45: 43190 | AW45: 26840 | AY45: 74250 | AZ45: 6431 | BH45: 1040 | BS45: 540 | BT45: 1490 | CD45: 1740 | CE45: 182611 | CF45: 0.8067463713 | CG45: 0.05545864464 | CH45: 0.7512877267
A46: 44 | B46: E855 | C46: ='Dati Generali CER 1 Sem. 2022'!C46 -> MALFA | D46: 994 | E46: 145300 | U46: 187020 | V46: 332320 | W46: 0.5627708233 | Z46: 34160 | AA46: 18680 | AC46: 1780 | AF46: 85360 | AY46: 30100 | BS46: 1800 | BT46: 1340 | BV46: 8080 | BW46: 3140 | BX46: 2580 | CE46: 187020 | CF46: 1.81698889 | CG46: 0.7944405564 | CH46: 1.022548333
A47: 45 | B47: E869 | C47: ='Dati Generali CER 1 Sem. 2022'!C47 -> MALVAGNA | D47: 629 | E47: 76640 | U47: 22460 | V47: 99100 | W47: 0.2266397578 | AA47: 8820 | AF47: 8400 | AW47: 5240 | CE47: 22460 | CF47: 0.8562590724 | CG47: 0.6621967236 | CH47: 0.1940623488
A48: 46 | B48: E876 | C48: ='Dati Generali CER 1 Sem. 2022'!C48 -> MANDANICI | D48: 505 | E48: 13520 | U48: 74930 | V48: 88450 | W48: 0.8471452798 | AE48: 10790 | AF48: 10550 | AW48: 8720 | AY48: 36670 | BH48: 300 | BS48: 160 | BT48: 80 | BZ48: 1660 | CD48: 6000 | CE48: 74930 | CF48: 0.9518941025 | CG48: 0.1455015067 | CH48: 0.8063925958
A49: 47 | B49: F066 | C49: ='Dati Generali CER 1 Sem. 2022'!C49 -> MAZZARRA' S. ANDREA | D49: 1388 | E49: 47140 | U49: 174400 | V49: 221540 | W49: 0.7872167554 | X49: 27900 | AA49: 19400 | AF49: 23820 | AW49: 21460 | AY49: 71960 | AZ49: 400 | CD49: 9460 | CE49: 174400 | CF49: 0.8674508207 | CG49: 0.1845790001 | CH49: 0.6828718206
A50: 48 | B50: F147 | C50: ='Dati Generali CER 1 Sem. 2022'!C50 -> MERI' | D50: 2281 | E50: 135000 | S50: 10090 | U50: 191020 | V50: 336110 | W50: 0.5683258457 | AE50: 25200 | AF50: 24720 | AW50: 34480 | AY50: 104480 | BH50: 590 | BS50: 330 | BT50: 1220 | CE50: 191020 | CF50: 0.8008262966 | CG50: 0.3216552618 | CH50: 0.4551302823
A51: 49 | B51: F158 | C51: ='Dati Generali CER 1 Sem. 2022'!C51 -> MESSINA | D51: 218786 | E51: 22695640 | L51: 1960 | U51: 27030816 | V51: 49726456 | W51: 0.543590237 | X51: 285337 | Z51: 2912940 | AA51: 159860 | AC51: 8000 | AE51: 3180880 | AF51: 3381042 | AJ51: 2390 | AV51: 210760 | AW51: 3033400 | AX51: 11800 | AY51: 10269920 | AZ51: 177910 | BG51: 522 | BH51: 100460 | BI51: 6610 | BJ51: 2525 | BK51: 13505 | BP51: 15995 | BQ51: 13590 | BR51: 1820 | BS51: 97600 | BT51: 191940 | BV51: 1041851 | BX51: 127940 | BZ51: 615788 | CC51: 92600 | CD51: 1073831 | CE51: 27030816 | CF51: 1.235236616 | CG51: 0.5637740512 | CH51: 0.6714625648
A52: 50 | B52: F206 | C52: ='Dati Generali CER 1 Sem. 2022'!C52 -> MILAZZO | D52: 30043 | E52: 2721780 | U52: 5014070 | V52: 7735850 | W52: 0.6481601892 | X52: 2343520 | Y52: 60 | Z52: 377880 | AA52: 551260 | AF52: 631100 | AW52: 470660 | AZ52: 75430 | BH52: 8540 | BI52: 2900 | BP52: 1660 | BS52: 7940 | BT52: 8800 | BV52: 16040 | BW52: 3480 | BZ52: 175060 | CC52: 191420 | CD52: 148320 | CE52: 5014070 | CF52: 1.399416271 | CG52: 0.4923703561 | CH52: 0.9070459153
A53: 51 | B53: F210 | C53: ='Dati Generali CER 1 Sem. 2022'!C53 -> MILITELLO ROSMARINO | D53: 1163 | E53: 49600 | U53: 112120 | V53: 161720 | W53: 0.6932970566 | AA53: 17660 | AF53: 26670 | AW53: 16220 | AY53: 43750 | AZ53: 3960 | BH53: 920 | BS53: 30 | BT53: 520 | CD53: 2390 | CE53: 112120 | CF53: 0.7557291861 | CG53: 0.2317843658 | CH53: 0.5239448204
A54: 52 | B54: F242 | C54: ='Dati Generali CER 1 Sem. 2022'!C54 -> MIRTO | D54: 889 | E54: 12886 | U54: 153221 | V54: 166107 | W54: 0.9224234981 | AA54: 20940 | AF54: 34670 | AW54: 22790 | AY54: 65920 | AZ54: 4081 | BH54: 660 | BS54: 380 | BT54: 180 | CD54: 3600 | CE54: 153221 | CF54: 1.01547293 | CG54: 0.07877683768 | CH54: 0.9366960923
A55: 53 | B55: F251 | C55: ='Dati Generali CER 1 Sem. 2022'!C55 -> MISTRETTA | D55: 4364 | E55: 202100 | U55: 584663 | V55: 786763 | W55: 0.7431246767 | Z55: 52890 | AA55: 56350 | AF55: 111770 | AW55: 37720 | AY55: 261223 | AZ55: 9100 | BH55: 4200 | BS55: 4960 | CD55: 46450 | CE55: 584663 | CF55: 0.979808861 | CG55: 0.251688718 | CH55: 0.7281201431
A56: 54 | B56: F277 | C56: ='Dati Generali CER 1 Sem. 2022'!C56 -> MOJO ALCANTARA | D56: 677 | E56: 75080 | U56: 24300 | V56: 99380 | W56: 0.2445159992 | AA56: 7320 | AF56: 8660 | AW56: 8320 | CE56: 24300 | CF56: 0.7977971871 | CG56: 0.6027230107 | CH56: 0.1950741764
A57: 55 | B57: F359 | C57: ='Dati Generali CER 1 Sem. 2022'!C57 -> MONFORTE S. GIORGIO | D57: 2508 | E57: 408340 | R57: 12840 | U57: 267685 | V57: 688865 | W57: 0.3885884752 | X57: 90210 | AA57: 255 | AE57: 27700 | AF57: 38760 | AW57: 37780 | AY57: 62220 | BH57: 1260 | BS57: 1340 | BT57: 2300 | CD57: 5860 | CE57: 267685 | CF57: 1.49275579 | CG57: 0.8848640871 | CH57: 0.5800676964
A58: 56 | B58: F368 | C58: ='Dati Generali CER 1 Sem. 2022'!C58 -> MONGIUFFI MELIA | D58: 528 | E58: 41250 | U58: 49800 | V58: 91050 | W58: 0.5469522241 | AE58: 8010 | AF58: 10330 | AW58: 8080 | AY58: 19000 | CD58: 4380 | CE58: 49800 | CF58: 0.9371912055 | CG58: 0.4245923913 | CH58: 0.5125988142
A59: 57 | B59: F395 | C59: ='Dati Generali CER 1 Sem. 2022'!C59 -> MONTAGNAREALE | D59: 1393 | E59: 278083 | U59: 78280 | V59: 356363 | W59: 0.2196636576 | AE59: 27260 | AF59: 28040 | AW59: 22980 | CE59: 78280 | CF59: 1.390348482 | CG59: 1.084939449 | CH59: 0.3054090327
A60: 58 | B60: F400 | C60: ='Dati Generali CER 1 Sem. 2022'!C60 -> MONTALBANO ELICONA | D60: 2038 | E60: 134860 | U60: 240088 | V60: 374948 | W60: 0.6403234582 | X60: 25518 | Y60: 20 | AC60: 10000 | AE60: 39680 | AF60: 43660 | AW60: 32910 | AY60: 74940 | AZ60: 5690 | BH60: 1980 | BP60: 20 | BR60: 20 | BS60: 1490 | CD60: 4160 | CE60: 240088 | CF60: 0.9998826642 | CG60: 0.3596343389 | CH60: 0.6402483253
A61: 59 | B61: F772 | C61: ='Dati Generali CER 1 Sem. 2022'!C61 -> MOTTA CAMASTRA | D61: 794 | E61: 74160 | U61: 5720 | V61: 79880 | W61: 0.07160741112 | AE61: 1180 | AF61: 2920 | AW61: 1620 | CE61: 5720 | CF61: 0.5467637718 | CG61: 0.5076114336 | CH61: 0.03915233819
A62: 60 | B62: F773 | C62: ='Dati Generali CER 1 Sem. 2022'!C62 -> MOTTA D'AFFERMO | D62: 657 | E62: 22300 | U62: 67640 | V62: 89940 | W62: 0.7520569268 | Z62: 3490 | AE62: 7710 | AF62: 5640 | AW62: 7170 | AY62: 34780 | AZ62: 2150 | BI62: 200 | BW62: 1280 | CD62: 5220 | CE62: 67640 | CF62: 0.7439944411 | CG62: 0.1844682681 | CH62: 0.559526173
A63: 61 | B63: F848 | C63: ='Dati Generali CER 1 Sem. 2022'!C63 -> NASO | D63: 3462 | E63: 88840 | K63: 10280 | U63: 502420 | V63: 591260 | W63: 0.8497446132 | X63: 32040 | Z63: 60 | AA63: 81910 | AE63: 1160 | AF63: 93360 | AJ63: 160 | AV63: 1220 | AW63: 76300 | AY63: 167230 | AZ63: 13660 | BH63: 3460 | BP63: 970 | BS63: 600 | BT63: 3920 | BV63: 5220 | BZ63: 3960 | CD63: 17190 | CE63: 502420 | CF63: 0.9281830056 | CG63: 0.1394644965 | CH63: 0.788718509
A64: 62 | B64: F901 | C64: ='Dati Generali CER 1 Sem. 2022'!C64 -> NIZZA DI SICILIA | D64: 3526 | E64: 229740 | U64: 481085 | V64: 710825 | W64: 0.6767980867 | AE64: 60960 | AF64: 64470 | AW64: 81970 | AY64: 246220 | BP64: 95 | BR64: 140 | BZ64: 10630 | CD64: 16600 | CE64: 481085 | CF64: 1.095626588 | CG64: 0.3541086093 | CH64: 0.7415179782
A65: 63 | B65: F951 | C65: ='Dati Generali CER 1 Sem. 2022'!C65 -> NOVARA DI SICILIA | D65: 1174 | E65: 90900 | U65: 169658 | V65: 260558 | W65: 0.6511333369 | X65: 6798 | AE65: 21960 | AF65: 25280 | AW65: 22360 | AY65: 93260 | CE65: 169658 | CF65: 1.206197689 | CG65: 0.4208021628 | CH65: 0.7853955263
A66: 64 | B66: G036 | C66: ='Dati Generali CER 1 Sem. 2022'!C66 -> OLIVERI | D66: 2086 | E66: 310960 | K66: 1200 | U66: 556558 | V66: 867518 | W66: 0.6415521061 | X66: 12708 | Z66: 12040 | AE66: 61580 | AF66: 89300 | AW66: 49520 | AY66: 271780 | AZ66: 3690 | BV66: 18980 | CD66: 36960 | CE66: 556558 | CF66: 2.260197382 | CG66: 0.8101629914 | CH66: 1.450034391
A67: 65 | B67: G209 | C67: ='Dati Generali CER 1 Sem. 2022'!C67 -> PACE DEL MELA | D67: 5980 | E67: 446230 | U67: 743504 | V67: =IF(E67=0,"",SUM(U67,E67,R67,S67,T67)) -> 1189734 | W67: =IFERROR(IF(E67<>0,IF(U67=0,0,(U67/V67*100)/100),IF(U67=0,"","")),0) -> 0.6249329682 | AE67: 107180 | AF67: 82400 | AW67: 130661 | AY67: 360238 | AZ67: 4300 | BH67: 3800 | BS67: 1800 | BT67: 4400 | BV67: 18700 | BW67: 3710 | BX67: 1215 | BZ67: 5100 | CD67: 20000 | CE67: =IF(SUM(X67:CD67)=0,"",SUM(X67:CD67)) -> 743504 | CF67: 1.081261815 | CG67: 0.4055456594 | CH67: =IF(SUM(Y67:CD67)=0,"",CE67/D67/184) -> 0.6757161553
A68: 66 | B68: G234 | C68: ='Dati Generali CER 1 Sem. 2022'!C68 -> PAGLIARA | D68: 1118 | E68: 18240 | U68: =IF(CE68=0,"",CE68) -> 105070 | V68: 123310 | W68: 0.8520801233 | AE68: 16010 | AF68: 15820 | AW68: 13710 | AY68: 55930 | BH68: 420 | BT68: 360 | CD68: 2820 | CE68: 105070 | CF68: 0.5994302714 | CG68: =IF(E68=0,"",E68/D68/184) -> 0.08866765186 | CH68: 0.5107626196
A69: 67 | B69: G377 | C69: ='Dati Generali CER 1 Sem. 2022'!C69 -> PATTI | D69: 12699 | E69: 983040 | U69: 2192340 | V69: 3175380 | W69: 0.6904181547 | Y69: 60 | Z69: 140800 | AB69: 2680 | AE69: 331280 | AF69: 213460 | AJ69: 180 | AV69: 47700 | AW69: 207640 | AY69: 1051900 | BP69: 120 | BV69: 33160 | BZ69: 76060 | CC69: 16120 | CD69: 71180 | CE69: 2192340 | CF69: 1.358965273 | CG69: 0.4207109769 | CH69: 0.938254296
A70: 68 | B70: G522 | C70: ='Dati Generali CER 1 Sem. 2022'!C70 -> PETTINEO | D70: 1236 | E70: 21560 | K70: 3180 | U70: 112510 | V70: 134070 | W70: 0.8391884836 | Z70: 5160 | AA70: 1220 | AE70: 18710 | AF70: 25840 | AW70: 7200 | AY70: 46580 | AZ70: 4050 | BW70: 1860 | CD70: 1890 | CE70: 112510 | CF70: =IF(SUM(E70)=0,"",V70/D70/184) -> 0.5895156184 | CG70: 0.09480090052 | CH70: 0.4947147179
A71: 69 | B71: G699 | C71: ='Dati Generali CER 1 Sem. 2022'!C71 -> PIRAINO | D71: 3778 | E71: 216340 | U71: 702220 | V71: 918560 | W71: 0.7644791848 | X71: 45570 | Z71: 29300 | AA71: 93280 | AF71: 105630 | AW71: 89850 | AY71: 288960 | AZ71: 6770 | BH71: 2610 | BI71: 600 | BP71: 380 | BR71: 50 | BS71: 2060 | BT71: 640 | BV71: 900 | BZ71: 23890 | CD71: 11730 | CE71: 702220 | CF71: 1.321380072 | CG71: 0.3112125118 | CH71: 1.01016756
A72: 70 | B72: H151 | C72: ='Dati Generali CER 1 Sem. 2022'!C72 -> RACCUJA | D72: 864 | E72: 32060 | U72: 93120 | V72: 125180 | W72: 0.7438888001 | Z72: 10340 | AA72: 10020 | AF72: 24360 | AJ72: 1140 | AW72: 1220 | AY72: 41380 | CD72: 4660 | CE72: 93120 | CF72: 0.7874144525 | CG72: 0.2016656602 | CH72: 0.5857487923
A73: 71 | B73: H228 | C73: ='Dati Generali CER 1 Sem. 2022'!C73 -> REITANO | D73: 723 | E73: 86340 | U73: 211860 | V73: 298200 | W73: 0.7104627767 | Z73: 16230 | AA73: 8310 | AE73: 54040 | AF73: 34540 | AY73: 90500 | CD73: 8240 | CE73: 211860 | CF73: 2.241565939 | CG73: 0.6490167779 | CH73: 1.592549161
A74: 72 | B74: H405 | C74: ='Dati Generali CER 1 Sem. 2022'!C74 -> ROCCAFIORITA | D74: 173 | E74: 6880 | U74: 18265 | V74: 25145 | W74: 0.7263869557 | AA74: 2510 | AF74: 2190 | AW74: 1900 | AY74: 7500 | AZ74: 1765 | BZ74: 2400 | CE74: 18265 | CF74: 0.789928374 | CG74: 0.2161347072 | CH74: 0.5737936668
A75: 73 | B75: H418 | C75: ='Dati Generali CER 1 Sem. 2022'!C75 -> ROCCALUMERA | D75: 3940 | E75: 370500 | U75: 859420 | V75: 1229920 | W75: 0.698760895 | Y75: 100 | AE75: 108210 | AF75: 93770 | AJ75: 1520 | AV75: 60500 | AW75: 129920 | AY75: 323240 | AZ75: 8420 | BH75: 5440 | BI75: 220 | BP75: 150 | BS75: 1800 | BT75: 1900 | BV75: 46160 | BW75: 1380 | BZ75: 11970 | CD75: 64720 | CE75: 859420 | CF75: 1.696534981 | CG75: 0.5110626793 | CH75: 1.185472302
A76: 74 | B76: H380 | C76: ='Dati Generali CER 1 Sem. 2022'!C76 -> ROCCAVALDINA | D76: 998 | E76: 164760 | U76: 53965 | V76: 218725 | W76: 0.24672534 | AE76: 9960 | AF76: 13560 | AW76: 8460 | AY76: 15005 | BH76: 720 | BP76: 20 | BS76: 520 | BT76: 1020 | CD76: 4700 | CE76: 53965 | CF76: 1.191105036 | CG76: 0.8972292411 | CH76: 0.2938757951
A77: 75 | B77: H455 | C77: ='Dati Generali CER 1 Sem. 2022'!C77 -> ROCCELLA VALDEMONE | D77: 562 | E77: 75700 | U77: 31080 | V77: 106780 | W77: 0.2910657426 | AA77: 6480 | AF77: 10060 | AW77: 6740 | AY77: 7800 | CE77: 31080 | CF77: 1.032608696 | CG77: 0.7320516788 | CH77: 0.3005570169
A78: 76 | B78: H479 | C78: ='Dati Generali CER 1 Sem. 2022'!C78 -> RODI' MILICI | D78: 1932 | E78: 126540 | U78: 199910 | V78: 326450 | W78: 0.6123755552 | X78: 28020 | Z78: 4870 | AE78: 25520 | AF78: 29170 | AW78: 23110 | AY78: 82320 | BH78: 1120 | BP78: 60 | BS78: 1370 | BT78: 970 | CD78: 3380 | CE78: 199910 | CF78: 0.9183151049 | CG78: 0.3559613827 | CH78: 0.5623537222
A79: 77 | B79: H519 | C79: ='Dati Generali CER 1 Sem. 2022'!C79 -> ROMETTA | D79: 6573 | E79: 215342 | U79: 1004392 | V79: 1219734 | W79: 0.8234516706 | X79: 91380 | AA79: 101278 | AE79: 98720 | AW79: 115750 | AY79: 478760 | AZ79: 6675 | BH79: 4000 | BI79: 360 | BK79: 600 | BP79: 220 | BS79: 1780 | BV79: 8389 | BZ79: 32660 | CD79: 63820 | CE79: 1004392 | CF79: 1.008518048 | CG79: 0.1780521766 | CH79: 0.8304658716
A80: 78 | B80: I184 | C80: ='Dati Generali CER 1 Sem. 2022'!C80 -> S. DOMENICA VITTORIA | D80: 852 | E80: 125000 | U80: 41960 | V80: 166960 | W80: 0.2513176809 | Z80: 12300 | AA80: 12240 | AF80: 17420 | CE80: 41960 | CF80: 1.065013268 | CG80: 0.7973566034 | CH80: 0.2676566646
A81: 79 | B81: I370 | C81: ='Dati Generali CER 1 Sem. 2022'!C81 -> S. STEF. DI CAMASTRA | D81: 4348 | E81: 274980 | U81: 742860 | V81: 1017840 | W81: 0.7298396605 | Z81: 105690 | AA81: 41350 | AE81: 112240 | AF81: 91720 | AV81: 23100 | AW81: 12760 | AY81: 273720 | AZ81: 12350 | BH81: 5500 | BI81: 250 | BS81: 2400 | BZ81: 32960 | CD81: 28820 | CE81: 742860 | CF81: 1.27224911 | CG81: 0.3437112515 | CH81: 0.9285378585
A82: 80 | B82: I199 | C82: ='Dati Generali CER 1 Sem. 2022'!C82 -> S. AGATA DI MILITELLO | D82: 11866 | E82: 787120 | U82: 1997350 | V82: 2784470 | W82: 0.7173178379 | Z82: 87400 | AA82: 232440 | AB82: 17860 | AF82: 295040 | AW82: 252710 | AY82: 693360 | AZ82: 13400 | BH82: 18180 | BI82: 530 | BS82: 19880 | BT82: 9000 | BZ82: 155940 | CD82: 201610 | CE82: 1997350 | CF82: 1.27532354 | CG82: 0.3605112158 | CH82: 0.9148123246
A83: 81 | B83: I220 | C83: ='Dati Generali CER 1 Sem. 2022'!C83 -> SANTA LUCIA DEL MELA | D83: 4379 | E83: 282000 | U83: 893803 | V83: 1175803 | W83: 0.760163905 | X83: 66078 | Z83: 29680 | AE83: 61500 | AF83: 61440 | AV83: 270790 | AW83: 40210 | AY83: 214330 | AZ83: 3355 | BH83: 3020 | BI83: 330 | BP83: 90 | BS83: 1240 | BT83: 3700 | BZ83: 128500 | CD83: 9540 | CE83: 893803 | CF83: 1.459290636 | CG83: 0.3499905676 | CH83: 1.109300069
A84: 82 | B84: I311 | C84: ='Dati Generali CER 1 Sem. 2022'!C84 -> S. TERESA DI RIVA | D84: 9335 | E84: 520120 | K84: 3900 | U84: 1406956 | V84: 1927076 | W84: 0.7300988648 | X84: 38400 | Z84: 33970 | AE84: 228340 | AF84: 167280 | AW84: 258860 | AY84: 582600 | AZ84: 3490 | BG84: 220 | BH84: 10900 | BI84: 116 | BS84: 4000 | BT84: 6280 | BV84: 12860 | BW84: 2700 | BZ84: 8100 | CC84: 17900 | CD84: 30940 | CE84: 1406956 | CF84: 1.121932419 | CG84: 0.3028108335 | CH84: 0.8191215854
A85: 83 | B85: H842 | C85: ='Dati Generali CER 1 Sem. 2022'!C85 -> S. FILIPPO DEL MELA | D85: 6728 | E85: 648160 | U85: 698320 | V85: 1346480 | W85: 0.5186263442 | X85: 9600 | Z85: 60830 | AE85: 97860 | AF85: 89580 | AW85: 82740 | AY85: 329780 | BH85: 1320 | BI85: 380 | BP85: 30 | BR85: 130 | BS85: 1230 | BT85: 2870 | BZ85: 13620 | CD85: 8350 | CE85: 698320 | CF85: 1.087667373 | CG85: 0.5235744197 | CH85: 0.5640929535
A86: 84 | B86: H8450 | C86: ='Dati Generali CER 1 Sem. 2022'!C86 -> SAN FRATELLO | D86: 3259 | E86: 94440 | U86: 305310 | V86: 399750 | W86: 0.7637523452 | AE86: 51240 | AF86: 58340 | AW86: 51520 | AY86: 132250 | CD86: 11960 | CE86: 305310 | CF86: 0.6666322025 | CG86: 0.1574902944 | CH86: 0.509141908
A87: 85 | B87: H982 | C87: ='Dati Generali CER 1 Sem. 2022'!C87 -> SAN MARCO D'ALUNZIO | D87: 1778 | E87: 66700 | I87: 560 | K87: 800 | O87: 5820 | U87: 194390 | V87: 261090 | W87: 0.7445325367 | Z87: 3450 | AA87: 25060 | AE87: 1160 | AF87: 43760 | AM87: 50 | AW87: 35210 | AY87: 77570 | BH87: 600 | BS87: 800 | BT87: 220 | CD87: 6510 | CE87: 194390 | CF87: 0.7980693989 | CG87: 0.2038807649 | CH87: 0.594188634
A88: 86 | B88: I084 | C88: ='Dati Generali CER 1 Sem. 2022'!C88 -> SAN PIER NICETO | D88: 2595 | E88: 247300 | U88: 317890 | V88: 565190 | W88: 0.5624480263 | X88: 129600 | AE88: 33180 | AF88: 35340 | AW88: 29220 | AY88: 76690 | AZ88: 1790 | BH88: 2290 | BI88: 700 | BS88: 940 | BT88: 2060 | CD88: 6080 | CE88: 317890 | CF88: 1.183693558 | CG88: 0.5179274525 | CH88: 0.6657661054
A89: 87 | B89: I086 | C89: ='Dati Generali CER 1 Sem. 2022'!C89 -> SAN PIERO PATTI | D89: 2570 | E89: 151120 | R89: 5860 | U89: 403471 | V89: 560451 | W89: 0.7199041486 | X89: 138031 | AE89: 41260 | AF89: 46860 | AJ89: 200 | AW89: 45140 | AY89: 93080 | BT89: 3980 | BV89: 11820 | BX89: 2800 | CC89: 5860 | CD89: 14440 | CE89: 403471 | CF89: 1.185186517 | CG89: 0.3195736762 | CH89: 0.8532206902
A90: 88 | B90: I147 | C90: ='Dati Generali CER 1 Sem. 2022'!C90 -> S. SALVAT. DI FITALIA | D90: 1119 | E90: 34120 | S90: 5990 | U90: 132860 | V90: 172970 | W90: 0.7681100769 | Z90: 210 | AA90: 18810 | AF90: 25230 | AW90: 17730 | AY90: 61740 | AZ90: 5540 | BZ90: 3600 | CE90: 132860 | CF90: 0.8400843144 | CG90: 0.1657147298 | CH90: 0.6452772273
A91: 89 | B91: I328 | C91: ='Dati Generali CER 1 Sem. 2022'!C91 -> SAN TEODORO | D91: 1238 | E91: 32815 | U91: 163533 | V91: 196348 | W91: 0.8328732658 | AA91: 15460 | AC91: 9100 | AF91: 31240 | AW91: 27700 | AY91: 61130 | AZ91: 4443 | BX91: 14460 | CE91: 163533 | CF91: 0.8619617897 | CG91: 0.1440568589 | CH91: 0.7179049308
A92: 90 | B92: I283 | C92: ='Dati Generali CER 1 Sem. 2022'!C92 -> S. ANGELO DI BROLO | D92: 2760 | E92: 68480 | U92: 374200 | V92: 442680 | W92: 0.8453058643 | X92: 68000 | Z92: 410 | AA92: 46540 | AF92: 72070 | AW92: 58670 | AY92: 105000 | AZ92: 4410 | BH92: 3460 | BP92: 110 | BR92: 140 | BS92: 80 | CD92: 15310 | CE92: 374200 | CF92: 0.8716918715 | CG92: 0.1348456207 | CH92: 0.7368462508
A93: 91 | B93: I215 | C93: ='Dati Generali CER 1 Sem. 2022'!C93 -> S. ALESSIO SICULO | D93: 1544 | E93: 289980 | U93: 279120 | V93: 569100 | W93: 0.4904586189 | AE93: 47400 | AF93: 54200 | AW93: 44720 | AY93: 123880 | BV93: 100 | CD93: 8820 | CE93: 279120 | CF93: 2.003196103 | CG93: 1.020711309 | CH93: 0.9824847939
A94: 92 | B94: I254 | C94: ='Dati Generali CER 1 Sem. 2022'!C94 -> SANTA MARINA SALINA | D94: 859 | E94: 255040 | U94: 133560 | V94: 388600 | W94: 0.3436953165 | AA94: 14240 | AF94: 72300 | AW94: 33240 | BH94: 1920 | BS94: 1000 | BT94: 1300 | BV94: 4380 | BX94: 2860 | CD94: 2320 | CE94: 133560 | CF94: 2.45862226 | CG94: 1.613605304 | CH94: 0.845016956
A95: 93 | B95: I420 | C95: ='Dati Generali CER 1 Sem. 2022'!C95 -> SAPONARA | D95: 3687 | E95: 109260 | U95: =IF(CE95=0,"",CE95) -> 584120 | V95: 693380 | W95: 0.8424240676 | AA95: 71080 | AC95: 6880 | AF95: 61720 | AW95: 115270 | AY95: 233860 | AZ95: 5410 | BH95: 1720 | BI95: 650 | BP95: 180 | BR95: 60 | BS95: 2940 | BV95: 22800 | BZ95: 40190 | CD95: 21360 | CE95: 584120 | CF95: 1.022069315 | CG95: 0.1610535253 | CH95: 0.8610157899
A96: 94 | B96: I477 | C96: ='Dati Generali CER 1 Sem. 2022'!C96 -> SAVOCA | D96: 1724 | E96: 141780 | U96: 178280 | V96: 320060 | W96: 0.5570205586 | AE96: 25940 | AF96: 32100 | AW96: 29300 | AY96: 86580 | CD96: 4360 | CE96: 178280 | CF96: 1.0089655 | CG96: 0.4469509735 | CH96: 0.5620145264
A97: 95 | B97: I492 | C97: ='Dati Generali CER 1 Sem. 2022'!C97 -> SCALETTA ZANCLEA | D97: 1836 | E97: 111140 | U97: 207050 | V97: 318190 | W97: 0.6507118388 | AE97: 29280 | AF97: 32160 | AJ97: 360 | AW97: 35160 | AY97: 89900 | AZ97: 4440 | BH97: 1640 | BI97: 270 | BS97: 520 | BT97: 1680 | CD97: 11640 | CE97: 207050 | CF97: 0.9418809794 | CG97: 0.3289878753 | CH97: 0.6128931041
A98: 96 | B98: I747 | C98: ='Dati Generali CER 1 Sem. 2022'!C98 -> SINAGRA | D98: 2474 | E98: 89760 | U98: 349540 | V98: 439300 | W98: 0.7956749374 | AA98: 37920 | AB98: 11460 | AF98: 80000 | AW98: 47080 | AY98: 135340 | AZ98: 9380 | BI98: 260 | CD98: 28100 | CE98: 349540 | CF98: 0.9650363783 | CG98: 0.1971811184 | CH98: 0.7678552599
A99: 97 | B99: I881 | C99: ='Dati Generali CER 1 Sem. 2022'!C99 -> SPADAFORA | D99: 4687 | E99: 343497 | K99: 1200 | S99: 2877 | U99: 628642 | V99: =IF(E99=0,"",SUM(U99,E99,R99,S99,T99)) -> 975016 | W99: =IFERROR(IF(E99<>0,IF(U99=0,0,(U99/V99*100)/100),IF(U99=0,"","")),0) -> 0.6447504451 | AA99: 87319 | AF99: 92240 | AW99: 99050 | AY99: 305520 | BH99: 2060 | BI99: 400 | BP99: 100 | BS99: 780 | BV99: 6020 | BZ99: 20050 | CD99: 15103 | CE99: =IF(SUM(X99:CD99)=0,"",SUM(X99:CD99)) -> 628642 | CF99: 1.130573928 | CG99: 0.3982998766 | CH99: =IF(SUM(Y99:CD99)=0,"",CE99/D99/184) -> 0.7289380432
A100: 98 | B100: L042 | C100: ='Dati Generali CER 1 Sem. 2022'!C100 -> TAORMINA | D100: 10471 | E100: 1656380 | U100: 3324938 | V100: 4981318 | W100: 0.6674815782 | Y100: 100 | Z100: 262620 | AE100: 417720 | AF100: 882410 | AW100: 223260 | AY100: 1450270 | BH100: 580 | BP100: 320 | BR100: 78 | BS100: 460 | BT100: 480 | BZ100: 38260 | CD100: 48380 | CE100: 3324938 | CF100: 2.585462748 | CG100: 0.8597139927 | CH100: 1.725748755
A101: 99 | B101: M210 | C101: ='Dati Generali CER 1 Sem. 2022'!C101 -> TERME VIGLIATORE | D101: 7218 | E101: 500280 | U101: 1027530 | V101: 1527810 | W101: 0.6725509062 | X101: 25800 | Z101: 106010 | AE101: 146500 | AF101: 128170 | AR101: 540 | AW101: 93700 | AY101: 478340 | BH101: 1450 | BP101: 60 | BS101: 950 | BT101: 2530 | BZ101: 34800 | CD101: 8680 | CE101: 1027530 | CF101: 1.150362319 | CG101: 0.3766850988 | CH101: 0.77367722
A102: 100 | B102: L271 | C102: ='Dati Generali CER 1 Sem. 2022'!C102 -> TORREGROTTA | D102: 7259 | E102: 583760 | R102: 37780 | S102: 6925 | U102: 960146 | V102: 1588611 | W102: 0.6043933978 | X102: 25926 | Z102: 46360 | AE102: 112140 | AF102: 90480 | AW102: 147480 | AY102: 428780 | AZ102: 9805 | BH102: 4400 | BI102: 900 | BS102: 4060 | BT102: 4800 | BZ102: 48660 | CD102: 36355 | CE102: 960146 | CF102: =IF(SUM(E102)=0,"",V102/D102/184) -> 1.189386339 | CG102: 0.4370586438 | CH102: 0.7188572507
A103: 101 | B103: M286 | C103: ='Dati Generali CER 1 Sem. 2022'!C103 -> TORRENOVA | D103: 4492 | E103: 135220 | U103: 723770 | V103: 858990 | W103: 0.8425825679 | Z103: 98690 | AA103: 115290 | AE103: 16410 | AF103: 98830 | AW103: 72990 | AY103: 296830 | CD103: 24730 | CE103: 723770 | CF103: 1.039275136 | CG103: 0.1636000232 | CH103: 0.8756751132
A104: 102 | B104: L308 | C104: ='Dati Generali CER 1 Sem. 2022'!C104 -> TORTORICI | D104: 5705 | E104: 303680 | U104: 396570 | V104: 700250 | W104: 0.566326312 | AA104: 62670 | AF104: 112190 | AW104: 72480 | AY104: 115090 | AZ104: 11040 | BP104: 300 | BT104: 10760 | BZ104: 5300 | CD104: 6740 | CE104: 396570 | CF104: 0.6670826506 | CG104: 0.2892961933 | CH104: 0.3777864573
A105: 103 | B105: L431 | C105: ='Dati Generali CER 1 Sem. 2022'!C105 -> TRIPI | D105: 750 | E105: 45500 | U105: 123722 | V105: 169222 | W105: 0.7311224309 | X105: 74702 | AE105: 13800 | AF105: 13460 | AW105: 10880 | CD105: 10880 | CE105: 123722 | CF105: 1.226246377 | CG105: 0.3297101449 | CH105: 0.8965362319
A106: 104 | B106: L478 | C106: ='Dati Generali CER 1 Sem. 2022'!C106 -> TUSA | D106: 2585 | E106: 129320 | U106: 464070 | V106: 593390 | W106: 0.7820657578 | AA106: 39220 | AF106: 85020 | AJ106: 760 | AW106: 54360 | AY106: 214690 | BI106: 320 | BZ106: 4740 | CD106: 64960 | CE106: 464070 | CF106: 1.247561181 | CG106: 0.2718863006 | CH106: 0.9756748802
A107: 105 | B107: L482 | C107: ='Dati Generali CER 1 Sem. 2022'!C107 -> UCRIA | D107: 908 | E107: 47220 | K107: 300 | U107: 126950 | V107: 174170 | W107: 0.7288855716 | X107: 30000 | Z107: 420 | AA107: 12090 | AF107: 22740 | AR107: 220 | AW107: 10230 | AY107: 41130 | AZ107: 2830 | BI107: 100 | BP107: 50 | BR107: 10 | BT107: 1940 | BV107: 480 | BW107: 350 | CD107: 4360 | CE107: 126950 | CF107: 1.042484677 | CG107: 0.2826326374 | CH107: 0.7598520398
A108: 106 | B108: L561 | C108: ='Dati Generali CER 1 Sem. 2022'!C108 -> VALDINA | D108: 1257 | E108: 105840 | U108: 105820 | V108: 211660 | W108: 0.4999527544 | AE108: 15480 | AF108: 17260 | AW108: 14400 | AY108: 54140 | CD108: 4540 | CE108: 105820 | CF108: 0.9151361074 | CG108: 0.4576112898 | CH108: 0.4575248175
A109: 107 | B109: L735 | C109: ='Dati Generali CER 1 Sem. 2022'!C109 -> VENETICO | D109: 3940 | E109: 306200 | S109: 320 | U109: 510218 | V109: 816738 | W109: 0.6247021689 | X109: 7398 | Z109: 10360 | AA109: 28900 | AE109: 49900 | AF109: 66080 | AW109: 88400 | AY109: 247560 | BI109: 500 | BP109: 60 | BS109: 920 | BT109: 580 | CD109: 9560 | CE109: 510218 | CF109: 1.12659733 | CG109: 0.4223681307 | CH109: 0.7037877952
A110: 108 | B110: L950 | C110: ='Dati Generali CER 1 Sem. 2022'!C110 -> VILLAFRANCA TIRRENA | D110: 8035 | E110: 542160 | U110: 1307473 | V110: 1849633 | W110: 0.7068823923 | X110: 9078 | Z110: 132770 | AA110: 146180 | AF110: 153300 | AW110: 132020 | AY110: 505860 | AZ110: 23550 | BH110: 2300 | BI110: 2675 | BS110: 3220 | BT110: 2120 | BV110: 11660 | BW110: 2800 | BZ110: 101400 | CC110: 68300 | CD110: 10240 | CE110: 1307473 | CF110: 1.251070723 | CG110: 0.3667108574 | CH110: 0.8843598658
C111: T O T A L I | D111: =SUM(D3:D110) -> 598811 | E111: =SUM(E3:E110) -> 54805132 | F111: 0 | G111: 0 | H111: 0 | I111: 560 | J111: 0 | K111: 24580 | L111: 1960 | M111: 0 | N111: 0 | O111: 5820 | P111: 13080 | Q111: 0 | R111: 56480 | S111: 31905 | T111: 0 | U111: 83603258 | V111: =SUM(U111,E111) -> 138408390 | W111: =IF(CE111=0,"",(U111/V111*100)/100) -> 0.6040331659 | X111: =SUM(X3:X110) -> 4249115 | Y111: =SUM(Y3:Y110) -> 725 | Z111: =SUM(Z3:Z110) -> 6037440 | AA111: 3875724 | AB111: 51090 | AC111: 84610 | AD111: 0 | AE111: 6949310 | AF111: 12090616 | AG111: 0 | AH111: 0 | AI111: 880 | AJ111: 34410 | AK111: 0 | AL111: 0 | AM111: 50 | AN111: 0 | AO111: 0 | AP111: 0 | AQ111: 0 | AR111: 2470 | AS111: 0 | AT111: 0 | AU111: =SUM(AU3:AU110) -> 0 | AV111: =SUM(AV3:AV110) -> 618710 | AW111: 9562151 | AX111: 11800 | AY111: 30334936 | AZ111: 581192 | BA111: 4945 | BB111: 0 | BC111: 0 | BD111: 0 | BE111: 0 | BF111: 0 | BG111: 1212 | BH111: 326020 | BI111: 27031 | BJ111: 2525 | BK111: 14105 | BL111: 0 | BM111: 0 | BN111: 0 | BO111: 0 | BP111: 24055 | BQ111: 17490 | BR111: 4053 | BS111: 275580 | BT111: 420600 | BU111: 0 | BV111: 1643650 | BW111: 57631 | BX111: 294008 | BY111: 0 | BZ111: 2129438 | CA111: 0 | CB111: 0 | CC111: =SUM(CC3:CC110) -> 730560 | CD111: 3145126 | CE111: =SUM(CE3:CE110) -> 83603258

Sheet Riep. Dati RSU e RD 2 Sem. 2022
B3: CITTA' METROPOLITANA DI MESSINA
B4: DATI RIFIUTI SOLIDI URBANI E RACCOLTA DIFFERENZIATA
B5: SECONDO SEMESTRE ANNO 2022
A6: ='Dati Generali CER 2 Sem. 2022'!A2 -> 108 | B6: COMUNE | C6: QUANTITA' (KG) | D6: QUANTITA' (KG) | E6: PERCENTUALE | F6: RSU+RSA+RD | G6: RSU+RSA | H6: R.D. | I6: ='Dati Generali CER 2 Sem. 2022'!D2 -> ABITANTI AL 31/12/2022
C7: R.S.U. (Cod.200301) | D7: RACCOLTA | E7: RACCOLTA | F7: R.T. (Kg.) | G7: 200301 (kg.) | H7: (Kg.)
C8: PRODOTTI | D8: DIFFERENZIATA | E8: DIFFERENZIATA | F8: Pro Capite/g | G8: RI Pro Capite/g | H8: Pro Capite/g
B9: CTRL + "q" per ordinare in % | D9: CTRL + "w" per Alfabetico
A10: 1 | B10: ='Dati Generali CER 1 Sem. 2022'!C3 -> ACQUEDOLCI | C10: =IF('Dati Generali CER 2 Sem. 2022'!E3="","",'Dati Generali CER 2 Sem. 2022'!E3) -> 150260 | D10: =IF(C10="","",'Dati Generali CER 2 Sem. 2022'!CE3) -> 762515 | E10: ='Dati Generali CER 2 Sem. 2022'!W3 -> 0.835381118 | F10: =IF('Dati Generali CER 2 Sem. 2022'!CF3="","",'Dati Generali CER 2 Sem. 2022'!CF3) -> 0.9047480751 | G10: =IF('Dati Generali CER 2 Sem. 2022'!CG3="","",'Dati Generali CER 2 Sem. 2022'!CG3) -> 0.1489386166 | H10: =IF('Dati Generali CER 2 Sem. 2022'!CH3="","",'Dati Generali CER 2 Sem. 2022'!CH3) -> 0.7558094585 | I10: ='Dati Generali CER 2 Sem. 2022'!D3 -> 5483 | J10: =IF('Dati Generali CER 2 Sem. 2022'!CJ3="","",'Dati Generali CER 2 Sem. 2022'!CJ3) -> 
A11: 2 | B11: ='Dati Generali CER 1 Sem. 2022'!C4 -> ALCARA LI FUSI | C11: =IF('Dati Generali CER 2 Sem. 2022'!E4="","",'Dati Generali CER 2 Sem. 2022'!E4) -> 40600 | D11: =IF(C11="","",'Dati Generali CER 2 Sem. 2022'!CE4) -> 172779 | E11: ='Dati Generali CER 2 Sem. 2022'!W4 -> 0.8097282301 | F11: =IF('Dati Generali CER 2 Sem. 2022'!CF4="","",'Dati Generali CER 2 Sem. 2022'!CF4) -> 0.6813563327 | G11: =IF('Dati Generali CER 2 Sem. 2022'!CG4="","",'Dati Generali CER 2 Sem. 2022'!CG4) -> 0.1296428754 | H11: =IF('Dati Generali CER 2 Sem. 2022'!CH4="","",'Dati Generali CER 2 Sem. 2022'!CH4) -> 0.5517134573 | I11: ='Dati Generali CER 2 Sem. 2022'!D4 -> 1702 | J11: =IF('Dati Generali CER 2 Sem. 2022'!CJ4="","",'Dati Generali CER 2 Sem. 2022'!CJ4) -> 
A12: 3 | B12: ='Dati Generali CER 1 Sem. 2022'!C5 -> ALI' | C12: =IF('Dati Generali CER 2 Sem. 2022'!E5="","",'Dati Generali CER 2 Sem. 2022'!E5) -> 16660 | D12: =IF(C12="","",'Dati Generali CER 2 Sem. 2022'!CE5) -> 38885 | E12: ='Dati Generali CER 2 Sem. 2022'!W5 -> 0.700063012 | F12: =IF('Dati Generali CER 2 Sem. 2022'!CF5="","",'Dati Generali CER 2 Sem. 2022'!CF5) -> 0.4594748858 | G12: =IF('Dati Generali CER 2 Sem. 2022'!CG5="","",'Dati Generali CER 2 Sem. 2022'!CG5) -> 0.1378135133 | H12: =IF('Dati Generali CER 2 Sem. 2022'!CH5="","",'Dati Generali CER 2 Sem. 2022'!CH5) -> 0.3216613725 | I12: ='Dati Generali CER 2 Sem. 2022'!D5 -> 657 | J12: =IF('Dati Generali CER 2 Sem. 2022'!CJ5="","",'Dati Generali CER 2 Sem. 2022'!CJ5) -> 
A13: 4 | B13: ='Dati Generali CER 1 Sem. 2022'!C6 -> ALI' TERME | C13: =IF('Dati Generali CER 2 Sem. 2022'!E6="","",'Dati Generali CER 2 Sem. 2022'!E6) -> 127010 | D13: =IF(C13="","",'Dati Generali CER 2 Sem. 2022'!CE6) -> 344320 | E13: ='Dati Generali CER 2 Sem. 2022'!W6 -> 0.7305285044 | F13: =IF('Dati Generali CER 2 Sem. 2022'!CF6="","",'Dati Generali CER 2 Sem. 2022'!CF6) -> 1.106512349 | G13: =IF('Dati Generali CER 2 Sem. 2022'!CG6="","",'Dati Generali CER 2 Sem. 2022'!CG6) -> 0.2981735374 | H13: =IF('Dati Generali CER 2 Sem. 2022'!CH6="","",'Dati Generali CER 2 Sem. 2022'!CH6) -> 0.8083388112 | I13: ='Dati Generali CER 2 Sem. 2022'!D6 -> 2315 | J13: =IF('Dati Generali CER 2 Sem. 2022'!CJ6="","",'Dati Generali CER 2 Sem. 2022'!CJ6) -> 
A14: 5 | B14: ='Dati Generali CER 1 Sem. 2022'!C7 -> ANTILLO | C14: =IF('Dati Generali CER 2 Sem. 2022'!E7="","",'Dati Generali CER 2 Sem. 2022'!E7) -> 23980 | D14: =IF(C14="","",'Dati Generali CER 2 Sem. 2022'!CE7) -> 81920 | E14: ='Dati Generali CER 2 Sem. 2022'!W7 -> 0.7735599622 | F14: =IF('Dati Generali CER 2 Sem. 2022'!CF7="","",'Dati Generali CER 2 Sem. 2022'!CF7) -> 0.712306285 | G14: =IF('Dati Generali CER 2 Sem. 2022'!CG7="","",'Dati Generali CER 2 Sem. 2022'!CG7) -> 0.1612946621 | H14: =IF('Dati Generali CER 2 Sem. 2022'!CH7="","",'Dati Generali CER 2 Sem. 2022'!CH7) -> 0.5510116229 | I14: ='Dati Generali CER 2 Sem. 2022'!D7 -> 808 | J14: =IF('Dati Generali CER 2 Sem. 2022'!CJ7="","",'Dati Generali CER 2 Sem. 2022'!CJ7) -> 
A15: 6 | B15: ='Dati Generali CER 1 Sem. 2022'!C8 -> BARCELLONA P.G. | C15: =IF('Dati Generali CER 2 Sem. 2022'!E8="","",'Dati Generali CER 2 Sem. 2022'!E8) -> 4440140 | D15: =IF(C15="","",'Dati Generali CER 2 Sem. 2022'!CE8) -> 4126274 | E15: ='Dati Generali CER 2 Sem. 2022'!W8 -> 0.4816804324 | F15: =IF('Dati Generali CER 2 Sem. 2022'!CF8="","",'Dati Generali CER 2 Sem. 2022'!CF8) -> 1.167270849 | G15: =IF('Dati Generali CER 2 Sem. 2022'!CG8="","",'Dati Generali CER 2 Sem. 2022'!CG8) -> 0.6050193219 | H15: =IF('Dati Generali CER 2 Sem. 2022'!CH8="","",'Dati Generali CER 2 Sem. 2022'!CH8) -> 0.5622515275 | I15: ='Dati Generali CER 2 Sem. 2022'!D8 -> 39885 | J15: =IF('Dati Generali CER 2 Sem. 2022'!CJ8="","",'Dati Generali CER 2 Sem. 2022'!CJ8) -> 
A16: 7 | B16: ='Dati Generali CER 1 Sem. 2022'!C9 -> BASICO' | C16: =IF('Dati Generali CER 2 Sem. 2022'!E9="","",'Dati Generali CER 2 Sem. 2022'!E9) -> 66120 | D16: =IF(C16="","",'Dati Generali CER 2 Sem. 2022'!CE9) -> 66040 | E16: ='Dati Generali CER 2 Sem. 2022'!W9 -> 0.4996973366 | F16: =IF('Dati Generali CER 2 Sem. 2022'!CF9="","",'Dati Generali CER 2 Sem. 2022'!CF9) -> 1.205135687 | G16: =IF('Dati Generali CER 2 Sem. 2022'!CG9="","",'Dati Generali CER 2 Sem. 2022'!CG9) -> 0.6029325941 | H16: =IF('Dati Generali CER 2 Sem. 2022'!CH9="","",'Dati Generali CER 2 Sem. 2022'!CH9) -> 0.6022030931 | I16: ='Dati Generali CER 2 Sem. 2022'!D9 -> 596 | J16: =IF('Dati Generali CER 2 Sem. 2022'!CJ9="","",'Dati Generali CER 2 Sem. 2022'!CJ9) -> 
A17: 8 | B17: ='Dati Generali CER 1 Sem. 2022'!C10 -> BROLO | C17: =IF('Dati Generali CER 2 Sem. 2022'!E10="","",'Dati Generali CER 2 Sem. 2022'!E10) -> 385460 | D17: =IF(C17="","",'Dati Generali CER 2 Sem. 2022'!CE10) -> 1073170 | E17: ='Dati Generali CER 2 Sem. 2022'!W10 -> 0.7357383298 | F17: =IF('Dati Generali CER 2 Sem. 2022'!CF10="","",'Dati Generali CER 2 Sem. 2022'!CF10) -> 1.382032245 | G17: =IF('Dati Generali CER 2 Sem. 2022'!CG10="","",'Dati Generali CER 2 Sem. 2022'!CG10) -> 0.3652181493 | H17: =IF('Dati Generali CER 2 Sem. 2022'!CH10="","",'Dati Generali CER 2 Sem. 2022'!CH10) -> 1.016814096 | I17: ='Dati Generali CER 2 Sem. 2022'!D10 -> 5736 | J17: =IF('Dati Generali CER 2 Sem. 2022'!CJ10="","",'Dati Generali CER 2 Sem. 2022'!CJ10) -> 
A18: 9 | B18: ='Dati Generali CER 1 Sem. 2022'!C11 -> CAPIZZI | C18: =IF('Dati Generali CER 2 Sem. 2022'!E11="","",'Dati Generali CER 2 Sem. 2022'!E11) -> 163050 | D18: =IF(C18="","",'Dati Generali CER 2 Sem. 2022'!CE11) -> 216240 | E18: ='Dati Generali CER 2 Sem. 2022'!W11 -> 0.5701178518 | F18: =IF('Dati Generali CER 2 Sem. 2022'!CF11="","",'Dati Generali CER 2 Sem. 2022'!CF11) -> 0.724809668 | G18: =IF('Dati Generali CER 2 Sem. 2022'!CG11="","",'Dati Generali CER 2 Sem. 2022'!CG11) -> 0.3115827371 | H18: =IF('Dati Generali CER 2 Sem. 2022'!CH11="","",'Dati Generali CER 2 Sem. 2022'!CH11) -> 0.4132269308 | I18: ='Dati Generali CER 2 Sem. 2022'!D11 -> 2844 | J18: =IF('Dati Generali CER 2 Sem. 2022'!CJ11="","",'Dati Generali CER 2 Sem. 2022'!CJ11) -> 
A19: 10 | B19: ='Dati Generali CER 1 Sem. 2022'!C12 -> CAPO D'ORLANDO | C19: =IF('Dati Generali CER 2 Sem. 2022'!E12="","",'Dati Generali CER 2 Sem. 2022'!E12) -> 727420 | D19: =IF(C19="","",'Dati Generali CER 2 Sem. 2022'!CE12) -> 2724236 | E19: ='Dati Generali CER 2 Sem. 2022'!W12 -> 0.7892547809 | F19: =IF('Dati Generali CER 2 Sem. 2022'!CF12="","",'Dati Generali CER 2 Sem. 2022'!CF12) -> 1.439567186 | G19: =IF('Dati Generali CER 2 Sem. 2022'!CG12="","",'Dati Generali CER 2 Sem. 2022'!CG12) -> 0.303381902 | H19: =IF('Dati Generali CER 2 Sem. 2022'!CH12="","",'Dati Generali CER 2 Sem. 2022'!CH12) -> 1.136185284 | I19: ='Dati Generali CER 2 Sem. 2022'!D12 -> 13031 | J19: =IF('Dati Generali CER 2 Sem. 2022'!CJ12="","",'Dati Generali CER 2 Sem. 2022'!CJ12) -> 
A20: 11 | B20: ='Dati Generali CER 1 Sem. 2022'!C13 -> CAPRILEONE | C20: =IF('Dati Generali CER 2 Sem. 2022'!E13="","",'Dati Generali CER 2 Sem. 2022'!E13) -> 113910 | D20: =IF(C20="","",'Dati Generali CER 2 Sem. 2022'!CE13) -> 654870 | E20: ='Dati Generali CER 2 Sem. 2022'!W13 -> 0.8518301725 | F20: =IF('Dati Generali CER 2 Sem. 2022'!CF13="","",'Dati Generali CER 2 Sem. 2022'!CF13) -> 0.959832799 | G20: =IF('Dati Generali CER 2 Sem. 2022'!CG13="","",'Dati Generali CER 2 Sem. 2022'!CG13) -> 0.1422182603 | H20: =IF('Dati Generali CER 2 Sem. 2022'!CH13="","",'Dati Generali CER 2 Sem. 2022'!CH13) -> 0.8176145387 | I20: ='Dati Generali CER 2 Sem. 2022'!D13 -> 4353 | J20: =IF('Dati Generali CER 2 Sem. 2022'!CJ13="","",'Dati Generali CER 2 Sem. 2022'!CJ13) -> 
A21: 12 | B21: ='Dati Generali CER 1 Sem. 2022'!C14 -> CARONIA | C21: =IF('Dati Generali CER 2 Sem. 2022'!E14="","",'Dati Generali CER 2 Sem. 2022'!E14) -> 205380 | D21: =IF(C21="","",'Dati Generali CER 2 Sem. 2022'!CE14) -> 466225 | E21: ='Dati Generali CER 2 Sem. 2022'!W14 -> 0.6941952487 | F21: =IF('Dati Generali CER 2 Sem. 2022'!CF14="","",'Dati Generali CER 2 Sem. 2022'!CF14) -> 1.19987744 | G21: =IF('Dati Generali CER 2 Sem. 2022'!CG14="","",'Dati Generali CER 2 Sem. 2022'!CG14) -> 0.3669282223 | H21: =IF('Dati Generali CER 2 Sem. 2022'!CH14="","",'Dati Generali CER 2 Sem. 2022'!CH14) -> 0.8329492182 | I21: ='Dati Generali CER 2 Sem. 2022'!D14 -> 3042 | J21: =IF('Dati Generali CER 2 Sem. 2022'!CJ14="","",'Dati Generali CER 2 Sem. 2022'!CJ14) -> 
A22: 13 | B22: ='Dati Generali CER 1 Sem. 2022'!C15 -> CASALVECCHIO SICULO | C22: =IF('Dati Generali CER 2 Sem. 2022'!E15="","",'Dati Generali CER 2 Sem. 2022'!E15) -> 22520 | D22: =IF(C22="","",'Dati Generali CER 2 Sem. 2022'!CE15) -> 68980 | E22: ='Dati Generali CER 2 Sem. 2022'!W15 -> 0.7538797814 | F22: =IF('Dati Generali CER 2 Sem. 2022'!CF15="","",'Dati Generali CER 2 Sem. 2022'!CF15) -> 0.6849622709 | G22: =IF('Dati Generali CER 2 Sem. 2022'!CG15="","",'Dati Generali CER 2 Sem. 2022'!CG15) -> 0.1685830638 | H22: =IF('Dati Generali CER 2 Sem. 2022'!CH15="","",'Dati Generali CER 2 Sem. 2022'!CH15) -> 0.5163792071 | I22: ='Dati Generali CER 2 Sem. 2022'!D15 -> 726 | J22: =IF('Dati Generali CER 2 Sem. 2022'!CJ15="","",'Dati Generali CER 2 Sem. 2022'!CJ15) -> 
A23: 14 | B23: ='Dati Generali CER 1 Sem. 2022'!C16 -> CASTEL DI LUCIO | C23: =IF('Dati Generali CER 2 Sem. 2022'!E16="","",'Dati Generali CER 2 Sem. 2022'!E16) -> 26500 | D23: =IF(C23="","",'Dati Generali CER 2 Sem. 2022'!CE16) -> 157262 | E23: ='Dati Generali CER 2 Sem. 2022'!W16 -> 0.8557917306 | F23: =IF('Dati Generali CER 2 Sem. 2022'!CF16="","",'Dati Generali CER 2 Sem. 2022'!CF16) -> 0.8146056458 | G23: =IF('Dati Generali CER 2 Sem. 2022'!CG16="","",'Dati Generali CER 2 Sem. 2022'!CG16) -> 0.1174728704 | H23: =IF('Dati Generali CER 2 Sem. 2022'!CH16="","",'Dati Generali CER 2 Sem. 2022'!CH16) -> 0.6971327754 | I23: ='Dati Generali CER 2 Sem. 2022'!D16 -> 1226 | J23: =IF('Dati Generali CER 2 Sem. 2022'!CJ16="","",'Dati Generali CER 2 Sem. 2022'!CJ16) -> 
A24: 15 | B24: ='Dati Generali CER 1 Sem. 2022'!C17 -> CASTELL'UMBERTO | C24: =IF('Dati Generali CER 2 Sem. 2022'!E17="","",'Dati Generali CER 2 Sem. 2022'!E17) -> 105840 | D24: =IF(C24="","",'Dati Generali CER 2 Sem. 2022'!CE17) -> 263940 | E24: ='Dati Generali CER 2 Sem. 2022'!W17 -> 0.7137757586 | F24: =IF('Dati Generali CER 2 Sem. 2022'!CF17="","",'Dati Generali CER 2 Sem. 2022'!CF17) -> 0.7101321248 | G24: =IF('Dati Generali CER 2 Sem. 2022'!CG17="","",'Dati Generali CER 2 Sem. 2022'!CG17) -> 0.2032570287 | H24: =IF('Dati Generali CER 2 Sem. 2022'!CH17="","",'Dati Generali CER 2 Sem. 2022'!CH17) -> 0.506875096 | I24: ='Dati Generali CER 2 Sem. 2022'!D17 -> 2830 | J24: =IF('Dati Generali CER 2 Sem. 2022'!CJ17="","",'Dati Generali CER 2 Sem. 2022'!CJ17) -> 
A25: 16 | B25: ='Dati Generali CER 1 Sem. 2022'!C18 -> CASTELMOLA | C25: =IF('Dati Generali CER 2 Sem. 2022'!E18="","",'Dati Generali CER 2 Sem. 2022'!E18) -> 86930 | D25: =IF(C25="","",'Dati Generali CER 2 Sem. 2022'!CE18) -> 151200 | E25: ='Dati Generali CER 2 Sem. 2022'!W18 -> 0.6349472977 | F25: =IF('Dati Generali CER 2 Sem. 2022'!CF18="","",'Dati Generali CER 2 Sem. 2022'!CF18) -> 1.218629739 | G25: =IF('Dati Generali CER 2 Sem. 2022'!CG18="","",'Dati Generali CER 2 Sem. 2022'!CG18) -> 0.4448640793 | H25: =IF('Dati Generali CER 2 Sem. 2022'!CH18="","",'Dati Generali CER 2 Sem. 2022'!CH18) -> 0.7737656595 | I25: ='Dati Generali CER 2 Sem. 2022'!D18 -> 1062 | J25: =IF('Dati Generali CER 2 Sem. 2022'!CJ18="","",'Dati Generali CER 2 Sem. 2022'!CJ18) -> 
A26: 17 | B26: ='Dati Generali CER 1 Sem. 2022'!C19 -> CASTROREALE | C26: =IF('Dati Generali CER 2 Sem. 2022'!E19="","",'Dati Generali CER 2 Sem. 2022'!E19) -> 89080 | D26: =IF(C26="","",'Dati Generali CER 2 Sem. 2022'!CE19) -> 194840 | E26: ='Dati Generali CER 2 Sem. 2022'!W19 -> 0.6862496478 | F26: =IF('Dati Generali CER 2 Sem. 2022'!CF19="","",'Dati Generali CER 2 Sem. 2022'!CF19) -> 0.6870184676 | G26: =IF('Dati Generali CER 2 Sem. 2022'!CG19="","",'Dati Generali CER 2 Sem. 2022'!CG19) -> 0.2155522862 | H26: =IF('Dati Generali CER 2 Sem. 2022'!CH19="","",'Dati Generali CER 2 Sem. 2022'!CH19) -> 0.4714661814 | I26: ='Dati Generali CER 2 Sem. 2022'!D19 -> 2246 | J26: =IF('Dati Generali CER 2 Sem. 2022'!CJ19="","",'Dati Generali CER 2 Sem. 2022'!CJ19) -> 
A27: 18 | B27: ='Dati Generali CER 1 Sem. 2022'!C20 -> CESARO' | C27: =IF('Dati Generali CER 2 Sem. 2022'!E20="","",'Dati Generali CER 2 Sem. 2022'!E20) -> 175805 | D27: =IF(C27="","",'Dati Generali CER 2 Sem. 2022'!CE20) -> 167647 | E27: ='Dati Generali CER 2 Sem. 2022'!W20 -> 0.4881235224 | F27: =IF('Dati Generali CER 2 Sem. 2022'!CF20="","",'Dati Generali CER 2 Sem. 2022'!CF20) -> 0.862164876 | G27: =IF('Dati Generali CER 2 Sem. 2022'!CG20="","",'Dati Generali CER 2 Sem. 2022'!CG20) -> 0.4413219199 | H27: =IF('Dati Generali CER 2 Sem. 2022'!CH20="","",'Dati Generali CER 2 Sem. 2022'!CH20) -> 0.4208429561 | I27: ='Dati Generali CER 2 Sem. 2022'!D20 -> 2165 | J27: =IF('Dati Generali CER 2 Sem. 2022'!CJ20="","",'Dati Generali CER 2 Sem. 2022'!CJ20) -> 
A28: 19 | B28: ='Dati Generali CER 1 Sem. 2022'!C21 -> CONDRO' | C28: =IF('Dati Generali CER 2 Sem. 2022'!E21="","",'Dati Generali CER 2 Sem. 2022'!E21) -> 40800 | D28: =IF(C28="","",'Dati Generali CER 2 Sem. 2022'!CE21) -> 40520 | E28: ='Dati Generali CER 2 Sem. 2022'!W21 -> 0.4982784063 | F28: =IF('Dati Generali CER 2 Sem. 2022'!CF21="","",'Dati Generali CER 2 Sem. 2022'!CF21) -> 0.9383365642 | G28: =IF('Dati Generali CER 2 Sem. 2022'!CG21="","",'Dati Generali CER 2 Sem. 2022'!CG21) -> 0.4707837164 | H28: =IF('Dati Generali CER 2 Sem. 2022'!CH21="","",'Dati Generali CER 2 Sem. 2022'!CH21) -> 0.4675528478 | I28: ='Dati Generali CER 2 Sem. 2022'!D21 -> 471 | J28: =IF('Dati Generali CER 2 Sem. 2022'!CJ21="","",'Dati Generali CER 2 Sem. 2022'!CJ21) -> 
A29: 20 | B29: ='Dati Generali CER 1 Sem. 2022'!C22 -> FALCONE | C29: =IF('Dati Generali CER 2 Sem. 2022'!E22="","",'Dati Generali CER 2 Sem. 2022'!E22) -> 267720 | D29: =IF(C29="","",'Dati Generali CER 2 Sem. 2022'!CE22) -> 456160 | E29: ='Dati Generali CER 2 Sem. 2022'!W22 -> 0.630159695 | F29: =IF('Dati Generali CER 2 Sem. 2022'!CF22="","",'Dati Generali CER 2 Sem. 2022'!CF22) -> 1.408568004 | G29: =IF('Dati Generali CER 2 Sem. 2022'!CG22="","",'Dati Generali CER 2 Sem. 2022'!CG22) -> 0.5209452202 | H29: =IF('Dati Generali CER 2 Sem. 2022'!CH22="","",'Dati Generali CER 2 Sem. 2022'!CH22) -> 0.8876227837 | I29: ='Dati Generali CER 2 Sem. 2022'!D22 -> 2793 | J29: =IF('Dati Generali CER 2 Sem. 2022'!CJ22="","",'Dati Generali CER 2 Sem. 2022'!CJ22) -> 
A30: 21 | B30: ='Dati Generali CER 1 Sem. 2022'!C23 -> FICARRA | C30: =IF('Dati Generali CER 2 Sem. 2022'!E23="","",'Dati Generali CER 2 Sem. 2022'!E23) -> 54640 | D30: =IF(C30="","",'Dati Generali CER 2 Sem. 2022'!CE23) -> 186670 | E30: ='Dati Generali CER 2 Sem. 2022'!W23 -> 0.7735692677 | F30: =IF('Dati Generali CER 2 Sem. 2022'!CF23="","",'Dati Generali CER 2 Sem. 2022'!CF23) -> 1.01980357 | G30: =IF('Dati Generali CER 2 Sem. 2022'!CG23="","",'Dati Generali CER 2 Sem. 2022'!CG23) -> 0.2309148692 | H30: =IF('Dati Generali CER 2 Sem. 2022'!CH23="","",'Dati Generali CER 2 Sem. 2022'!CH23) -> 0.7888887011 | I30: ='Dati Generali CER 2 Sem. 2022'!D23 -> 1286 | J30: =IF('Dati Generali CER 2 Sem. 2022'!CJ23="","",'Dati Generali CER 2 Sem. 2022'!CJ23) -> 
A31: 22 | B31: ='Dati Generali CER 1 Sem. 2022'!C24 -> FIUMEDINISI | C31: =IF('Dati Generali CER 2 Sem. 2022'!E24="","",'Dati Generali CER 2 Sem. 2022'!E24) -> 37250 | D31: =IF(C31="","",'Dati Generali CER 2 Sem. 2022'!CE24) -> 87600 | E31: ='Dati Generali CER 2 Sem. 2022'!W24 -> 0.7016419704 | F31: =IF('Dati Generali CER 2 Sem. 2022'!CF24="","",'Dati Generali CER 2 Sem. 2022'!CF24) -> 0.5321824382 | G31: =IF('Dati Generali CER 2 Sem. 2022'!CG24="","",'Dati Generali CER 2 Sem. 2022'!CG24) -> 0.1587809037 | H31: =IF('Dati Generali CER 2 Sem. 2022'!CH24="","",'Dati Generali CER 2 Sem. 2022'!CH24) -> 0.3734015345 | I31: ='Dati Generali CER 2 Sem. 2022'!D24 -> 1275 | J31: =IF('Dati Generali CER 2 Sem. 2022'!CJ24="","",'Dati Generali CER 2 Sem. 2022'!CJ24) -> 
A32: 23 | B32: ='Dati Generali CER 1 Sem. 2022'!C25 -> FLORESTA | C32: =IF('Dati Generali CER 2 Sem. 2022'!E25="","",'Dati Generali CER 2 Sem. 2022'!E25) -> 33480 | D32: =IF(C32="","",'Dati Generali CER 2 Sem. 2022'!CE25) -> 91220 | E32: ='Dati Generali CER 2 Sem. 2022'!W25 -> 0.7315156375 | F32: =IF('Dati Generali CER 2 Sem. 2022'!CF25="","",'Dati Generali CER 2 Sem. 2022'!CF25) -> 1.445026421 | G32: =IF('Dati Generali CER 2 Sem. 2022'!CG25="","",'Dati Generali CER 2 Sem. 2022'!CG25) -> 0.3879669973 | H32: =IF('Dati Generali CER 2 Sem. 2022'!CH25="","",'Dati Generali CER 2 Sem. 2022'!CH25) -> 1.057059423 | I32: ='Dati Generali CER 2 Sem. 2022'!D25 -> 469 | J32: =IF('Dati Generali CER 2 Sem. 2022'!CJ25="","",'Dati Generali CER 2 Sem. 2022'!CJ25) -> 
A33: 24 | B33: ='Dati Generali CER 1 Sem. 2022'!C26 -> FONDACHELLI FANTINA | C33: =IF('Dati Generali CER 2 Sem. 2022'!E26="","",'Dati Generali CER 2 Sem. 2022'!E26) -> 82780 | D33: =IF(C33="","",'Dati Generali CER 2 Sem. 2022'!CE26) -> 51280 | E33: ='Dati Generali CER 2 Sem. 2022'!W26 -> 0.3825152917 | F33: =IF('Dati Generali CER 2 Sem. 2022'!CF26="","",'Dati Generali CER 2 Sem. 2022'!CF26) -> 0.7366905526 | G33: =IF('Dati Generali CER 2 Sem. 2022'!CG26="","",'Dati Generali CER 2 Sem. 2022'!CG26) -> 0.454895151 | H33: =IF('Dati Generali CER 2 Sem. 2022'!CH26="","",'Dati Generali CER 2 Sem. 2022'!CH26) -> 0.2817954016 | I33: ='Dati Generali CER 2 Sem. 2022'!D26 -> 989 | J33: =IF('Dati Generali CER 2 Sem. 2022'!CJ26="","",'Dati Generali CER 2 Sem. 2022'!CJ26) -> 
A34: 25 | B34: ='Dati Generali CER 1 Sem. 2022'!C27 -> FORZA D'AGRO' | C34: =IF('Dati Generali CER 2 Sem. 2022'!E27="","",'Dati Generali CER 2 Sem. 2022'!E27) -> 104620 | D34: =IF(C34="","",'Dati Generali CER 2 Sem. 2022'!CE27) -> 165930 | E34: ='Dati Generali CER 2 Sem. 2022'!W27 -> 0.6133062281 | F34: =IF('Dati Generali CER 2 Sem. 2022'!CF27="","",'Dati Generali CER 2 Sem. 2022'!CF27) -> 1.760934652 | G34: =IF('Dati Generali CER 2 Sem. 2022'!CG27="","",'Dati Generali CER 2 Sem. 2022'!CG27) -> 0.6809424629 | H34: =IF('Dati Generali CER 2 Sem. 2022'!CH27="","",'Dati Generali CER 2 Sem. 2022'!CH27) -> 1.07999219 | I34: ='Dati Generali CER 2 Sem. 2022'!D27 -> 835 | J34: =IF('Dati Generali CER 2 Sem. 2022'!CJ27="","",'Dati Generali CER 2 Sem. 2022'!CJ27) -> 
A35: 26 | B35: ='Dati Generali CER 1 Sem. 2022'!C28 -> FRANCAVILLA DI SICILIA | C35: =IF('Dati Generali CER 2 Sem. 2022'!E28="","",'Dati Generali CER 2 Sem. 2022'!E28) -> 170320 | D35: =IF(C35="","",'Dati Generali CER 2 Sem. 2022'!CE28) -> 646088 | E35: ='Dati Generali CER 2 Sem. 2022'!W28 -> 0.7913788204 | F35: =IF('Dati Generali CER 2 Sem. 2022'!CF28="","",'Dati Generali CER 2 Sem. 2022'!CF28) -> 1.252328535 | G35: =IF('Dati Generali CER 2 Sem. 2022'!CG28="","",'Dati Generali CER 2 Sem. 2022'!CG28) -> 0.2612622563 | H35: =IF('Dati Generali CER 2 Sem. 2022'!CH28="","",'Dati Generali CER 2 Sem. 2022'!CH28) -> 0.9910662789 | I35: ='Dati Generali CER 2 Sem. 2022'!D28 -> 3543 | J35: =IF('Dati Generali CER 2 Sem. 2022'!CJ28="","",'Dati Generali CER 2 Sem. 2022'!CJ28) -> 
A36: 27 | B36: ='Dati Generali CER 1 Sem. 2022'!C29 -> FRAZZANO' | C36: =IF('Dati Generali CER 2 Sem. 2022'!E29="","",'Dati Generali CER 2 Sem. 2022'!E29) -> 29560 | D36: =IF(C36="","",'Dati Generali CER 2 Sem. 2022'!CE29) -> 51360 | E36: ='Dati Generali CER 2 Sem. 2022'!W29 -> 0.6347009392 | F36: =IF('Dati Generali CER 2 Sem. 2022'!CF29="","",'Dati Generali CER 2 Sem. 2022'!CF29) -> 0.7492037627 | G36: =IF('Dati Generali CER 2 Sem. 2022'!CG29="","",'Dati Generali CER 2 Sem. 2022'!CG29) -> 0.2736834309 | H36: =IF('Dati Generali CER 2 Sem. 2022'!CH29="","",'Dati Generali CER 2 Sem. 2022'!CH29) -> 0.4755203318 | I36: ='Dati Generali CER 2 Sem. 2022'!D29 -> 587 | J36: =IF('Dati Generali CER 2 Sem. 2022'!CJ29="","",'Dati Generali CER 2 Sem. 2022'!CJ29) -> 
A37: 28 | B37: ='Dati Generali CER 1 Sem. 2022'!C30 -> FURCI SICULO | C37: =IF('Dati Generali CER 2 Sem. 2022'!E30="","",'Dati Generali CER 2 Sem. 2022'!E30) -> 163760 | D37: =IF(C37="","",'Dati Generali CER 2 Sem. 2022'!CE30) -> 471550 | E37: ='Dati Generali CER 2 Sem. 2022'!W30 -> 0.7422360737 | F37: =IF('Dati Generali CER 2 Sem. 2022'!CF30="","",'Dati Generali CER 2 Sem. 2022'!CF30) -> 1.075294842 | G37: =IF('Dati Generali CER 2 Sem. 2022'!CG30="","",'Dati Generali CER 2 Sem. 2022'!CG30) -> 0.2771722205 | H37: =IF('Dati Generali CER 2 Sem. 2022'!CH30="","",'Dati Generali CER 2 Sem. 2022'!CH30) -> 0.798122622 | I37: ='Dati Generali CER 2 Sem. 2022'!D30 -> 3211 | J37: =IF('Dati Generali CER 2 Sem. 2022'!CJ30="","",'Dati Generali CER 2 Sem. 2022'!CJ30) -> 
A38: 29 | B38: ='Dati Generali CER 1 Sem. 2022'!C31 -> FURNARI | C38: =IF('Dati Generali CER 2 Sem. 2022'!E31="","",'Dati Generali CER 2 Sem. 2022'!E31) -> 251720 | D38: =IF(C38="","",'Dati Generali CER 2 Sem. 2022'!CE31) -> 1113250 | E38: ='Dati Generali CER 2 Sem. 2022'!W31 -> 0.8155856905 | F38: =IF('Dati Generali CER 2 Sem. 2022'!CF31="","",'Dati Generali CER 2 Sem. 2022'!CF31) -> 1.853188913 | G38: =IF('Dati Generali CER 2 Sem. 2022'!CG31="","",'Dati Generali CER 2 Sem. 2022'!CG31) -> 0.3417545536 | H38: =IF('Dati Generali CER 2 Sem. 2022'!CH31="","",'Dati Generali CER 2 Sem. 2022'!CH31) -> 1.511434359 | I38: ='Dati Generali CER 2 Sem. 2022'!D31 -> 4003 | J38: =IF('Dati Generali CER 2 Sem. 2022'!CJ31="","",'Dati Generali CER 2 Sem. 2022'!CJ31) -> 
A39: 30 | B39: ='Dati Generali CER 1 Sem. 2022'!C32 -> GAGGI | C39: =IF('Dati Generali CER 2 Sem. 2022'!E32="","",'Dati Generali CER 2 Sem. 2022'!E32) -> 221170 | D39: =IF(C39="","",'Dati Generali CER 2 Sem. 2022'!CE32) -> 278374 | E39: ='Dati Generali CER 2 Sem. 2022'!W32 -> 0.5572562177 | F39: =IF('Dati Generali CER 2 Sem. 2022'!CF32="","",'Dati Generali CER 2 Sem. 2022'!CF32) -> 0.8783283868 | G39: =IF('Dati Generali CER 2 Sem. 2022'!CG32="","",'Dati Generali CER 2 Sem. 2022'!CG32) -> 0.3888744321 | H39: =IF('Dati Generali CER 2 Sem. 2022'!CH32="","",'Dati Generali CER 2 Sem. 2022'!CH32) -> 0.4894539547 | I39: ='Dati Generali CER 2 Sem. 2022'!D32 -> 3091 | J39: =IF('Dati Generali CER 2 Sem. 2022'!CJ32="","",'Dati Generali CER 2 Sem. 2022'!CJ32) -> 
A40: 31 | B40: ='Dati Generali CER 1 Sem. 2022'!C33 -> GALATI MAMERTINO | C40: =IF('Dati Generali CER 2 Sem. 2022'!E33="","",'Dati Generali CER 2 Sem. 2022'!E33) -> 61340 | D40: =IF(C40="","",'Dati Generali CER 2 Sem. 2022'!CE33) -> 279430 | E40: ='Dati Generali CER 2 Sem. 2022'!W33 -> 0.8199958917 | F40: =IF('Dati Generali CER 2 Sem. 2022'!CF33="","",'Dati Generali CER 2 Sem. 2022'!CF33) -> 0.8191113974 | G40: =IF('Dati Generali CER 2 Sem. 2022'!CG33="","",'Dati Generali CER 2 Sem. 2022'!CG33) -> 0.1474434167 | H40: =IF('Dati Generali CER 2 Sem. 2022'!CH33="","",'Dati Generali CER 2 Sem. 2022'!CH33) -> 0.6716679807 | I40: ='Dati Generali CER 2 Sem. 2022'!D33 -> 2261 | J40: =IF('Dati Generali CER 2 Sem. 2022'!CJ33="","",'Dati Generali CER 2 Sem. 2022'!CJ33) -> 
A41: 32 | B41: ='Dati Generali CER 1 Sem. 2022'!C34 -> GALLODORO | C41: =IF('Dati Generali CER 2 Sem. 2022'!E34="","",'Dati Generali CER 2 Sem. 2022'!E34) -> 51850 | D41: =IF(C41="","",'Dati Generali CER 2 Sem. 2022'!CE34) -> 76097 | E41: ='Dati Generali CER 2 Sem. 2022'!W34 -> 0.5693752338 | F41: =IF('Dati Generali CER 2 Sem. 2022'!CF34="","",'Dati Generali CER 2 Sem. 2022'!CF34) -> 2.161781832 | G41: =IF('Dati Generali CER 2 Sem. 2022'!CG34="","",'Dati Generali CER 2 Sem. 2022'!CG34) -> 0.8386710663 | H41: =IF('Dati Generali CER 2 Sem. 2022'!CH34="","",'Dati Generali CER 2 Sem. 2022'!CH34) -> 1.230865036 | I41: ='Dati Generali CER 2 Sem. 2022'!D34 -> 336 | J41: =IF('Dati Generali CER 2 Sem. 2022'!CJ34="","",'Dati Generali CER 2 Sem. 2022'!CJ34) -> 
A42: 33 | B42: ='Dati Generali CER 1 Sem. 2022'!C35 -> GIARDINI NAXOS | C42: =IF('Dati Generali CER 2 Sem. 2022'!E35="","",'Dati Generali CER 2 Sem. 2022'!E35) -> 2065508 | D42: =IF(C42="","",'Dati Generali CER 2 Sem. 2022'!CE35) -> 1318760 | E42: ='Dati Generali CER 2 Sem. 2022'!W35 -> 0.389673631 | F42: =IF('Dati Generali CER 2 Sem. 2022'!CF35="","",'Dati Generali CER 2 Sem. 2022'!CF35) -> 1.992499282 | G42: =IF('Dati Generali CER 2 Sem. 2022'!CG35="","",'Dati Generali CER 2 Sem. 2022'!CG35) -> 1.216074852 | H42: =IF('Dati Generali CER 2 Sem. 2022'!CH35="","",'Dati Generali CER 2 Sem. 2022'!CH35) -> 0.77642443 | I42: ='Dati Generali CER 2 Sem. 2022'!D35 -> 9231 | J42: =IF('Dati Generali CER 2 Sem. 2022'!CJ35="","",'Dati Generali CER 2 Sem. 2022'!CJ35) -> 
A43: 34 | B43: ='Dati Generali CER 1 Sem. 2022'!C36 -> GIOIOSA MAREA | C43: =IF('Dati Generali CER 2 Sem. 2022'!E36="","",'Dati Generali CER 2 Sem. 2022'!E36) -> 584840 | D43: =IF(C43="","",'Dati Generali CER 2 Sem. 2022'!CE36) -> 1082685 | E43: ='Dati Generali CER 2 Sem. 2022'!W36 -> 0.6492766225 | F43: =IF('Dati Generali CER 2 Sem. 2022'!CF36="","",'Dati Generali CER 2 Sem. 2022'!CF36) -> 1.346002654 | G43: =IF('Dati Generali CER 2 Sem. 2022'!CG36="","",'Dati Generali CER 2 Sem. 2022'!CG36) -> 0.4720745969 | H43: =IF('Dati Generali CER 2 Sem. 2022'!CH36="","",'Dati Generali CER 2 Sem. 2022'!CH36) -> 0.8739280571 | I43: ='Dati Generali CER 2 Sem. 2022'!D36 -> 6733 | J43: =IF('Dati Generali CER 2 Sem. 2022'!CJ36="","",'Dati Generali CER 2 Sem. 2022'!CJ36) -> 
A44: 35 | B44: ='Dati Generali CER 1 Sem. 2022'!C37 -> GRANITI | C44: =IF('Dati Generali CER 2 Sem. 2022'!E37="","",'Dati Generali CER 2 Sem. 2022'!E37) -> 237440 | D44: =IF(C44="","",'Dati Generali CER 2 Sem. 2022'!CE37) -> 32300 | E44: ='Dati Generali CER 2 Sem. 2022'!W37 -> 0.1197449396 | F44: =IF('Dati Generali CER 2 Sem. 2022'!CF37="","",'Dati Generali CER 2 Sem. 2022'!CF37) -> 1.004094699 | G44: =IF('Dati Generali CER 2 Sem. 2022'!CG37="","",'Dati Generali CER 2 Sem. 2022'!CG37) -> 0.8838594401 | H44: =IF('Dati Generali CER 2 Sem. 2022'!CH37="","",'Dati Generali CER 2 Sem. 2022'!CH37) -> 0.1202352591 | I44: ='Dati Generali CER 2 Sem. 2022'!D37 -> 1460 | J44: =IF('Dati Generali CER 2 Sem. 2022'!CJ37="","",'Dati Generali CER 2 Sem. 2022'!CJ37) -> 
A45: 36 | B45: ='Dati Generali CER 1 Sem. 2022'!C38 -> GUALTIERI SICAMINO | C45: =IF('Dati Generali CER 2 Sem. 2022'!E38="","",'Dati Generali CER 2 Sem. 2022'!E38) -> 59050 | D45: =IF(C45="","",'Dati Generali CER 2 Sem. 2022'!CE38) -> 239566 | E45: ='Dati Generali CER 2 Sem. 2022'!W38 -> 0.8022544003 | F45: =IF('Dati Generali CER 2 Sem. 2022'!CF38="","",'Dati Generali CER 2 Sem. 2022'!CF38) -> 1.027160154 | G45: =IF('Dati Generali CER 2 Sem. 2022'!CG38="","",'Dati Generali CER 2 Sem. 2022'!CG38) -> 0.2031164007 | H45: =IF('Dati Generali CER 2 Sem. 2022'!CH38="","",'Dati Generali CER 2 Sem. 2022'!CH38) -> 0.8240437534 | I45: ='Dati Generali CER 2 Sem. 2022'!D38 -> 1580 | J45: =IF('Dati Generali CER 2 Sem. 2022'!CJ38="","",'Dati Generali CER 2 Sem. 2022'!CJ38) -> 
A46: 37 | B46: ='Dati Generali CER 1 Sem. 2022'!C39 -> ITALA | C46: =IF('Dati Generali CER 2 Sem. 2022'!E39="","",'Dati Generali CER 2 Sem. 2022'!E39) -> 129400 | D46: =IF(C46="","",'Dati Generali CER 2 Sem. 2022'!CE39) -> 197560 | E46: ='Dati Generali CER 2 Sem. 2022'!W39 -> 0.6042329337 | F46: =IF('Dati Generali CER 2 Sem. 2022'!CF39="","",'Dati Generali CER 2 Sem. 2022'!CF39) -> 1.174459036 | G46: =IF('Dati Generali CER 2 Sem. 2022'!CG39="","",'Dati Generali CER 2 Sem. 2022'!CG39) -> 0.4648122072 | H46: =IF('Dati Generali CER 2 Sem. 2022'!CH39="","",'Dati Generali CER 2 Sem. 2022'!CH39) -> 0.7096468289 | I46: ='Dati Generali CER 2 Sem. 2022'!D39 -> 1513 | J46: =IF('Dati Generali CER 2 Sem. 2022'!CJ39="","",'Dati Generali CER 2 Sem. 2022'!CJ39) -> 
A47: 38 | B47: ='Dati Generali CER 1 Sem. 2022'!C40 -> LENI | C47: =IF('Dati Generali CER 2 Sem. 2022'!E40="","",'Dati Generali CER 2 Sem. 2022'!E40) -> 90360 | D47: =IF(C47="","",'Dati Generali CER 2 Sem. 2022'!CE40) -> 56300 | E47: ='Dati Generali CER 2 Sem. 2022'!W40 -> 0.3838810855 | F47: =IF('Dati Generali CER 2 Sem. 2022'!CF40="","",'Dati Generali CER 2 Sem. 2022'!CF40) -> 1.168717328 | G47: =IF('Dati Generali CER 2 Sem. 2022'!CG40="","",'Dati Generali CER 2 Sem. 2022'!CG40) -> 0.7200688512 | H47: =IF('Dati Generali CER 2 Sem. 2022'!CH40="","",'Dati Generali CER 2 Sem. 2022'!CH40) -> 0.4486484763 | I47: ='Dati Generali CER 2 Sem. 2022'!D40 -> 682 | J47: =IF('Dati Generali CER 2 Sem. 2022'!CJ40="","",'Dati Generali CER 2 Sem. 2022'!CJ40) -> 
A48: 39 | B48: ='Dati Generali CER 1 Sem. 2022'!C41 -> LETOJANNI | C48: =IF('Dati Generali CER 2 Sem. 2022'!E41="","",'Dati Generali CER 2 Sem. 2022'!E41) -> 540290 | D48: =IF(C48="","",'Dati Generali CER 2 Sem. 2022'!CE41) -> 631990 | E48: ='Dati Generali CER 2 Sem. 2022'!W41 -> 0.5391118163 | F48: =IF('Dati Generali CER 2 Sem. 2022'!CF41="","",'Dati Generali CER 2 Sem. 2022'!CF41) -> 2.241761772 | G48: =IF('Dati Generali CER 2 Sem. 2022'!CG41="","",'Dati Generali CER 2 Sem. 2022'!CG41) -> 1.033201511 | H48: =IF('Dati Generali CER 2 Sem. 2022'!CH41="","",'Dati Generali CER 2 Sem. 2022'!CH41) -> 1.208560261 | I48: ='Dati Generali CER 2 Sem. 2022'!D41 -> 2842 | J48: =IF('Dati Generali CER 2 Sem. 2022'!CJ41="","",'Dati Generali CER 2 Sem. 2022'!CJ41) -> 
A49: 40 | B49: ='Dati Generali CER 1 Sem. 2022'!C42 -> LIBRIZZI | C49: =IF('Dati Generali CER 2 Sem. 2022'!E42="","",'Dati Generali CER 2 Sem. 2022'!E42) -> 85260 | D49: =IF(C49="","",'Dati Generali CER 2 Sem. 2022'!CE42) -> 237370 | E49: ='Dati Generali CER 2 Sem. 2022'!W42 -> 0.7357344326 | F49: =IF('Dati Generali CER 2 Sem. 2022'!CF42="","",'Dati Generali CER 2 Sem. 2022'!CF42) -> 1.110464796 | G49: =IF('Dati Generali CER 2 Sem. 2022'!CG42="","",'Dati Generali CER 2 Sem. 2022'!CG42) -> 0.2934576094 | H49: =IF('Dati Generali CER 2 Sem. 2022'!CH42="","",'Dati Generali CER 2 Sem. 2022'!CH42) -> 0.8170071867 | I49: ='Dati Generali CER 2 Sem. 2022'!D42 -> 1579 | J49: =IF('Dati Generali CER 2 Sem. 2022'!CJ42="","",'Dati Generali CER 2 Sem. 2022'!CJ42) -> 
A50: 41 | B50: ='Dati Generali CER 1 Sem. 2022'!C43 -> LIMINA | C50: =IF('Dati Generali CER 2 Sem. 2022'!E43="","",'Dati Generali CER 2 Sem. 2022'!E43) -> 68146 | D50: =IF(C50="","",'Dati Generali CER 2 Sem. 2022'!CE43) -> 33852 | E50: ='Dati Generali CER 2 Sem. 2022'!W43 -> 0.3318888606 | F50: =IF('Dati Generali CER 2 Sem. 2022'!CF43="","",'Dati Generali CER 2 Sem. 2022'!CF43) -> 0.7604073478 | G50: =IF('Dati Generali CER 2 Sem. 2022'!CG43="","",'Dati Generali CER 2 Sem. 2022'!CG43) -> 0.5080366196 | H50: =IF('Dati Generali CER 2 Sem. 2022'!CH43="","",'Dati Generali CER 2 Sem. 2022'!CH43) -> 0.2523707282 | I50: ='Dati Generali CER 2 Sem. 2022'!D43 -> 729 | J50: =IF('Dati Generali CER 2 Sem. 2022'!CJ43="","",'Dati Generali CER 2 Sem. 2022'!CJ43) -> 
A51: 42 | B51: ='Dati Generali CER 1 Sem. 2022'!C44 -> LIPARI | C51: =IF('Dati Generali CER 2 Sem. 2022'!E44="","",'Dati Generali CER 2 Sem. 2022'!E44) -> 2747660 | D51: =IF(C51="","",'Dati Generali CER 2 Sem. 2022'!CE44) -> 2443360 | E51: ='Dati Generali CER 2 Sem. 2022'!W44 -> 0.4706897681 | F51: =IF('Dati Generali CER 2 Sem. 2022'!CF44="","",'Dati Generali CER 2 Sem. 2022'!CF44) -> 2.245289711 | G51: =IF('Dati Generali CER 2 Sem. 2022'!CG44="","",'Dati Generali CER 2 Sem. 2022'!CG44) -> 1.188454818 | H51: =IF('Dati Generali CER 2 Sem. 2022'!CH44="","",'Dati Generali CER 2 Sem. 2022'!CH44) -> 1.056834893 | I51: ='Dati Generali CER 2 Sem. 2022'!D44 -> 12565 | J51: =IF('Dati Generali CER 2 Sem. 2022'!CJ44="","",'Dati Generali CER 2 Sem. 2022'!CJ44) -> 
A52: 43 | B52: ='Dati Generali CER 1 Sem. 2022'!C45 -> LONGI | C52: =IF('Dati Generali CER 2 Sem. 2022'!E45="","",'Dati Generali CER 2 Sem. 2022'!E45) -> 13480 | D52: =IF(C52="","",'Dati Generali CER 2 Sem. 2022'!CE45) -> 182611 | E52: ='Dati Generali CER 2 Sem. 2022'!W45 -> 0.9312564065 | F52: =IF('Dati Generali CER 2 Sem. 2022'!CF45="","",'Dati Generali CER 2 Sem. 2022'!CF45) -> 0.8067463713 | G52: =IF('Dati Generali CER 2 Sem. 2022'!CG45="","",'Dati Generali CER 2 Sem. 2022'!CG45) -> 0.05545864464 | H52: =IF('Dati Generali CER 2 Sem. 2022'!CH45="","",'Dati Generali CER 2 Sem. 2022'!CH45) -> 0.7512877267 | I52: ='Dati Generali CER 2 Sem. 2022'!D45 -> 1321 | J52: =IF('Dati Generali CER 2 Sem. 2022'!CJ45="","",'Dati Generali CER 2 Sem. 2022'!CJ45) -> 
A53: 44 | B53: ='Dati Generali CER 1 Sem. 2022'!C46 -> MALFA | C53: =IF('Dati Generali CER 2 Sem. 2022'!E46="","",'Dati Generali CER 2 Sem. 2022'!E46) -> 145300 | D53: =IF(C53="","",'Dati Generali CER 2 Sem. 2022'!CE46) -> 187020 | E53: ='Dati Generali CER 2 Sem. 2022'!W46 -> 0.5627708233 | F53: =IF('Dati Generali CER 2 Sem. 2022'!CF46="","",'Dati Generali CER 2 Sem. 2022'!CF46) -> 1.81698889 | G53: =IF('Dati Generali CER 2 Sem. 2022'!CG46="","",'Dati Generali CER 2 Sem. 2022'!CG46) -> 0.7944405564 | H53: =IF('Dati Generali CER 2 Sem. 2022'!CH46="","",'Dati Generali CER 2 Sem. 2022'!CH46) -> 1.022548333 | I53: ='Dati Generali CER 2 Sem. 2022'!D46 -> 994 | J53: =IF('Dati Generali CER 2 Sem. 2022'!CJ46="","",'Dati Generali CER 2 Sem. 2022'!CJ46) -> 
A54: 45 | B54: ='Dati Generali CER 1 Sem. 2022'!C47 -> MALVAGNA | C54: =IF('Dati Generali CER 2 Sem. 2022'!E47="","",'Dati Generali CER 2 Sem. 2022'!E47) -> 76640 | D54: =IF(C54="","",'Dati Generali CER 2 Sem. 2022'!CE47) -> 22460 | E54: ='Dati Generali CER 2 Sem. 2022'!W47 -> 0.2266397578 | F54: =IF('Dati Generali CER 2 Sem. 2022'!CF47="","",'Dati Generali CER 2 Sem. 2022'!CF47) -> 0.8562590724 | G54: =IF('Dati Generali CER 2 Sem. 2022'!CG47="","",'Dati Generali CER 2 Sem. 2022'!CG47) -> 0.6621967236 | H54: =IF('Dati Generali CER 2 Sem. 2022'!CH47="","",'Dati Generali CER 2 Sem. 2022'!CH47) -> 0.1940623488 | I54: ='Dati Generali CER 2 Sem. 2022'!D47 -> 629 | J54: =IF('Dati Generali CER 2 Sem. 2022'!CJ47="","",'Dati Generali CER 2 Sem. 2022'!CJ47) -> 
A55: 46 | B55: ='Dati Generali CER 1 Sem. 2022'!C48 -> MANDANICI | C55: =IF('Dati Generali CER 2 Sem. 2022'!E48="","",'Dati Generali CER 2 Sem. 2022'!E48) -> 13520 | D55: =IF(C55="","",'Dati Generali CER 2 Sem. 2022'!CE48) -> 74930 | E55: ='Dati Generali CER 2 Sem. 2022'!W48 -> 0.8471452798 | F55: =IF('Dati Generali CER 2 Sem. 2022'!CF48="","",'Dati Generali CER 2 Sem. 2022'!CF48) -> 0.9518941025 | G55: =IF('Dati Generali CER 2 Sem. 2022'!CG48="","",'Dati Generali CER 2 Sem. 2022'!CG48) -> 0.1455015067 | H55: =IF('Dati Generali CER 2 Sem. 2022'!CH48="","",'Dati Generali CER 2 Sem. 2022'!CH48) -> 0.8063925958 | I55: ='Dati Generali CER 2 Sem. 2022'!D48 -> 505 | J55: =IF('Dati Generali CER 2 Sem. 2022'!CJ48="","",'Dati Generali CER 2 Sem. 2022'!CJ48) -> 
A56: 47 | B56: ='Dati Generali CER 1 Sem. 2022'!C49 -> MAZZARRA' S. ANDREA | C56: =IF('Dati Generali CER 2 Sem. 2022'!E49="","",'Dati Generali CER 2 Sem. 2022'!E49) -> 47140 | D56: =IF(C56="","",'Dati Generali CER 2 Sem. 2022'!CE49) -> 174400 | E56: ='Dati Generali CER 2 Sem. 2022'!W49 -> 0.7872167554 | F56: =IF('Dati Generali CER 2 Sem. 2022'!CF49="","",'Dati Generali CER 2 Sem. 2022'!CF49) -> 0.8674508207 | G56: =IF('Dati Generali CER 2 Sem. 2022'!CG49="","",'Dati Generali CER 2 Sem. 2022'!CG49) -> 0.1845790001 | H56: =IF('Dati Generali CER 2 Sem. 2022'!CH49="","",'Dati Generali CER 2 Sem. 2022'!CH49) -> 0.6828718206 | I56: ='Dati Generali CER 2 Sem. 2022'!D49 -> 1388 | J56: =IF('Dati Generali CER 2 Sem. 2022'!CJ49="","",'Dati Generali CER 2 Sem. 2022'!CJ49) -> 
A57: 48 | B57: ='Dati Generali CER 1 Sem. 2022'!C50 -> MERI' | C57: =IF('Dati Generali CER 2 Sem. 2022'!E50="","",'Dati Generali CER 2 Sem. 2022'!E50) -> 135000 | D57: =IF(C57="","",'Dati Generali CER 2 Sem. 2022'!CE50) -> 191020 | E57: ='Dati Generali CER 2 Sem. 2022'!W50 -> 0.5683258457 | F57: =IF('Dati Generali CER 2 Sem. 2022'!CF50="","",'Dati Generali CER 2 Sem. 2022'!CF50) -> 0.8008262966 | G57: =IF('Dati Generali CER 2 Sem. 2022'!CG50="","",'Dati Generali CER 2 Sem. 2022'!CG50) -> 0.3216552618 | H57: =IF('Dati Generali CER 2 Sem. 2022'!CH50="","",'Dati Generali CER 2 Sem. 2022'!CH50) -> 0.4551302823 | I57: ='Dati Generali CER 2 Sem. 2022'!D50 -> 2281 | J57: =IF('Dati Generali CER 2 Sem. 2022'!CJ50="","",'Dati Generali CER 2 Sem. 2022'!CJ50) -> 
A58: 49 | B58: ='Dati Generali CER 1 Sem. 2022'!C51 -> MESSINA | C58: =IF('Dati Generali CER 2 Sem. 2022'!E51="","",'Dati Generali CER 2 Sem. 2022'!E51) -> 22695640 | D58: =IF(C58="","",'Dati Generali CER 2 Sem. 2022'!CE51) -> 27030816 | E58: ='Dati Generali CER 2 Sem. 2022'!W51 -> 0.543590237 | F58: =IF('Dati Generali CER 2 Sem. 2022'!CF51="","",'Dati Generali CER 2 Sem. 2022'!CF51) -> 1.235236616 | G58: =IF('Dati Generali CER 2 Sem. 2022'!CG51="","",'Dati Generali CER 2 Sem. 2022'!CG51) -> 0.5637740512 | H58: =IF('Dati Generali CER 2 Sem. 2022'!CH51="","",'Dati Generali CER 2 Sem. 2022'!CH51) -> 0.6714625648 | I58: ='Dati Generali CER 2 Sem. 2022'!D51 -> 218786 | J58: =IF('Dati Generali CER 2 Sem. 2022'!CJ51="","",'Dati Generali CER 2 Sem. 2022'!CJ51) -> 
A59: 50 | B59: ='Dati Generali CER 1 Sem. 2022'!C52 -> MILAZZO | C59: =IF('Dati Generali CER 2 Sem. 2022'!E52="","",'Dati Generali CER 2 Sem. 2022'!E52) -> 2721780 | D59: =IF(C59="","",'Dati Generali CER 2 Sem. 2022'!CE52) -> 5014070 | E59: ='Dati Generali CER 2 Sem. 2022'!W52 -> 0.6481601892 | F59: =IF('Dati Generali CER 2 Sem. 2022'!CF52="","",'Dati Generali CER 2 Sem. 2022'!CF52) -> 1.399416271 | G59: =IF('Dati Generali CER 2 Sem. 2022'!CG52="","",'Dati Generali CER 2 Sem. 2022'!CG52) -> 0.4923703561 | H59: =IF('Dati Generali CER 2 Sem. 2022'!CH52="","",'Dati Generali CER 2 Sem. 2022'!CH52) -> 0.9070459153 | I59: ='Dati Generali CER 2 Sem. 2022'!D52 -> 30043 | J59: =IF('Dati Generali CER 2 Sem. 2022'!CJ52="","",'Dati Generali CER 2 Sem. 2022'!CJ52) -> 
A60: 51 | B60: ='Dati Generali CER 1 Sem. 2022'!C53 -> MILITELLO ROSMARINO | C60: =IF('Dati Generali CER 2 Sem. 2022'!E53="","",'Dati Generali CER 2 Sem. 2022'!E53) -> 49600 | D60: =IF(C60="","",'Dati Generali CER 2 Sem. 2022'!CE53) -> 112120 | E60: ='Dati Generali CER 2 Sem. 2022'!W53 -> 0.6932970566 | F60: =IF('Dati Generali CER 2 Sem. 2022'!CF53="","",'Dati Generali CER 2 Sem. 2022'!CF53) -> 0.7557291861 | G60: =IF('Dati Generali CER 2 Sem. 2022'!CG53="","",'Dati Generali CER 2 Sem. 2022'!CG53) -> 0.2317843658 | H60: =IF('Dati Generali CER 2 Sem. 2022'!CH53="","",'Dati Generali CER 2 Sem. 2022'!CH53) -> 0.5239448204 | I60: ='Dati Generali CER 2 Sem. 2022'!D53 -> 1163 | J60: =IF('Dati Generali CER 2 Sem. 2022'!CJ53="","",'Dati Generali CER 2 Sem. 2022'!CJ53) -> 
A61: 52 | B61: ='Dati Generali CER 1 Sem. 2022'!C54 -> MIRTO | C61: =IF('Dati Generali CER 2 Sem. 2022'!E54="","",'Dati Generali CER 2 Sem. 2022'!E54) -> 12886 | D61: =IF(C61="","",'Dati Generali CER 2 Sem. 2022'!CE54) -> 153221 | E61: ='Dati Generali CER 2 Sem. 2022'!W54 -> 0.9224234981 | F61: =IF('Dati Generali CER 2 Sem. 2022'!CF54="","",'Dati Generali CER 2 Sem. 2022'!CF54) -> 1.01547293 | G61: =IF('Dati Generali CER 2 Sem. 2022'!CG54="","",'Dati Generali CER 2 Sem. 2022'!CG54) -> 0.07877683768 | H61: =IF('Dati Generali CER 2 Sem. 2022'!CH54="","",'Dati Generali CER 2 Sem. 2022'!CH54) -> 0.9366960923 | I61: ='Dati Generali CER 2 Sem. 2022'!D54 -> 889 | J61: =IF('Dati Generali CER 2 Sem. 2022'!CJ54="","",'Dati Generali CER 2 Sem. 2022'!CJ54) -> 
A62: 53 | B62: ='Dati Generali CER 1 Sem. 2022'!C55 -> MISTRETTA | C62: =IF('Dati Generali CER 2 Sem. 2022'!E55="","",'Dati Generali CER 2 Sem. 2022'!E55) -> 202100 | D62: =IF(C62="","",'Dati Generali CER 2 Sem. 2022'!CE55) -> 584663 | E62: ='Dati Generali CER 2 Sem. 2022'!W55 -> 0.7431246767 | F62: =IF('Dati Generali CER 2 Sem. 2022'!CF55="","",'Dati Generali CER 2 Sem. 2022'!CF55) -> 0.979808861 | G62: =IF('Dati Generali CER 2 Sem. 2022'!CG55="","",'Dati Generali CER 2 Sem. 2022'!CG55) -> 0.251688718 | H62: =IF('Dati Generali CER 2 Sem. 2022'!CH55="","",'Dati Generali CER 2 Sem. 2022'!CH55) -> 0.7281201431 | I62: ='Dati Generali CER 2 Sem. 2022'!D55 -> 4364 | J62: =IF('Dati Generali CER 2 Sem. 2022'!CJ55="","",'Dati Generali CER 2 Sem. 2022'!CJ55) -> 
A63: 54 | B63: ='Dati Generali CER 1 Sem. 2022'!C56 -> MOJO ALCANTARA | C63: =IF('Dati Generali CER 2 Sem. 2022'!E56="","",'Dati Generali CER 2 Sem. 2022'!E56) -> 75080 | D63: =IF(C63="","",'Dati Generali CER 2 Sem. 2022'!CE56) -> 24300 | E63: ='Dati Generali CER 2 Sem. 2022'!W56 -> 0.2445159992 | F63: =IF('Dati Generali CER 2 Sem. 2022'!CF56="","",'Dati Generali CER 2 Sem. 2022'!CF56) -> 0.7977971871 | G63: =IF('Dati Generali CER 2 Sem. 2022'!CG56="","",'Dati Generali CER 2 Sem. 2022'!CG56) -> 0.6027230107 | H63: =IF('Dati Generali CER 2 Sem. 2022'!CH56="","",'Dati Generali CER 2 Sem. 2022'!CH56) -> 0.1950741764 | I63: ='Dati Generali CER 2 Sem. 2022'!D56 -> 677 | J63: =IF('Dati Generali CER 2 Sem. 2022'!CJ56="","",'Dati Generali CER 2 Sem. 2022'!CJ56) -> 
A64: 55 | B64: ='Dati Generali CER 1 Sem. 2022'!C57 -> MONFORTE S. GIORGIO | C64: =IF('Dati Generali CER 2 Sem. 2022'!E57="","",'Dati Generali CER 2 Sem. 2022'!E57) -> 408340 | D64: =IF(C64="","",'Dati Generali CER 2 Sem. 2022'!CE57) -> 267685 | E64: ='Dati Generali CER 2 Sem. 2022'!W57 -> 0.3885884752 | F64: =IF('Dati Generali CER 2 Sem. 2022'!CF57="","",'Dati Generali CER 2 Sem. 2022'!CF57) -> 1.49275579 | G64: =IF('Dati Generali CER 2 Sem. 2022'!CG57="","",'Dati Generali CER 2 Sem. 2022'!CG57) -> 0.8848640871 | H64: =IF('Dati Generali CER 2 Sem. 2022'!CH57="","",'Dati Generali CER 2 Sem. 2022'!CH57) -> 0.5800676964 | I64: ='Dati Generali CER 2 Sem. 2022'!D57 -> 2508 | J64: =IF('Dati Generali CER 2 Sem. 2022'!CJ57="","",'Dati Generali CER 2 Sem. 2022'!CJ57) -> 
A65: 56 | B65: ='Dati Generali CER 1 Sem. 2022'!C58 -> MONGIUFFI MELIA | C65: =IF('Dati Generali CER 2 Sem. 2022'!E58="","",'Dati Generali CER 2 Sem. 2022'!E58) -> 41250 | D65: =IF(C65="","",'Dati Generali CER 2 Sem. 2022'!CE58) -> 49800 | E65: ='Dati Generali CER 2 Sem. 2022'!W58 -> 0.5469522241 | F65: =IF('Dati Generali CER 2 Sem. 2022'!CF58="","",'Dati Generali CER 2 Sem. 2022'!CF58) -> 0.9371912055 | G65: =IF('Dati Generali CER 2 Sem. 2022'!CG58="","",'Dati Generali CER 2 Sem. 2022'!CG58) -> 0.4245923913 | H65: =IF('Dati Generali CER 2 Sem. 2022'!CH58="","",'Dati Generali CER 2 Sem. 2022'!CH58) -> 0.5125988142 | I65: ='Dati Generali CER 2 Sem. 2022'!D58 -> 528 | J65: =IF('Dati Generali CER 2 Sem. 2022'!CJ58="","",'Dati Generali CER 2 Sem. 2022'!CJ58) -> 
A66: 57 | B66: ='Dati Generali CER 1 Sem. 2022'!C59 -> MONTAGNAREALE | C66: =IF('Dati Generali CER 2 Sem. 2022'!E59="","",'Dati Generali CER 2 Sem. 2022'!E59) -> 278083 | D66: =IF(C66="","",'Dati Generali CER 2 Sem. 2022'!CE59) -> 78280 | E66: ='Dati Generali CER 2 Sem. 2022'!W59 -> 0.2196636576 | F66: =IF('Dati Generali CER 2 Sem. 2022'!CF59="","",'Dati Generali CER 2 Sem. 2022'!CF59) -> 1.390348482 | G66: =IF('Dati Generali CER 2 Sem. 2022'!CG59="","",'Dati Generali CER 2 Sem. 2022'!CG59) -> 1.084939449 | H66: =IF('Dati Generali CER 2 Sem. 2022'!CH59="","",'Dati Generali CER 2 Sem. 2022'!CH59) -> 0.3054090327 | I66: ='Dati Generali CER 2 Sem. 2022'!D59 -> 1393 | J66: =IF('Dati Generali CER 2 Sem. 2022'!CJ59="","",'Dati Generali CER 2 Sem. 2022'!CJ59) -> 
A67: 58 | B67: ='Dati Generali CER 1 Sem. 2022'!C60 -> MONTALBANO ELICONA | C67: =IF('Dati Generali CER 2 Sem. 2022'!E60="","",'Dati Generali CER 2 Sem. 2022'!E60) -> 134860 | D67: =IF(C67="","",'Dati Generali CER 2 Sem. 2022'!CE60) -> 240088 | E67: ='Dati Generali CER 2 Sem. 2022'!W60 -> 0.6403234582 | F67: =IF('Dati Generali CER 2 Sem. 2022'!CF60="","",'Dati Generali CER 2 Sem. 2022'!CF60) -> 0.9998826642 | G67: =IF('Dati Generali CER 2 Sem. 2022'!CG60="","",'Dati Generali CER 2 Sem. 2022'!CG60) -> 0.3596343389 | H67: =IF('Dati Generali CER 2 Sem. 2022'!CH60="","",'Dati Generali CER 2 Sem. 2022'!CH60) -> 0.6402483253 | I67: ='Dati Generali CER 2 Sem. 2022'!D60 -> 2038 | J67: =IF('Dati Generali CER 2 Sem. 2022'!CJ60="","",'Dati Generali CER 2 Sem. 2022'!CJ60) -> 
A68: 59 | B68: ='Dati Generali CER 1 Sem. 2022'!C61 -> MOTTA CAMASTRA | C68: =IF('Dati Generali CER 2 Sem. 2022'!E61="","",'Dati Generali CER 2 Sem. 2022'!E61) -> 74160 | D68: =IF(C68="","",'Dati Generali CER 2 Sem. 2022'!CE61) -> 5720 | E68: ='Dati Generali CER 2 Sem. 2022'!W61 -> 0.07160741112 | F68: =IF('Dati Generali CER 2 Sem. 2022'!CF61="","",'Dati Generali CER 2 Sem. 2022'!CF61) -> 0.5467637718 | G68: =IF('Dati Generali CER 2 Sem. 2022'!CG61="","",'Dati Generali CER 2 Sem. 2022'!CG61) -> 0.5076114336 | H68: =IF('Dati Generali CER 2 Sem. 2022'!CH61="","",'Dati Generali CER 2 Sem. 2022'!CH61) -> 0.03915233819 | I68: ='Dati Generali CER 2 Sem. 2022'!D61 -> 794 | J68: =IF('Dati Generali CER 2 Sem. 2022'!CJ61="","",'Dati Generali CER 2 Sem. 2022'!CJ61) -> 
A69: 60 | B69: ='Dati Generali CER 1 Sem. 2022'!C62 -> MOTTA D'AFFERMO | C69: =IF('Dati Generali CER 2 Sem. 2022'!E62="","",'Dati Generali CER 2 Sem. 2022'!E62) -> 22300 | D69: =IF(C69="","",'Dati Generali CER 2 Sem. 2022'!CE62) -> 67640 | E69: ='Dati Generali CER 2 Sem. 2022'!W62 -> 0.7520569268 | F69: =IF('Dati Generali CER 2 Sem. 2022'!CF62="","",'Dati Generali CER 2 Sem. 2022'!CF62) -> 0.7439944411 | G69: =IF('Dati Generali CER 2 Sem. 2022'!CG62="","",'Dati Generali CER 2 Sem. 2022'!CG62) -> 0.1844682681 | H69: =IF('Dati Generali CER 2 Sem. 2022'!CH62="","",'Dati Generali CER 2 Sem. 2022'!CH62) -> 0.559526173 | I69: ='Dati Generali CER 2 Sem. 2022'!D62 -> 657 | J69: =IF('Dati Generali CER 2 Sem. 2022'!CJ62="","",'Dati Generali CER 2 Sem. 2022'!CJ62) -> 
A70: 61 | B70: ='Dati Generali CER 1 Sem. 2022'!C63 -> NASO | C70: =IF('Dati Generali CER 2 Sem. 2022'!E63="","",'Dati Generali CER 2 Sem. 2022'!E63) -> 88840 | D70: =IF(C70="","",'Dati Generali CER 2 Sem. 2022'!CE63) -> 502420 | E70: ='Dati Generali CER 2 Sem. 2022'!W63 -> 0.8497446132 | F70: =IF('Dati Generali CER 2 Sem. 2022'!CF63="","",'Dati Generali CER 2 Sem. 2022'!CF63) -> 0.9281830056 | G70: =IF('Dati Generali CER 2 Sem. 2022'!CG63="","",'Dati Generali CER 2 Sem. 2022'!CG63) -> 0.1394644965 | H70: =IF('Dati Generali CER 2 Sem. 2022'!CH63="","",'Dati Generali CER 2 Sem. 2022'!CH63) -> 0.788718509 | I70: ='Dati Generali CER 2 Sem. 2022'!D63 -> 3462 | J70: =IF('Dati Generali CER 2 Sem. 2022'!CJ63="","",'Dati Generali CER 2 Sem. 2022'!CJ63) -> 
A71: 62 | B71: ='Dati Generali CER 1 Sem. 2022'!C64 -> NIZZA DI SICILIA | C71: =IF('Dati Generali CER 2 Sem. 2022'!E64="","",'Dati Generali CER 2 Sem. 2022'!E64) -> 229740 | D71: =IF(C71="","",'Dati Generali CER 2 Sem. 2022'!CE64) -> 481085 | E71: ='Dati Generali CER 2 Sem. 2022'!W64 -> 0.6767980867 | F71: =IF('Dati Generali CER 2 Sem. 2022'!CF64="","",'Dati Generali CER 2 Sem. 2022'!CF64) -> 1.095626588 | G71: =IF('Dati Generali CER 2 Sem. 2022'!CG64="","",'Dati Generali CER 2 Sem. 2022'!CG64) -> 0.3541086093 | H71: =IF('Dati Generali CER 2 Sem. 2022'!CH64="","",'Dati Generali CER 2 Sem. 2022'!CH64) -> 0.7415179782 | I71: ='Dati Generali CER 2 Sem. 2022'!D64 -> 3526 | J71: =IF('Dati Generali CER 2 Sem. 2022'!CJ64="","",'Dati Generali CER 2 Sem. 2022'!CJ64) -> 
A72: 63 | B72: ='Dati Generali CER 1 Sem. 2022'!C65 -> NOVARA DI SICILIA | C72: =IF('Dati Generali CER 2 Sem. 2022'!E65="","",'Dati Generali CER 2 Sem. 2022'!E65) -> 90900 | D72: =IF(C72="","",'Dati Generali CER 2 Sem. 2022'!CE65) -> 169658 | E72: ='Dati Generali CER 2 Sem. 2022'!W65 -> 0.6511333369 | F72: =IF('Dati Generali CER 2 Sem. 2022'!CF65="","",'Dati Generali CER 2 Sem. 2022'!CF65) -> 1.206197689 | G72: =IF('Dati Generali CER 2 Sem. 2022'!CG65="","",'Dati Generali CER 2 Sem. 2022'!CG65) -> 0.4208021628 | H72: =IF('Dati Generali CER 2 Sem. 2022'!CH65="","",'Dati Generali CER 2 Sem. 2022'!CH65) -> 0.7853955263 | I72: ='Dati Generali CER 2 Sem. 2022'!D65 -> 1174 | J72: =IF('Dati Generali CER 2 Sem. 2022'!CJ65="","",'Dati Generali CER 2 Sem. 2022'!CJ65) -> 
A73: 64 | B73: ='Dati Generali CER 1 Sem. 2022'!C66 -> OLIVERI | C73: =IF('Dati Generali CER 2 Sem. 2022'!E66="","",'Dati Generali CER 2 Sem. 2022'!E66) -> 310960 | D73: =IF(C73="","",'Dati Generali CER 2 Sem. 2022'!CE66) -> 556558 | E73: ='Dati Generali CER 2 Sem. 2022'!W66 -> 0.6415521061 | F73: =IF('Dati Generali CER 2 Sem. 2022'!CF66="","",'Dati Generali CER 2 Sem. 2022'!CF66) -> 2.260197382 | G73: =IF('Dati Generali CER 2 Sem. 2022'!CG66="","",'Dati Generali CER 2 Sem. 2022'!CG66) -> 0.8101629914 | H73: =IF('Dati Generali CER 2 Sem. 2022'!CH66="","",'Dati Generali CER 2 Sem. 2022'!CH66) -> 1.450034391 | I73: ='Dati Generali CER 2 Sem. 2022'!D66 -> 2086 | J73: =IF('Dati Generali CER 2 Sem. 2022'!CJ66="","",'Dati Generali CER 2 Sem. 2022'!CJ66) -> 
A74: 65 | B74: ='Dati Generali CER 1 Sem. 2022'!C67 -> PACE DEL MELA | C74: =IF('Dati Generali CER 2 Sem. 2022'!E67="","",'Dati Generali CER 2 Sem. 2022'!E67) -> 446230 | D74: =IF(C74="","",'Dati Generali CER 2 Sem. 2022'!CE67) -> 743504 | E74: ='Dati Generali CER 2 Sem. 2022'!W67 -> 0.6249329682 | F74: =IF('Dati Generali CER 2 Sem. 2022'!CF67="","",'Dati Generali CER 2 Sem. 2022'!CF67) -> 1.081261815 | G74: =IF('Dati Generali CER 2 Sem. 2022'!CG67="","",'Dati Generali CER 2 Sem. 2022'!CG67) -> 0.4055456594 | H74: =IF('Dati Generali CER 2 Sem. 2022'!CH67="","",'Dati Generali CER 2 Sem. 2022'!CH67) -> 0.6757161553 | I74: ='Dati Generali CER 2 Sem. 2022'!D67 -> 5980 | J74: =IF('Dati Generali CER 2 Sem. 2022'!CJ67="","",'Dati Generali CER 2 Sem. 2022'!CJ67) -> 
A75: 66 | B75: ='Dati Generali CER 1 Sem. 2022'!C68 -> PAGLIARA | C75: =IF('Dati Generali CER 2 Sem. 2022'!E68="","",'Dati Generali CER 2 Sem. 2022'!E68) -> 18240 | D75: =IF(C75="","",'Dati Generali CER 2 Sem. 2022'!CE68) -> 105070 | E75: ='Dati Generali CER 2 Sem. 2022'!W68 -> 0.8520801233 | F75: =IF('Dati Generali CER 2 Sem. 2022'!CF68="","",'Dati Generali CER 2 Sem. 2022'!CF68) -> 0.5994302714 | G75: =IF('Dati Generali CER 2 Sem. 2022'!CG68="","",'Dati Generali CER 2 Sem. 2022'!CG68) -> 0.08866765186 | H75: =IF('Dati Generali CER 2 Sem. 2022'!CH68="","",'Dati Generali CER 2 Sem. 2022'!CH68) -> 0.5107626196 | I75: ='Dati Generali CER 2 Sem. 2022'!D68 -> 1118 | J75: =IF('Dati Generali CER 2 Sem. 2022'!CJ68="","",'Dati Generali CER 2 Sem. 2022'!CJ68) -> 
A76: 67 | B76: ='Dati Generali CER 1 Sem. 2022'!C69 -> PATTI | C76: =IF('Dati Generali CER 2 Sem. 2022'!E69="","",'Dati Generali CER 2 Sem. 2022'!E69) -> 983040 | D76: =IF(C76="","",'Dati Generali CER 2 Sem. 2022'!CE69) -> 2192340 | E76: ='Dati Generali CER 2 Sem. 2022'!W69 -> 0.6904181547 | F76: =IF('Dati Generali CER 2 Sem. 2022'!CF69="","",'Dati Generali CER 2 Sem. 2022'!CF69) -> 1.358965273 | G76: =IF('Dati Generali CER 2 Sem. 2022'!CG69="","",'Dati Generali CER 2 Sem. 2022'!CG69) -> 0.4207109769 | H76: =IF('Dati Generali CER 2 Sem. 2022'!CH69="","",'Dati Generali CER 2 Sem. 2022'!CH69) -> 0.938254296 | I76: ='Dati Generali CER 2 Sem. 2022'!D69 -> 12699 | J76: =IF('Dati Generali CER 2 Sem. 2022'!CJ69="","",'Dati Generali CER 2 Sem. 2022'!CJ69) -> 
A77: 68 | B77: ='Dati Generali CER 1 Sem. 2022'!C70 -> PETTINEO | C77: =IF('Dati Generali CER 2 Sem. 2022'!E70="","",'Dati Generali CER 2 Sem. 2022'!E70) -> 21560 | D77: =IF(C77="","",'Dati Generali CER 2 Sem. 2022'!CE70) -> 112510 | E77: ='Dati Generali CER 2 Sem. 2022'!W70 -> 0.8391884836 | F77: =IF('Dati Generali CER 2 Sem. 2022'!CF70="","",'Dati Generali CER 2 Sem. 2022'!CF70) -> 0.5895156184 | G77: =IF('Dati Generali CER 2 Sem. 2022'!CG70="","",'Dati Generali CER 2 Sem. 2022'!CG70) -> 0.09480090052 | H77: =IF('Dati Generali CER 2 Sem. 2022'!CH70="","",'Dati Generali CER 2 Sem. 2022'!CH70) -> 0.4947147179 | I77: ='Dati Generali CER 2 Sem. 2022'!D70 -> 1236 | J77: =IF('Dati Generali CER 2 Sem. 2022'!CJ70="","",'Dati Generali CER 2 Sem. 2022'!CJ70) -> 
A78: 69 | B78: ='Dati Generali CER 1 Sem. 2022'!C71 -> PIRAINO | C78: =IF('Dati Generali CER 2 Sem. 2022'!E71="","",'Dati Generali CER 2 Sem. 2022'!E71) -> 216340 | D78: =IF(C78="","",'Dati Generali CER 2 Sem. 2022'!CE71) -> 702220 | E78: ='Dati Generali CER 2 Sem. 2022'!W71 -> 0.7644791848 | F78: =IF('Dati Generali CER 2 Sem. 2022'!CF71="","",'Dati Generali CER 2 Sem. 2022'!CF71) -> 1.321380072 | G78: =IF('Dati Generali CER 2 Sem. 2022'!CG71="","",'Dati Generali CER 2 Sem. 2022'!CG71) -> 0.3112125118 | H78: =IF('Dati Generali CER 2 Sem. 2022'!CH71="","",'Dati Generali CER 2 Sem. 2022'!CH71) -> 1.01016756 | I78: ='Dati Generali CER 2 Sem. 2022'!D71 -> 3778 | J78: =IF('Dati Generali CER 2 Sem. 2022'!CJ71="","",'Dati Generali CER 2 Sem. 2022'!CJ71) -> 
A79: 70 | B79: ='Dati Generali CER 1 Sem. 2022'!C72 -> RACCUJA | C79: =IF('Dati Generali CER 2 Sem. 2022'!E72="","",'Dati Generali CER 2 Sem. 2022'!E72) -> 32060 | D79: =IF(C79="","",'Dati Generali CER 2 Sem. 2022'!CE72) -> 93120 | E79: ='Dati Generali CER 2 Sem. 2022'!W72 -> 0.7438888001 | F79: =IF('Dati Generali CER 2 Sem. 2022'!CF72="","",'Dati Generali CER 2 Sem. 2022'!CF72) -> 0.7874144525 | G79: =IF('Dati Generali CER 2 Sem. 2022'!CG72="","",'Dati Generali CER 2 Sem. 2022'!CG72) -> 0.2016656602 | H79: =IF('Dati Generali CER 2 Sem. 2022'!CH72="","",'Dati Generali CER 2 Sem. 2022'!CH72) -> 0.5857487923 | I79: ='Dati Generali CER 2 Sem. 2022'!D72 -> 864 | J79: =IF('Dati Generali CER 2 Sem. 2022'!CJ72="","",'Dati Generali CER 2 Sem. 2022'!CJ72) -> 
A80: 71 | B80: ='Dati Generali CER 1 Sem. 2022'!C73 -> REITANO | C80: =IF('Dati Generali CER 2 Sem. 2022'!E73="","",'Dati Generali CER 2 Sem. 2022'!E73) -> 86340 | D80: =IF(C80="","",'Dati Generali CER 2 Sem. 2022'!CE73) -> 211860 | E80: ='Dati Generali CER 2 Sem. 2022'!W73 -> 0.7104627767 | F80: =IF('Dati Generali CER 2 Sem. 2022'!CF73="","",'Dati Generali CER 2 Sem. 2022'!CF73) -> 2.241565939 | G80: =IF('Dati Generali CER 2 Sem. 2022'!CG73="","",'Dati Generali CER 2 Sem. 2022'!CG73) -> 0.6490167779 | H80: =IF('Dati Generali CER 2 Sem. 2022'!CH73="","",'Dati Generali CER 2 Sem. 2022'!CH73) -> 1.592549161 | I80: ='Dati Generali CER 2 Sem. 2022'!D73 -> 723 | J80: =IF('Dati Generali CER 2 Sem. 2022'!CJ73="","",'Dati Generali CER 2 Sem. 2022'!CJ73) -> 
A81: 72 | B81: ='Dati Generali CER 1 Sem. 2022'!C74 -> ROCCAFIORITA | C81: =IF('Dati Generali CER 2 Sem. 2022'!E74="","",'Dati Generali CER 2 Sem. 2022'!E74) -> 6880 | D81: =IF(C81="","",'Dati Generali CER 2 Sem. 2022'!CE74) -> 18265 | E81: ='Dati Generali CER 2 Sem. 2022'!W74 -> 0.7263869557 | F81: =IF('Dati Generali CER 2 Sem. 2022'!CF74="","",'Dati Generali CER 2 Sem. 2022'!CF74) -> 0.789928374 | G81: =IF('Dati Generali CER 2 Sem. 2022'!CG74="","",'Dati Generali CER 2 Sem. 2022'!CG74) -> 0.2161347072 | H81: =IF('Dati Generali CER 2 Sem. 2022'!CH74="","",'Dati Generali CER 2 Sem. 2022'!CH74) -> 0.5737936668 | I81: ='Dati Generali CER 2 Sem. 2022'!D74 -> 173 | J81: =IF('Dati Generali CER 2 Sem. 2022'!CJ74="","",'Dati Generali CER 2 Sem. 2022'!CJ74) -> 
A82: 73 | B82: ='Dati Generali CER 1 Sem. 2022'!C75 -> ROCCALUMERA | C82: =IF('Dati Generali CER 2 Sem. 2022'!E75="","",'Dati Generali CER 2 Sem. 2022'!E75) -> 370500 | D82: =IF(C82="","",'Dati Generali CER 2 Sem. 2022'!CE75) -> 859420 | E82: ='Dati Generali CER 2 Sem. 2022'!W75 -> 0.698760895 | F82: =IF('Dati Generali CER 2 Sem. 2022'!CF75="","",'Dati Generali CER 2 Sem. 2022'!CF75) -> 1.696534981 | G82: =IF('Dati Generali CER 2 Sem. 2022'!CG75="","",'Dati Generali CER 2 Sem. 2022'!CG75) -> 0.5110626793 | H82: =IF('Dati Generali CER 2 Sem. 2022'!CH75="","",'Dati Generali CER 2 Sem. 2022'!CH75) -> 1.185472302 | I82: ='Dati Generali CER 2 Sem. 2022'!D75 -> 3940 | J82: =IF('Dati Generali CER 2 Sem. 2022'!CJ75="","",'Dati Generali CER 2 Sem. 2022'!CJ75) -> 
A83: 74 | B83: ='Dati Generali CER 1 Sem. 2022'!C76 -> ROCCAVALDINA | C83: =IF('Dati Generali CER 2 Sem. 2022'!E76="","",'Dati Generali CER 2 Sem. 2022'!E76) -> 164760 | D83: =IF(C83="","",'Dati Generali CER 2 Sem. 2022'!CE76) -> 53965 | E83: ='Dati Generali CER 2 Sem. 2022'!W76 -> 0.24672534 | F83: =IF('Dati Generali CER 2 Sem. 2022'!CF76="","",'Dati Generali CER 2 Sem. 2022'!CF76) -> 1.191105036 | G83: =IF('Dati Generali CER 2 Sem. 2022'!CG76="","",'Dati Generali CER 2 Sem. 2022'!CG76) -> 0.8972292411 | H83: =IF('Dati Generali CER 2 Sem. 2022'!CH76="","",'Dati Generali CER 2 Sem. 2022'!CH76) -> 0.2938757951 | I83: ='Dati Generali CER 2 Sem. 2022'!D76 -> 998 | J83: =IF('Dati Generali CER 2 Sem. 2022'!CJ76="","",'Dati Generali CER 2 Sem. 2022'!CJ76) -> 
A84: 75 | B84: ='Dati Generali CER 1 Sem. 2022'!C77 -> ROCCELLA VALDEMONE | C84: =IF('Dati Generali CER 2 Sem. 2022'!E77="","",'Dati Generali CER 2 Sem. 2022'!E77) -> 75700 | D84: =IF(C84="","",'Dati Generali CER 2 Sem. 2022'!CE77) -> 31080 | E84: ='Dati Generali CER 2 Sem. 2022'!W77 -> 0.2910657426 | F84: =IF('Dati Generali CER 2 Sem. 2022'!CF77="","",'Dati Generali CER 2 Sem. 2022'!CF77) -> 1.032608696 | G84: =IF('Dati Generali CER 2 Sem. 2022'!CG77="","",'Dati Generali CER 2 Sem. 2022'!CG77) -> 0.7320516788 | H84: =IF('Dati Generali CER 2 Sem. 2022'!CH77="","",'Dati Generali CER 2 Sem. 2022'!CH77) -> 0.3005570169 | I84: ='Dati Generali CER 2 Sem. 2022'!D77 -> 562 | J84: =IF('Dati Generali CER 2 Sem. 2022'!CJ77="","",'Dati Generali CER 2 Sem. 2022'!CJ77) -> 
A85: 76 | B85: ='Dati Generali CER 1 Sem. 2022'!C78 -> RODI' MILICI | C85: =IF('Dati Generali CER 2 Sem. 2022'!E78="","",'Dati Generali CER 2 Sem. 2022'!E78) -> 126540 | D85: =IF(C85="","",'Dati Generali CER 2 Sem. 2022'!CE78) -> 199910 | E85: ='Dati Generali CER 2 Sem. 2022'!W78 -> 0.6123755552 | F85: =IF('Dati Generali CER 2 Sem. 2022'!CF78="","",'Dati Generali CER 2 Sem. 2022'!CF78) -> 0.9183151049 | G85: =IF('Dati Generali CER 2 Sem. 2022'!CG78="","",'Dati Generali CER 2 Sem. 2022'!CG78) -> 0.3559613827 | H85: =IF('Dati Generali CER 2 Sem. 2022'!CH78="","",'Dati Generali CER 2 Sem. 2022'!CH78) -> 0.5623537222 | I85: ='Dati Generali CER 2 Sem. 2022'!D78 -> 1932 | J85: =IF('Dati Generali CER 2 Sem. 2022'!CJ78="","",'Dati Generali CER 2 Sem. 2022'!CJ78) -> 
A86: 77 | B86: ='Dati Generali CER 1 Sem. 2022'!C79 -> ROMETTA | C86: =IF('Dati Generali CER 2 Sem. 2022'!E79="","",'Dati Generali CER 2 Sem. 2022'!E79) -> 215342 | D86: =IF(C86="","",'Dati Generali CER 2 Sem. 2022'!CE79) -> 1004392 | E86: ='Dati Generali CER 2 Sem. 2022'!W79 -> 0.8234516706 | F86: =IF('Dati Generali CER 2 Sem. 2022'!CF79="","",'Dati Generali CER 2 Sem. 2022'!CF79) -> 1.008518048 | G86: =IF('Dati Generali CER 2 Sem. 2022'!CG79="","",'Dati Generali CER 2 Sem. 2022'!CG79) -> 0.1780521766 | H86: =IF('Dati Generali CER 2 Sem. 2022'!CH79="","",'Dati Generali CER 2 Sem. 2022'!CH79) -> 0.8304658716 | I86: ='Dati Generali CER 2 Sem. 2022'!D79 -> 6573 | J86: =IF('Dati Generali CER 2 Sem. 2022'!CJ79="","",'Dati Generali CER 2 Sem. 2022'!CJ79) -> 
A87: 78 | B87: ='Dati Generali CER 1 Sem. 2022'!C82 -> S. AGATA DI MILITELLO | C87: =IF('Dati Generali CER 2 Sem. 2022'!E82="","",'Dati Generali CER 2 Sem. 2022'!E82) -> 787120 | D87: =IF(C87="","",'Dati Generali CER 2 Sem. 2022'!CE82) -> 1997350 | E87: ='Dati Generali CER 2 Sem. 2022'!W82 -> 0.7173178379 | F87: =IF('Dati Generali CER 2 Sem. 2022'!CF82="","",'Dati Generali CER 2 Sem. 2022'!CF82) -> 1.27532354 | G87: =IF('Dati Generali CER 2 Sem. 2022'!CG82="","",'Dati Generali CER 2 Sem. 2022'!CG82) -> 0.3605112158 | H87: =IF('Dati Generali CER 2 Sem. 2022'!CH82="","",'Dati Generali CER 2 Sem. 2022'!CH82) -> 0.9148123246 | I87: ='Dati Generali CER 2 Sem. 2022'!D82 -> 11866 | J87: =IF('Dati Generali CER 2 Sem. 2022'!CJ82="","",'Dati Generali CER 2 Sem. 2022'!CJ82) -> 
A88: 79 | B88: ='Dati Generali CER 1 Sem. 2022'!C93 -> S. ALESSIO SICULO | C88: =IF('Dati Generali CER 2 Sem. 2022'!E93="","",'Dati Generali CER 2 Sem. 2022'!E93) -> 289980 | D88: =IF(C88="","",'Dati Generali CER 2 Sem. 2022'!CE93) -> 279120 | E88: ='Dati Generali CER 2 Sem. 2022'!W93 -> 0.4904586189 | F88: =IF('Dati Generali CER 2 Sem. 2022'!CF93="","",'Dati Generali CER 2 Sem. 2022'!CF93) -> 2.003196103 | G88: =IF('Dati Generali CER 2 Sem. 2022'!CG93="","",'Dati Generali CER 2 Sem. 2022'!CG93) -> 1.020711309 | H88: =IF('Dati Generali CER 2 Sem. 2022'!CH93="","",'Dati Generali CER 2 Sem. 2022'!CH93) -> 0.9824847939 | I88: ='Dati Generali CER 2 Sem. 2022'!D93 -> 1544 | J88: =IF('Dati Generali CER 2 Sem. 2022'!CJ93="","",'Dati Generali CER 2 Sem. 2022'!CJ93) -> 
A89: 80 | B89: ='Dati Generali CER 1 Sem. 2022'!C92 -> S. ANGELO DI BROLO | C89: =IF('Dati Generali CER 2 Sem. 2022'!E92="","",'Dati Generali CER 2 Sem. 2022'!E92) -> 68480 | D89: =IF(C89="","",'Dati Generali CER 2 Sem. 2022'!CE92) -> 374200 | E89: ='Dati Generali CER 2 Sem. 2022'!W92 -> 0.8453058643 | F89: =IF('Dati Generali CER 2 Sem. 2022'!CF92="","",'Dati Generali CER 2 Sem. 2022'!CF92) -> 0.8716918715 | G89: =IF('Dati Generali CER 2 Sem. 2022'!CG92="","",'Dati Generali CER 2 Sem. 2022'!CG92) -> 0.1348456207 | H89: =IF('Dati Generali CER 2 Sem. 2022'!CH92="","",'Dati Generali CER 2 Sem. 2022'!CH92) -> 0.7368462508 | I89: ='Dati Generali CER 2 Sem. 2022'!D92 -> 2760 | J89: =IF('Dati Generali CER 2 Sem. 2022'!CJ92="","",'Dati Generali CER 2 Sem. 2022'!CJ92) -> 
A90: 81 | B90: ='Dati Generali CER 1 Sem. 2022'!C80 -> S. DOMENICA VITTORIA | C90: =IF('Dati Generali CER 2 Sem. 2022'!E80="","",'Dati Generali CER 2 Sem. 2022'!E80) -> 125000 | D90: =IF(C90="","",'Dati Generali CER 2 Sem. 2022'!CE80) -> 41960 | E90: ='Dati Generali CER 2 Sem. 2022'!W80 -> 0.2513176809 | F90: =IF('Dati Generali CER 2 Sem. 2022'!CF80="","",'Dati Generali CER 2 Sem. 2022'!CF80) -> 1.065013268 | G90: =IF('Dati Generali CER 2 Sem. 2022'!CG80="","",'Dati Generali CER 2 Sem. 2022'!CG80) -> 0.7973566034 | H90: =IF('Dati Generali CER 2 Sem. 2022'!CH80="","",'Dati Generali CER 2 Sem. 2022'!CH80) -> 0.2676566646 | I90: ='Dati Generali CER 2 Sem. 2022'!D80 -> 852 | J90: =IF('Dati Generali CER 2 Sem. 2022'!CJ80="","",'Dati Generali CER 2 Sem. 2022'!CJ80) -> 
A91: 82 | B91: ='Dati Generali CER 1 Sem. 2022'!C85 -> S. FILIPPO DEL MELA | C91: =IF('Dati Generali CER 2 Sem. 2022'!E85="","",'Dati Generali CER 2 Sem. 2022'!E85) -> 648160 | D91: =IF(C91="","",'Dati Generali CER 2 Sem. 2022'!CE85) -> 698320 | E91: ='Dati Generali CER 2 Sem. 2022'!W85 -> 0.5186263442 | F91: =IF('Dati Generali CER 2 Sem. 2022'!CF85="","",'Dati Generali CER 2 Sem. 2022'!CF85) -> 1.087667373 | G91: =IF('Dati Generali CER 2 Sem. 2022'!CG85="","",'Dati Generali CER 2 Sem. 2022'!CG85) -> 0.5235744197 | H91: =IF('Dati Generali CER 2 Sem. 2022'!CH85="","",'Dati Generali CER 2 Sem. 2022'!CH85) -> 0.5640929535 | I91: ='Dati Generali CER 2 Sem. 2022'!D85 -> 6728 | J91: =IF('Dati Generali CER 2 Sem. 2022'!CJ85="","",'Dati Generali CER 2 Sem. 2022'!CJ85) -> 
A92: 83 | B92: ='Dati Generali CER 1 Sem. 2022'!C90 -> S. SALVAT. DI FITALIA | C92: =IF('Dati Generali CER 2 Sem. 2022'!E90="","",'Dati Generali CER 2 Sem. 2022'!E90) -> 34120 | D92: =IF(C92="","",'Dati Generali CER 2 Sem. 2022'!CE90) -> 132860 | E92: ='Dati Generali CER 2 Sem. 2022'!W90 -> 0.7681100769 | F92: =IF('Dati Generali CER 2 Sem. 2022'!CF90="","",'Dati Generali CER 2 Sem. 2022'!CF90) -> 0.8400843144 | G92: =IF('Dati Generali CER 2 Sem. 2022'!CG90="","",'Dati Generali CER 2 Sem. 2022'!CG90) -> 0.1657147298 | H92: =IF('Dati Generali CER 2 Sem. 2022'!CH90="","",'Dati Generali CER 2 Sem. 2022'!CH90) -> 0.6452772273 | I92: ='Dati Generali CER 2 Sem. 2022'!D90 -> 1119 | J92: =IF('Dati Generali CER 2 Sem. 2022'!CJ90="","",'Dati Generali CER 2 Sem. 2022'!CJ90) -> 
A93: 84 | B93: ='Dati Generali CER 1 Sem. 2022'!C81 -> S. STEF. DI CAMASTRA | C93: =IF('Dati Generali CER 2 Sem. 2022'!E81="","",'Dati Generali CER 2 Sem. 2022'!E81) -> 274980 | D93: =IF(C93="","",'Dati Generali CER 2 Sem. 2022'!CE81) -> 742860 | E93: ='Dati Generali CER 2 Sem. 2022'!W81 -> 0.7298396605 | F93: =IF('Dati Generali CER 2 Sem. 2022'!CF81="","",'Dati Generali CER 2 Sem. 2022'!CF81) -> 1.27224911 | G93: =IF('Dati Generali CER 2 Sem. 2022'!CG81="","",'Dati Generali CER 2 Sem. 2022'!CG81) -> 0.3437112515 | H93: =IF('Dati Generali CER 2 Sem. 2022'!CH81="","",'Dati Generali CER 2 Sem. 2022'!CH81) -> 0.9285378585 | I93: ='Dati Generali CER 2 Sem. 2022'!D81 -> 4348 | J93: =IF('Dati Generali CER 2 Sem. 2022'!CJ81="","",'Dati Generali CER 2 Sem. 2022'!CJ81) -> 
A94: 85 | B94: ='Dati Generali CER 1 Sem. 2022'!C84 -> S. TERESA DI RIVA | C94: =IF('Dati Generali CER 2 Sem. 2022'!E84="","",'Dati Generali CER 2 Sem. 2022'!E84) -> 520120 | D94: =IF(C94="","",'Dati Generali CER 2 Sem. 2022'!CE84) -> 1406956 | E94: ='Dati Generali CER 2 Sem. 2022'!W84 -> 0.7300988648 | F94: =IF('Dati Generali CER 2 Sem. 2022'!CF84="","",'Dati Generali CER 2 Sem. 2022'!CF84) -> 1.121932419 | G94: =IF('Dati Generali CER 2 Sem. 2022'!CG84="","",'Dati Generali CER 2 Sem. 2022'!CG84) -> 0.3028108335 | H94: =IF('Dati Generali CER 2 Sem. 2022'!CH84="","",'Dati Generali CER 2 Sem. 2022'!CH84) -> 0.8191215854 | I94: ='Dati Generali CER 2 Sem. 2022'!D84 -> 9335 | J94: =IF('Dati Generali CER 2 Sem. 2022'!CJ84="","",'Dati Generali CER 2 Sem. 2022'!CJ84) -> 
A95: 86 | B95: ='Dati Generali CER 1 Sem. 2022'!C86 -> SAN FRATELLO | C95: =IF('Dati Generali CER 2 Sem. 2022'!E86="","",'Dati Generali CER 2 Sem. 2022'!E86) -> 94440 | D95: =IF(C95="","",'Dati Generali CER 2 Sem. 2022'!CE86) -> 305310 | E95: ='Dati Generali CER 2 Sem. 2022'!W86 -> 0.7637523452 | F95: =IF('Dati Generali CER 2 Sem. 2022'!CF86="","",'Dati Generali CER 2 Sem. 2022'!CF86) -> 0.6666322025 | G95: =IF('Dati Generali CER 2 Sem. 2022'!CG86="","",'Dati Generali CER 2 Sem. 2022'!CG86) -> 0.1574902944 | H95: =IF('Dati Generali CER 2 Sem. 2022'!CH86="","",'Dati Generali CER 2 Sem. 2022'!CH86) -> 0.509141908 | I95: ='Dati Generali CER 2 Sem. 2022'!D86 -> 3259 | J95: =IF('Dati Generali CER 2 Sem. 2022'!CJ86="","",'Dati Generali CER 2 Sem. 2022'!CJ86) -> 
A96: 87 | B96: ='Dati Generali CER 1 Sem. 2022'!C87 -> SAN MARCO D'ALUNZIO | C96: =IF('Dati Generali CER 2 Sem. 2022'!E87="","",'Dati Generali CER 2 Sem. 2022'!E87) -> 66700 | D96: =IF(C96="","",'Dati Generali CER 2 Sem. 2022'!CE87) -> 194390 | E96: ='Dati Generali CER 2 Sem. 2022'!W87 -> 0.7445325367 | F96: =IF('Dati Generali CER 2 Sem. 2022'!CF87="","",'Dati Generali CER 2 Sem. 2022'!CF87) -> 0.7980693989 | G96: =IF('Dati Generali CER 2 Sem. 2022'!CG87="","",'Dati Generali CER 2 Sem. 2022'!CG87) -> 0.2038807649 | H96: =IF('Dati Generali CER 2 Sem. 2022'!CH87="","",'Dati Generali CER 2 Sem. 2022'!CH87) -> 0.594188634 | I96: ='Dati Generali CER 2 Sem. 2022'!D87 -> 1778 | J96: =IF('Dati Generali CER 2 Sem. 2022'!CJ87="","",'Dati Generali CER 2 Sem. 2022'!CJ87) -> 
A97: 88 | B97: ='Dati Generali CER 1 Sem. 2022'!C88 -> SAN PIER NICETO | C97: =IF('Dati Generali CER 2 Sem. 2022'!E88="","",'Dati Generali CER 2 Sem. 2022'!E88) -> 247300 | D97: =IF(C97="","",'Dati Generali CER 2 Sem. 2022'!CE88) -> 317890 | E97: ='Dati Generali CER 2 Sem. 2022'!W88 -> 0.5624480263 | F97: =IF('Dati Generali CER 2 Sem. 2022'!CF88="","",'Dati Generali CER 2 Sem. 2022'!CF88) -> 1.183693558 | G97: =IF('Dati Generali CER 2 Sem. 2022'!CG88="","",'Dati Generali CER 2 Sem. 2022'!CG88) -> 0.5179274525 | H97: =IF('Dati Generali CER 2 Sem. 2022'!CH88="","",'Dati Generali CER 2 Sem. 2022'!CH88) -> 0.6657661054 | I97: ='Dati Generali CER 2 Sem. 2022'!D88 -> 2595 | J97: =IF('Dati Generali CER 2 Sem. 2022'!CJ88="","",'Dati Generali CER 2 Sem. 2022'!CJ88) -> 
A98: 89 | B98: ='Dati Generali CER 1 Sem. 2022'!C89 -> SAN PIERO PATTI | C98: =IF('Dati Generali CER 2 Sem. 2022'!E89="","",'Dati Generali CER 2 Sem. 2022'!E89) -> 151120 | D98: =IF(C98="","",'Dati Generali CER 2 Sem. 2022'!CE89) -> 403471 | E98: ='Dati Generali CER 2 Sem. 2022'!W89 -> 0.7199041486 | F98: =IF('Dati Generali CER 2 Sem. 2022'!CF89="","",'Dati Generali CER 2 Sem. 2022'!CF89) -> 1.185186517 | G98: =IF('Dati Generali CER 2 Sem. 2022'!CG89="","",'Dati Generali CER 2 Sem. 2022'!CG89) -> 0.3195736762 | H98: =IF('Dati Generali CER 2 Sem. 2022'!CH89="","",'Dati Generali CER 2 Sem. 2022'!CH89) -> 0.8532206902 | I98: ='Dati Generali CER 2 Sem. 2022'!D89 -> 2570 | J98: =IF('Dati Generali CER 2 Sem. 2022'!CJ89="","",'Dati Generali CER 2 Sem. 2022'!CJ89) -> 
A99: 90 | B99: ='Dati Generali CER 1 Sem. 2022'!C91 -> SAN TEODORO | C99: =IF('Dati Generali CER 2 Sem. 2022'!E91="","",'Dati Generali CER 2 Sem. 2022'!E91) -> 32815 | D99: =IF(C99="","",'Dati Generali CER 2 Sem. 2022'!CE91) -> 163533 | E99: ='Dati Generali CER 2 Sem. 2022'!W91 -> 0.8328732658 | F99: =IF('Dati Generali CER 2 Sem. 2022'!CF91="","",'Dati Generali CER 2 Sem. 2022'!CF91) -> 0.8619617897 | G99: =IF('Dati Generali CER 2 Sem. 2022'!CG91="","",'Dati Generali CER 2 Sem. 2022'!CG91) -> 0.1440568589 | H99: =IF('Dati Generali CER 2 Sem. 2022'!CH91="","",'Dati Generali CER 2 Sem. 2022'!CH91) -> 0.7179049308 | I99: ='Dati Generali CER 2 Sem. 2022'!D91 -> 1238 | J99: =IF('Dati Generali CER 2 Sem. 2022'!CJ91="","",'Dati Generali CER 2 Sem. 2022'!CJ91) -> 
A100: 91 | B100: ='Dati Generali CER 1 Sem. 2022'!C83 -> SANTA LUCIA DEL MELA | C100: =IF('Dati Generali CER 2 Sem. 2022'!E83="","",'Dati Generali CER 2 Sem. 2022'!E83) -> 282000 | D100: =IF(C100="","",'Dati Generali CER 2 Sem. 2022'!CE83) -> 893803 | E100: ='Dati Generali CER 2 Sem. 2022'!W83 -> 0.760163905 | F100: =IF('Dati Generali CER 2 Sem. 2022'!CF83="","",'Dati Generali CER 2 Sem. 2022'!CF83) -> 1.459290636 | G100: =IF('Dati Generali CER 2 Sem. 2022'!CG83="","",'Dati Generali CER 2 Sem. 2022'!CG83) -> 0.3499905676 | H100: =IF('Dati Generali CER 2 Sem. 2022'!CH83="","",'Dati Generali CER 2 Sem. 2022'!CH83) -> 1.109300069 | I100: ='Dati Generali CER 2 Sem. 2022'!D83 -> 4379 | J100: =IF('Dati Generali CER 2 Sem. 2022'!CJ83="","",'Dati Generali CER 2 Sem. 2022'!CJ83) -> 
A101: 92 | B101: ='Dati Generali CER 1 Sem. 2022'!C94 -> SANTA MARINA SALINA | C101: =IF('Dati Generali CER 2 Sem. 2022'!E94="","",'Dati Generali CER 2 Sem. 2022'!E94) -> 255040 | D101: =IF(C101="","",'Dati Generali CER 2 Sem. 2022'!CE94) -> 133560 | E101: ='Dati Generali CER 2 Sem. 2022'!W94 -> 0.3436953165 | F101: =IF('Dati Generali CER 2 Sem. 2022'!CF94="","",'Dati Generali CER 2 Sem. 2022'!CF94) -> 2.45862226 | G101: =IF('Dati Generali CER 2 Sem. 2022'!CG94="","",'Dati Generali CER 2 Sem. 2022'!CG94) -> 1.613605304 | H101: =IF('Dati Generali CER 2 Sem. 2022'!CH94="","",'Dati Generali CER 2 Sem. 2022'!CH94) -> 0.845016956 | I101: ='Dati Generali CER 2 Sem. 2022'!D94 -> 859 | J101: =IF('Dati Generali CER 2 Sem. 2022'!CJ94="","",'Dati Generali CER 2 Sem. 2022'!CJ94) -> 
A102: 93 | B102: ='Dati Generali CER 1 Sem. 2022'!C95 -> SAPONARA | C102: =IF('Dati Generali CER 2 Sem. 2022'!E95="","",'Dati Generali CER 2 Sem. 2022'!E95) -> 109260 | D102: =IF(C102="","",'Dati Generali CER 2 Sem. 2022'!CE95) -> 584120 | E102: ='Dati Generali CER 2 Sem. 2022'!W95 -> 0.8424240676 | F102: =IF('Dati Generali CER 2 Sem. 2022'!CF95="","",'Dati Generali CER 2 Sem. 2022'!CF95) -> 1.022069315 | G102: =IF('Dati Generali CER 2 Sem. 2022'!CG95="","",'Dati Generali CER 2 Sem. 2022'!CG95) -> 0.1610535253 | H102: =IF('Dati Generali CER 2 Sem. 2022'!CH95="","",'Dati Generali CER 2 Sem. 2022'!CH95) -> 0.8610157899 | I102: ='Dati Generali CER 2 Sem. 2022'!D95 -> 3687 | J102: =IF('Dati Generali CER 2 Sem. 2022'!CJ95="","",'Dati Generali CER 2 Sem. 2022'!CJ95) -> 
A103: 94 | B103: ='Dati Generali CER 1 Sem. 2022'!C96 -> SAVOCA | C103: =IF('Dati Generali CER 2 Sem. 2022'!E96="","",'Dati Generali CER 2 Sem. 2022'!E96) -> 141780 | D103: =IF(C103="","",'Dati Generali CER 2 Sem. 2022'!CE96) -> 178280 | E103: ='Dati Generali CER 2 Sem. 2022'!W96 -> 0.5570205586 | F103: =IF('Dati Generali CER 2 Sem. 2022'!CF96="","",'Dati Generali CER 2 Sem. 2022'!CF96) -> 1.0089655 | G103: =IF('Dati Generali CER 2 Sem. 2022'!CG96="","",'Dati Generali CER 2 Sem. 2022'!CG96) -> 0.4469509735 | H103: =IF('Dati Generali CER 2 Sem. 2022'!CH96="","",'Dati Generali CER 2 Sem. 2022'!CH96) -> 0.5620145264 | I103: ='Dati Generali CER 2 Sem. 2022'!D96 -> 1724 | J103: =IF('Dati Generali CER 2 Sem. 2022'!CJ96="","",'Dati Generali CER 2 Sem. 2022'!CJ96) -> 
A104: 95 | B104: ='Dati Generali CER 1 Sem. 2022'!C97 -> SCALETTA ZANCLEA | C104: =IF('Dati Generali CER 2 Sem. 2022'!E97="","",'Dati Generali CER 2 Sem. 2022'!E97) -> 111140 | D104: =IF(C104="","",'Dati Generali CER 2 Sem. 2022'!CE97) -> 207050 | E104: ='Dati Generali CER 2 Sem. 2022'!W97 -> 0.6507118388 | F104: =IF('Dati Generali CER 2 Sem. 2022'!CF97="","",'Dati Generali CER 2 Sem. 2022'!CF97) -> 0.9418809794 | G104: =IF('Dati Generali CER 2 Sem. 2022'!CG97="","",'Dati Generali CER 2 Sem. 2022'!CG97) -> 0.3289878753 | H104: =IF('Dati Generali CER 2 Sem. 2022'!CH97="","",'Dati Generali CER 2 Sem. 2022'!CH97) -> 0.6128931041 | I104: ='Dati Generali CER 2 Sem. 2022'!D97 -> 1836 | J104: =IF('Dati Generali CER 2 Sem. 2022'!CJ97="","",'Dati Generali CER 2 Sem. 2022'!CJ97) -> 
A105: 96 | B105: ='Dati Generali CER 1 Sem. 2022'!C98 -> SINAGRA | C105: =IF('Dati Generali CER 2 Sem. 2022'!E98="","",'Dati Generali CER 2 Sem. 2022'!E98) -> 89760 | D105: =IF(C105="","",'Dati Generali CER 2 Sem. 2022'!CE98) -> 349540 | E105: ='Dati Generali CER 2 Sem. 2022'!W98 -> 0.7956749374 | F105: =IF('Dati Generali CER 2 Sem. 2022'!CF98="","",'Dati Generali CER 2 Sem. 2022'!CF98) -> 0.9650363783 | G105: =IF('Dati Generali CER 2 Sem. 2022'!CG98="","",'Dati Generali CER 2 Sem. 2022'!CG98) -> 0.1971811184 | H105: =IF('Dati Generali CER 2 Sem. 2022'!CH98="","",'Dati Generali CER 2 Sem. 2022'!CH98) -> 0.7678552599 | I105: ='Dati Generali CER 2 Sem. 2022'!D98 -> 2474 | J105: =IF('Dati Generali CER 2 Sem. 2022'!CJ98="","",'Dati Generali CER 2 Sem. 2022'!CJ98) -> 
A106: 97 | B106: ='Dati Generali CER 1 Sem. 2022'!C99 -> SPADAFORA | C106: =IF('Dati Generali CER 2 Sem. 2022'!E99="","",'Dati Generali CER 2 Sem. 2022'!E99) -> 343497 | D106: =IF(C106="","",'Dati Generali CER 2 Sem. 2022'!CE99) -> 628642 | E106: ='Dati Generali CER 2 Sem. 2022'!W99 -> 0.6447504451 | F106: =IF('Dati Generali CER 2 Sem. 2022'!CF99="","",'Dati Generali CER 2 Sem. 2022'!CF99) -> 1.130573928 | G106: =IF('Dati Generali CER 2 Sem. 2022'!CG99="","",'Dati Generali CER 2 Sem. 2022'!CG99) -> 0.3982998766 | H106: =IF('Dati Generali CER 2 Sem. 2022'!CH99="","",'Dati Generali CER 2 Sem. 2022'!CH99) -> 0.7289380432 | I106: ='Dati Generali CER 2 Sem. 2022'!D99 -> 4687 | J106: =IF('Dati Generali CER 2 Sem. 2022'!CJ99="","",'Dati Generali CER 2 Sem. 2022'!CJ99) -> 
A107: 98 | B107: ='Dati Generali CER 1 Sem. 2022'!C100 -> TAORMINA | C107: =IF('Dati Generali CER 2 Sem. 2022'!E100="","",'Dati Generali CER 2 Sem. 2022'!E100) -> 1656380 | D107: =IF(C107="","",'Dati Generali CER 2 Sem. 2022'!CE100) -> 3324938 | E107: ='Dati Generali CER 2 Sem. 2022'!W100 -> 0.6674815782 | F107: =IF('Dati Generali CER 2 Sem. 2022'!CF100="","",'Dati Generali CER 2 Sem. 2022'!CF100) -> 2.585462748 | G107: =IF('Dati Generali CER 2 Sem. 2022'!CG100="","",'Dati Generali CER 2 Sem. 2022'!CG100) -> 0.8597139927 | H107: =IF('Dati Generali CER 2 Sem. 2022'!CH100="","",'Dati Generali CER 2 Sem. 2022'!CH100) -> 1.725748755 | I107: ='Dati Generali CER 2 Sem. 2022'!D100 -> 10471 | J107: =IF('Dati Generali CER 2 Sem. 2022'!CJ100="","",'Dati Generali CER 2 Sem. 2022'!CJ100) -> 
A108: 99 | B108: ='Dati Generali CER 1 Sem. 2022'!C101 -> TERME VIGLIATORE | C108: =IF('Dati Generali CER 2 Sem. 2022'!E101="","",'Dati Generali CER 2 Sem. 2022'!E101) -> 500280 | D108: =IF(C108="","",'Dati Generali CER 2 Sem. 2022'!CE101) -> 1027530 | E108: ='Dati Generali CER 2 Sem. 2022'!W101 -> 0.6725509062 | F108: =IF('Dati Generali CER 2 Sem. 2022'!CF101="","",'Dati Generali CER 2 Sem. 2022'!CF101) -> 1.150362319 | G108: =IF('Dati Generali CER 2 Sem. 2022'!CG101="","",'Dati Generali CER 2 Sem. 2022'!CG101) -> 0.3766850988 | H108: =IF('Dati Generali CER 2 Sem. 2022'!CH101="","",'Dati Generali CER 2 Sem. 2022'!CH101) -> 0.77367722 | I108: ='Dati Generali CER 2 Sem. 2022'!D101 -> 7218 | J108: =IF('Dati Generali CER 2 Sem. 2022'!CJ101="","",'Dati Generali CER 2 Sem. 2022'!CJ101) -> 
A109: 100 | B109: ='Dati Generali CER 1 Sem. 2022'!C102 -> TORREGROTTA | C109: =IF('Dati Generali CER 2 Sem. 2022'!E102="","",'Dati Generali CER 2 Sem. 2022'!E102) -> 583760 | D109: =IF(C109="","",'Dati Generali CER 2 Sem. 2022'!CE102) -> 960146 | E109: ='Dati Generali CER 2 Sem. 2022'!W102 -> 0.6043933978 | F109: =IF('Dati Generali CER 2 Sem. 2022'!CF102="","",'Dati Generali CER 2 Sem. 2022'!CF102) -> 1.189386339 | G109: =IF('Dati Generali CER 2 Sem. 2022'!CG102="","",'Dati Generali CER 2 Sem. 2022'!CG102) -> 0.4370586438 | H109: =IF('Dati Generali CER 2 Sem. 2022'!CH102="","",'Dati Generali CER 2 Sem. 2022'!CH102) -> 0.7188572507 | I109: ='Dati Generali CER 2 Sem. 2022'!D102 -> 7259 | J109: =IF('Dati Generali CER 2 Sem. 2022'!CJ102="","",'Dati Generali CER 2 Sem. 2022'!CJ102) -> 
A110: 101 | B110: ='Dati Generali CER 1 Sem. 2022'!C103 -> TORRENOVA | C110: =IF('Dati Generali CER 2 Sem. 2022'!E103="","",'Dati Generali CER 2 Sem. 2022'!E103) -> 135220 | D110: =IF(C110="","",'Dati Generali CER 2 Sem. 2022'!CE103) -> 723770 | E110: ='Dati Generali CER 2 Sem. 2022'!W103 -> 0.8425825679 | F110: =IF('Dati Generali CER 2 Sem. 2022'!CF103="","",'Dati Generali CER 2 Sem. 2022'!CF103) -> 1.039275136 | G110: =IF('Dati Generali CER 2 Sem. 2022'!CG103="","",'Dati Generali CER 2 Sem. 2022'!CG103) -> 0.1636000232 | H110: =IF('Dati Generali CER 2 Sem. 2022'!CH103="","",'Dati Generali CER 2 Sem. 2022'!CH103) -> 0.8756751132 | I110: ='Dati Generali CER 2 Sem. 2022'!D103 -> 4492 | J110: =IF('Dati Generali CER 2 Sem. 2022'!CJ103="","",'Dati Generali CER 2 Sem. 2022'!CJ103) -> 
A111: 102 | B111: ='Dati Generali CER 1 Sem. 2022'!C104 -> TORTORICI | C111: =IF('Dati Generali CER 2 Sem. 2022'!E104="","",'Dati Generali CER 2 Sem. 2022'!E104) -> 303680 | D111: =IF(C111="","",'Dati Generali CER 2 Sem. 2022'!CE104) -> 396570 | E111: ='Dati Generali CER 2 Sem. 2022'!W104 -> 0.566326312 | F111: =IF('Dati Generali CER 2 Sem. 2022'!CF104="","",'Dati Generali CER 2 Sem. 2022'!CF104) -> 0.6670826506 | G111: =IF('Dati Generali CER 2 Sem. 2022'!CG104="","",'Dati Generali CER 2 Sem. 2022'!CG104) -> 0.2892961933 | H111: =IF('Dati Generali CER 2 Sem. 2022'!CH104="","",'Dati Generali CER 2 Sem. 2022'!CH104) -> 0.3777864573 | I111: ='Dati Generali CER 2 Sem. 2022'!D104 -> 5705 | J111: =IF('Dati Generali CER 2 Sem. 2022'!CJ104="","",'Dati Generali CER 2 Sem. 2022'!CJ104) -> 
A112: 103 | B112: ='Dati Generali CER 1 Sem. 2022'!C105 -> TRIPI | C112: =IF('Dati Generali CER 2 Sem. 2022'!E105="","",'Dati Generali CER 2 Sem. 2022'!E105) -> 45500 | D112: =IF(C112="","",'Dati Generali CER 2 Sem. 2022'!CE105) -> 123722 | E112: ='Dati Generali CER 2 Sem. 2022'!W105 -> 0.7311224309 | F112: =IF('Dati Generali CER 2 Sem. 2022'!CF105="","",'Dati Generali CER 2 Sem. 2022'!CF105) -> 1.226246377 | G112: =IF('Dati Generali CER 2 Sem. 2022'!CG105="","",'Dati Generali CER 2 Sem. 2022'!CG105) -> 0.3297101449 | H112: =IF('Dati Generali CER 2 Sem. 2022'!CH105="","",'Dati Generali CER 2 Sem. 2022'!CH105) -> 0.8965362319 | I112: ='Dati Generali CER 2 Sem. 2022'!D105 -> 750 | J112: =IF('Dati Generali CER 2 Sem. 2022'!CJ105="","",'Dati Generali CER 2 Sem. 2022'!CJ105) -> 
A113: 104 | B113: ='Dati Generali CER 1 Sem. 2022'!C106 -> TUSA | C113: =IF('Dati Generali CER 2 Sem. 2022'!E106="","",'Dati Generali CER 2 Sem. 2022'!E106) -> 129320 | D113: =IF(C113="","",'Dati Generali CER 2 Sem. 2022'!CE106) -> 464070 | E113: ='Dati Generali CER 2 Sem. 2022'!W106 -> 0.7820657578 | F113: =IF('Dati Generali CER 2 Sem. 2022'!CF106="","",'Dati Generali CER 2 Sem. 2022'!CF106) -> 1.247561181 | G113: =IF('Dati Generali CER 2 Sem. 2022'!CG106="","",'Dati Generali CER 2 Sem. 2022'!CG106) -> 0.2718863006 | H113: =IF('Dati Generali CER 2 Sem. 2022'!CH106="","",'Dati Generali CER 2 Sem. 2022'!CH106) -> 0.9756748802 | I113: ='Dati Generali CER 2 Sem. 2022'!D106 -> 2585 | J113: =IF('Dati Generali CER 2 Sem. 2022'!CJ106="","",'Dati Generali CER 2 Sem. 2022'!CJ106) -> 
A114: 105 | B114: ='Dati Generali CER 1 Sem. 2022'!C107 -> UCRIA | C114: =IF('Dati Generali CER 2 Sem. 2022'!E107="","",'Dati Generali CER 2 Sem. 2022'!E107) -> 47220 | D114: =IF(C114="","",'Dati Generali CER 2 Sem. 2022'!CE107) -> 126950 | E114: ='Dati Generali CER 2 Sem. 2022'!W107 -> 0.7288855716 | F114: =IF('Dati Generali CER 2 Sem. 2022'!CF107="","",'Dati Generali CER 2 Sem. 2022'!CF107) -> 1.042484677 | G114: =IF('Dati Generali CER 2 Sem. 2022'!CG107="","",'Dati Generali CER 2 Sem. 2022'!CG107) -> 0.2826326374 | H114: =IF('Dati Generali CER 2 Sem. 2022'!CH107="","",'Dati Generali CER 2 Sem. 2022'!CH107) -> 0.7598520398 | I114: ='Dati Generali CER 2 Sem. 2022'!D107 -> 908 | J114: =IF('Dati Generali CER 2 Sem. 2022'!CJ107="","",'Dati Generali CER 2 Sem. 2022'!CJ107) -> 
A115: 106 | B115: ='Dati Generali CER 1 Sem. 2022'!C108 -> VALDINA | C115: =IF('Dati Generali CER 2 Sem. 2022'!E108="","",'Dati Generali CER 2 Sem. 2022'!E108) -> 105840 | D115: =IF(C115="","",'Dati Generali CER 2 Sem. 2022'!CE108) -> 105820 | E115: ='Dati Generali CER 2 Sem. 2022'!W108 -> 0.4999527544 | F115: =IF('Dati Generali CER 2 Sem. 2022'!CF108="","",'Dati Generali CER 2 Sem. 2022'!CF108) -> 0.9151361074 | G115: =IF('Dati Generali CER 2 Sem. 2022'!CG108="","",'Dati Generali CER 2 Sem. 2022'!CG108) -> 0.4576112898 | H115: =IF('Dati Generali CER 2 Sem. 2022'!CH108="","",'Dati Generali CER 2 Sem. 2022'!CH108) -> 0.4575248175 | I115: ='Dati Generali CER 2 Sem. 2022'!D108 -> 1257 | J115: =IF('Dati Generali CER 2 Sem. 2022'!CJ108="","",'Dati Generali CER 2 Sem. 2022'!CJ108) -> 
A116: 107 | B116: ='Dati Generali CER 1 Sem. 2022'!C109 -> VENETICO | C116: =IF('Dati Generali CER 2 Sem. 2022'!E109="","",'Dati Generali CER 2 Sem. 2022'!E109) -> 306200 | D116: =IF(C116="","",'Dati Generali CER 2 Sem. 2022'!CE109) -> 510218 | E116: ='Dati Generali CER 2 Sem. 2022'!W109 -> 0.6247021689 | F116: =IF('Dati Generali CER 2 Sem. 2022'!CF109="","",'Dati Generali CER 2 Sem. 2022'!CF109) -> 1.12659733 | G116: =IF('Dati Generali CER 2 Sem. 2022'!CG109="","",'Dati Generali CER 2 Sem. 2022'!CG109) -> 0.4223681307 | H116: =IF('Dati Generali CER 2 Sem. 2022'!CH109="","",'Dati Generali CER 2 Sem. 2022'!CH109) -> 0.7037877952 | I116: ='Dati Generali CER 2 Sem. 2022'!D109 -> 3940 | J116: =IF('Dati Generali CER 2 Sem. 2022'!CJ109="","",'Dati Generali CER 2 Sem. 2022'!CJ109) -> 
A117: 108 | B117: ='Dati Generali CER 1 Sem. 2022'!C110 -> VILLAFRANCA TIRRENA | C117: =IF('Dati Generali CER 2 Sem. 2022'!E110="","",'Dati Generali CER 2 Sem. 2022'!E110) -> 542160 | D117: =IF(C117="","",'Dati Generali CER 2 Sem. 2022'!CE110) -> 1307473 | E117: ='Dati Generali CER 2 Sem. 2022'!W110 -> 0.7068823923 | F117: =IF('Dati Generali CER 2 Sem. 2022'!CF110="","",'Dati Generali CER 2 Sem. 2022'!CF110) -> 1.251070723 | G117: =IF('Dati Generali CER 2 Sem. 2022'!CG110="","",'Dati Generali CER 2 Sem. 2022'!CG110) -> 0.3667108574 | H117: =IF('Dati Generali CER 2 Sem. 2022'!CH110="","",'Dati Generali CER 2 Sem. 2022'!CH110) -> 0.8843598658 | I117: ='Dati Generali CER 2 Sem. 2022'!D110 -> 8035 | J117: =IF('Dati Generali CER 2 Sem. 2022'!CJ110="","",'Dati Generali CER 2 Sem. 2022'!CJ110) -> 
B118: Percentuale media dei 108 Comuni: | F118: ='Dati Generali CER 2 Sem. 2022'!W111 -> 0.6040331659

Sheet Grafico 2 Semestre 2022

Sheet Dati Generali anno 2022
A1: Produzione di Rifiuti Urbani e Raccolta Differenziata ANNO 2022.
A2: =COUNT(E3:E110) -> 108 | B2: ID COMUNE | C2: COMUNE | D2: ABITANTI AL 31/12/2022 | E2: R.S.U. + R.S.A. (Ton/anno) 200301 | F2: R.S.U. COVID (A+A1) 200301* | G2: Altri oli per motori, ingranaggi e lubrificazione (Ton/anno) 130208* | H2: Legno da demolizione (Ton/anno) 170201 | I2: Miscele bituminose (diverse da quelle 170301*) (Ton/anno) 170302 | J2: Alluminio (Ton/anno) 170402 | K2: Ferro e acciaio (Ton/anno) 170405 | L2: Materiali da costruzione contenenti amianto (Ton/anno) 170605* | M2: percolato di discarica,(diverso dalla voce 190702) (Ton/anno) 190703 | N2: Residui di vagliatura (Ton/anno) 190801 | O2: FANGHI DI DEPURAZIONE prodotti dal trattamento delle acque reflue urbane (Ton/anno) 190805 | P2: Altri rifiuti (compresi materiali misti) prodotti dal trattamento meccanico dei rifiuti,(diversi dalla voce 191211) (Ton/anno) 191212 | Q2: Rifiuti della pulizia delle fognature (Ton/anno) 200306 | R2: Residui della pulizia stradale (Ton/anno) 200303 Smaltimento | S2: Ingombranti (Ton/anno) - 200307 Smaltimento | T2: Rifiuti urbani non specificati altrimenti 200399 | U2: RACCOL. DIFFEREN. (Kg/anno) | V2: R.S.U. + R.S.A. + RACC. DIFF. (Kg/anno) | W2: % RACC. DIFF. | X2: Compostaggio Domestico | Y2: Toner per stampa esauriti,(diversi dalla voce 080317) 080318 | Z2: Imballaggi Carta e Cartone (Raccolta Selettiva) 150101 | AA2: Imballaggi in Plastica 150102 | AB2: Imballaggi in Legno 150103 | AC2: Imballaaggi in metallo 150104 | AD2: Imballaggi Materiali compositi 150105 | AE2: Imball. in materiali misti 150106 | AF2: Imballaggi in Vetro 150107 | AG2: Imballaggi in Materiale tessile 150109 | AH2: Imballaggi contenenti residui di sostanze pericolose o contaminati da tali sostanze 150110* | AI2: Imballaggi metallici contenenti matrici solide porose pericolose (ad esempio amianto) 150111* | AJ2: Pneumatici usati 160103 | AK2: Filtri dell'olio 160107* | AL2: Apparecchiature fuori uso contenenti PCB o da essi contaminate(diverse dalla voce 160209) 160210* | AM2: Apparecchiature fuori uso, contenenti clorofluorocarburi, HCFC, HFC 160211* | AN2: Apparecchiature fuori uso contenenti amianto in fibre libere 160212* | AO2: App.fuori uso contenete comp.pericolosi(diversi dalle voci da 160209 a 160212) 160213* | AP2: Apparecchiature fuori uso(diverse dalle voci da 160209 a 160213*) 160214* | AQ2: Componenti pericolosi rimossi da apparecchiature fuori uso 160215* | AR2: Componenti rimossi da apparecchiature fuori uso,(diversi dalla voce 160215) 160216 | AS2: Gas in contenitori a pressione limitatamente ad estintori ed aerosol ad uso domenstico 160504* | AT2: Gas in contenitori a pressione (diversi dalla voce 160504*) limitatamente ad estintori ed aerosol ad uso domenstico 160505 | AU2: Miscugli o frazioni separate di cemento, mattoni, mattonelle e ceramiche(diverse dalla voce 170106) 170107 | AV2: Rifiuti misti dell'attività di costruzione e demolizione, (diversi dalle voci 170901, 170902 e 170903) 170904 | AW2: Carta e Cartone (Raccolta Congiunta) 200101 | AX2: Vetro 200102 | AY2: Rifiuti biodegradabili di cucine e mense 200108 | AZ2: Abbigliamento 200110 | BA2: Prodotti tessili 200111 | BB2: Solventi 200113* | BC2: Acidi 200114* | BD2: Sostanze Alcaline 200115* | BE2: Prodotti Fotochimici 200117* | BF2: Pesticidi 200119* | BG2: Tubi fluorescenti ed altri rifiuti contenenti Mercurio 200121* | BH2: Apparec. Fuori uso conten. CFC e mat. peric. 200123* | BI2: Oli e Grassi commestibili 200125 | BJ2: Oli e grassi (diversi dalla voce 200125) 200126* | BK2: Vernici,Inchiostri,Adesivi e Resine contenenti sostanze pericolose 200127* | BL2: Vernici,Inchiostri,Adesivi e Resine (diversi dalla voce 200127*) 200128 | BM2: Detergento contenente sostanze pericolose 200129* | BN2: Detergenti (diversi della voce 200129*) 200130 | BO2: Medicinali citotossici e citostatici 200131* | BP2: Medicinali (diversi dlla voce 200131*) 200132 | BQ2: Batterie ed Accumulatori (diversi dalle voci 160601, 160602 e 160603) 200133* | BR2: Batterie ed accumulatori (diversi dlla voce 200133*) 200134 | BS2: Apparecc. elettr. ed elettroniche fuori uso contenenti Mat. Peric. 200135* | BT2: Apparecc. eletr. ed elettroniche fuori uso(diverse da 200121, 200123 e 200135 200136 | BU2: Legno contenente sostanze pericolose 200137* | BV2: Legno 200138 | BW2: Plastica 200139 | BX2: Metallo 200140 | BY2: Rifiuti prodotti dalla pulizia dei camini provenienti da utenze domestiche 200141 | BZ2: Rifiuti biodegradabili 200201 | CA2: Altri rifiuti non biodegradabili 200203 | CB2: Rifiuti dei Mercati 200302 | CC2: Residui della pulizia stradale - 200303 Recupero | CD2: Ingombranti - 200307 Recupero | CE2: TOTALE RD | CF2: CER R.D. utilizzati x Comune | CG2: R.S.U. + R.S.A.+ R.D. - (R.T. Kg. pro capite/g) | CH2: R.S.U. + R.S.A. 200301 - (R.I. Kg. pro capite/g) | CI2: R.D. - (Kg. pro capite/g)
A3: ='Dati Generali CER 1 Sem. 2022'!A3 -> 1 | B3: ='Dati Generali CER 1 Sem. 2022'!B3 -> M211 | C3: ='Dati Generali CER 1 Sem. 2022'!C3 -> ACQUEDOLCI | D3: ='Dati Generali CER 2 Sem. 2022'!D3 -> 5483 | E3: =IF(SUM('Dati Generali CER 1 Sem. 2022'!E3,'Dati Generali CER 2 Sem. 2022'!E3)=0,"",SUM('Dati Generali CER 1 Sem. 2022'!E3,'Dati Generali CER 2 Sem. 2022'!E3)/1000) -> 322.44 | F3: =IF(SUM('Dati Generali CER 1 Sem. 2022'!F3,'Dati Generali CER 2 Sem. 2022'!F3)=0,"",SUM('Dati Generali CER 1 Sem. 2022'!F3,'Dati Generali CER 2 Sem. 2022'!F3)/1000) ->  | G3: =IF(SUM('Dati Generali CER 1 Sem. 2022'!G3,'Dati Generali CER 2 Sem. 2022'!G3)=0,"",SUM('Dati Generali CER 1 Sem. 2022'!G3,'Dati Generali CER 2 Sem. 2022'!G3)/1000) ->  | H3: =IF(SUM('Dati Generali CER 1 Sem. 2022'!H3,'Dati Generali CER 2 Sem. 2022'!H3)=0,"",SUM('Dati Generali CER 1 Sem. 2022'!H3,'Dati Generali CER 2 Sem. 2022'!H3)/1000) ->  | I3: =IF(SUM('Dati Generali CER 1 Sem. 2022'!I3,'Dati Generali CER 2 Sem. 2022'!I3)=0,"",SUM('Dati Generali CER 1 Sem. 2022'!I3,'Dati Generali CER 2 Sem. 2022'!I3)/1000) ->  | J3: =IF(SUM('Dati Generali CER 1 Sem. 2022'!J3,'Dati Generali CER 2 Sem. 2022'!J3)=0,"",SUM('Dati Generali CER 1 Sem. 2022'!J3,'Dati Generali CER 2 Sem. 2022'!J3)/1000) ->  | K3: =IF(SUM('Dati Generali CER 1 Sem. 2022'!K3,'Dati Generali CER 2 Sem. 2022'!K3)=0,"",SUM('Dati Generali CER 1 Sem. 2022'!K3,'Dati Generali CER 2 Sem. 2022'!K3)/1000) ->  | L3: =IF(SUM('Dati Generali CER 1 Sem. 2022'!L3,'Dati Generali CER 2 Sem. 2022'!L3)=0,"",SUM('Dati Generali CER 1 Sem. 2022'!L3,'Dati Generali CER 2 Sem. 2022'!L3)/1000) ->  | M3: =IF(SUM('Dati Generali CER 1 Sem. 2022'!M3,'Dati Generali CER 2 Sem. 2022'!M3)=0,"",SUM('Dati Generali CER 1 Sem. 2022'!M3,'Dati Generali CER 2 Sem. 2022'!M3)/1000) ->  | N3: =IF(SUM('Dati Generali CER 1 Sem. 2022'!N3,'Dati Generali CER 2 Sem. 2022'!N3)=0,"",SUM('Dati Generali CER 1 Sem. 2022'!N3,'Dati Generali CER 2 Sem. 2022'!N3)/1000) ->  | O3: =IF(SUM('Dati Generali CER 1 Sem. 2022'!O3,'Dati Generali CER 2 Sem. 2022'!O3)=0,"",SUM('Dati Generali CER 1 Sem. 2022'!O3,'Dati Generali CER 2 Sem. 2022'!O3)/1000) ->  | P3: =IF(SUM('Dati Generali CER 1 Sem. 2022'!P3,'Dati Generali CER 2 Sem. 2022'!P3)=0,"",SUM('Dati Generali CER 1 Sem. 2022'!P3,'Dati Generali CER 2 Sem. 2022'!P3)/1000) ->  | Q3: =IF(SUM('Dati Generali CER 1 Sem. 2022'!Q3,'Dati Generali CER 2 Sem. 2022'!Q3)=0,"",SUM('Dati Generali CER 1 Sem. 2022'!Q3,'Dati Generali CER 2 Sem. 2022'!Q3)/1000) ->  | R3: =IF(SUM('Dati Generali CER 1 Sem. 2022'!R3,'Dati Generali CER 2 Sem. 2022'!R3)=0,"",SUM('Dati Generali CER 1 Sem. 2022'!R3,'Dati Generali CER 2 Sem. 2022'!R3)/1000) ->  | S3: =IF(SUM('Dati Generali CER 1 Sem. 2022'!S3,'Dati Generali CER 2 Sem. 2022'!S3)=0,"",SUM('Dati Generali CER 1 Sem. 2022'!S3,'Dati Generali CER 2 Sem. 2022'!S3)/1000) ->  | T3: =IF(SUM('Dati Generali CER 1 Sem. 2022'!T3,'Dati Generali CER 2 Sem. 2022'!T3)=0,"",SUM('Dati Generali CER 1 Sem. 2022'!T3,'Dati Generali CER 2 Sem. 2022'!T3)/1000) ->  | U3: =IF(E3="","",SUM('Dati Generali CER 1 Sem. 2022'!CE3,'Dati Generali CER 2 Sem. 2022'!CE3)/1000) -> 1476.44 | V3: =IF(SUM('Dati Generali CER 1 Sem. 2022'!V3,'Dati Generali CER 2 Sem. 2022'!V3)=0,"",SUM('Dati Generali CER 1 Sem. 2022'!V3,'Dati Generali CER 2 Sem. 2022'!V3)/1000) -> 1798.88 | W3: =IF(E3="","",U3/V3) -> 0.8207551365 | X3: =IF(SUM('Dati Generali CER 1 Sem. 2022'!X3,'Dati Generali CER 2 Sem. 2022'!X3)=0,"",SUM('Dati Generali CER 1 Sem. 2022'!X3,'Dati Generali CER 2 Sem. 2022'!X3)/1000) ->  | Y3: =IF(SUM('Dati Generali CER 1 Sem. 2022'!Y3,'Dati Generali CER 2 Sem. 2022'!Y3)=0,"",SUM('Dati Generali CER 1 Sem. 2022'!Y3,'Dati Generali CER 2 Sem. 2022'!Y3)/1000) ->  | Z3: =IF(SUM('Dati Generali CER 1 Sem. 2022'!Z3,'Dati Generali CER 2 Sem. 2022'!Z3)=0,"",SUM('Dati Generali CER 1 Sem. 2022'!Z3,'Dati Generali CER 2 Sem. 2022'!Z3)/1000) -> 73.03 | AA3: =IF(SUM('Dati Generali CER 1 Sem. 2022'!AA3,'Dati Generali CER 2 Sem. 2022'!AA3)=0,"",SUM('Dati Generali CER 1 Sem. 2022'!AA3,'Dati Generali CER 2 Sem. 2022'!AA3)/1000) -> 203.52 | AB3: =IF(SUM('Dati Generali CER 1 Sem. 2022'!AB3,'Dati Generali CER 2 Sem. 2022'!AB3)=0,"",SUM('Dati Generali CER 1 Sem. 2022'!AB3,'Dati Generali CER 2 Sem. 2022'!AB3)/1000) -> 0.97 | AC3: =IF(SUM('Dati Generali CER 1 Sem. 2022'!AC3,'Dati Generali CER 2 Sem. 2022'!AC3)=0,"",SUM('Dati Generali CER 1 Sem. 2022'!AC3,'Dati Generali CER 2 Sem. 2022'!AC3)/1000) ->  | AE3: =IF(SUM('Dati Generali CER 1 Sem. 2022'!AE3,'Dati Generali CER 2 Sem. 2022'!AE3)=0,"",SUM('Dati Generali CER 1 Sem. 2022'!AE3,'Dati Generali CER 2 Sem. 2022'!AE3)/1000) ->  | AF3: =IF(SUM('Dati Generali CER 1 Sem. 2022'!AF3,'Dati Generali CER 2 Sem. 2022'!AF3)=0,"",SUM('Dati Generali CER 1 Sem. 2022'!AF3,'Dati Generali CER 2 Sem. 2022'!AF3)/1000) -> 263.76 | AH3: =IF(SUM('Dati Generali CER 1 Sem. 2022'!AH3,'Dati Generali CER 2 Sem. 2022'!AH3)=0,"",SUM('Dati Generali CER 1 Sem. 2022'!AH3,'Dati Generali CER 2 Sem. 2022'!AH3)/1000) ->  | AI3: =IF(SUM('Dati Generali CER 1 Sem. 2022'!AI3,'Dati Generali CER 2 Sem. 2022'!AI3)=0,"",SUM('Dati Generali CER 1 Sem. 2022'!AI3,'Dati Generali CER 2 Sem. 2022'!AI3)/1000) ->  | AJ3: =IF(SUM('Dati Generali CER 1 Sem. 2022'!AJ3,'Dati Generali CER 2 Sem. 2022'!AJ3)=0,"",SUM('Dati Generali CER 1 Sem. 2022'!AJ3,'Dati Generali CER 2 Sem. 2022'!AJ3)/1000) ->  | AK3: =IF(SUM('Dati Generali CER 1 Sem. 2022'!AK3,'Dati Generali CER 2 Sem. 2022'!AK3)=0,"",SUM('Dati Generali CER 1 Sem. 2022'!AK3,'Dati Generali CER 2 Sem. 2022'!AK3)/1000) ->  | AM3: =IF(SUM('Dati Generali CER 1 Sem. 2022'!AM3,'Dati Generali CER 2 Sem. 2022'!AM3)=0,"",SUM('Dati Generali CER 1 Sem. 2022'!AM3,'Dati Generali CER 2 Sem. 2022'!AM3)/1000) ->  | AR3: =IF(SUM('Dati Generali CER 1 Sem. 2022'!AR3,'Dati Generali CER 2 Sem. 2022'!AR3)=0,"",SUM('Dati Generali CER 1 Sem. 2022'!AR3,'Dati Generali CER 2 Sem. 2022'!AR3)/1000) ->  | AU3: =IF(SUM('Dati Generali CER 1 Sem. 2022'!AU3,'Dati Generali CER 2 Sem. 2022'!AU3)=0,"",SUM('Dati Generali CER 1 Sem. 2022'!AU3,'Dati Generali CER 2 Sem. 2022'!AU3)/1000) ->  | AV3: =IF(SUM('Dati Generali CER 1 Sem. 2022'!AV3,'Dati Generali CER 2 Sem. 2022'!AV3)=0,"",SUM('Dati Generali CER 1 Sem. 2022'!AV3,'Dati Generali CER 2 Sem. 2022'!AV3)/1000) ->  | AW3: =IF(SUM('Dati Generali CER 1 Sem. 2022'!AW3,'Dati Generali CER 2 Sem. 2022'!AW3)=0,"",SUM('Dati Generali CER 1 Sem. 2022'!AW3,'Dati Generali CER 2 Sem. 2022'!AW3)/1000) -> 176.82 | AX3: =IF(SUM('Dati Generali CER 1 Sem. 2022'!AX3,'Dati Generali CER 2 Sem. 2022'!AX3)=0,"",SUM('Dati Generali CER 1 Sem. 2022'!AX3,'Dati Generali CER 2 Sem. 2022'!AX3)/1000) ->  | AY3: =IF(SUM('Dati Generali CER 1 Sem. 2022'!AY3,'Dati Generali CER 2 Sem. 2022'!AY3)=0,"",SUM('Dati Generali CER 1 Sem. 2022'!AY3,'Dati Generali CER 2 Sem. 2022'!AY3)/1000) -> 672.64 | AZ3: =IF(SUM('Dati Generali CER 1 Sem. 2022'!AZ3,'Dati Generali CER 2 Sem. 2022'!AZ3)=0,"",SUM('Dati Generali CER 1 Sem. 2022'!AZ3,'Dati Generali CER 2 Sem. 2022'!AZ3)/1000) -> 9.98 | BA3: =IF(SUM('Dati Generali CER 1 Sem. 2022'!BA3,'Dati Generali CER 2 Sem. 2022'!BA3)=0,"",SUM('Dati Generali CER 1 Sem. 2022'!BA3,'Dati Generali CER 2 Sem. 2022'!BA3)/1000) ->  | BG3: =IF(SUM('Dati Generali CER 1 Sem. 2022'!BG3,'Dati Generali CER 2 Sem. 2022'!BG3)=0,"",SUM('Dati Generali CER 1 Sem. 2022'!BG3,'Dati Generali CER 2 Sem. 2022'!BG3)/1000) ->  | BH3: =IF(SUM('Dati Generali CER 1 Sem. 2022'!BH3,'Dati Generali CER 2 Sem. 2022'!BH3)=0,"",SUM('Dati Generali CER 1 Sem. 2022'!BH3,'Dati Generali CER 2 Sem. 2022'!BH3)/1000) -> 3.8 | BI3: =IF(SUM('Dati Generali CER 1 Sem. 2022'!BI3,'Dati Generali CER 2 Sem. 2022'!BI3)=0,"",SUM('Dati Generali CER 1 Sem. 2022'!BI3,'Dati Generali CER 2 Sem. 2022'!BI3)/1000) -> 2.1 | BJ3: =IF(SUM('Dati Generali CER 1 Sem. 2022'!BJ3,'Dati Generali CER 2 Sem. 2022'!BJ3)=0,"",SUM('Dati Generali CER 1 Sem. 2022'!BJ3,'Dati Generali CER 2 Sem. 2022'!BJ3)/1000) ->  | BO3: =IF(SUM('Dati Generali CER 1 Sem. 2022'!BO3,'Dati Generali CER 2 Sem. 2022'!BO3)=0,"",SUM('Dati Generali CER 1 Sem. 2022'!BO3,'Dati Generali CER 2 Sem. 2022'!BO3)/1000) ->  | BP3: =IF(SUM('Dati Generali CER 1 Sem. 2022'!BP3,'Dati Generali CER 2 Sem. 2022'!BP3)=0,"",SUM('Dati Generali CER 1 Sem. 2022'!BP3,'Dati Generali CER 2 Sem. 2022'!BP3)/1000) ->  | BQ3: =IF(SUM('Dati Generali CER 1 Sem. 2022'!BQ3,'Dati Generali CER 2 Sem. 2022'!BQ3)=0,"",SUM('Dati Generali CER 1 Sem. 2022'!BQ3,'Dati Generali CER 2 Sem. 2022'!BQ3)/1000) ->  | BR3: =IF(SUM('Dati Generali CER 1 Sem. 2022'!BR3,'Dati Generali CER 2 Sem. 2022'!BR3)=0,"",SUM('Dati Generali CER 1 Sem. 2022'!BR3,'Dati Generali CER 2 Sem. 2022'!BR3)/1000) ->  | BS3: =IF(SUM('Dati Generali CER 1 Sem. 2022'!BS3,'Dati Generali CER 2 Sem. 2022'!BS3)=0,"",SUM('Dati Generali CER 1 Sem. 2022'!BS3,'Dati Generali CER 2 Sem. 2022'!BS3)/1000) -> 3.7 | BT3: =IF(SUM('Dati Generali CER 1 Sem. 2022'!BT3,'Dati Generali CER 2 Sem. 2022'!BT3)=0,"",SUM('Dati Generali CER 1 Sem. 2022'!BT3,'Dati Generali CER 2 Sem. 2022'!BT3)/1000) -> 1.3 | BV3: =IF(SUM('Dati Generali CER 1 Sem. 2022'!BV3,'Dati Generali CER 2 Sem. 2022'!BV3)=0,"",SUM('Dati Generali CER 1 Sem. 2022'!BV3,'Dati Generali CER 2 Sem. 2022'!BV3)/1000) ->  | BW3: =IF(SUM('Dati Generali CER 1 Sem. 2022'!BW3,'Dati Generali CER 2 Sem. 2022'!BW3)=0,"",SUM('Dati Generali CER 1 Sem. 2022'!BW3,'Dati Generali CER 2 Sem. 2022'!BW3)/1000) ->  | BX3: =IF(SUM('Dati Generali CER 1 Sem. 2022'!BX3,'Dati Generali CER 2 Sem. 2022'!BX3)=0,"",SUM('Dati Generali CER 1 Sem. 2022'!BX3,'Dati Generali CER 2 Sem. 2022'!BX3)/1000) ->  | BZ3: =IF(SUM('Dati Generali CER 1 Sem. 2022'!BZ3,'Dati Generali CER 2 Sem. 2022'!BZ3)=0,"",SUM('Dati Generali CER 1 Sem. 2022'!BZ3,'Dati Generali CER 2 Sem. 2022'!BZ3)/1000) -> 9.29 | CC3: =IF(SUM('Dati Generali CER 1 Sem. 2022'!CC3,'Dati Generali CER 2 Sem. 2022'!CC3)=0,"",SUM('Dati Generali CER 1 Sem. 2022'!CC3,'Dati Generali CER 2 Sem. 2022'!CC3)/1000) ->  | CD3: =IF(SUM('Dati Generali CER 1 Sem. 2022'!CD3,'Dati Generali CER 2 Sem. 2022'!CD3)=0,"",SUM('Dati Generali CER 1 Sem. 2022'!CD3,'Dati Generali CER 2 Sem. 2022'!CD3)/1000) -> 55.53 | CE3: =IF(SUM('Dati Generali CER 1 Sem. 2022'!CE3,'Dati Generali CER 2 Sem. 2022'!CE3)=0,"",SUM('Dati Generali CER 1 Sem. 2022'!CE3,'Dati Generali CER 2 Sem. 2022'!CE3)/1000) -> 1476.44 | CF3: =IF(COUNT(X3:CD3,E3,R3,S3,T3)=0,"",COUNT(X3:CD3,E3,R3,S3,T3)) -> 14 | CG3: =IF(E3="","",V3/D3/0.365) -> 0.8988579895 | CH3: =IF(E3="","",E3/D3/0.365) -> 0.1611156776 | CI3: =IF(SUM(X3:CD3)=0,"",CE3/D3/0.365) -> 0.7377423119 | CJ3: =SUM(E3,R3,S3,T3,X3:CD3) -> 1798.88
A4: ='Dati Generali CER 1 Sem. 2022'!A4 -> 2 | B4: ='Dati Generali CER 1 Sem. 2022'!B4 -> A177 | C4: ='Dati Generali CER 1 Sem. 2022'!C4 -> ALCARA LI FUSI | D4: ='Dati Generali CER 2 Sem. 2022'!D4 -> 1702 | E4: =IF(SUM('Dati Generali CER 1 Sem. 2022'!E4,'Dati Generali CER 2 Sem. 2022'!E4)=0,"",SUM('Dati Generali CER 1 Sem. 2022'!E4,'Dati Generali CER 2 Sem. 2022'!E4)/1000) -> 84.52 | F4: =IF(SUM('Dati Generali CER 1 Sem. 2022'!F4,'Dati Generali CER 2 Sem. 2022'!F4)=0,"",SUM('Dati Generali CER 1 Sem. 2022'!F4,'Dati Generali CER 2 Sem. 2022'!F4)/1000) ->  | G4: =IF(SUM('Dati Generali CER 1 Sem. 2022'!G4,'Dati Generali CER 2 Sem. 2022'!G4)=0,"",SUM('Dati Generali CER 1 Sem. 2022'!G4,'Dati Generali CER 2 Sem. 2022'!G4)/1000) ->  | H4: =IF(SUM('Dati Generali CER 1 Sem. 2022'!H4,'Dati Generali CER 2 Sem. 2022'!H4)=0,"",SUM('Dati Generali CER 1 Sem. 2022'!H4,'Dati Generali CER 2 Sem. 2022'!H4)/1000) ->  | I4: =IF(SUM('Dati Generali CER 1 Sem. 2022'!I4,'Dati Generali CER 2 Sem. 2022'!I4)=0,"",SUM('Dati Generali CER 1 Sem. 2022'!I4,'Dati Generali CER 2 Sem. 2022'!I4)/1000) ->  | J4: =IF(SUM('Dati Generali CER 1 Sem. 2022'!J4,'Dati Generali CER 2 Sem. 2022'!J4)=0,"",SUM('Dati Generali CER 1 Sem. 2022'!J4,'Dati Generali CER 2 Sem. 2022'!J4)/1000) ->  | K4: =IF(SUM('Dati Generali CER 1 Sem. 2022'!K4,'Dati Generali CER 2 Sem. 2022'!K4)=0,"",SUM('Dati Generali CER 1 Sem. 2022'!K4,'Dati Generali CER 2 Sem. 2022'!K4)/1000) ->  | L4: =IF(SUM('Dati Generali CER 1 Sem. 2022'!L4,'Dati Generali CER 2 Sem. 2022'!L4)=0,"",SUM('Dati Generali CER 1 Sem. 2022'!L4,'Dati Generali CER 2 Sem. 2022'!L4)/1000) ->  | M4: =IF(SUM('Dati Generali CER 1 Sem. 2022'!M4,'Dati Generali CER 2 Sem. 2022'!M4)=0,"",SUM('Dati Generali CER 1 Sem. 2022'!M4,'Dati Generali CER 2 Sem. 2022'!M4)/1000) -> 4.32 | N4: =IF(SUM('Dati Generali CER 1 Sem. 2022'!N4,'Dati Generali CER 2 Sem. 2022'!N4)=0,"",SUM('Dati Generali CER 1 Sem. 2022'!N4,'Dati Generali CER 2 Sem. 2022'!N4)/1000) ->  | O4: =IF(SUM('Dati Generali CER 1 Sem. 2022'!O4,'Dati Generali CER 2 Sem. 2022'!O4)=0,"",SUM('Dati Generali CER 1 Sem. 2022'!O4,'Dati Generali CER 2 Sem. 2022'!O4)/1000) -> 1.14 | P4: =IF(SUM('Dati Generali CER 1 Sem. 2022'!P4,'Dati Generali CER 2 Sem. 2022'!P4)=0,"",SUM('Dati Generali CER 1 Sem. 2022'!P4,'Dati Generali CER 2 Sem. 2022'!P4)/1000) ->  | Q4: =IF(SUM('Dati Generali CER 1 Sem. 2022'!Q4,'Dati Generali CER 2 Sem. 2022'!Q4)=0,"",SUM('Dati Generali CER 1 Sem. 2022'!Q4,'Dati Generali CER 2 Sem. 2022'!Q4)/1000) ->  | R4: =IF(SUM('Dati Generali CER 1 Sem. 2022'!R4,'Dati Generali CER 2 Sem. 2022'!R4)=0,"",SUM('Dati Generali CER 1 Sem. 2022'!R4,'Dati Generali CER 2 Sem. 2022'!R4)/1000) ->  | S4: =IF(SUM('Dati Generali CER 1 Sem. 2022'!S4,'Dati Generali CER 2 Sem. 2022'!S4)=0,"",SUM('Dati Generali CER 1 Sem. 2022'!S4,'Dati Generali CER 2 Sem. 2022'!S4)/1000) ->  | T4: =IF(SUM('Dati Generali CER 1 Sem. 2022'!T4,'Dati Generali CER 2 Sem. 2022'!T4)=0,"",SUM('Dati Generali CER 1 Sem. 2022'!T4,'Dati Generali CER 2 Sem. 2022'!T4)/1000) ->  | U4: =IF(E4="","",SUM('Dati Generali CER 1 Sem. 2022'!CE4,'Dati Generali CER 2 Sem. 2022'!CE4)/1000) -> 323.398 | V4: =IF(SUM('Dati Generali CER 1 Sem. 2022'!V4,'Dati Generali CER 2 Sem. 2022'!V4)=0,"",SUM('Dati Generali CER 1 Sem. 2022'!V4,'Dati Generali CER 2 Sem. 2022'!V4)/1000) -> 407.918 | W4: 0.7928014944 | X4: =IF(SUM('Dati Generali CER 1 Sem. 2022'!X4,'Dati Generali CER 2 Sem. 2022'!X4)=0,"",SUM('Dati Generali CER 1 Sem. 2022'!X4,'Dati Generali CER 2 Sem. 2022'!X4)/1000) ->  | Y4: =IF(SUM('Dati Generali CER 1 Sem. 2022'!Y4,'Dati Generali CER 2 Sem. 2022'!Y4)=0,"",SUM('Dati Generali CER 1 Sem. 2022'!Y4,'Dati Generali CER 2 Sem. 2022'!Y4)/1000) ->  | Z4: =IF(SUM('Dati Generali CER 1 Sem. 2022'!Z4,'Dati Generali CER 2 Sem. 2022'!Z4)=0,"",SUM('Dati Generali CER 1 Sem. 2022'!Z4,'Dati Generali CER 2 Sem. 2022'!Z4)/1000) ->  | AA4: =IF(SUM('Dati Generali CER 1 Sem. 2022'!AA4,'Dati Generali CER 2 Sem. 2022'!AA4)=0,"",SUM('Dati Generali CER 1 Sem. 2022'!AA4,'Dati Generali CER 2 Sem. 2022'!AA4)/1000) -> 40.92 | AB4: =IF(SUM('Dati Generali CER 1 Sem. 2022'!AB4,'Dati Generali CER 2 Sem. 2022'!AB4)=0,"",SUM('Dati Generali CER 1 Sem. 2022'!AB4,'Dati Generali CER 2 Sem. 2022'!AB4)/1000) ->  | AC4: =IF(SUM('Dati Generali CER 1 Sem. 2022'!AC4,'Dati Generali CER 2 Sem. 2022'!AC4)=0,"",SUM('Dati Generali CER 1 Sem. 2022'!AC4,'Dati Generali CER 2 Sem. 2022'!AC4)/1000) ->  | AE4: =IF(SUM('Dati Generali CER 1 Sem. 2022'!AE4,'Dati Generali CER 2 Sem. 2022'!AE4)=0,"",SUM('Dati Generali CER 1 Sem. 2022'!AE4,'Dati Generali CER 2 Sem. 2022'!AE4)/1000) ->  | AF4: =IF(SUM('Dati Generali CER 1 Sem. 2022'!AF4,'Dati Generali CER 2 Sem. 2022'!AF4)=0,"",SUM('Dati Generali CER 1 Sem. 2022'!AF4,'Dati Generali CER 2 Sem. 2022'!AF4)/1000) -> 76.56 | AH4: =IF(SUM('Dati Generali CER 1 Sem. 2022'!AH4,'Dati Generali CER 2 Sem. 2022'!AH4)=0,"",SUM('Dati Generali CER 1 Sem. 2022'!AH4,'Dati Generali CER 2 Sem. 2022'!AH4)/1000) ->  | AI4: =IF(SUM('Dati Generali CER 1 Sem. 2022'!AI4,'Dati Generali CER 2 Sem. 2022'!AI4)=0,"",SUM('Dati Generali CER 1 Sem. 2022'!AI4,'Dati Generali CER 2 Sem. 2022'!AI4)/1000) ->  | AJ4: =IF(SUM('Dati Generali CER 1 Sem. 2022'!AJ4,'Dati Generali CER 2 Sem. 2022'!AJ4)=0,"",SUM('Dati Generali CER 1 Sem. 2022'!AJ4,'Dati Generali CER 2 Sem. 2022'!AJ4)/1000) ->  | AK4: =IF(SUM('Dati Generali CER 1 Sem. 2022'!AK4,'Dati Generali CER 2 Sem. 2022'!AK4)=0,"",SUM('Dati Generali CER 1 Sem. 2022'!AK4,'Dati Generali CER 2 Sem. 2022'!AK4)/1000) ->  | AM4: =IF(SUM('Dati Generali CER 1 Sem. 2022'!AM4,'Dati Generali CER 2 Sem. 2022'!AM4)=0,"",SUM('Dati Generali CER 1 Sem. 2022'!AM4,'Dati Generali CER 2 Sem. 2022'!AM4)/1000) ->  | AR4: =IF(SUM('Dati Generali CER 1 Sem. 2022'!AR4,'Dati Generali CER 2 Sem. 2022'!AR4)=0,"",SUM('Dati Generali CER 1 Sem. 2022'!AR4,'Dati Generali CER 2 Sem. 2022'!AR4)/1000) ->  | AU4: =IF(SUM('Dati Generali CER 1 Sem. 2022'!AU4,'Dati Generali CER 2 Sem. 2022'!AU4)=0,"",SUM('Dati Generali CER 1 Sem. 2022'!AU4,'Dati Generali CER 2 Sem. 2022'!AU4)/1000) ->  | AV4: =IF(SUM('Dati Generali CER 1 Sem. 2022'!AV4,'Dati Generali CER 2 Sem. 2022'!AV4)=0,"",SUM('Dati Generali CER 1 Sem. 2022'!AV4,'Dati Generali CER 2 Sem. 2022'!AV4)/1000) ->  | AW4: =IF(SUM('Dati Generali CER 1 Sem. 2022'!AW4,'Dati Generali CER 2 Sem. 2022'!AW4)=0,"",SUM('Dati Generali CER 1 Sem. 2022'!AW4,'Dati Generali CER 2 Sem. 2022'!AW4)/1000) -> 46.31 | AX4: =IF(SUM('Dati Generali CER 1 Sem. 2022'!AX4,'Dati Generali CER 2 Sem. 2022'!AX4)=0,"",SUM('Dati Generali CER 1 Sem. 2022'!AX4,'Dati Generali CER 2 Sem. 2022'!AX4)/1000) ->  | AY4: =IF(SUM('Dati Generali CER 1 Sem. 2022'!AY4,'Dati Generali CER 2 Sem. 2022'!AY4)=0,"",SUM('Dati Generali CER 1 Sem. 2022'!AY4,'Dati Generali CER 2 Sem. 2022'!AY4)/1000) -> 140.55 | AZ4: =IF(SUM('Dati Generali CER 1 Sem. 2022'!AZ4,'Dati Generali CER 2 Sem. 2022'!AZ4)=0,"",SUM('Dati Generali CER 1 Sem. 2022'!AZ4,'Dati Generali CER 2 Sem. 2022'!AZ4)/1000) -> 7.258 | BA4: =IF(SUM('Dati Generali CER 1 Sem. 2022'!BA4,'Dati Generali CER 2 Sem. 2022'!BA4)=0,"",SUM('Dati Generali CER 1 Sem. 2022'!BA4,'Dati Generali CER 2 Sem. 2022'!BA4)/1000) ->  | BG4: =IF(SUM('Dati Generali CER 1 Sem. 2022'!BG4,'Dati Generali CER 2 Sem. 2022'!BG4)=0,"",SUM('Dati Generali CER 1 Sem. 2022'!BG4,'Dati Generali CER 2 Sem. 2022'!BG4)/1000) ->  | BH4: =IF(SUM('Dati Generali CER 1 Sem. 2022'!BH4,'Dati Generali CER 2 Sem. 2022'!BH4)=0,"",SUM('Dati Generali CER 1 Sem. 2022'!BH4,'Dati Generali CER 2 Sem. 2022'!BH4)/1000) -> 1.23 | BI4: =IF(SUM('Dati Generali CER 1 Sem. 2022'!BI4,'Dati Generali CER 2 Sem. 2022'!BI4)=0,"",SUM('Dati Generali CER 1 Sem. 2022'!BI4,'Dati Generali CER 2 Sem. 2022'!BI4)/1000) ->  | BJ4: =IF(SUM('Dati Generali CER 1 Sem. 2022'!BJ4,'Dati Generali CER 2 Sem. 2022'!BJ4)=0,"",SUM('Dati Generali CER 1 Sem. 2022'!BJ4,'Dati Generali CER 2 Sem. 2022'!BJ4)/1000) ->  | BO4: =IF(SUM('Dati Generali CER 1 Sem. 2022'!BO4,'Dati Generali CER 2 Sem. 2022'!BO4)=0,"",SUM('Dati Generali CER 1 Sem. 2022'!BO4,'Dati Generali CER 2 Sem. 2022'!BO4)/1000) ->  | BP4: =IF(SUM('Dati Generali CER 1 Sem. 2022'!BP4,'Dati Generali CER 2 Sem. 2022'!BP4)=0,"",SUM('Dati Generali CER 1 Sem. 2022'!BP4,'Dati Generali CER 2 Sem. 2022'!BP4)/1000) ->  | BQ4: =IF(SUM('Dati Generali CER 1 Sem. 2022'!BQ4,'Dati Generali CER 2 Sem. 2022'!BQ4)=0,"",SUM('Dati Generali CER 1 Sem. 2022'!BQ4,'Dati Generali CER 2 Sem. 2022'!BQ4)/1000) ->  | BR4: =IF(SUM('Dati Generali CER 1 Sem. 2022'!BR4,'Dati Generali CER 2 Sem. 2022'!BR4)=0,"",SUM('Dati Generali CER 1 Sem. 2022'!BR4,'Dati Generali CER 2 Sem. 2022'!BR4)/1000) ->  | BS4: =IF(SUM('Dati Generali CER 1 Sem. 2022'!BS4,'Dati Generali CER 2 Sem. 2022'!BS4)=0,"",SUM('Dati Generali CER 1 Sem. 2022'!BS4,'Dati Generali CER 2 Sem. 2022'!BS4)/1000) -> 2.09 | BT4: =IF(SUM('Dati Generali CER 1 Sem. 2022'!BT4,'Dati Generali CER 2 Sem. 2022'!BT4)=0,"",SUM('Dati Generali CER 1 Sem. 2022'!BT4,'Dati Generali CER 2 Sem. 2022'!BT4)/1000) -> 2.47 | BV4: =IF(SUM('Dati Generali CER 1 Sem. 2022'!BV4,'Dati Generali CER 2 Sem. 2022'!BV4)=0,"",SUM('Dati Generali CER 1 Sem. 2022'!BV4,'Dati Generali CER 2 Sem. 2022'!BV4)/1000) ->  | BW4: =IF(SUM('Dati Generali CER 1 Sem. 2022'!BW4,'Dati Generali CER 2 Sem. 2022'!BW4)=0,"",SUM('Dati Generali CER 1 Sem. 2022'!BW4,'Dati Generali CER 2 Sem. 2022'!BW4)/1000) ->  | BX4: =IF(SUM('Dati Generali CER 1 Sem. 2022'!BX4,'Dati Generali CER 2 Sem. 2022'!BX4)=0,"",SUM('Dati Generali CER 1 Sem. 2022'!BX4,'Dati Generali CER 2 Sem. 2022'!BX4)/1000) ->  | BZ4: =IF(SUM('Dati Generali CER 1 Sem. 2022'!BZ4,'Dati Generali CER 2 Sem. 2022'!BZ4)=0,"",SUM('Dati Generali CER 1 Sem. 2022'!BZ4,'Dati Generali CER 2 Sem. 2022'!BZ4)/1000) ->  | CC4: =IF(SUM('Dati Generali CER 1 Sem. 2022'!CC4,'Dati Generali CER 2 Sem. 2022'!CC4)=0,"",SUM('Dati Generali CER 1 Sem. 2022'!CC4,'Dati Generali CER 2 Sem. 2022'!CC4)/1000) ->  | CD4: =IF(SUM('Dati Generali CER 1 Sem. 2022'!CD4,'Dati Generali CER 2 Sem. 2022'!CD4)=0,"",SUM('Dati Generali CER 1 Sem. 2022'!CD4,'Dati Generali CER 2 Sem. 2022'!CD4)/1000) -> 6.01 | CE4: =IF(SUM('Dati Generali CER 1 Sem. 2022'!CE4,'Dati Generali CER 2 Sem. 2022'!CE4)=0,"",SUM('Dati Generali CER 1 Sem. 2022'!CE4,'Dati Generali CER 2 Sem. 2022'!CE4)/1000) -> 323.398 | CF4: =IF(COUNT(X4:CD4,E4,R4,S4,T4)=0,"",COUNT(X4:CD4,E4,R4,S4,T4)) -> 10 | CG4: 0.6566295897 | CH4: =IF(E4="","",E4/D4/0.365) -> 0.1360526697 | CI4: =IF(SUM(X4:CD4)=0,"",CE4/D4/0.365) -> 0.52057692 | CJ4: =SUM(E4,R4,S4,T4,X4:CD4) -> 407.918
A5: ='Dati Generali CER 1 Sem. 2022'!A5 -> 3 | B5: ='Dati Generali CER 1 Sem. 2022'!B5 -> A194 | C5: ='Dati Generali CER 1 Sem. 2022'!C5 -> ALI' | D5: ='Dati Generali CER 2 Sem. 2022'!D5 -> 657 | E5: =IF(SUM('Dati Generali CER 1 Sem. 2022'!E5,'Dati Generali CER 2 Sem. 2022'!E5)=0,"",SUM('Dati Generali CER 1 Sem. 2022'!E5,'Dati Generali CER 2 Sem. 2022'!E5)/1000) -> 37.31 | F5: =IF(SUM('Dati Generali CER 1 Sem. 2022'!F5,'Dati Generali CER 2 Sem. 2022'!F5)=0,"",SUM('Dati Generali CER 1 Sem. 2022'!F5,'Dati Generali CER 2 Sem. 2022'!F5)/1000) ->  | G5: =IF(SUM('Dati Generali CER 1 Sem. 2022'!G5,'Dati Generali CER 2 Sem. 2022'!G5)=0,"",SUM('Dati Generali CER 1 Sem. 2022'!G5,'Dati Generali CER 2 Sem. 2022'!G5)/1000) ->  | H5: =IF(SUM('Dati Generali CER 1 Sem. 2022'!H5,'Dati Generali CER 2 Sem. 2022'!H5)=0,"",SUM('Dati Generali CER 1 Sem. 2022'!H5,'Dati Generali CER 2 Sem. 2022'!H5)/1000) ->  | I5: =IF(SUM('Dati Generali CER 1 Sem. 2022'!I5,'Dati Generali CER 2 Sem. 2022'!I5)=0,"",SUM('Dati Generali CER 1 Sem. 2022'!I5,'Dati Generali CER 2 Sem. 2022'!I5)/1000) ->  | J5: =IF(SUM('Dati Generali CER 1 Sem. 2022'!J5,'Dati Generali CER 2 Sem. 2022'!J5)=0,"",SUM('Dati Generali CER 1 Sem. 2022'!J5,'Dati Generali CER 2 Sem. 2022'!J5)/1000) ->  | K5: =IF(SUM('Dati Generali CER 1 Sem. 2022'!K5,'Dati Generali CER 2 Sem. 2022'!K5)=0,"",SUM('Dati Generali CER 1 Sem. 2022'!K5,'Dati Generali CER 2 Sem. 2022'!K5)/1000) ->  | L5: =IF(SUM('Dati Generali CER 1 Sem. 2022'!L5,'Dati Generali CER 2 Sem. 2022'!L5)=0,"",SUM('Dati Generali CER 1 Sem. 2022'!L5,'Dati Generali CER 2 Sem. 2022'!L5)/1000) ->  | M5: =IF(SUM('Dati Generali CER 1 Sem. 2022'!M5,'Dati Generali CER 2 Sem. 2022'!M5)=0,"",SUM('Dati Generali CER 1 Sem. 2022'!M5,'Dati Generali CER 2 Sem. 2022'!M5)/1000) ->  | N5: =IF(SUM('Dati Generali CER 1 Sem. 2022'!N5,'Dati Generali CER 2 Sem. 2022'!N5)=0,"",SUM('Dati Generali CER 1 Sem. 2022'!N5,'Dati Generali CER 2 Sem. 2022'!N5)/1000) ->  | O5: =IF(SUM('Dati Generali CER 1 Sem. 2022'!O5,'Dati Generali CER 2 Sem. 2022'!O5)=0,"",SUM('Dati Generali CER 1 Sem. 2022'!O5,'Dati Generali CER 2 Sem. 2022'!O5)/1000) ->  | P5: =IF(SUM('Dati Generali CER 1 Sem. 2022'!P5,'Dati Generali CER 2 Sem. 2022'!P5)=0,"",SUM('Dati Generali CER 1 Sem. 2022'!P5,'Dati Generali CER 2 Sem. 2022'!P5)/1000) ->  | Q5: =IF(SUM('Dati Generali CER 1 Sem. 2022'!Q5,'Dati Generali CER 2 Sem. 2022'!Q5)=0,"",SUM('Dati Generali CER 1 Sem. 2022'!Q5,'Dati Generali CER 2 Sem. 2022'!Q5)/1000) ->  | R5: =IF(SUM('Dati Generali CER 1 Sem. 2022'!R5,'Dati Generali CER 2 Sem. 2022'!R5)=0,"",SUM('Dati Generali CER 1 Sem. 2022'!R5,'Dati Generali CER 2 Sem. 2022'!R5)/1000) ->  | S5: =IF(SUM('Dati Generali CER 1 Sem. 2022'!S5,'Dati Generali CER 2 Sem. 2022'!S5)=0,"",SUM('Dati Generali CER 1 Sem. 2022'!S5,'Dati Generali CER 2 Sem. 2022'!S5)/1000) ->  | T5: =IF(SUM('Dati Generali CER 1 Sem. 2022'!T5,'Dati Generali CER 2 Sem. 2022'!T5)=0,"",SUM('Dati Generali CER 1 Sem. 2022'!T5,'Dati Generali CER 2 Sem. 2022'!T5)/1000) ->  | U5: =IF(E5="","",SUM('Dati Generali CER 1 Sem. 2022'!CE5,'Dati Generali CER 2 Sem. 2022'!CE5)/1000) -> 86.665 | V5: =IF(SUM('Dati Generali CER 1 Sem. 2022'!V5,'Dati Generali CER 2 Sem. 2022'!V5)=0,"",SUM('Dati Generali CER 1 Sem. 2022'!V5,'Dati Generali CER 2 Sem. 2022'!V5)/1000) -> 123.975 | W5: 0.6990522283 | X5: =IF(SUM('Dati Generali CER 1 Sem. 2022'!X5,'Dati Generali CER 2 Sem. 2022'!X5)=0,"",SUM('Dati Generali CER 1 Sem. 2022'!X5,'Dati Generali CER 2 Sem. 2022'!X5)/1000) ->  | Y5: =IF(SUM('Dati Generali CER 1 Sem. 2022'!Y5,'Dati Generali CER 2 Sem. 2022'!Y5)=0,"",SUM('Dati Generali CER 1 Sem. 2022'!Y5,'Dati Generali CER 2 Sem. 2022'!Y5)/1000) ->  | Z5: =IF(SUM('Dati Generali CER 1 Sem. 2022'!Z5,'Dati Generali CER 2 Sem. 2022'!Z5)=0,"",SUM('Dati Generali CER 1 Sem. 2022'!Z5,'Dati Generali CER 2 Sem. 2022'!Z5)/1000) ->  | AA5: =IF(SUM('Dati Generali CER 1 Sem. 2022'!AA5,'Dati Generali CER 2 Sem. 2022'!AA5)=0,"",SUM('Dati Generali CER 1 Sem. 2022'!AA5,'Dati Generali CER 2 Sem. 2022'!AA5)/1000) ->  | AB5: =IF(SUM('Dati Generali CER 1 Sem. 2022'!AB5,'Dati Generali CER 2 Sem. 2022'!AB5)=0,"",SUM('Dati Generali CER 1 Sem. 2022'!AB5,'Dati Generali CER 2 Sem. 2022'!AB5)/1000) ->  | AC5: =IF(SUM('Dati Generali CER 1 Sem. 2022'!AC5,'Dati Generali CER 2 Sem. 2022'!AC5)=0,"",SUM('Dati Generali CER 1 Sem. 2022'!AC5,'Dati Generali CER 2 Sem. 2022'!AC5)/1000) ->  | AE5: =IF(SUM('Dati Generali CER 1 Sem. 2022'!AE5,'Dati Generali CER 2 Sem. 2022'!AE5)=0,"",SUM('Dati Generali CER 1 Sem. 2022'!AE5,'Dati Generali CER 2 Sem. 2022'!AE5)/1000) -> 12.23 | AF5: =IF(SUM('Dati Generali CER 1 Sem. 2022'!AF5,'Dati Generali CER 2 Sem. 2022'!AF5)=0,"",SUM('Dati Generali CER 1 Sem. 2022'!AF5,'Dati Generali CER 2 Sem. 2022'!AF5)/1000) -> 14.94 | AH5: =IF(SUM('Dati Generali CER 1 Sem. 2022'!AH5,'Dati Generali CER 2 Sem. 2022'!AH5)=0,"",SUM('Dati Generali CER 1 Sem. 2022'!AH5,'Dati Generali CER 2 Sem. 2022'!AH5)/1000) ->  | AI5: =IF(SUM('Dati Generali CER 1 Sem. 2022'!AI5,'Dati Generali CER 2 Sem. 2022'!AI5)=0,"",SUM('Dati Generali CER 1 Sem. 2022'!AI5,'Dati Generali CER 2 Sem. 2022'!AI5)/1000) ->  | AJ5: =IF(SUM('Dati Generali CER 1 Sem. 2022'!AJ5,'Dati Generali CER 2 Sem. 2022'!AJ5)=0,"",SUM('Dati Generali CER 1 Sem. 2022'!AJ5,'Dati Generali CER 2 Sem. 2022'!AJ5)/1000) ->  | AK5: =IF(SUM('Dati Generali CER 1 Sem. 2022'!AK5,'Dati Generali CER 2 Sem. 2022'!AK5)=0,"",SUM('Dati Generali CER 1 Sem. 2022'!AK5,'Dati Generali CER 2 Sem. 2022'!AK5)/1000) ->  | AM5: =IF(SUM('Dati Generali CER 1 Sem. 2022'!AM5,'Dati Generali CER 2 Sem. 2022'!AM5)=0,"",SUM('Dati Generali CER 1 Sem. 2022'!AM5,'Dati Generali CER 2 Sem. 2022'!AM5)/1000) ->  | AR5: =IF(SUM('Dati Generali CER 1 Sem. 2022'!AR5,'Dati Generali CER 2 Sem. 2022'!AR5)=0,"",SUM('Dati Generali CER 1 Sem. 2022'!AR5,'Dati Generali CER 2 Sem. 2022'!AR5)/1000) ->  | AU5: =IF(SUM('Dati Generali CER 1 Sem. 2022'!AU5,'Dati Generali CER 2 Sem. 2022'!AU5)=0,"",SUM('Dati Generali CER 1 Sem. 2022'!AU5,'Dati Generali CER 2 Sem. 2022'!AU5)/1000) ->  | AV5: =IF(SUM('Dati Generali CER 1 Sem. 2022'!AV5,'Dati Generali CER 2 Sem. 2022'!AV5)=0,"",SUM('Dati Generali CER 1 Sem. 2022'!AV5,'Dati Generali CER 2 Sem. 2022'!AV5)/1000) ->  | AW5: =IF(SUM('Dati Generali CER 1 Sem. 2022'!AW5,'Dati Generali CER 2 Sem. 2022'!AW5)=0,"",SUM('Dati Generali CER 1 Sem. 2022'!AW5,'Dati Generali CER 2 Sem. 2022'!AW5)/1000) -> 12.02 | AX5: =IF(SUM('Dati Generali CER 1 Sem. 2022'!AX5,'Dati Generali CER 2 Sem. 2022'!AX5)=0,"",SUM('Dati Generali CER 1 Sem. 2022'!AX5,'Dati Generali CER 2 Sem. 2022'!AX5)/1000) ->  | AY5: =IF(SUM('Dati Generali CER 1 Sem. 2022'!AY5,'Dati Generali CER 2 Sem. 2022'!AY5)=0,"",SUM('Dati Generali CER 1 Sem. 2022'!AY5,'Dati Generali CER 2 Sem. 2022'!AY5)/1000) -> 39.9 | AZ5: =IF(SUM('Dati Generali CER 1 Sem. 2022'!AZ5,'Dati Generali CER 2 Sem. 2022'!AZ5)=0,"",SUM('Dati Generali CER 1 Sem. 2022'!AZ5,'Dati Generali CER 2 Sem. 2022'!AZ5)/1000) ->  | BA5: =IF(SUM('Dati Generali CER 1 Sem. 2022'!BA5,'Dati Generali CER 2 Sem. 2022'!BA5)=0,"",SUM('Dati Generali CER 1 Sem. 2022'!BA5,'Dati Generali CER 2 Sem. 2022'!BA5)/1000) ->  | BG5: =IF(SUM('Dati Generali CER 1 Sem. 2022'!BG5,'Dati Generali CER 2 Sem. 2022'!BG5)=0,"",SUM('Dati Generali CER 1 Sem. 2022'!BG5,'Dati Generali CER 2 Sem. 2022'!BG5)/1000) ->  | BH5: =IF(SUM('Dati Generali CER 1 Sem. 2022'!BH5,'Dati Generali CER 2 Sem. 2022'!BH5)=0,"",SUM('Dati Generali CER 1 Sem. 2022'!BH5,'Dati Generali CER 2 Sem. 2022'!BH5)/1000) ->  | BI5: =IF(SUM('Dati Generali CER 1 Sem. 2022'!BI5,'Dati Generali CER 2 Sem. 2022'!BI5)=0,"",SUM('Dati Generali CER 1 Sem. 2022'!BI5,'Dati Generali CER 2 Sem. 2022'!BI5)/1000) ->  | BJ5: =IF(SUM('Dati Generali CER 1 Sem. 2022'!BJ5,'Dati Generali CER 2 Sem. 2022'!BJ5)=0,"",SUM('Dati Generali CER 1 Sem. 2022'!BJ5,'Dati Generali CER 2 Sem. 2022'!BJ5)/1000) ->  | BO5: =IF(SUM('Dati Generali CER 1 Sem. 2022'!BO5,'Dati Generali CER 2 Sem. 2022'!BO5)=0,"",SUM('Dati Generali CER 1 Sem. 2022'!BO5,'Dati Generali CER 2 Sem. 2022'!BO5)/1000) ->  | BP5: =IF(SUM('Dati Generali CER 1 Sem. 2022'!BP5,'Dati Generali CER 2 Sem. 2022'!BP5)=0,"",SUM('Dati Generali CER 1 Sem. 2022'!BP5,'Dati Generali CER 2 Sem. 2022'!BP5)/1000) -> 0.015 | BQ5: =IF(SUM('Dati Generali CER 1 Sem. 2022'!BQ5,'Dati Generali CER 2 Sem. 2022'!BQ5)=0,"",SUM('Dati Generali CER 1 Sem. 2022'!BQ5,'Dati Generali CER 2 Sem. 2022'!BQ5)/1000) ->  | BR5: =IF(SUM('Dati Generali CER 1 Sem. 2022'!BR5,'Dati Generali CER 2 Sem. 2022'!BR5)=0,"",SUM('Dati Generali CER 1 Sem. 2022'!BR5,'Dati Generali CER 2 Sem. 2022'!BR5)/1000) ->  | BS5: =IF(SUM('Dati Generali CER 1 Sem. 2022'!BS5,'Dati Generali CER 2 Sem. 2022'!BS5)=0,"",SUM('Dati Generali CER 1 Sem. 2022'!BS5,'Dati Generali CER 2 Sem. 2022'!BS5)/1000) ->  | BT5: =IF(SUM('Dati Generali CER 1 Sem. 2022'!BT5,'Dati Generali CER 2 Sem. 2022'!BT5)=0,"",SUM('Dati Generali CER 1 Sem. 2022'!BT5,'Dati Generali CER 2 Sem. 2022'!BT5)/1000) ->  | BV5: =IF(SUM('Dati Generali CER 1 Sem. 2022'!BV5,'Dati Generali CER 2 Sem. 2022'!BV5)=0,"",SUM('Dati Generali CER 1 Sem. 2022'!BV5,'Dati Generali CER 2 Sem. 2022'!BV5)/1000) ->  | BW5: =IF(SUM('Dati Generali CER 1 Sem. 2022'!BW5,'Dati Generali CER 2 Sem. 2022'!BW5)=0,"",SUM('Dati Generali CER 1 Sem. 2022'!BW5,'Dati Generali CER 2 Sem. 2022'!BW5)/1000) ->  | BX5: =IF(SUM('Dati Generali CER 1 Sem. 2022'!BX5,'Dati Generali CER 2 Sem. 2022'!BX5)=0,"",SUM('Dati Generali CER 1 Sem. 2022'!BX5,'Dati Generali CER 2 Sem. 2022'!BX5)/1000) ->  | BZ5: =IF(SUM('Dati Generali CER 1 Sem. 2022'!BZ5,'Dati Generali CER 2 Sem. 2022'!BZ5)=0,"",SUM('Dati Generali CER 1 Sem. 2022'!BZ5,'Dati Generali CER 2 Sem. 2022'!BZ5)/1000) -> 3.42 | CC5: =IF(SUM('Dati Generali CER 1 Sem. 2022'!CC5,'Dati Generali CER 2 Sem. 2022'!CC5)=0,"",SUM('Dati Generali CER 1 Sem. 2022'!CC5,'Dati Generali CER 2 Sem. 2022'!CC5)/1000) ->  | CD5: =IF(SUM('Dati Generali CER 1 Sem. 2022'!CD5,'Dati Generali CER 2 Sem. 2022'!CD5)=0,"",SUM('Dati Generali CER 1 Sem. 2022'!CD5,'Dati Generali CER 2 Sem. 2022'!CD5)/1000) -> 4.14 | CE5: =IF(SUM('Dati Generali CER 1 Sem. 2022'!CE5,'Dati Generali CER 2 Sem. 2022'!CE5)=0,"",SUM('Dati Generali CER 1 Sem. 2022'!CE5,'Dati Generali CER 2 Sem. 2022'!CE5)/1000) -> 86.665 | CF5: =IF(COUNT(X5:CD5,E5,R5,S5,T5)=0,"",COUNT(X5:CD5,E5,R5,S5,T5)) -> 8 | CG5: 0.5169825483 | CH5: =IF(E5="","",E5/D5/0.365) -> 0.1555847459 | CI5: =IF(SUM(X5:CD5)=0,"",CE5/D5/0.365) -> 0.3613978024 | CJ5: =SUM(E5,R5,S5,T5,X5:CD5) -> 123.975
